Workbook

Sheet Overview
A1: Template for Member States for submission of an application pursuant to Article 10c(5) of Directive 2003/87/EC
B2: Version 1.2
A6: Structure:
A8: A. | B8: Eligibility of Member State
A9: B.1.a. | B9: List of company groups
A10: B.1.b. | B10: List of operators
A11: B.1.c. | B11: Eligibility of installations
A12: B.2. | B12: Maximum amount of transitional free allocation at national level
A13: B.3.1. | B13: Transitional free allocation at installation level - based on verified emissions
A14: B.3.2. | B14: Transitional free allocation at installation level - based on a benchmark
A15: CF | B15: Transitional free allocation at installation level - calculation of correction factor
A16: C.1. | B16: Eligibility of investments
A17: C.3. | B17: Balance between investments and allocation
A18: C.4.1. | B18: Transitional free allocation at installation level - non-transferable allowances

Sheet A. Eligibility of Member State
A2: Member State: | C2: HU | G2: BG | H2: Yes
G3: CZ | H3: No
G4: EE
A5: Article 10c(1) of Directive 2003/87/EC lists the following three conditions out of which at least one would need to be met by a Member State eligible for the option for transitional free allocation: | G5: CY
G6: LV
C7: Applicable? | G7: LT
A8: a) in 2007, the national electricity network was not directly or indirectly connected to the network interconnected system operated by the Union for the Coordination of Transmission of Electricity (UCTE); | G8: HU
A9: b) in 2007, the national electricity network was only directly of indirectly connected to the network operated by UCTE through a single line with a capacity of less than 400 MW; | G9: MT
A10: c) in 2006, more than 30% of electricity was produced from a single fossil fuel, and the GDP per capita at market price did not exceed 50% of the average GDP per capita at market price of the Community. | C10: Yes | G10: PL
G11: RO

Sheet B.1.a. Company groups
A1: Company group (short name) | B1: Company group (full name) | C1: Address of company group
A2: AES | B2: The AES Corporation | C2: Arlington, Virginia, Egyesült Államok
A3: Alpiq | B3: Alpiq Ltd. | C3: Bahnhofquai 12 4601 Olten, Svájc
A4: Bakonyi | B4: Bakonyi Erőmű ZRt. | C4: 8401 Ajka, Gyártelep
A5: Dunaferr | B5: Dunaferr Dunai Vasmű Zrt. | C5: 2401 Dunaújváros, Vasmű tér 1-3.
A6: E.ON | B6: E.ON Energy Solutions Limited | C6: Westwood Way, Westwood Business Park, Coventry, CV4 8LG, Egyesült Királyság
A7: Electrabel | B7: Electrabel SA | C7: Boulevard du Regent 8 1000 Brüsszel, Belgium
A8: EDF | B8: Electricité de France International | C8: 22/30 avenue de Wagram 75008 Párizs, Franciaország
A9: MVM | B9: MVM Zrt. | C9: 1031 Budapest, Szentendrei út 207-209.
A10: Pannonpower | B10: Pannonpower Holding Rt. | C10: 7630 Pécs, Edison u. 1.
A11: RWE | B11: RWE Power AG | C11: Huyssenallee 2 45128 Essen, Németország

Sheet B.1.b. Operators
A1: Operator (short name) | B1: Operator (full name) | C1: Address of operator | D1: Company group
A2: AES Borsod | B2: AES Borsodi Energetikai Kft. Borsodi Hőerőmű | C2: 3580 Tiszaújváros, Verebély László út 2. | D2: AES
A3: AES Tisza | B3: AES Tisza Erőmű Kft. | C3: 3580 Tiszaújváros, Verebély László út 2. | D3: AES
A4: AES Tiszapalkonya | B4: AES Borsodi Energetikai Kft. | C4: 3580 Tiszaújváros, Verebély László út 2. | D4: AES
A5: Bakonyi | B5: Bakonyi Erőmű ZRt. | C5: 8401 Ajka, Gyártelep | D5: Bakonyi
A6: BERT | B6: Budapesti Erőmű ZRt. | C6: 1117 Budapest, Budafoki út 52. | D6: EDF
A7: Csepel | B7: Csepeli Áramtermelő Kft. | C7: 1211 Budapest, Hőerőmű u. 3. | D7: Alpiq
A8: DKCE | B8: Debreceni Kombinált Ciklusú Erőmű Kft. | C8: 4030 Debrecen, Mikepércsi út 1. | D8: E.ON
A9: Dunamenti | B9: Dunamenti Erőmű ZRt. | C9: 2440 Százhalombatta, Erőmű u. 2. | D9: Electrabel
A10: E.ON Gönyű | B10: E.ON Erőművek Termelő és Üzemeltető Kft. (Gönyű) | C10: 1051 Budapest, Roosevelt tér 7-8. | D10: E.ON
A11: ISD Power | B11: ISD POWER Erőmű Kft. | C11: 2400 Dunaújváros, Vasmű tér 1-3. | D11: Dunaferr
A12: Magyar Gáz Tranzit Zrt. | B12: még nem létező társaság (3) | C12: A társaság megalakítása 2012. 01. 01-ig várhatóan megtörténik. | D12: MVM
A13: Mátrai Erőmű | B13: Mátrai Erőmű Zrt. | C13: 3272 Visonta, Erőmű u. 11. | D13: RWE
A14: MVM Észak-Buda | B14: MVM Észak-budai Fűtőerőmű Kft. Észak-Buda Gázturbinás Kogenerációs Fűtőerőmű | C14: 1037 Budapest, Kunigunda útja 49. | D14: MVM
A15: NYKCE | B15: E.ON Energiatermelő Kft. NYKCE Nyíregyházi Kombinált Ciklusú Erőmű Kft. | C15: 4400 Nyíregyháza, Bethlen Gábor út 92. | D15: E.ON
A16: Pannon | B16: Pannon Hőerőmű Energiatermelő, Kereskedelmi és Szolgáltató ZRt. | C16: 8630 Pécs, Edison u. 1. | D16: Pannonpower
A17: Smart Grid Projekttársaság | B17: még nem létező társaság (2) | C17: A társaság megalakítására Magyarország 10c kérelmének jóváhagyást követően fog sor kerülni | D17: MVM
A18: SZET Projekttársaság | B18: még nem létező társaság (1) | C18: A társaság megalakítására Magyarország 10c kérelmének jóváhagyást követően fog sor kerülni | D18: MVM
A19: Vértes | B19: Vértesi Erőmű Rt. Oroszlányi Erőmű | C19: 2841 Oroszlány, Pf. 23. Külterület | D19: MVM

Sheet B.1.c. Installations
A1: Installation number | B1: Installation name | C1: Permit number | D1: Operator | E1: Company group | F1: Electricity generator? | G1: Installations in operation by 31 December 2008 | U1: Installations with physically initiated investment process
G2: CHP? | H2: VE 2005 | J2: VE 2006 | L2: VE 2007 | N2: VE 2008 | P2: VE 2009 | R2: VE 2010 | T2: Explanation in case calculation method for emissions split is not in line with Annex IIA | U2: Enumeration of evidence provided
H3: Total | I3: Eligible | J3: Total | K3: Eligible | L3: Total | M3: Eligible | N3: Total | O3: Eligible | P3: Total | Q3: Eligible | R3: Total | S3: Eligible
H4: =SUM(H5:H505) -> 15,476,707 | I4: 13,434,071 | J4: 15,171,096 | K4: 12,952,338 | L4: 16,399,396 | M4: 13,928,333 | N4: =SUM(N5:N505) -> 15,624,047 | O4: 13,247,074 | P4: 12,690,317 | Q4: 10,954,641 | R4: 13,226,065 | S4: 11,506,822
A5: HU-001 | B5: AES Borsodi Energetikai Kft. Tiszapalkonyai Erőmű | C5: UHG5377 | D5: AES Tiszapalkonya | E5: =IF(ISBLANK(D5),"",LOOKUP(D5,list_operators,'B.1.b. Operators'!$D$2:$D$502)) -> AES | F5: Yes | G5: Yes | H5: 331,095 | I5: 126,149 | J5: 339,891 | K5: 130,595 | L5: 346,520 | M5: 138,066 | N5: 519,742 | O5: 207,084 | P5: 477,764 | Q5: 190,359 | R5: 479,380 | S5: 191,003
A6: HU-002 | B6: AES Borsodi Energetikai Kft. Borsodi Hőerőmű | C6: UHG5288 | D6: AES Borsod | E6: =IF(ISBLANK(D6),"",LOOKUP(D6,list_operators,'B.1.b. Operators'!$D$2:$D$502)) -> AES | F6: Yes | G6: Yes | H6: 343,954 | I6: 162,837 | J6: 358,830 | K6: 168,771 | L6: 465,675 | M6: 215,108 | N6: 266,877 | O6: 122,889 | P6: 81,554 | Q6: 37,672 | R6: 5,912 | S6: 2,731
A7: HU-003 | B7: AES Tisza Erőmű Kft. | C7: UHG5332 | D7: AES Tisza | E7: =IF(ISBLANK(D7),"",LOOKUP(D7,list_operators,'B.1.b. Operators'!$D$2:$D$502)) -> AES | F7: Yes | G7: No | H7: 862,381 | I7: 862,381 | J7: 1,076,048 | K7: 1,076,048 | L7: 1,218,823 | M7: 1,218,823 | N7: 1,153,755 | O7: 1,153,755 | P7: 851,167 | Q7: 851,167 | R7: 860,670 | S7: 860,670
A8: HU-004 | B8: Bakonyi Erőmű Rt. Ajkai Hőerőmű | C8: UHG5317 | D8: Bakonyi | E8: =IF(ISBLANK(D8),"",LOOKUP(D8,list_operators,'B.1.b. Operators'!$D$2:$D$502)) -> Bakonyi | F8: Yes | G8: Yes | H8: 530,793 | I8: 253,433 | J8: 468,218 | K8: 223,420 | L8: 431,666 | M8: 201,258 | N8: 439,609 | O8: 204,962 | P8: 212,810 | Q8: 99,220 | R8: 253,387 | S8: 118,138
A9: HU-005 | B9: BERT Rt. Kelenföldi Komb. Cikl. Gázt. Hoszolg. Erőmű | C9: UHG5182 | D9: BERT | E9: =IF(ISBLANK(D9),"",LOOKUP(D9,list_operators,'B.1.b. Operators'!$D$2:$D$502)) -> EDF | F9: Yes | G9: No | H9: 397,468 | I9: 397,468 | J9: 399,814 | K9: 399,814 | L9: 411,282 | M9: 411,282 | N9: 400,405 | O9: 400,405 | P9: 325,851 | Q9: 325,851 | R9: 353,064 | S9: 353,064
A10: HU-006 | B10: BERT Rt. Kispesti Komb. Cikl. Gázt. Hőszolg. Erőmű | C10: UHG5248 | D10: BERT | E10: =IF(ISBLANK(D10),"",LOOKUP(D10,list_operators,'B.1.b. Operators'!$D$2:$D$502)) -> EDF | F10: Yes | G10: Yes | H10: 271,315 | I10: 269,252 | J10: 286,146 | K10: 167,907 | L10: 246,806 | M10: 143,738 | N10: 338,463 | O10: 197,118 | P10: 222,628 | Q10: 129,657 | R10: 227,862 | S10: 132,705
A11: HU-007 | B11: BERT Rt. Újpesti Komb. Cikl. Gázt. Hőszolg. Erőmű | C11: UHG5250 | D11: BERT | E11: =IF(ISBLANK(D11),"",LOOKUP(D11,list_operators,'B.1.b. Operators'!$D$2:$D$502)) -> EDF | F11: Yes | G11: Yes | H11: 297,694 | I11: 294,855 | J11: 304,721 | K11: 156,676 | L11: 301,530 | M11: 150,309 | N11: 364,012 | O11: 181,455 | P11: 304,314 | Q11: 151,697 | R11: 289,080 | S11: 144,103
A12: HU-008 | B12: Csepel II. KCGT Erőmű | C12: UHG5197 | D12: Csepel | E12: =IF(ISBLANK(D12),"",LOOKUP(D12,list_operators,'B.1.b. Operators'!$D$2:$D$502)) -> Alpiq | F12: Yes | G12: No | H12: 777,952 | I12: 777,952 | J12: 761,485 | K12: 761,485 | L12: 964,968 | M12: 964,968 | N12: 953,297 | O12: 953,297 | P12: 476,924 | Q12: 476,924 | R12: 414,922 | S12: 414,922
A13: HU-009 | B13: Debreceni Kombinált Ciklusú Erőmű Kft. | C13: UHG5210 | D13: DKCE | E13: =IF(ISBLANK(D13),"",LOOKUP(D13,list_operators,'B.1.b. Operators'!$D$2:$D$502)) -> E.ON | F13: Yes | G13: No | H13: 302,379 | I13: 302,379 | J13: 228,466 | K13: 228,466 | L13: 260,815 | M13: 260,815 | N13: 214,384 | O13: 214,384 | P13: 153,303 | Q13: 153,303 | R13: 171,087 | S13: 171,087
A14: HU-010 | B14: Dunamenti Erőmű Rt. | C14: UHG5300 | D14: Dunamenti | E14: =IF(ISBLANK(D14),"",LOOKUP(D14,list_operators,'B.1.b. Operators'!$D$2:$D$502)) -> Electrabel | F14: Yes | G14: No | H14: 1,949,639 | I14: 1,949,639 | J14: 1,746,044 | K14: 1,746,044 | L14: 2,142,453 | M14: 2,142,453 | N14: 1,649,787 | O14: 1,649,787 | P14: 992,126 | Q14: 992,126 | R14: 1,298,761 | S14: 1,298,761
A15: HU-011 | B15: ISD POWER Erőmű (régi név: EMA-Power) | C15: UHG5295 | D15: ISD Power | E15: =IF(ISBLANK(D15),"",LOOKUP(D15,list_operators,'B.1.b. Operators'!$D$2:$D$502)) -> Dunaferr | F15: Yes | G15: Yes | H15: 1,221,181 | I15: 719,313 | J15: 1,200,745 | K15: 779,981 | L15: 1,322,924 | M15: 741,118 | N15: 1,313,006 | O15: 735,562 | P15: 1,172,469 | Q15: 656,831 | R15: 1,440,509 | S15: 806,990
A16: HU-012 | B16: Mátrai Erőmű Rt. Visontai Erőmű | C16: UHG5119 | D16: Mátrai Erőmű | E16: =IF(ISBLANK(D16),"",LOOKUP(D16,list_operators,'B.1.b. Operators'!$D$2:$D$502)) -> RWE | F16: Yes | G16: No | H16: 6,232,340 | I16: 6,232,340 | J16: 6,243,791 | K16: 6,243,791 | L16: 6,387,467 | M16: 6,387,467 | N16: 6,240,347 | O16: 6,240,347 | P16: 6,170,960 | Q16: 6,170,960 | R16: 6,341,522 | S16: 6,341,522
A17: HU-013 | B17: Pannon Hőerőmű Rt. Pécsi Erőmű | C17: UHG5154 | D17: Pannon | E17: =IF(ISBLANK(D17),"",LOOKUP(D17,list_operators,'B.1.b. Operators'!$D$2:$D$502)) -> Pannonpower | F17: Yes | G17: No | H17: 255,831 | I17: 255,831 | J17: 198,566 | K17: 198,566 | L17: 182,204 | M17: 182,204 | N17: 125,427 | O17: 125,427 | P17: 101,671 | Q17: 101,671 | R17: 93,729 | S17: 93,729
A18: HU-014 | B18: Vértesi Erőmű Rt. Oroszlányi Erőmű | C18: UHG5198 | D18: Vértes | E18: =IF(ISBLANK(D18),"",LOOKUP(D18,list_operators,'B.1.b. Operators'!$D$2:$D$502)) -> MVM | F18: Yes | G18: Yes | H18: 1,702,685 | I18: 830,240 | J18: 1,558,331 | K18: 670,775 | L18: 1,630,456 | M18: 684,917 | N18: 1,352,479 | O18: 568,145 | P18: 913,176 | Q18: 383,604 | R18: 722,135 | S18: 303,352
A19: HU-015 | B19: NYKCE Nyíregyházi Kombinált Ciklusú Erőmű Kft. | C19: UHG6547 | D19: NYKCE | E19: =IF(ISBLANK(D19),"",LOOKUP(D19,list_operators,'B.1.b. Operators'!$D$2:$D$502)) -> E.ON | F19: Yes | G19: No | L19: 85,807 | M19: 85,807 | N19: 132,112 | O19: 132,112 | P19: 76,155 | Q19: 76,155 | R19: 101,766 | S19: 101,766
A20: HU-016 | B20: MVM Észak-Buda Gázturbinás Kogenerációs Fűtőerőmű | C20: UHG1283 | D20: MVM Észak-Buda | E20: =IF(ISBLANK(D20),"",LOOKUP(D20,list_operators,'B.1.b. Operators'!$D$2:$D$502)) -> MVM | F20: Yes | G20: No | N20: 160,345 | O20: 160,345 | P20: 157,445 | Q20: 157,445 | R20: 172,279 | S20: 172,279
A21: HU-017 | B21: E.ON Erőművek Termelő és Üzemeltető Kft. | C21: UHG3636 | D21: E.ON Gönyű | E21: =IF(ISBLANK(D21),"",LOOKUP(D21,list_operators,'B.1.b. Operators'!$D$2:$D$502)) -> E.ON | F21: Yes | G21: No
E22: =IF(ISBLANK(D22),"",LOOKUP(D22,list_operators,'B.1.b. Operators'!$D$2:$D$502)) -> 
E23: =IF(ISBLANK(D23),"",LOOKUP(D23,list_operators,'B.1.b. Operators'!$D$2:$D$502)) -> 
E24: =IF(ISBLANK(D24),"",LOOKUP(D24,list_operators,'B.1.b. Operators'!$D$2:$D$502)) -> 
E25: =IF(ISBLANK(D25),"",LOOKUP(D25,list_operators,'B.1.b. Operators'!$D$2:$D$502)) -> 
E26: =IF(ISBLANK(D26),"",LOOKUP(D26,list_operators,'B.1.b. Operators'!$D$2:$D$502)) -> 
E27: =IF(ISBLANK(D27),"",LOOKUP(D27,list_operators,'B.1.b. Operators'!$D$2:$D$502)) -> 
E28: =IF(ISBLANK(D28),"",LOOKUP(D28,list_operators,'B.1.b. Operators'!$D$2:$D$502)) -> 
E29: =IF(ISBLANK(D29),"",LOOKUP(D29,list_operators,'B.1.b. Operators'!$D$2:$D$502)) -> 
E30: =IF(ISBLANK(D30),"",LOOKUP(D30,list_operators,'B.1.b. Operators'!$D$2:$D$502)) -> 
E31: =IF(ISBLANK(D31),"",LOOKUP(D31,list_operators,'B.1.b. Operators'!$D$2:$D$502)) -> 
E32: =IF(ISBLANK(D32),"",LOOKUP(D32,list_operators,'B.1.b. Operators'!$D$2:$D$502)) -> 
E33: =IF(ISBLANK(D33),"",LOOKUP(D33,list_operators,'B.1.b. Operators'!$D$2:$D$502)) -> 
E34: =IF(ISBLANK(D34),"",LOOKUP(D34,list_operators,'B.1.b. Operators'!$D$2:$D$502)) -> 
E35: =IF(ISBLANK(D35),"",LOOKUP(D35,list_operators,'B.1.b. Operators'!$D$2:$D$502)) -> 
E36: =IF(ISBLANK(D36),"",LOOKUP(D36,list_operators,'B.1.b. Operators'!$D$2:$D$502)) -> 
E37: =IF(ISBLANK(D37),"",LOOKUP(D37,list_operators,'B.1.b. Operators'!$D$2:$D$502)) -> 
E38: =IF(ISBLANK(D38),"",LOOKUP(D38,list_operators,'B.1.b. Operators'!$D$2:$D$502)) -> 
E39: =IF(ISBLANK(D39),"",LOOKUP(D39,list_operators,'B.1.b. Operators'!$D$2:$D$502)) -> 
E40: =IF(ISBLANK(D40),"",LOOKUP(D40,list_operators,'B.1.b. Operators'!$D$2:$D$502)) -> 
E41: =IF(ISBLANK(D41),"",LOOKUP(D41,list_operators,'B.1.b. Operators'!$D$2:$D$502)) -> 
E42: =IF(ISBLANK(D42),"",LOOKUP(D42,list_operators,'B.1.b. Operators'!$D$2:$D$502)) -> 
E43: =IF(ISBLANK(D43),"",LOOKUP(D43,list_operators,'B.1.b. Operators'!$D$2:$D$502)) -> 
E44: =IF(ISBLANK(D44),"",LOOKUP(D44,list_operators,'B.1.b. Operators'!$D$2:$D$502)) -> 
E45: =IF(ISBLANK(D45),"",LOOKUP(D45,list_operators,'B.1.b. Operators'!$D$2:$D$502)) -> 
E46: =IF(ISBLANK(D46),"",LOOKUP(D46,list_operators,'B.1.b. Operators'!$D$2:$D$502)) -> 
E47: =IF(ISBLANK(D47),"",LOOKUP(D47,list_operators,'B.1.b. Operators'!$D$2:$D$502)) -> 
E48: =IF(ISBLANK(D48),"",LOOKUP(D48,list_operators,'B.1.b. Operators'!$D$2:$D$502)) -> 
E49: =IF(ISBLANK(D49),"",LOOKUP(D49,list_operators,'B.1.b. Operators'!$D$2:$D$502)) -> 
E50: =IF(ISBLANK(D50),"",LOOKUP(D50,list_operators,'B.1.b. Operators'!$D$2:$D$502)) -> 
E51: =IF(ISBLANK(D51),"",LOOKUP(D51,list_operators,'B.1.b. Operators'!$D$2:$D$502)) -> 
E52: =IF(ISBLANK(D52),"",LOOKUP(D52,list_operators,'B.1.b. Operators'!$D$2:$D$502)) -> 
E53: =IF(ISBLANK(D53),"",LOOKUP(D53,list_operators,'B.1.b. Operators'!$D$2:$D$502)) -> 
E54: =IF(ISBLANK(D54),"",LOOKUP(D54,list_operators,'B.1.b. Operators'!$D$2:$D$502)) -> 
E55: =IF(ISBLANK(D55),"",LOOKUP(D55,list_operators,'B.1.b. Operators'!$D$2:$D$502)) -> 
E56: =IF(ISBLANK(D56),"",LOOKUP(D56,list_operators,'B.1.b. Operators'!$D$2:$D$502)) -> 
E57: =IF(ISBLANK(D57),"",LOOKUP(D57,list_operators,'B.1.b. Operators'!$D$2:$D$502)) -> 
E58: =IF(ISBLANK(D58),"",LOOKUP(D58,list_operators,'B.1.b. Operators'!$D$2:$D$502)) -> 
E59: =IF(ISBLANK(D59),"",LOOKUP(D59,list_operators,'B.1.b. Operators'!$D$2:$D$502)) -> 
E60: =IF(ISBLANK(D60),"",LOOKUP(D60,list_operators,'B.1.b. Operators'!$D$2:$D$502)) -> 
E61: =IF(ISBLANK(D61),"",LOOKUP(D61,list_operators,'B.1.b. Operators'!$D$2:$D$502)) -> 
E62: =IF(ISBLANK(D62),"",LOOKUP(D62,list_operators,'B.1.b. Operators'!$D$2:$D$502)) -> 
E63: =IF(ISBLANK(D63),"",LOOKUP(D63,list_operators,'B.1.b. Operators'!$D$2:$D$502)) -> 
E64: =IF(ISBLANK(D64),"",LOOKUP(D64,list_operators,'B.1.b. Operators'!$D$2:$D$502)) -> 
E65: =IF(ISBLANK(D65),"",LOOKUP(D65,list_operators,'B.1.b. Operators'!$D$2:$D$502)) -> 
E66: =IF(ISBLANK(D66),"",LOOKUP(D66,list_operators,'B.1.b. Operators'!$D$2:$D$502)) -> 
E67: =IF(ISBLANK(D67),"",LOOKUP(D67,list_operators,'B.1.b. Operators'!$D$2:$D$502)) -> 
E68: =IF(ISBLANK(D68),"",LOOKUP(D68,list_operators,'B.1.b. Operators'!$D$2:$D$502)) -> 
E69: =IF(ISBLANK(D69),"",LOOKUP(D69,list_operators,'B.1.b. Operators'!$D$2:$D$502)) -> 
E70: =IF(ISBLANK(D70),"",LOOKUP(D70,list_operators,'B.1.b. Operators'!$D$2:$D$502)) -> 
E71: =IF(ISBLANK(D71),"",LOOKUP(D71,list_operators,'B.1.b. Operators'!$D$2:$D$502)) -> 
E72: =IF(ISBLANK(D72),"",LOOKUP(D72,list_operators,'B.1.b. Operators'!$D$2:$D$502)) -> 
E73: =IF(ISBLANK(D73),"",LOOKUP(D73,list_operators,'B.1.b. Operators'!$D$2:$D$502)) -> 
E74: =IF(ISBLANK(D74),"",LOOKUP(D74,list_operators,'B.1.b. Operators'!$D$2:$D$502)) -> 
E75: =IF(ISBLANK(D75),"",LOOKUP(D75,list_operators,'B.1.b. Operators'!$D$2:$D$502)) -> 
E76: =IF(ISBLANK(D76),"",LOOKUP(D76,list_operators,'B.1.b. Operators'!$D$2:$D$502)) -> 
E77: =IF(ISBLANK(D77),"",LOOKUP(D77,list_operators,'B.1.b. Operators'!$D$2:$D$502)) -> 
E78: =IF(ISBLANK(D78),"",LOOKUP(D78,list_operators,'B.1.b. Operators'!$D$2:$D$502)) -> 
E79: =IF(ISBLANK(D79),"",LOOKUP(D79,list_operators,'B.1.b. Operators'!$D$2:$D$502)) -> 
E80: =IF(ISBLANK(D80),"",LOOKUP(D80,list_operators,'B.1.b. Operators'!$D$2:$D$502)) -> 
E81: =IF(ISBLANK(D81),"",LOOKUP(D81,list_operators,'B.1.b. Operators'!$D$2:$D$502)) -> 
E82: =IF(ISBLANK(D82),"",LOOKUP(D82,list_operators,'B.1.b. Operators'!$D$2:$D$502)) -> 
E83: =IF(ISBLANK(D83),"",LOOKUP(D83,list_operators,'B.1.b. Operators'!$D$2:$D$502)) -> 
E84: =IF(ISBLANK(D84),"",LOOKUP(D84,list_operators,'B.1.b. Operators'!$D$2:$D$502)) -> 
E85: =IF(ISBLANK(D85),"",LOOKUP(D85,list_operators,'B.1.b. Operators'!$D$2:$D$502)) -> 
E86: =IF(ISBLANK(D86),"",LOOKUP(D86,list_operators,'B.1.b. Operators'!$D$2:$D$502)) -> 
E87: =IF(ISBLANK(D87),"",LOOKUP(D87,list_operators,'B.1.b. Operators'!$D$2:$D$502)) -> 
E88: =IF(ISBLANK(D88),"",LOOKUP(D88,list_operators,'B.1.b. Operators'!$D$2:$D$502)) -> 
E89: =IF(ISBLANK(D89),"",LOOKUP(D89,list_operators,'B.1.b. Operators'!$D$2:$D$502)) -> 
E90: =IF(ISBLANK(D90),"",LOOKUP(D90,list_operators,'B.1.b. Operators'!$D$2:$D$502)) -> 
E91: =IF(ISBLANK(D91),"",LOOKUP(D91,list_operators,'B.1.b. Operators'!$D$2:$D$502)) -> 
E92: =IF(ISBLANK(D92),"",LOOKUP(D92,list_operators,'B.1.b. Operators'!$D$2:$D$502)) -> 
E93: =IF(ISBLANK(D93),"",LOOKUP(D93,list_operators,'B.1.b. Operators'!$D$2:$D$502)) -> 
E94: =IF(ISBLANK(D94),"",LOOKUP(D94,list_operators,'B.1.b. Operators'!$D$2:$D$502)) -> 
E95: =IF(ISBLANK(D95),"",LOOKUP(D95,list_operators,'B.1.b. Operators'!$D$2:$D$502)) -> 
E96: =IF(ISBLANK(D96),"",LOOKUP(D96,list_operators,'B.1.b. Operators'!$D$2:$D$502)) -> 
E97: =IF(ISBLANK(D97),"",LOOKUP(D97,list_operators,'B.1.b. Operators'!$D$2:$D$502)) -> 
E98: =IF(ISBLANK(D98),"",LOOKUP(D98,list_operators,'B.1.b. Operators'!$D$2:$D$502)) -> 
E99: =IF(ISBLANK(D99),"",LOOKUP(D99,list_operators,'B.1.b. Operators'!$D$2:$D$502)) -> 
E100: =IF(ISBLANK(D100),"",LOOKUP(D100,list_operators,'B.1.b. Operators'!$D$2:$D$502)) -> 
E101: =IF(ISBLANK(D101),"",LOOKUP(D101,list_operators,'B.1.b. Operators'!$D$2:$D$502)) -> 
E102: =IF(ISBLANK(D102),"",LOOKUP(D102,list_operators,'B.1.b. Operators'!$D$2:$D$502)) -> 
E103: =IF(ISBLANK(D103),"",LOOKUP(D103,list_operators,'B.1.b. Operators'!$D$2:$D$502)) -> 
E104: =IF(ISBLANK(D104),"",LOOKUP(D104,list_operators,'B.1.b. Operators'!$D$2:$D$502)) -> 
E105: =IF(ISBLANK(D105),"",LOOKUP(D105,list_operators,'B.1.b. Operators'!$D$2:$D$502)) -> 
E106: =IF(ISBLANK(D106),"",LOOKUP(D106,list_operators,'B.1.b. Operators'!$D$2:$D$502)) -> 
E107: =IF(ISBLANK(D107),"",LOOKUP(D107,list_operators,'B.1.b. Operators'!$D$2:$D$502)) -> 
E108: =IF(ISBLANK(D108),"",LOOKUP(D108,list_operators,'B.1.b. Operators'!$D$2:$D$502)) -> 
E109: =IF(ISBLANK(D109),"",LOOKUP(D109,list_operators,'B.1.b. Operators'!$D$2:$D$502)) -> 
E110: =IF(ISBLANK(D110),"",LOOKUP(D110,list_operators,'B.1.b. Operators'!$D$2:$D$502)) -> 
E111: =IF(ISBLANK(D111),"",LOOKUP(D111,list_operators,'B.1.b. Operators'!$D$2:$D$502)) -> 
E112: =IF(ISBLANK(D112),"",LOOKUP(D112,list_operators,'B.1.b. Operators'!$D$2:$D$502)) -> 
E113: =IF(ISBLANK(D113),"",LOOKUP(D113,list_operators,'B.1.b. Operators'!$D$2:$D$502)) -> 
E114: =IF(ISBLANK(D114),"",LOOKUP(D114,list_operators,'B.1.b. Operators'!$D$2:$D$502)) -> 
E115: =IF(ISBLANK(D115),"",LOOKUP(D115,list_operators,'B.1.b. Operators'!$D$2:$D$502)) -> 
E116: =IF(ISBLANK(D116),"",LOOKUP(D116,list_operators,'B.1.b. Operators'!$D$2:$D$502)) -> 
E117: =IF(ISBLANK(D117),"",LOOKUP(D117,list_operators,'B.1.b. Operators'!$D$2:$D$502)) -> 
E118: =IF(ISBLANK(D118),"",LOOKUP(D118,list_operators,'B.1.b. Operators'!$D$2:$D$502)) -> 
E119: =IF(ISBLANK(D119),"",LOOKUP(D119,list_operators,'B.1.b. Operators'!$D$2:$D$502)) -> 
E120: =IF(ISBLANK(D120),"",LOOKUP(D120,list_operators,'B.1.b. Operators'!$D$2:$D$502)) -> 
E121: =IF(ISBLANK(D121),"",LOOKUP(D121,list_operators,'B.1.b. Operators'!$D$2:$D$502)) -> 
E122: =IF(ISBLANK(D122),"",LOOKUP(D122,list_operators,'B.1.b. Operators'!$D$2:$D$502)) -> 
E123: =IF(ISBLANK(D123),"",LOOKUP(D123,list_operators,'B.1.b. Operators'!$D$2:$D$502)) -> 
E124: =IF(ISBLANK(D124),"",LOOKUP(D124,list_operators,'B.1.b. Operators'!$D$2:$D$502)) -> 
E125: =IF(ISBLANK(D125),"",LOOKUP(D125,list_operators,'B.1.b. Operators'!$D$2:$D$502)) -> 
E126: =IF(ISBLANK(D126),"",LOOKUP(D126,list_operators,'B.1.b. Operators'!$D$2:$D$502)) -> 
E127: =IF(ISBLANK(D127),"",LOOKUP(D127,list_operators,'B.1.b. Operators'!$D$2:$D$502)) -> 
E128: =IF(ISBLANK(D128),"",LOOKUP(D128,list_operators,'B.1.b. Operators'!$D$2:$D$502)) -> 
E129: =IF(ISBLANK(D129),"",LOOKUP(D129,list_operators,'B.1.b. Operators'!$D$2:$D$502)) -> 
E130: =IF(ISBLANK(D130),"",LOOKUP(D130,list_operators,'B.1.b. Operators'!$D$2:$D$502)) -> 
E131: =IF(ISBLANK(D131),"",LOOKUP(D131,list_operators,'B.1.b. Operators'!$D$2:$D$502)) -> 
E132: =IF(ISBLANK(D132),"",LOOKUP(D132,list_operators,'B.1.b. Operators'!$D$2:$D$502)) -> 
E133: =IF(ISBLANK(D133),"",LOOKUP(D133,list_operators,'B.1.b. Operators'!$D$2:$D$502)) -> 
E134: =IF(ISBLANK(D134),"",LOOKUP(D134,list_operators,'B.1.b. Operators'!$D$2:$D$502)) -> 
E135: =IF(ISBLANK(D135),"",LOOKUP(D135,list_operators,'B.1.b. Operators'!$D$2:$D$502)) -> 
E136: =IF(ISBLANK(D136),"",LOOKUP(D136,list_operators,'B.1.b. Operators'!$D$2:$D$502)) -> 
E137: =IF(ISBLANK(D137),"",LOOKUP(D137,list_operators,'B.1.b. Operators'!$D$2:$D$502)) -> 
E138: =IF(ISBLANK(D138),"",LOOKUP(D138,list_operators,'B.1.b. Operators'!$D$2:$D$502)) -> 
E139: =IF(ISBLANK(D139),"",LOOKUP(D139,list_operators,'B.1.b. Operators'!$D$2:$D$502)) -> 
E140: =IF(ISBLANK(D140),"",LOOKUP(D140,list_operators,'B.1.b. Operators'!$D$2:$D$502)) -> 
E141: =IF(ISBLANK(D141),"",LOOKUP(D141,list_operators,'B.1.b. Operators'!$D$2:$D$502)) -> 
E142: =IF(ISBLANK(D142),"",LOOKUP(D142,list_operators,'B.1.b. Operators'!$D$2:$D$502)) -> 
E143: =IF(ISBLANK(D143),"",LOOKUP(D143,list_operators,'B.1.b. Operators'!$D$2:$D$502)) -> 
E144: =IF(ISBLANK(D144),"",LOOKUP(D144,list_operators,'B.1.b. Operators'!$D$2:$D$502)) -> 
E145: =IF(ISBLANK(D145),"",LOOKUP(D145,list_operators,'B.1.b. Operators'!$D$2:$D$502)) -> 
E146: =IF(ISBLANK(D146),"",LOOKUP(D146,list_operators,'B.1.b. Operators'!$D$2:$D$502)) -> 
E147: =IF(ISBLANK(D147),"",LOOKUP(D147,list_operators,'B.1.b. Operators'!$D$2:$D$502)) -> 
E148: =IF(ISBLANK(D148),"",LOOKUP(D148,list_operators,'B.1.b. Operators'!$D$2:$D$502)) -> 
E149: =IF(ISBLANK(D149),"",LOOKUP(D149,list_operators,'B.1.b. Operators'!$D$2:$D$502)) -> 
E150: =IF(ISBLANK(D150),"",LOOKUP(D150,list_operators,'B.1.b. Operators'!$D$2:$D$502)) -> 
E151: =IF(ISBLANK(D151),"",LOOKUP(D151,list_operators,'B.1.b. Operators'!$D$2:$D$502)) -> 
E152: =IF(ISBLANK(D152),"",LOOKUP(D152,list_operators,'B.1.b. Operators'!$D$2:$D$502)) -> 
E153: =IF(ISBLANK(D153),"",LOOKUP(D153,list_operators,'B.1.b. Operators'!$D$2:$D$502)) -> 
E154: =IF(ISBLANK(D154),"",LOOKUP(D154,list_operators,'B.1.b. Operators'!$D$2:$D$502)) -> 
E155: =IF(ISBLANK(D155),"",LOOKUP(D155,list_operators,'B.1.b. Operators'!$D$2:$D$502)) -> 
E156: =IF(ISBLANK(D156),"",LOOKUP(D156,list_operators,'B.1.b. Operators'!$D$2:$D$502)) -> 
E157: =IF(ISBLANK(D157),"",LOOKUP(D157,list_operators,'B.1.b. Operators'!$D$2:$D$502)) -> 
E158: =IF(ISBLANK(D158),"",LOOKUP(D158,list_operators,'B.1.b. Operators'!$D$2:$D$502)) -> 
E159: =IF(ISBLANK(D159),"",LOOKUP(D159,list_operators,'B.1.b. Operators'!$D$2:$D$502)) -> 
E160: =IF(ISBLANK(D160),"",LOOKUP(D160,list_operators,'B.1.b. Operators'!$D$2:$D$502)) -> 
E161: =IF(ISBLANK(D161),"",LOOKUP(D161,list_operators,'B.1.b. Operators'!$D$2:$D$502)) -> 
E162: =IF(ISBLANK(D162),"",LOOKUP(D162,list_operators,'B.1.b. Operators'!$D$2:$D$502)) -> 
E163: =IF(ISBLANK(D163),"",LOOKUP(D163,list_operators,'B.1.b. Operators'!$D$2:$D$502)) -> 
E164: =IF(ISBLANK(D164),"",LOOKUP(D164,list_operators,'B.1.b. Operators'!$D$2:$D$502)) -> 
E165: =IF(ISBLANK(D165),"",LOOKUP(D165,list_operators,'B.1.b. Operators'!$D$2:$D$502)) -> 
E166: =IF(ISBLANK(D166),"",LOOKUP(D166,list_operators,'B.1.b. Operators'!$D$2:$D$502)) -> 
E167: =IF(ISBLANK(D167),"",LOOKUP(D167,list_operators,'B.1.b. Operators'!$D$2:$D$502)) -> 
E168: =IF(ISBLANK(D168),"",LOOKUP(D168,list_operators,'B.1.b. Operators'!$D$2:$D$502)) -> 
E169: =IF(ISBLANK(D169),"",LOOKUP(D169,list_operators,'B.1.b. Operators'!$D$2:$D$502)) -> 
E170: =IF(ISBLANK(D170),"",LOOKUP(D170,list_operators,'B.1.b. Operators'!$D$2:$D$502)) -> 
E171: =IF(ISBLANK(D171),"",LOOKUP(D171,list_operators,'B.1.b. Operators'!$D$2:$D$502)) -> 
E172: =IF(ISBLANK(D172),"",LOOKUP(D172,list_operators,'B.1.b. Operators'!$D$2:$D$502)) -> 
E173: =IF(ISBLANK(D173),"",LOOKUP(D173,list_operators,'B.1.b. Operators'!$D$2:$D$502)) -> 
E174: =IF(ISBLANK(D174),"",LOOKUP(D174,list_operators,'B.1.b. Operators'!$D$2:$D$502)) -> 
E175: =IF(ISBLANK(D175),"",LOOKUP(D175,list_operators,'B.1.b. Operators'!$D$2:$D$502)) -> 
E176: =IF(ISBLANK(D176),"",LOOKUP(D176,list_operators,'B.1.b. Operators'!$D$2:$D$502)) -> 
E177: =IF(ISBLANK(D177),"",LOOKUP(D177,list_operators,'B.1.b. Operators'!$D$2:$D$502)) -> 
E178: =IF(ISBLANK(D178),"",LOOKUP(D178,list_operators,'B.1.b. Operators'!$D$2:$D$502)) -> 
E179: =IF(ISBLANK(D179),"",LOOKUP(D179,list_operators,'B.1.b. Operators'!$D$2:$D$502)) -> 
E180: =IF(ISBLANK(D180),"",LOOKUP(D180,list_operators,'B.1.b. Operators'!$D$2:$D$502)) -> 
E181: =IF(ISBLANK(D181),"",LOOKUP(D181,list_operators,'B.1.b. Operators'!$D$2:$D$502)) -> 
E182: =IF(ISBLANK(D182),"",LOOKUP(D182,list_operators,'B.1.b. Operators'!$D$2:$D$502)) -> 
E183: =IF(ISBLANK(D183),"",LOOKUP(D183,list_operators,'B.1.b. Operators'!$D$2:$D$502)) -> 
E184: =IF(ISBLANK(D184),"",LOOKUP(D184,list_operators,'B.1.b. Operators'!$D$2:$D$502)) -> 
E185: =IF(ISBLANK(D185),"",LOOKUP(D185,list_operators,'B.1.b. Operators'!$D$2:$D$502)) -> 
E186: =IF(ISBLANK(D186),"",LOOKUP(D186,list_operators,'B.1.b. Operators'!$D$2:$D$502)) -> 
E187: =IF(ISBLANK(D187),"",LOOKUP(D187,list_operators,'B.1.b. Operators'!$D$2:$D$502)) -> 
E188: =IF(ISBLANK(D188),"",LOOKUP(D188,list_operators,'B.1.b. Operators'!$D$2:$D$502)) -> 
E189: =IF(ISBLANK(D189),"",LOOKUP(D189,list_operators,'B.1.b. Operators'!$D$2:$D$502)) -> 
E190: =IF(ISBLANK(D190),"",LOOKUP(D190,list_operators,'B.1.b. Operators'!$D$2:$D$502)) -> 
E191: =IF(ISBLANK(D191),"",LOOKUP(D191,list_operators,'B.1.b. Operators'!$D$2:$D$502)) -> 
E192: =IF(ISBLANK(D192),"",LOOKUP(D192,list_operators,'B.1.b. Operators'!$D$2:$D$502)) -> 
E193: =IF(ISBLANK(D193),"",LOOKUP(D193,list_operators,'B.1.b. Operators'!$D$2:$D$502)) -> 
E194: =IF(ISBLANK(D194),"",LOOKUP(D194,list_operators,'B.1.b. Operators'!$D$2:$D$502)) -> 
E195: =IF(ISBLANK(D195),"",LOOKUP(D195,list_operators,'B.1.b. Operators'!$D$2:$D$502)) -> 
E196: =IF(ISBLANK(D196),"",LOOKUP(D196,list_operators,'B.1.b. Operators'!$D$2:$D$502)) -> 
E197: =IF(ISBLANK(D197),"",LOOKUP(D197,list_operators,'B.1.b. Operators'!$D$2:$D$502)) -> 
E198: =IF(ISBLANK(D198),"",LOOKUP(D198,list_operators,'B.1.b. Operators'!$D$2:$D$502)) -> 
E199: =IF(ISBLANK(D199),"",LOOKUP(D199,list_operators,'B.1.b. Operators'!$D$2:$D$502)) -> 
E200: =IF(ISBLANK(D200),"",LOOKUP(D200,list_operators,'B.1.b. Operators'!$D$2:$D$502)) -> 
... 305 more rows

Sheet B.2. Total quantity
B1: 2005 | C1: 2006 | D1: 2007 | E1: Average 2005-2007
A2: FEC | B2: 35,507 | C2: 36,590 | D2: 37,168 | E2: =IF(COUNTBLANK(B2:D2)>0,"",(B2+C2+D2)/3) -> 36,421.67
A3: MNET | B3: 6,227 | C3: 7,207 | D3: 3,986 | E3: =IF(COUNTBLANK(B3:D3)>0,"",(B3+C3+D3)/3) -> 5,806.67
A4: TGEP | B4: 35,743 | C4: 35,858 | D4: 39,880 | E4: =IF(COUNTBLANK(B4:D4)>0,"",(B4+C4+D4)/3) -> 37,160.33
A5: TDL | B5: 3,941 | C5: 3,964 | D5: 3,959 | E5: =IF(COUNTBLANK(B5:D5)>0,"",(B5+C5+D5)/3) -> 3,954.67
A6: C EG | B6: 2,522 | C6: 2,511 | D6: 2,739 | E6: =IF(COUNTBLANK(B6:D6)>0,"",(B6+C6+D6)/3) -> 2,590.67
A8: GFNC05-07 | B8: =IF(COUNTBLANK(E2:E6)>0,"",E2-E3+(((E2-E3)/(E4+E3))*E5)+(((E2-E3)/E4)*E6)) -> 35,567
A9: TGEP05-07 | B9: =E4 -> 37,160
A10: GFNC ratio | B10: =IF(COUNTBLANK(B8:B9)>0,"",B8/B9) -> 0.957126666
A11: AAQEEL05-07 | B11: =('B.1.c. Installations'!I4+'B.1.c. Installations'!K4+'B.1.c. Installations'!M4)/3 -> 13,438,247
A13: Year | B13: 2013 | C13: 2014 | D13: 2015 | E13: 2016 | F13: 2017 | G13: 2018 | H13: 2019 | I13: 2020
A14: Variable a | B14: 0.4656908504 | C14: 0.3991635861 | D14: 0.3326363217 | E14: 0.2661090574 | F14: 0.199581793 | G14: 0.1330545287 | H14: 0.06652726434 | I14: 0
A15: TQFA | B15: =IF(COUNTBLANK($E$2:$E$6)>0,"",ROUND(($B$8/$B$9)*$B$11*B14,0)) -> 5,989,765 | C15: 5,134,084 | D15: 4,278,403 | E15: 3,422,723 | F15: 2,567,042 | G15: 1,711,361 | H15: 855,681 | I15: 0

Sheet B.3.1. Allocation based on VE
A1: Installation number | B1: Installation name | C1: Permit number | D1: Operator | E1: Company group | F1: Verified emissions | H1: Adjustment | M1: Preliminary transitional free allocation | N1: Actual transitional free allocation
F2: 2005-2007 | G2: 2008-2010 | H2: Change between 05-07 and 08-10 | J2: Change compared to 05-07 | K2: Difference to average change | L2: Intermediate result
N3: 2013 | O3: 2014 | P3: 2015 | Q3: 2016 | R3: 2017 | S3: 2018 | T3: 2019 | U3: 2020
H4: Relative | I4: Absolute | N4: ='Correction factor'!B7 -> 0.478 | O4: ='Correction factor'!C7 -> 0.410 | P4: ='Correction factor'!D7 -> 0.341 | Q4: ='Correction factor'!E7 -> 0.273 | R4: ='Correction factor'!F7 -> 0.205 | S4: ='Correction factor'!G7 -> 0.137 | T4: ='Correction factor'!H7 -> 0.068 | U4: ='Correction factor'!I7 -> 0.000
F5: =SUM(F6:F506) -> 13,006,790 | G5: =SUM(G6:G506) -> 11,276,372 | H5: =IF(F5=0,"0",G5/F5) -> 86.70% | I5: =SUM(I6:I506) -> 1,730,418 | J5: =IF(F5=0,"0",I5/F5) -> 13.30% | K5: =J5-$J$5 -> 0.00% | L5: =SUM(L6:L506) -> 13,006,790 | M5: =SUM(M6:M506) -> 11,276,372 | N5: =SUM(N6:N506) -> 5,388,527 | O5: =SUM(O6:O506) -> 4,618,735 | P5: 3,848,946 | Q5: 3,079,158 | R5: 2,309,370 | S5: 1,539,578 | T5: 769,790 | U5: 0
A6: HU-001 | B6: =IF(ISBLANK(A6),"",LOOKUP(A6,list_installations,'B.1.c. Installations'!$B$5:$B$505)) -> AES Borsodi Energetikai Kft. Tiszapalkonyai Erőmű | C6: =IF(ISBLANK(A6),"",LOOKUP(A6,list_installations,'B.1.c. Installations'!$C$5:$C$505)) -> UHG5377 | D6: =IF(ISBLANK(A6),"",LOOKUP(A6,list_installations,'B.1.c. Installations'!$D$5:$D$505)) -> AES Tiszapalkonya | E6: =IF(ISBLANK(A6),"",LOOKUP(A6,list_installations,'B.1.c. Installations'!$E$5:$E$505)) -> AES | F6: =IF(ISBLANK(A6),"",((LOOKUP(A6,list_installations,'B.1.c. Installations'!$I$5:$I$505)+LOOKUP(A6,list_installations,'B.1.c. Installations'!$K$5:$K$505)+LOOKUP(A6,list_installations,'B.1.c. Installations'!$M$5:$M$505))/3)) -> 131,603 | G6: =IF(ISBLANK(A6),"",((LOOKUP(A6,list_installations,'B.1.c. Installations'!$O$5:$O$505)+LOOKUP(A6,list_installations,'B.1.c. Installations'!$Q$5:$Q$505)+LOOKUP(A6,list_installations,'B.1.c. Installations'!$S$5:$S$505))/3)) -> 196,149 | H6: =IF(ISBLANK(A6),"",G6/F6) -> 149.05% | I6: =IF(ISBLANK(A6),"",F6-G6) -> -64,545 | J6: =IF(ISBLANK(A6),"",I6/F6) -> -49.05% | K6: =IF(ISBLANK(A6),"",J6-$J$5) -> -62.35% | L6: =IF(ISBLANK(A6),"",F6+(F6*K6)) -> 49,550 | M6: =IF(ISBLANK(A6),"",L6*$H$5) -> 42,958 | N6: =IF(ISBLANK(A6),"",ROUND(M6*'Correction factor'!$B$7,0)) -> 20,528 | O6: =IF(ISBLANK(A6),"",ROUND(M6*'Correction factor'!$C$7,0)) -> 17,595 | P6: =IF(ISBLANK(A6),"",ROUND(M6*'Correction factor'!$D$7,0)) -> 14,663 | Q6: =IF(ISBLANK(A6),"",ROUND(M6*'Correction factor'!$E$7,0)) -> 11,730 | R6: =IF(ISBLANK(A6),"",ROUND(M6*'Correction factor'!$F$7,0)) -> 8,798 | S6: =IF(ISBLANK(A6),"",ROUND(M6*'Correction factor'!$G$7,0)) -> 5,865 | T6: =IF(ISBLANK(A6),"",ROUND(M6*'Correction factor'!$H$7,0)) -> 2,933 | U6: =IF(ISBLANK(A6),"",ROUND(M6*'Correction factor'!$I$7,0)) -> 0
A7: HU-002 | B7: =IF(ISBLANK(A7),"",LOOKUP(A7,list_installations,'B.1.c. Installations'!$B$5:$B$505)) -> AES Borsodi Energetikai Kft. Borsodi Hőerőmű | C7: =IF(ISBLANK(A7),"",LOOKUP(A7,list_installations,'B.1.c. Installations'!$C$5:$C$505)) -> UHG5288 | D7: =IF(ISBLANK(A7),"",LOOKUP(A7,list_installations,'B.1.c. Installations'!$D$5:$D$505)) -> AES Borsod | E7: =IF(ISBLANK(A7),"",LOOKUP(A7,list_installations,'B.1.c. Installations'!$E$5:$E$505)) -> AES | F7: =IF(ISBLANK(A7),"",((LOOKUP(A7,list_installations,'B.1.c. Installations'!$I$5:$I$505)+LOOKUP(A7,list_installations,'B.1.c. Installations'!$K$5:$K$505)+LOOKUP(A7,list_installations,'B.1.c. Installations'!$M$5:$M$505))/3)) -> 182,239 | G7: =IF(ISBLANK(A7),"",((LOOKUP(A7,list_installations,'B.1.c. Installations'!$O$5:$O$505)+LOOKUP(A7,list_installations,'B.1.c. Installations'!$Q$5:$Q$505)+LOOKUP(A7,list_installations,'B.1.c. Installations'!$S$5:$S$505))/3)) -> 54,430 | H7: =IF(ISBLANK(A7),"",G7/F7) -> 29.87% | I7: =IF(ISBLANK(A7),"",F7-G7) -> 127,808 | J7: =IF(ISBLANK(A7),"",I7/F7) -> 70.13% | K7: =IF(ISBLANK(A7),"",J7-$J$5) -> 56.83% | L7: =IF(ISBLANK(A7),"",F7+(F7*K7)) -> 285,802 | M7: =IF(ISBLANK(A7),"",L7*$H$5) -> 247,779 | N7: =IF(ISBLANK(A7),"",ROUND(M7*'Correction factor'!$B$7,0)) -> 118,404 | O7: =IF(ISBLANK(A7),"",ROUND(M7*'Correction factor'!$C$7,0)) -> 101,489 | P7: =IF(ISBLANK(A7),"",ROUND(M7*'Correction factor'!$D$7,0)) -> 84,574 | Q7: =IF(ISBLANK(A7),"",ROUND(M7*'Correction factor'!$E$7,0)) -> 67,659 | R7: =IF(ISBLANK(A7),"",ROUND(M7*'Correction factor'!$F$7,0)) -> 50,744 | S7: =IF(ISBLANK(A7),"",ROUND(M7*'Correction factor'!$G$7,0)) -> 33,830 | T7: =IF(ISBLANK(A7),"",ROUND(M7*'Correction factor'!$H$7,0)) -> 16,915 | U7: =IF(ISBLANK(A7),"",ROUND(M7*'Correction factor'!$I$7,0)) -> 0
A8: HU-003 | B8: =IF(ISBLANK(A8),"",LOOKUP(A8,list_installations,'B.1.c. Installations'!$B$5:$B$505)) -> AES Tisza Erőmű Kft. | C8: =IF(ISBLANK(A8),"",LOOKUP(A8,list_installations,'B.1.c. Installations'!$C$5:$C$505)) -> UHG5332 | D8: =IF(ISBLANK(A8),"",LOOKUP(A8,list_installations,'B.1.c. Installations'!$D$5:$D$505)) -> AES Tisza | E8: =IF(ISBLANK(A8),"",LOOKUP(A8,list_installations,'B.1.c. Installations'!$E$5:$E$505)) -> AES | F8: =IF(ISBLANK(A8),"",((LOOKUP(A8,list_installations,'B.1.c. Installations'!$I$5:$I$505)+LOOKUP(A8,list_installations,'B.1.c. Installations'!$K$5:$K$505)+LOOKUP(A8,list_installations,'B.1.c. Installations'!$M$5:$M$505))/3)) -> 1,052,417 | G8: =IF(ISBLANK(A8),"",((LOOKUP(A8,list_installations,'B.1.c. Installations'!$O$5:$O$505)+LOOKUP(A8,list_installations,'B.1.c. Installations'!$Q$5:$Q$505)+LOOKUP(A8,list_installations,'B.1.c. Installations'!$S$5:$S$505))/3)) -> 955,197 | H8: 90.76% | I8: 97,220 | J8: 9.24% | K8: -4.07% | L8: 1,009,624 | M8: 875,304 | N8: =IF(ISBLANK(A8),"",ROUND(M8*'Correction factor'!$B$7,0)) -> 418,273 | O8: =IF(ISBLANK(A8),"",ROUND(M8*'Correction factor'!$C$7,0)) -> 358,519 | P8: =IF(ISBLANK(A8),"",ROUND(M8*'Correction factor'!$D$7,0)) -> 298,766 | Q8: =IF(ISBLANK(A8),"",ROUND(M8*'Correction factor'!$E$7,0)) -> 239,013 | R8: =IF(ISBLANK(A8),"",ROUND(M8*'Correction factor'!$F$7,0)) -> 179,260 | S8: =IF(ISBLANK(A8),"",ROUND(M8*'Correction factor'!$G$7,0)) -> 119,506 | T8: =IF(ISBLANK(A8),"",ROUND(M8*'Correction factor'!$H$7,0)) -> 59,753 | U8: =IF(ISBLANK(A8),"",ROUND(M8*'Correction factor'!$I$7,0)) -> 0
A9: HU-004 | B9: =IF(ISBLANK(A9),"",LOOKUP(A9,list_installations,'B.1.c. Installations'!$B$5:$B$505)) -> Bakonyi Erőmű Rt. Ajkai Hőerőmű | C9: =IF(ISBLANK(A9),"",LOOKUP(A9,list_installations,'B.1.c. Installations'!$C$5:$C$505)) -> UHG5317 | D9: =IF(ISBLANK(A9),"",LOOKUP(A9,list_installations,'B.1.c. Installations'!$D$5:$D$505)) -> Bakonyi | E9: =IF(ISBLANK(A9),"",LOOKUP(A9,list_installations,'B.1.c. Installations'!$E$5:$E$505)) -> Bakonyi | F9: =IF(ISBLANK(A9),"",((LOOKUP(A9,list_installations,'B.1.c. Installations'!$I$5:$I$505)+LOOKUP(A9,list_installations,'B.1.c. Installations'!$K$5:$K$505)+LOOKUP(A9,list_installations,'B.1.c. Installations'!$M$5:$M$505))/3)) -> 226,037 | G9: =IF(ISBLANK(A9),"",((LOOKUP(A9,list_installations,'B.1.c. Installations'!$O$5:$O$505)+LOOKUP(A9,list_installations,'B.1.c. Installations'!$Q$5:$Q$505)+LOOKUP(A9,list_installations,'B.1.c. Installations'!$S$5:$S$505))/3)) -> 140,773 | H9: 62.28% | I9: 85,264 | J9: 37.72% | K9: 24.42% | L9: 281,229 | M9: 243,815 | N9: =IF(ISBLANK(A9),"",ROUND(M9*'Correction factor'!$B$7,0)) -> 116,509 | O9: =IF(ISBLANK(A9),"",ROUND(M9*'Correction factor'!$C$7,0)) -> 99,865 | P9: =IF(ISBLANK(A9),"",ROUND(M9*'Correction factor'!$D$7,0)) -> 83,221 | Q9: =IF(ISBLANK(A9),"",ROUND(M9*'Correction factor'!$E$7,0)) -> 66,577 | R9: =IF(ISBLANK(A9),"",ROUND(M9*'Correction factor'!$F$7,0)) -> 49,933 | S9: =IF(ISBLANK(A9),"",ROUND(M9*'Correction factor'!$G$7,0)) -> 33,288 | T9: =IF(ISBLANK(A9),"",ROUND(M9*'Correction factor'!$H$7,0)) -> 16,644 | U9: =IF(ISBLANK(A9),"",ROUND(M9*'Correction factor'!$I$7,0)) -> 0
A10: HU-006 | B10: =IF(ISBLANK(A10),"",LOOKUP(A10,list_installations,'B.1.c. Installations'!$B$5:$B$505)) -> BERT Rt. Kispesti Komb. Cikl. Gázt. Hőszolg. Erőmű | C10: =IF(ISBLANK(A10),"",LOOKUP(A10,list_installations,'B.1.c. Installations'!$C$5:$C$505)) -> UHG5248 | D10: =IF(ISBLANK(A10),"",LOOKUP(A10,list_installations,'B.1.c. Installations'!$D$5:$D$505)) -> BERT | E10: =IF(ISBLANK(A10),"",LOOKUP(A10,list_installations,'B.1.c. Installations'!$E$5:$E$505)) -> EDF | F10: =IF(ISBLANK(A10),"",((LOOKUP(A10,list_installations,'B.1.c. Installations'!$I$5:$I$505)+LOOKUP(A10,list_installations,'B.1.c. Installations'!$K$5:$K$505)+LOOKUP(A10,list_installations,'B.1.c. Installations'!$M$5:$M$505))/3)) -> 193,633 | G10: =IF(ISBLANK(A10),"",((LOOKUP(A10,list_installations,'B.1.c. Installations'!$O$5:$O$505)+LOOKUP(A10,list_installations,'B.1.c. Installations'!$Q$5:$Q$505)+LOOKUP(A10,list_installations,'B.1.c. Installations'!$S$5:$S$505))/3)) -> 153,160 | H10: 79.10% | I10: 40,473 | J10: 20.90% | K10: 7.60% | L10: 208,344 | M10: 180,626 | N10: =IF(ISBLANK(A10),"",ROUND(M10*'Correction factor'!$B$7,0)) -> 86,314 | O10: =IF(ISBLANK(A10),"",ROUND(M10*'Correction factor'!$C$7,0)) -> 73,983 | P10: =IF(ISBLANK(A10),"",ROUND(M10*'Correction factor'!$D$7,0)) -> 61,653 | Q10: =IF(ISBLANK(A10),"",ROUND(M10*'Correction factor'!$E$7,0)) -> 49,322 | R10: =IF(ISBLANK(A10),"",ROUND(M10*'Correction factor'!$F$7,0)) -> 36,992 | S10: =IF(ISBLANK(A10),"",ROUND(M10*'Correction factor'!$G$7,0)) -> 24,661 | T10: =IF(ISBLANK(A10),"",ROUND(M10*'Correction factor'!$H$7,0)) -> 12,331 | U10: =IF(ISBLANK(A10),"",ROUND(M10*'Correction factor'!$I$7,0)) -> 0
A11: HU-007 | B11: =IF(ISBLANK(A11),"",LOOKUP(A11,list_installations,'B.1.c. Installations'!$B$5:$B$505)) -> BERT Rt. Újpesti Komb. Cikl. Gázt. Hőszolg. Erőmű | C11: =IF(ISBLANK(A11),"",LOOKUP(A11,list_installations,'B.1.c. Installations'!$C$5:$C$505)) -> UHG5250 | D11: =IF(ISBLANK(A11),"",LOOKUP(A11,list_installations,'B.1.c. Installations'!$D$5:$D$505)) -> BERT | E11: =IF(ISBLANK(A11),"",LOOKUP(A11,list_installations,'B.1.c. Installations'!$E$5:$E$505)) -> EDF | F11: =IF(ISBLANK(A11),"",((LOOKUP(A11,list_installations,'B.1.c. Installations'!$I$5:$I$505)+LOOKUP(A11,list_installations,'B.1.c. Installations'!$K$5:$K$505)+LOOKUP(A11,list_installations,'B.1.c. Installations'!$M$5:$M$505))/3)) -> 200,613 | G11: =IF(ISBLANK(A11),"",((LOOKUP(A11,list_installations,'B.1.c. Installations'!$O$5:$O$505)+LOOKUP(A11,list_installations,'B.1.c. Installations'!$Q$5:$Q$505)+LOOKUP(A11,list_installations,'B.1.c. Installations'!$S$5:$S$505))/3)) -> 159,085 | H11: 79.30% | I11: 41,528 | J11: 20.70% | K11: 7.40% | L11: 215,452 | M11: 186,788 | N11: =IF(ISBLANK(A11),"",ROUND(M11*'Correction factor'!$B$7,0)) -> 89,259 | O11: =IF(ISBLANK(A11),"",ROUND(M11*'Correction factor'!$C$7,0)) -> 76,507 | P11: =IF(ISBLANK(A11),"",ROUND(M11*'Correction factor'!$D$7,0)) -> 63,756 | Q11: =IF(ISBLANK(A11),"",ROUND(M11*'Correction factor'!$E$7,0)) -> 51,005 | R11: =IF(ISBLANK(A11),"",ROUND(M11*'Correction factor'!$F$7,0)) -> 38,254 | S11: =IF(ISBLANK(A11),"",ROUND(M11*'Correction factor'!$G$7,0)) -> 25,502 | T11: =IF(ISBLANK(A11),"",ROUND(M11*'Correction factor'!$H$7,0)) -> 12,751 | U11: =IF(ISBLANK(A11),"",ROUND(M11*'Correction factor'!$I$7,0)) -> 0
A12: HU-008 | B12: =IF(ISBLANK(A12),"",LOOKUP(A12,list_installations,'B.1.c. Installations'!$B$5:$B$505)) -> Csepel II. KCGT Erőmű | C12: =IF(ISBLANK(A12),"",LOOKUP(A12,list_installations,'B.1.c. Installations'!$C$5:$C$505)) -> UHG5197 | D12: =IF(ISBLANK(A12),"",LOOKUP(A12,list_installations,'B.1.c. Installations'!$D$5:$D$505)) -> Csepel | E12: =IF(ISBLANK(A12),"",LOOKUP(A12,list_installations,'B.1.c. Installations'!$E$5:$E$505)) -> Alpiq | F12: =IF(ISBLANK(A12),"",((LOOKUP(A12,list_installations,'B.1.c. Installations'!$I$5:$I$505)+LOOKUP(A12,list_installations,'B.1.c. Installations'!$K$5:$K$505)+LOOKUP(A12,list_installations,'B.1.c. Installations'!$M$5:$M$505))/3)) -> 834,802 | G12: =IF(ISBLANK(A12),"",((LOOKUP(A12,list_installations,'B.1.c. Installations'!$O$5:$O$505)+LOOKUP(A12,list_installations,'B.1.c. Installations'!$Q$5:$Q$505)+LOOKUP(A12,list_installations,'B.1.c. Installations'!$S$5:$S$505))/3)) -> 615,048 | H12: 73.68% | I12: 219,754 | J12: 26.32% | K12: 13.02% | L12: 943,494 | M12: 817,972 | N12: =IF(ISBLANK(A12),"",ROUND(M12*'Correction factor'!$B$7,0)) -> 390,876 | O12: =IF(ISBLANK(A12),"",ROUND(M12*'Correction factor'!$C$7,0)) -> 335,037 | P12: =IF(ISBLANK(A12),"",ROUND(M12*'Correction factor'!$D$7,0)) -> 279,197 | Q12: =IF(ISBLANK(A12),"",ROUND(M12*'Correction factor'!$E$7,0)) -> 223,358 | R12: =IF(ISBLANK(A12),"",ROUND(M12*'Correction factor'!$F$7,0)) -> 167,518 | S12: =IF(ISBLANK(A12),"",ROUND(M12*'Correction factor'!$G$7,0)) -> 111,679 | T12: =IF(ISBLANK(A12),"",ROUND(M12*'Correction factor'!$H$7,0)) -> 55,839 | U12: =IF(ISBLANK(A12),"",ROUND(M12*'Correction factor'!$I$7,0)) -> 0
A13: HU-009 | B13: =IF(ISBLANK(A13),"",LOOKUP(A13,list_installations,'B.1.c. Installations'!$B$5:$B$505)) -> Debreceni Kombinált Ciklusú Erőmű Kft. | C13: =IF(ISBLANK(A13),"",LOOKUP(A13,list_installations,'B.1.c. Installations'!$C$5:$C$505)) -> UHG5210 | D13: =IF(ISBLANK(A13),"",LOOKUP(A13,list_installations,'B.1.c. Installations'!$D$5:$D$505)) -> DKCE | E13: =IF(ISBLANK(A13),"",LOOKUP(A13,list_installations,'B.1.c. Installations'!$E$5:$E$505)) -> E.ON | F13: =IF(ISBLANK(A13),"",((LOOKUP(A13,list_installations,'B.1.c. Installations'!$I$5:$I$505)+LOOKUP(A13,list_installations,'B.1.c. Installations'!$K$5:$K$505)+LOOKUP(A13,list_installations,'B.1.c. Installations'!$M$5:$M$505))/3)) -> 263,887 | G13: =IF(ISBLANK(A13),"",((LOOKUP(A13,list_installations,'B.1.c. Installations'!$O$5:$O$505)+LOOKUP(A13,list_installations,'B.1.c. Installations'!$Q$5:$Q$505)+LOOKUP(A13,list_installations,'B.1.c. Installations'!$S$5:$S$505))/3)) -> 179,591 | H13: 68.06% | I13: 84,295 | J13: 31.94% | K13: 18.64% | L13: 313,075 | M13: 271,423 | N13: =IF(ISBLANK(A13),"",ROUND(M13*'Correction factor'!$B$7,0)) -> 129,702 | O13: =IF(ISBLANK(A13),"",ROUND(M13*'Correction factor'!$C$7,0)) -> 111,173 | P13: =IF(ISBLANK(A13),"",ROUND(M13*'Correction factor'!$D$7,0)) -> 92,644 | Q13: =IF(ISBLANK(A13),"",ROUND(M13*'Correction factor'!$E$7,0)) -> 74,116 | R13: =IF(ISBLANK(A13),"",ROUND(M13*'Correction factor'!$F$7,0)) -> 55,587 | S13: =IF(ISBLANK(A13),"",ROUND(M13*'Correction factor'!$G$7,0)) -> 37,058 | T13: =IF(ISBLANK(A13),"",ROUND(M13*'Correction factor'!$H$7,0)) -> 18,529 | U13: =IF(ISBLANK(A13),"",ROUND(M13*'Correction factor'!$I$7,0)) -> 0
A14: HU-010 | B14: =IF(ISBLANK(A14),"",LOOKUP(A14,list_installations,'B.1.c. Installations'!$B$5:$B$505)) -> Dunamenti Erőmű Rt. | C14: =IF(ISBLANK(A14),"",LOOKUP(A14,list_installations,'B.1.c. Installations'!$C$5:$C$505)) -> UHG5300 | D14: =IF(ISBLANK(A14),"",LOOKUP(A14,list_installations,'B.1.c. Installations'!$D$5:$D$505)) -> Dunamenti | E14: =IF(ISBLANK(A14),"",LOOKUP(A14,list_installations,'B.1.c. Installations'!$E$5:$E$505)) -> Electrabel | F14: =IF(ISBLANK(A14),"",((LOOKUP(A14,list_installations,'B.1.c. Installations'!$I$5:$I$505)+LOOKUP(A14,list_installations,'B.1.c. Installations'!$K$5:$K$505)+LOOKUP(A14,list_installations,'B.1.c. Installations'!$M$5:$M$505))/3)) -> 1,946,045 | G14: =IF(ISBLANK(A14),"",((LOOKUP(A14,list_installations,'B.1.c. Installations'!$O$5:$O$505)+LOOKUP(A14,list_installations,'B.1.c. Installations'!$Q$5:$Q$505)+LOOKUP(A14,list_installations,'B.1.c. Installations'!$S$5:$S$505))/3)) -> 1,313,558 | H14: 67.50% | I14: 632,487 | J14: 32.50% | K14: 19.20% | L14: 2,319,632 | M14: 2,011,029 | N14: =IF(ISBLANK(A14),"",ROUND(M14*'Correction factor'!$B$7,0)) -> 960,990 | O14: =IF(ISBLANK(A14),"",ROUND(M14*'Correction factor'!$C$7,0)) -> 823,706 | P14: =IF(ISBLANK(A14),"",ROUND(M14*'Correction factor'!$D$7,0)) -> 686,421 | Q14: =IF(ISBLANK(A14),"",ROUND(M14*'Correction factor'!$E$7,0)) -> 549,137 | R14: =IF(ISBLANK(A14),"",ROUND(M14*'Correction factor'!$F$7,0)) -> 411,853 | S14: =IF(ISBLANK(A14),"",ROUND(M14*'Correction factor'!$G$7,0)) -> 274,568 | T14: =IF(ISBLANK(A14),"",ROUND(M14*'Correction factor'!$H$7,0)) -> 137,284 | U14: =IF(ISBLANK(A14),"",ROUND(M14*'Correction factor'!$I$7,0)) -> 0
A15: HU-011 | B15: =IF(ISBLANK(A15),"",LOOKUP(A15,list_installations,'B.1.c. Installations'!$B$5:$B$505)) -> ISD POWER Erőmű (régi név: EMA-Power) | C15: =IF(ISBLANK(A15),"",LOOKUP(A15,list_installations,'B.1.c. Installations'!$C$5:$C$505)) -> UHG5295 | D15: =IF(ISBLANK(A15),"",LOOKUP(A15,list_installations,'B.1.c. Installations'!$D$5:$D$505)) -> ISD Power | E15: =IF(ISBLANK(A15),"",LOOKUP(A15,list_installations,'B.1.c. Installations'!$E$5:$E$505)) -> Dunaferr | F15: =IF(ISBLANK(A15),"",((LOOKUP(A15,list_installations,'B.1.c. Installations'!$I$5:$I$505)+LOOKUP(A15,list_installations,'B.1.c. Installations'!$K$5:$K$505)+LOOKUP(A15,list_installations,'B.1.c. Installations'!$M$5:$M$505))/3)) -> 746,804 | G15: =IF(ISBLANK(A15),"",((LOOKUP(A15,list_installations,'B.1.c. Installations'!$O$5:$O$505)+LOOKUP(A15,list_installations,'B.1.c. Installations'!$Q$5:$Q$505)+LOOKUP(A15,list_installations,'B.1.c. Installations'!$S$5:$S$505))/3)) -> 733,128 | H15: 98.17% | I15: 13,676 | J15: 1.83% | K15: -11.47% | L15: 661,126 | M15: 573,170 | N15: =IF(ISBLANK(A15),"",ROUND(M15*'Correction factor'!$B$7,0)) -> 273,895 | O15: =IF(ISBLANK(A15),"",ROUND(M15*'Correction factor'!$C$7,0)) -> 234,767 | P15: =IF(ISBLANK(A15),"",ROUND(M15*'Correction factor'!$D$7,0)) -> 195,639 | Q15: =IF(ISBLANK(A15),"",ROUND(M15*'Correction factor'!$E$7,0)) -> 156,511 | R15: =IF(ISBLANK(A15),"",ROUND(M15*'Correction factor'!$F$7,0)) -> 117,383 | S15: =IF(ISBLANK(A15),"",ROUND(M15*'Correction factor'!$G$7,0)) -> 78,256 | T15: =IF(ISBLANK(A15),"",ROUND(M15*'Correction factor'!$H$7,0)) -> 39,128 | U15: =IF(ISBLANK(A15),"",ROUND(M15*'Correction factor'!$I$7,0)) -> 0
A16: HU-012 | B16: =IF(ISBLANK(A16),"",LOOKUP(A16,list_installations,'B.1.c. Installations'!$B$5:$B$505)) -> Mátrai Erőmű Rt. Visontai Erőmű | C16: =IF(ISBLANK(A16),"",LOOKUP(A16,list_installations,'B.1.c. Installations'!$C$5:$C$505)) -> UHG5119 | D16: =IF(ISBLANK(A16),"",LOOKUP(A16,list_installations,'B.1.c. Installations'!$D$5:$D$505)) -> Mátrai Erőmű | E16: =IF(ISBLANK(A16),"",LOOKUP(A16,list_installations,'B.1.c. Installations'!$E$5:$E$505)) -> RWE | F16: =IF(ISBLANK(A16),"",((LOOKUP(A16,list_installations,'B.1.c. Installations'!$I$5:$I$505)+LOOKUP(A16,list_installations,'B.1.c. Installations'!$K$5:$K$505)+LOOKUP(A16,list_installations,'B.1.c. Installations'!$M$5:$M$505))/3)) -> 6,287,866 | G16: =IF(ISBLANK(A16),"",((LOOKUP(A16,list_installations,'B.1.c. Installations'!$O$5:$O$505)+LOOKUP(A16,list_installations,'B.1.c. Installations'!$Q$5:$Q$505)+LOOKUP(A16,list_installations,'B.1.c. Installations'!$S$5:$S$505))/3)) -> 6,250,943 | H16: 99.41% | I16: 36,923 | J16: 0.59% | K16: -12.72% | L16: 5,488,254 | M16: 4,758,098 | N16: =IF(ISBLANK(A16),"",ROUND(M16*'Correction factor'!$B$7,0)) -> 2,273,704 | O16: =IF(ISBLANK(A16),"",ROUND(M16*'Correction factor'!$C$7,0)) -> 1,948,889 | P16: =IF(ISBLANK(A16),"",ROUND(M16*'Correction factor'!$D$7,0)) -> 1,624,074 | Q16: =IF(ISBLANK(A16),"",ROUND(M16*'Correction factor'!$E$7,0)) -> 1,299,260 | R16: =IF(ISBLANK(A16),"",ROUND(M16*'Correction factor'!$F$7,0)) -> 974,445 | S16: =IF(ISBLANK(A16),"",ROUND(M16*'Correction factor'!$G$7,0)) -> 649,630 | T16: =IF(ISBLANK(A16),"",ROUND(M16*'Correction factor'!$H$7,0)) -> 324,815 | U16: =IF(ISBLANK(A16),"",ROUND(M16*'Correction factor'!$I$7,0)) -> 0
A17: HU-013 | B17: =IF(ISBLANK(A17),"",LOOKUP(A17,list_installations,'B.1.c. Installations'!$B$5:$B$505)) -> Pannon Hőerőmű Rt. Pécsi Erőmű | C17: =IF(ISBLANK(A17),"",LOOKUP(A17,list_installations,'B.1.c. Installations'!$C$5:$C$505)) -> UHG5154 | D17: =IF(ISBLANK(A17),"",LOOKUP(A17,list_installations,'B.1.c. Installations'!$D$5:$D$505)) -> Pannon | E17: =IF(ISBLANK(A17),"",LOOKUP(A17,list_installations,'B.1.c. Installations'!$E$5:$E$505)) -> Pannonpower | F17: =IF(ISBLANK(A17),"",((LOOKUP(A17,list_installations,'B.1.c. Installations'!$I$5:$I$505)+LOOKUP(A17,list_installations,'B.1.c. Installations'!$K$5:$K$505)+LOOKUP(A17,list_installations,'B.1.c. Installations'!$M$5:$M$505))/3)) -> 212,200 | G17: =IF(ISBLANK(A17),"",((LOOKUP(A17,list_installations,'B.1.c. Installations'!$O$5:$O$505)+LOOKUP(A17,list_installations,'B.1.c. Installations'!$Q$5:$Q$505)+LOOKUP(A17,list_installations,'B.1.c. Installations'!$S$5:$S$505))/3)) -> 106,942 | H17: 50.40% | I17: 105,258 | J17: 49.60% | K17: 36.30% | L17: 289,227 | M17: 250,749 | N17: =IF(ISBLANK(A17),"",ROUND(M17*'Correction factor'!$B$7,0)) -> 119,823 | O17: =IF(ISBLANK(A17),"",ROUND(M17*'Correction factor'!$C$7,0)) -> 102,705 | P17: =IF(ISBLANK(A17),"",ROUND(M17*'Correction factor'!$D$7,0)) -> 85,588 | Q17: =IF(ISBLANK(A17),"",ROUND(M17*'Correction factor'!$E$7,0)) -> 68,470 | R17: =IF(ISBLANK(A17),"",ROUND(M17*'Correction factor'!$F$7,0)) -> 51,353 | S17: =IF(ISBLANK(A17),"",ROUND(M17*'Correction factor'!$G$7,0)) -> 34,235 | T17: =IF(ISBLANK(A17),"",ROUND(M17*'Correction factor'!$H$7,0)) -> 17,118 | U17: =IF(ISBLANK(A17),"",ROUND(M17*'Correction factor'!$I$7,0)) -> 0
A18: HU-014 | B18: =IF(ISBLANK(A18),"",LOOKUP(A18,list_installations,'B.1.c. Installations'!$B$5:$B$505)) -> Vértesi Erőmű Rt. Oroszlányi Erőmű | C18: =IF(ISBLANK(A18),"",LOOKUP(A18,list_installations,'B.1.c. Installations'!$C$5:$C$505)) -> UHG5198 | D18: =IF(ISBLANK(A18),"",LOOKUP(A18,list_installations,'B.1.c. Installations'!$D$5:$D$505)) -> Vértes | E18: =IF(ISBLANK(A18),"",LOOKUP(A18,list_installations,'B.1.c. Installations'!$E$5:$E$505)) -> MVM | F18: =IF(ISBLANK(A18),"",((LOOKUP(A18,list_installations,'B.1.c. Installations'!$I$5:$I$505)+LOOKUP(A18,list_installations,'B.1.c. Installations'!$K$5:$K$505)+LOOKUP(A18,list_installations,'B.1.c. Installations'!$M$5:$M$505))/3)) -> 728,644 | G18: =IF(ISBLANK(A18),"",((LOOKUP(A18,list_installations,'B.1.c. Installations'!$O$5:$O$505)+LOOKUP(A18,list_installations,'B.1.c. Installations'!$Q$5:$Q$505)+LOOKUP(A18,list_installations,'B.1.c. Installations'!$S$5:$S$505))/3)) -> 418,367 | H18: 57.42% | I18: 310,277 | J18: 42.58% | K18: 29.28% | L18: 941,983 | M18: 816,662 | N18: =IF(ISBLANK(A18),"",ROUND(M18*'Correction factor'!$B$7,0)) -> 390,250 | O18: =IF(ISBLANK(A18),"",ROUND(M18*'Correction factor'!$C$7,0)) -> 334,500 | P18: =IF(ISBLANK(A18),"",ROUND(M18*'Correction factor'!$D$7,0)) -> 278,750 | Q18: =IF(ISBLANK(A18),"",ROUND(M18*'Correction factor'!$E$7,0)) -> 223,000 | R18: =IF(ISBLANK(A18),"",ROUND(M18*'Correction factor'!$F$7,0)) -> 167,250 | S18: =IF(ISBLANK(A18),"",ROUND(M18*'Correction factor'!$G$7,0)) -> 111,500 | T18: =IF(ISBLANK(A18),"",ROUND(M18*'Correction factor'!$H$7,0)) -> 55,750 | U18: =IF(ISBLANK(A18),"",ROUND(M18*'Correction factor'!$I$7,0)) -> 0
B19: =IF(ISBLANK(A19),"",LOOKUP(A19,list_installations,'B.1.c. Installations'!$B$5:$B$505)) ->  | C19: =IF(ISBLANK(A19),"",LOOKUP(A19,list_installations,'B.1.c. Installations'!$C$5:$C$505)) ->  | D19: =IF(ISBLANK(A19),"",LOOKUP(A19,list_installations,'B.1.c. Installations'!$D$5:$D$505)) ->  | E19: =IF(ISBLANK(A19),"",LOOKUP(A19,list_installations,'B.1.c. Installations'!$E$5:$E$505)) ->  | F19: =IF(ISBLANK(A19),"",((LOOKUP(A19,list_installations,'B.1.c. Installations'!$I$5:$I$505)+LOOKUP(A19,list_installations,'B.1.c. Installations'!$K$5:$K$505)+LOOKUP(A19,list_installations,'B.1.c. Installations'!$M$5:$M$505))/3)) ->  | G19: =IF(ISBLANK(A19),"",((LOOKUP(A19,list_installations,'B.1.c. Installations'!$O$5:$O$505)+LOOKUP(A19,list_installations,'B.1.c. Installations'!$Q$5:$Q$505)+LOOKUP(A19,list_installations,'B.1.c. Installations'!$S$5:$S$505))/3)) ->  | N19: =IF(ISBLANK(A19),"",ROUND(M19*'Correction factor'!$B$7,0)) ->  | O19: =IF(ISBLANK(A19),"",ROUND(M19*'Correction factor'!$C$7,0)) ->  | P19: =IF(ISBLANK(A19),"",ROUND(M19*'Correction factor'!$D$7,0)) ->  | Q19: =IF(ISBLANK(A19),"",ROUND(M19*'Correction factor'!$E$7,0)) ->  | R19: =IF(ISBLANK(A19),"",ROUND(M19*'Correction factor'!$F$7,0)) ->  | S19: =IF(ISBLANK(A19),"",ROUND(M19*'Correction factor'!$G$7,0)) ->  | T19: =IF(ISBLANK(A19),"",ROUND(M19*'Correction factor'!$H$7,0)) ->  | U19: =IF(ISBLANK(A19),"",ROUND(M19*'Correction factor'!$I$7,0)) -> 
B20: =IF(ISBLANK(A20),"",LOOKUP(A20,list_installations,'B.1.c. Installations'!$B$5:$B$505)) ->  | C20: =IF(ISBLANK(A20),"",LOOKUP(A20,list_installations,'B.1.c. Installations'!$C$5:$C$505)) ->  | D20: =IF(ISBLANK(A20),"",LOOKUP(A20,list_installations,'B.1.c. Installations'!$D$5:$D$505)) ->  | E20: =IF(ISBLANK(A20),"",LOOKUP(A20,list_installations,'B.1.c. Installations'!$E$5:$E$505)) ->  | F20: =IF(ISBLANK(A20),"",((LOOKUP(A20,list_installations,'B.1.c. Installations'!$I$5:$I$505)+LOOKUP(A20,list_installations,'B.1.c. Installations'!$K$5:$K$505)+LOOKUP(A20,list_installations,'B.1.c. Installations'!$M$5:$M$505))/3)) ->  | G20: =IF(ISBLANK(A20),"",((LOOKUP(A20,list_installations,'B.1.c. Installations'!$O$5:$O$505)+LOOKUP(A20,list_installations,'B.1.c. Installations'!$Q$5:$Q$505)+LOOKUP(A20,list_installations,'B.1.c. Installations'!$S$5:$S$505))/3)) ->  | N20: =IF(ISBLANK(A20),"",ROUND(M20*'Correction factor'!$B$7,0)) ->  | O20: =IF(ISBLANK(A20),"",ROUND(M20*'Correction factor'!$C$7,0)) ->  | P20: =IF(ISBLANK(A20),"",ROUND(M20*'Correction factor'!$D$7,0)) ->  | Q20: =IF(ISBLANK(A20),"",ROUND(M20*'Correction factor'!$E$7,0)) ->  | R20: =IF(ISBLANK(A20),"",ROUND(M20*'Correction factor'!$F$7,0)) ->  | S20: =IF(ISBLANK(A20),"",ROUND(M20*'Correction factor'!$G$7,0)) ->  | T20: =IF(ISBLANK(A20),"",ROUND(M20*'Correction factor'!$H$7,0)) ->  | U20: =IF(ISBLANK(A20),"",ROUND(M20*'Correction factor'!$I$7,0)) -> 
B21: =IF(ISBLANK(A21),"",LOOKUP(A21,list_installations,'B.1.c. Installations'!$B$5:$B$505)) ->  | C21: =IF(ISBLANK(A21),"",LOOKUP(A21,list_installations,'B.1.c. Installations'!$C$5:$C$505)) ->  | D21: =IF(ISBLANK(A21),"",LOOKUP(A21,list_installations,'B.1.c. Installations'!$D$5:$D$505)) ->  | E21: =IF(ISBLANK(A21),"",LOOKUP(A21,list_installations,'B.1.c. Installations'!$E$5:$E$505)) ->  | F21: =IF(ISBLANK(A21),"",((LOOKUP(A21,list_installations,'B.1.c. Installations'!$I$5:$I$505)+LOOKUP(A21,list_installations,'B.1.c. Installations'!$K$5:$K$505)+LOOKUP(A21,list_installations,'B.1.c. Installations'!$M$5:$M$505))/3)) ->  | G21: =IF(ISBLANK(A21),"",((LOOKUP(A21,list_installations,'B.1.c. Installations'!$O$5:$O$505)+LOOKUP(A21,list_installations,'B.1.c. Installations'!$Q$5:$Q$505)+LOOKUP(A21,list_installations,'B.1.c. Installations'!$S$5:$S$505))/3)) ->  | N21: =IF(ISBLANK(A21),"",ROUND(M21*'Correction factor'!$B$7,0)) ->  | O21: =IF(ISBLANK(A21),"",ROUND(M21*'Correction factor'!$C$7,0)) ->  | P21: =IF(ISBLANK(A21),"",ROUND(M21*'Correction factor'!$D$7,0)) ->  | Q21: =IF(ISBLANK(A21),"",ROUND(M21*'Correction factor'!$E$7,0)) ->  | R21: =IF(ISBLANK(A21),"",ROUND(M21*'Correction factor'!$F$7,0)) ->  | S21: =IF(ISBLANK(A21),"",ROUND(M21*'Correction factor'!$G$7,0)) ->  | T21: =IF(ISBLANK(A21),"",ROUND(M21*'Correction factor'!$H$7,0)) ->  | U21: =IF(ISBLANK(A21),"",ROUND(M21*'Correction factor'!$I$7,0)) -> 
B22: =IF(ISBLANK(A22),"",LOOKUP(A22,list_installations,'B.1.c. Installations'!$B$5:$B$505)) ->  | C22: =IF(ISBLANK(A22),"",LOOKUP(A22,list_installations,'B.1.c. Installations'!$C$5:$C$505)) ->  | D22: =IF(ISBLANK(A22),"",LOOKUP(A22,list_installations,'B.1.c. Installations'!$D$5:$D$505)) ->  | E22: =IF(ISBLANK(A22),"",LOOKUP(A22,list_installations,'B.1.c. Installations'!$E$5:$E$505)) ->  | F22: =IF(ISBLANK(A22),"",((LOOKUP(A22,list_installations,'B.1.c. Installations'!$I$5:$I$505)+LOOKUP(A22,list_installations,'B.1.c. Installations'!$K$5:$K$505)+LOOKUP(A22,list_installations,'B.1.c. Installations'!$M$5:$M$505))/3)) ->  | G22: =IF(ISBLANK(A22),"",((LOOKUP(A22,list_installations,'B.1.c. Installations'!$O$5:$O$505)+LOOKUP(A22,list_installations,'B.1.c. Installations'!$Q$5:$Q$505)+LOOKUP(A22,list_installations,'B.1.c. Installations'!$S$5:$S$505))/3)) ->  | N22: =IF(ISBLANK(A22),"",ROUND(M22*'Correction factor'!$B$7,0)) ->  | O22: =IF(ISBLANK(A22),"",ROUND(M22*'Correction factor'!$C$7,0)) ->  | P22: =IF(ISBLANK(A22),"",ROUND(M22*'Correction factor'!$D$7,0)) ->  | Q22: =IF(ISBLANK(A22),"",ROUND(M22*'Correction factor'!$E$7,0)) ->  | R22: =IF(ISBLANK(A22),"",ROUND(M22*'Correction factor'!$F$7,0)) ->  | S22: =IF(ISBLANK(A22),"",ROUND(M22*'Correction factor'!$G$7,0)) ->  | T22: =IF(ISBLANK(A22),"",ROUND(M22*'Correction factor'!$H$7,0)) ->  | U22: =IF(ISBLANK(A22),"",ROUND(M22*'Correction factor'!$I$7,0)) -> 
B23: =IF(ISBLANK(A23),"",LOOKUP(A23,list_installations,'B.1.c. Installations'!$B$5:$B$505)) ->  | C23: =IF(ISBLANK(A23),"",LOOKUP(A23,list_installations,'B.1.c. Installations'!$C$5:$C$505)) ->  | D23: =IF(ISBLANK(A23),"",LOOKUP(A23,list_installations,'B.1.c. Installations'!$D$5:$D$505)) ->  | E23: =IF(ISBLANK(A23),"",LOOKUP(A23,list_installations,'B.1.c. Installations'!$E$5:$E$505)) ->  | F23: =IF(ISBLANK(A23),"",((LOOKUP(A23,list_installations,'B.1.c. Installations'!$I$5:$I$505)+LOOKUP(A23,list_installations,'B.1.c. Installations'!$K$5:$K$505)+LOOKUP(A23,list_installations,'B.1.c. Installations'!$M$5:$M$505))/3)) ->  | G23: =IF(ISBLANK(A23),"",((LOOKUP(A23,list_installations,'B.1.c. Installations'!$O$5:$O$505)+LOOKUP(A23,list_installations,'B.1.c. Installations'!$Q$5:$Q$505)+LOOKUP(A23,list_installations,'B.1.c. Installations'!$S$5:$S$505))/3)) ->  | N23: =IF(ISBLANK(A23),"",ROUND(M23*'Correction factor'!$B$7,0)) ->  | O23: =IF(ISBLANK(A23),"",ROUND(M23*'Correction factor'!$C$7,0)) ->  | P23: =IF(ISBLANK(A23),"",ROUND(M23*'Correction factor'!$D$7,0)) ->  | Q23: =IF(ISBLANK(A23),"",ROUND(M23*'Correction factor'!$E$7,0)) ->  | R23: =IF(ISBLANK(A23),"",ROUND(M23*'Correction factor'!$F$7,0)) ->  | S23: =IF(ISBLANK(A23),"",ROUND(M23*'Correction factor'!$G$7,0)) ->  | T23: =IF(ISBLANK(A23),"",ROUND(M23*'Correction factor'!$H$7,0)) ->  | U23: =IF(ISBLANK(A23),"",ROUND(M23*'Correction factor'!$I$7,0)) -> 
B24: =IF(ISBLANK(A24),"",LOOKUP(A24,list_installations,'B.1.c. Installations'!$B$5:$B$505)) ->  | C24: =IF(ISBLANK(A24),"",LOOKUP(A24,list_installations,'B.1.c. Installations'!$C$5:$C$505)) ->  | D24: =IF(ISBLANK(A24),"",LOOKUP(A24,list_installations,'B.1.c. Installations'!$D$5:$D$505)) ->  | E24: =IF(ISBLANK(A24),"",LOOKUP(A24,list_installations,'B.1.c. Installations'!$E$5:$E$505)) ->  | F24: =IF(ISBLANK(A24),"",((LOOKUP(A24,list_installations,'B.1.c. Installations'!$I$5:$I$505)+LOOKUP(A24,list_installations,'B.1.c. Installations'!$K$5:$K$505)+LOOKUP(A24,list_installations,'B.1.c. Installations'!$M$5:$M$505))/3)) ->  | G24: =IF(ISBLANK(A24),"",((LOOKUP(A24,list_installations,'B.1.c. Installations'!$O$5:$O$505)+LOOKUP(A24,list_installations,'B.1.c. Installations'!$Q$5:$Q$505)+LOOKUP(A24,list_installations,'B.1.c. Installations'!$S$5:$S$505))/3)) ->  | N24: =IF(ISBLANK(A24),"",ROUND(M24*'Correction factor'!$B$7,0)) ->  | O24: =IF(ISBLANK(A24),"",ROUND(M24*'Correction factor'!$C$7,0)) ->  | P24: =IF(ISBLANK(A24),"",ROUND(M24*'Correction factor'!$D$7,0)) ->  | Q24: =IF(ISBLANK(A24),"",ROUND(M24*'Correction factor'!$E$7,0)) ->  | R24: =IF(ISBLANK(A24),"",ROUND(M24*'Correction factor'!$F$7,0)) ->  | S24: =IF(ISBLANK(A24),"",ROUND(M24*'Correction factor'!$G$7,0)) ->  | T24: =IF(ISBLANK(A24),"",ROUND(M24*'Correction factor'!$H$7,0)) ->  | U24: =IF(ISBLANK(A24),"",ROUND(M24*'Correction factor'!$I$7,0)) -> 
B25: =IF(ISBLANK(A25),"",LOOKUP(A25,list_installations,'B.1.c. Installations'!$B$5:$B$505)) ->  | C25: =IF(ISBLANK(A25),"",LOOKUP(A25,list_installations,'B.1.c. Installations'!$C$5:$C$505)) ->  | D25: =IF(ISBLANK(A25),"",LOOKUP(A25,list_installations,'B.1.c. Installations'!$D$5:$D$505)) ->  | E25: =IF(ISBLANK(A25),"",LOOKUP(A25,list_installations,'B.1.c. Installations'!$E$5:$E$505)) ->  | F25: =IF(ISBLANK(A25),"",((LOOKUP(A25,list_installations,'B.1.c. Installations'!$I$5:$I$505)+LOOKUP(A25,list_installations,'B.1.c. Installations'!$K$5:$K$505)+LOOKUP(A25,list_installations,'B.1.c. Installations'!$M$5:$M$505))/3)) ->  | G25: =IF(ISBLANK(A25),"",((LOOKUP(A25,list_installations,'B.1.c. Installations'!$O$5:$O$505)+LOOKUP(A25,list_installations,'B.1.c. Installations'!$Q$5:$Q$505)+LOOKUP(A25,list_installations,'B.1.c. Installations'!$S$5:$S$505))/3)) ->  | N25: =IF(ISBLANK(A25),"",ROUND(M25*'Correction factor'!$B$7,0)) ->  | O25: =IF(ISBLANK(A25),"",ROUND(M25*'Correction factor'!$C$7,0)) ->  | P25: =IF(ISBLANK(A25),"",ROUND(M25*'Correction factor'!$D$7,0)) ->  | Q25: =IF(ISBLANK(A25),"",ROUND(M25*'Correction factor'!$E$7,0)) ->  | R25: =IF(ISBLANK(A25),"",ROUND(M25*'Correction factor'!$F$7,0)) ->  | S25: =IF(ISBLANK(A25),"",ROUND(M25*'Correction factor'!$G$7,0)) ->  | T25: =IF(ISBLANK(A25),"",ROUND(M25*'Correction factor'!$H$7,0)) ->  | U25: =IF(ISBLANK(A25),"",ROUND(M25*'Correction factor'!$I$7,0)) -> 
B26: =IF(ISBLANK(A26),"",LOOKUP(A26,list_installations,'B.1.c. Installations'!$B$5:$B$505)) ->  | C26: =IF(ISBLANK(A26),"",LOOKUP(A26,list_installations,'B.1.c. Installations'!$C$5:$C$505)) ->  | D26: =IF(ISBLANK(A26),"",LOOKUP(A26,list_installations,'B.1.c. Installations'!$D$5:$D$505)) ->  | E26: =IF(ISBLANK(A26),"",LOOKUP(A26,list_installations,'B.1.c. Installations'!$E$5:$E$505)) ->  | F26: =IF(ISBLANK(A26),"",((LOOKUP(A26,list_installations,'B.1.c. Installations'!$I$5:$I$505)+LOOKUP(A26,list_installations,'B.1.c. Installations'!$K$5:$K$505)+LOOKUP(A26,list_installations,'B.1.c. Installations'!$M$5:$M$505))/3)) ->  | G26: =IF(ISBLANK(A26),"",((LOOKUP(A26,list_installations,'B.1.c. Installations'!$O$5:$O$505)+LOOKUP(A26,list_installations,'B.1.c. Installations'!$Q$5:$Q$505)+LOOKUP(A26,list_installations,'B.1.c. Installations'!$S$5:$S$505))/3)) ->  | N26: =IF(ISBLANK(A26),"",ROUND(M26*'Correction factor'!$B$7,0)) ->  | O26: =IF(ISBLANK(A26),"",ROUND(M26*'Correction factor'!$C$7,0)) ->  | P26: =IF(ISBLANK(A26),"",ROUND(M26*'Correction factor'!$D$7,0)) ->  | Q26: =IF(ISBLANK(A26),"",ROUND(M26*'Correction factor'!$E$7,0)) ->  | R26: =IF(ISBLANK(A26),"",ROUND(M26*'Correction factor'!$F$7,0)) ->  | S26: =IF(ISBLANK(A26),"",ROUND(M26*'Correction factor'!$G$7,0)) ->  | T26: =IF(ISBLANK(A26),"",ROUND(M26*'Correction factor'!$H$7,0)) ->  | U26: =IF(ISBLANK(A26),"",ROUND(M26*'Correction factor'!$I$7,0)) -> 
B27: =IF(ISBLANK(A27),"",LOOKUP(A27,list_installations,'B.1.c. Installations'!$B$5:$B$505)) ->  | C27: =IF(ISBLANK(A27),"",LOOKUP(A27,list_installations,'B.1.c. Installations'!$C$5:$C$505)) ->  | D27: =IF(ISBLANK(A27),"",LOOKUP(A27,list_installations,'B.1.c. Installations'!$D$5:$D$505)) ->  | E27: =IF(ISBLANK(A27),"",LOOKUP(A27,list_installations,'B.1.c. Installations'!$E$5:$E$505)) ->  | F27: =IF(ISBLANK(A27),"",((LOOKUP(A27,list_installations,'B.1.c. Installations'!$I$5:$I$505)+LOOKUP(A27,list_installations,'B.1.c. Installations'!$K$5:$K$505)+LOOKUP(A27,list_installations,'B.1.c. Installations'!$M$5:$M$505))/3)) ->  | G27: =IF(ISBLANK(A27),"",((LOOKUP(A27,list_installations,'B.1.c. Installations'!$O$5:$O$505)+LOOKUP(A27,list_installations,'B.1.c. Installations'!$Q$5:$Q$505)+LOOKUP(A27,list_installations,'B.1.c. Installations'!$S$5:$S$505))/3)) ->  | N27: =IF(ISBLANK(A27),"",ROUND(M27*'Correction factor'!$B$7,0)) ->  | O27: =IF(ISBLANK(A27),"",ROUND(M27*'Correction factor'!$C$7,0)) ->  | P27: =IF(ISBLANK(A27),"",ROUND(M27*'Correction factor'!$D$7,0)) ->  | Q27: =IF(ISBLANK(A27),"",ROUND(M27*'Correction factor'!$E$7,0)) ->  | R27: =IF(ISBLANK(A27),"",ROUND(M27*'Correction factor'!$F$7,0)) ->  | S27: =IF(ISBLANK(A27),"",ROUND(M27*'Correction factor'!$G$7,0)) ->  | T27: =IF(ISBLANK(A27),"",ROUND(M27*'Correction factor'!$H$7,0)) ->  | U27: =IF(ISBLANK(A27),"",ROUND(M27*'Correction factor'!$I$7,0)) -> 
B28: =IF(ISBLANK(A28),"",LOOKUP(A28,list_installations,'B.1.c. Installations'!$B$5:$B$505)) ->  | C28: =IF(ISBLANK(A28),"",LOOKUP(A28,list_installations,'B.1.c. Installations'!$C$5:$C$505)) ->  | D28: =IF(ISBLANK(A28),"",LOOKUP(A28,list_installations,'B.1.c. Installations'!$D$5:$D$505)) ->  | E28: =IF(ISBLANK(A28),"",LOOKUP(A28,list_installations,'B.1.c. Installations'!$E$5:$E$505)) ->  | F28: =IF(ISBLANK(A28),"",((LOOKUP(A28,list_installations,'B.1.c. Installations'!$I$5:$I$505)+LOOKUP(A28,list_installations,'B.1.c. Installations'!$K$5:$K$505)+LOOKUP(A28,list_installations,'B.1.c. Installations'!$M$5:$M$505))/3)) ->  | G28: =IF(ISBLANK(A28),"",((LOOKUP(A28,list_installations,'B.1.c. Installations'!$O$5:$O$505)+LOOKUP(A28,list_installations,'B.1.c. Installations'!$Q$5:$Q$505)+LOOKUP(A28,list_installations,'B.1.c. Installations'!$S$5:$S$505))/3)) ->  | N28: =IF(ISBLANK(A28),"",ROUND(M28*'Correction factor'!$B$7,0)) ->  | O28: =IF(ISBLANK(A28),"",ROUND(M28*'Correction factor'!$C$7,0)) ->  | P28: =IF(ISBLANK(A28),"",ROUND(M28*'Correction factor'!$D$7,0)) ->  | Q28: =IF(ISBLANK(A28),"",ROUND(M28*'Correction factor'!$E$7,0)) ->  | R28: =IF(ISBLANK(A28),"",ROUND(M28*'Correction factor'!$F$7,0)) ->  | S28: =IF(ISBLANK(A28),"",ROUND(M28*'Correction factor'!$G$7,0)) ->  | T28: =IF(ISBLANK(A28),"",ROUND(M28*'Correction factor'!$H$7,0)) ->  | U28: =IF(ISBLANK(A28),"",ROUND(M28*'Correction factor'!$I$7,0)) -> 
B29: =IF(ISBLANK(A29),"",LOOKUP(A29,list_installations,'B.1.c. Installations'!$B$5:$B$505)) ->  | C29: =IF(ISBLANK(A29),"",LOOKUP(A29,list_installations,'B.1.c. Installations'!$C$5:$C$505)) ->  | D29: =IF(ISBLANK(A29),"",LOOKUP(A29,list_installations,'B.1.c. Installations'!$D$5:$D$505)) ->  | E29: =IF(ISBLANK(A29),"",LOOKUP(A29,list_installations,'B.1.c. Installations'!$E$5:$E$505)) ->  | F29: =IF(ISBLANK(A29),"",((LOOKUP(A29,list_installations,'B.1.c. Installations'!$I$5:$I$505)+LOOKUP(A29,list_installations,'B.1.c. Installations'!$K$5:$K$505)+LOOKUP(A29,list_installations,'B.1.c. Installations'!$M$5:$M$505))/3)) ->  | G29: =IF(ISBLANK(A29),"",((LOOKUP(A29,list_installations,'B.1.c. Installations'!$O$5:$O$505)+LOOKUP(A29,list_installations,'B.1.c. Installations'!$Q$5:$Q$505)+LOOKUP(A29,list_installations,'B.1.c. Installations'!$S$5:$S$505))/3)) ->  | N29: =IF(ISBLANK(A29),"",ROUND(M29*'Correction factor'!$B$7,0)) ->  | O29: =IF(ISBLANK(A29),"",ROUND(M29*'Correction factor'!$C$7,0)) ->  | P29: =IF(ISBLANK(A29),"",ROUND(M29*'Correction factor'!$D$7,0)) ->  | Q29: =IF(ISBLANK(A29),"",ROUND(M29*'Correction factor'!$E$7,0)) ->  | R29: =IF(ISBLANK(A29),"",ROUND(M29*'Correction factor'!$F$7,0)) ->  | S29: =IF(ISBLANK(A29),"",ROUND(M29*'Correction factor'!$G$7,0)) ->  | T29: =IF(ISBLANK(A29),"",ROUND(M29*'Correction factor'!$H$7,0)) ->  | U29: =IF(ISBLANK(A29),"",ROUND(M29*'Correction factor'!$I$7,0)) -> 
B30: =IF(ISBLANK(A30),"",LOOKUP(A30,list_installations,'B.1.c. Installations'!$B$5:$B$505)) ->  | C30: =IF(ISBLANK(A30),"",LOOKUP(A30,list_installations,'B.1.c. Installations'!$C$5:$C$505)) ->  | D30: =IF(ISBLANK(A30),"",LOOKUP(A30,list_installations,'B.1.c. Installations'!$D$5:$D$505)) ->  | E30: =IF(ISBLANK(A30),"",LOOKUP(A30,list_installations,'B.1.c. Installations'!$E$5:$E$505)) ->  | F30: =IF(ISBLANK(A30),"",((LOOKUP(A30,list_installations,'B.1.c. Installations'!$I$5:$I$505)+LOOKUP(A30,list_installations,'B.1.c. Installations'!$K$5:$K$505)+LOOKUP(A30,list_installations,'B.1.c. Installations'!$M$5:$M$505))/3)) ->  | G30: =IF(ISBLANK(A30),"",((LOOKUP(A30,list_installations,'B.1.c. Installations'!$O$5:$O$505)+LOOKUP(A30,list_installations,'B.1.c. Installations'!$Q$5:$Q$505)+LOOKUP(A30,list_installations,'B.1.c. Installations'!$S$5:$S$505))/3)) ->  | N30: =IF(ISBLANK(A30),"",ROUND(M30*'Correction factor'!$B$7,0)) ->  | O30: =IF(ISBLANK(A30),"",ROUND(M30*'Correction factor'!$C$7,0)) ->  | P30: =IF(ISBLANK(A30),"",ROUND(M30*'Correction factor'!$D$7,0)) ->  | Q30: =IF(ISBLANK(A30),"",ROUND(M30*'Correction factor'!$E$7,0)) ->  | R30: =IF(ISBLANK(A30),"",ROUND(M30*'Correction factor'!$F$7,0)) ->  | S30: =IF(ISBLANK(A30),"",ROUND(M30*'Correction factor'!$G$7,0)) ->  | T30: =IF(ISBLANK(A30),"",ROUND(M30*'Correction factor'!$H$7,0)) ->  | U30: =IF(ISBLANK(A30),"",ROUND(M30*'Correction factor'!$I$7,0)) -> 
B31: =IF(ISBLANK(A31),"",LOOKUP(A31,list_installations,'B.1.c. Installations'!$B$5:$B$505)) ->  | C31: =IF(ISBLANK(A31),"",LOOKUP(A31,list_installations,'B.1.c. Installations'!$C$5:$C$505)) ->  | D31: =IF(ISBLANK(A31),"",LOOKUP(A31,list_installations,'B.1.c. Installations'!$D$5:$D$505)) ->  | E31: =IF(ISBLANK(A31),"",LOOKUP(A31,list_installations,'B.1.c. Installations'!$E$5:$E$505)) ->  | F31: =IF(ISBLANK(A31),"",((LOOKUP(A31,list_installations,'B.1.c. Installations'!$I$5:$I$505)+LOOKUP(A31,list_installations,'B.1.c. Installations'!$K$5:$K$505)+LOOKUP(A31,list_installations,'B.1.c. Installations'!$M$5:$M$505))/3)) ->  | G31: =IF(ISBLANK(A31),"",((LOOKUP(A31,list_installations,'B.1.c. Installations'!$O$5:$O$505)+LOOKUP(A31,list_installations,'B.1.c. Installations'!$Q$5:$Q$505)+LOOKUP(A31,list_installations,'B.1.c. Installations'!$S$5:$S$505))/3)) ->  | N31: =IF(ISBLANK(A31),"",ROUND(M31*'Correction factor'!$B$7,0)) ->  | O31: =IF(ISBLANK(A31),"",ROUND(M31*'Correction factor'!$C$7,0)) ->  | P31: =IF(ISBLANK(A31),"",ROUND(M31*'Correction factor'!$D$7,0)) ->  | Q31: =IF(ISBLANK(A31),"",ROUND(M31*'Correction factor'!$E$7,0)) ->  | R31: =IF(ISBLANK(A31),"",ROUND(M31*'Correction factor'!$F$7,0)) ->  | S31: =IF(ISBLANK(A31),"",ROUND(M31*'Correction factor'!$G$7,0)) ->  | T31: =IF(ISBLANK(A31),"",ROUND(M31*'Correction factor'!$H$7,0)) ->  | U31: =IF(ISBLANK(A31),"",ROUND(M31*'Correction factor'!$I$7,0)) -> 
B32: =IF(ISBLANK(A32),"",LOOKUP(A32,list_installations,'B.1.c. Installations'!$B$5:$B$505)) ->  | C32: =IF(ISBLANK(A32),"",LOOKUP(A32,list_installations,'B.1.c. Installations'!$C$5:$C$505)) ->  | D32: =IF(ISBLANK(A32),"",LOOKUP(A32,list_installations,'B.1.c. Installations'!$D$5:$D$505)) ->  | E32: =IF(ISBLANK(A32),"",LOOKUP(A32,list_installations,'B.1.c. Installations'!$E$5:$E$505)) ->  | F32: =IF(ISBLANK(A32),"",((LOOKUP(A32,list_installations,'B.1.c. Installations'!$I$5:$I$505)+LOOKUP(A32,list_installations,'B.1.c. Installations'!$K$5:$K$505)+LOOKUP(A32,list_installations,'B.1.c. Installations'!$M$5:$M$505))/3)) ->  | G32: =IF(ISBLANK(A32),"",((LOOKUP(A32,list_installations,'B.1.c. Installations'!$O$5:$O$505)+LOOKUP(A32,list_installations,'B.1.c. Installations'!$Q$5:$Q$505)+LOOKUP(A32,list_installations,'B.1.c. Installations'!$S$5:$S$505))/3)) ->  | N32: =IF(ISBLANK(A32),"",ROUND(M32*'Correction factor'!$B$7,0)) ->  | O32: =IF(ISBLANK(A32),"",ROUND(M32*'Correction factor'!$C$7,0)) ->  | P32: =IF(ISBLANK(A32),"",ROUND(M32*'Correction factor'!$D$7,0)) ->  | Q32: =IF(ISBLANK(A32),"",ROUND(M32*'Correction factor'!$E$7,0)) ->  | R32: =IF(ISBLANK(A32),"",ROUND(M32*'Correction factor'!$F$7,0)) ->  | S32: =IF(ISBLANK(A32),"",ROUND(M32*'Correction factor'!$G$7,0)) ->  | T32: =IF(ISBLANK(A32),"",ROUND(M32*'Correction factor'!$H$7,0)) ->  | U32: =IF(ISBLANK(A32),"",ROUND(M32*'Correction factor'!$I$7,0)) -> 
B33: =IF(ISBLANK(A33),"",LOOKUP(A33,list_installations,'B.1.c. Installations'!$B$5:$B$505)) ->  | C33: =IF(ISBLANK(A33),"",LOOKUP(A33,list_installations,'B.1.c. Installations'!$C$5:$C$505)) ->  | D33: =IF(ISBLANK(A33),"",LOOKUP(A33,list_installations,'B.1.c. Installations'!$D$5:$D$505)) ->  | E33: =IF(ISBLANK(A33),"",LOOKUP(A33,list_installations,'B.1.c. Installations'!$E$5:$E$505)) ->  | F33: =IF(ISBLANK(A33),"",((LOOKUP(A33,list_installations,'B.1.c. Installations'!$I$5:$I$505)+LOOKUP(A33,list_installations,'B.1.c. Installations'!$K$5:$K$505)+LOOKUP(A33,list_installations,'B.1.c. Installations'!$M$5:$M$505))/3)) ->  | G33: =IF(ISBLANK(A33),"",((LOOKUP(A33,list_installations,'B.1.c. Installations'!$O$5:$O$505)+LOOKUP(A33,list_installations,'B.1.c. Installations'!$Q$5:$Q$505)+LOOKUP(A33,list_installations,'B.1.c. Installations'!$S$5:$S$505))/3)) ->  | N33: =IF(ISBLANK(A33),"",ROUND(M33*'Correction factor'!$B$7,0)) ->  | O33: =IF(ISBLANK(A33),"",ROUND(M33*'Correction factor'!$C$7,0)) ->  | P33: =IF(ISBLANK(A33),"",ROUND(M33*'Correction factor'!$D$7,0)) ->  | Q33: =IF(ISBLANK(A33),"",ROUND(M33*'Correction factor'!$E$7,0)) ->  | R33: =IF(ISBLANK(A33),"",ROUND(M33*'Correction factor'!$F$7,0)) ->  | S33: =IF(ISBLANK(A33),"",ROUND(M33*'Correction factor'!$G$7,0)) ->  | T33: =IF(ISBLANK(A33),"",ROUND(M33*'Correction factor'!$H$7,0)) ->  | U33: =IF(ISBLANK(A33),"",ROUND(M33*'Correction factor'!$I$7,0)) -> 
B34: =IF(ISBLANK(A34),"",LOOKUP(A34,list_installations,'B.1.c. Installations'!$B$5:$B$505)) ->  | C34: =IF(ISBLANK(A34),"",LOOKUP(A34,list_installations,'B.1.c. Installations'!$C$5:$C$505)) ->  | D34: =IF(ISBLANK(A34),"",LOOKUP(A34,list_installations,'B.1.c. Installations'!$D$5:$D$505)) ->  | E34: =IF(ISBLANK(A34),"",LOOKUP(A34,list_installations,'B.1.c. Installations'!$E$5:$E$505)) ->  | F34: =IF(ISBLANK(A34),"",((LOOKUP(A34,list_installations,'B.1.c. Installations'!$I$5:$I$505)+LOOKUP(A34,list_installations,'B.1.c. Installations'!$K$5:$K$505)+LOOKUP(A34,list_installations,'B.1.c. Installations'!$M$5:$M$505))/3)) ->  | G34: =IF(ISBLANK(A34),"",((LOOKUP(A34,list_installations,'B.1.c. Installations'!$O$5:$O$505)+LOOKUP(A34,list_installations,'B.1.c. Installations'!$Q$5:$Q$505)+LOOKUP(A34,list_installations,'B.1.c. Installations'!$S$5:$S$505))/3)) ->  | N34: =IF(ISBLANK(A34),"",ROUND(M34*'Correction factor'!$B$7,0)) ->  | O34: =IF(ISBLANK(A34),"",ROUND(M34*'Correction factor'!$C$7,0)) ->  | P34: =IF(ISBLANK(A34),"",ROUND(M34*'Correction factor'!$D$7,0)) ->  | Q34: =IF(ISBLANK(A34),"",ROUND(M34*'Correction factor'!$E$7,0)) ->  | R34: =IF(ISBLANK(A34),"",ROUND(M34*'Correction factor'!$F$7,0)) ->  | S34: =IF(ISBLANK(A34),"",ROUND(M34*'Correction factor'!$G$7,0)) ->  | T34: =IF(ISBLANK(A34),"",ROUND(M34*'Correction factor'!$H$7,0)) ->  | U34: =IF(ISBLANK(A34),"",ROUND(M34*'Correction factor'!$I$7,0)) -> 
B35: =IF(ISBLANK(A35),"",LOOKUP(A35,list_installations,'B.1.c. Installations'!$B$5:$B$505)) ->  | C35: =IF(ISBLANK(A35),"",LOOKUP(A35,list_installations,'B.1.c. Installations'!$C$5:$C$505)) ->  | D35: =IF(ISBLANK(A35),"",LOOKUP(A35,list_installations,'B.1.c. Installations'!$D$5:$D$505)) ->  | E35: =IF(ISBLANK(A35),"",LOOKUP(A35,list_installations,'B.1.c. Installations'!$E$5:$E$505)) ->  | F35: =IF(ISBLANK(A35),"",((LOOKUP(A35,list_installations,'B.1.c. Installations'!$I$5:$I$505)+LOOKUP(A35,list_installations,'B.1.c. Installations'!$K$5:$K$505)+LOOKUP(A35,list_installations,'B.1.c. Installations'!$M$5:$M$505))/3)) ->  | G35: =IF(ISBLANK(A35),"",((LOOKUP(A35,list_installations,'B.1.c. Installations'!$O$5:$O$505)+LOOKUP(A35,list_installations,'B.1.c. Installations'!$Q$5:$Q$505)+LOOKUP(A35,list_installations,'B.1.c. Installations'!$S$5:$S$505))/3)) ->  | N35: =IF(ISBLANK(A35),"",ROUND(M35*'Correction factor'!$B$7,0)) ->  | O35: =IF(ISBLANK(A35),"",ROUND(M35*'Correction factor'!$C$7,0)) ->  | P35: =IF(ISBLANK(A35),"",ROUND(M35*'Correction factor'!$D$7,0)) ->  | Q35: =IF(ISBLANK(A35),"",ROUND(M35*'Correction factor'!$E$7,0)) ->  | R35: =IF(ISBLANK(A35),"",ROUND(M35*'Correction factor'!$F$7,0)) ->  | S35: =IF(ISBLANK(A35),"",ROUND(M35*'Correction factor'!$G$7,0)) ->  | T35: =IF(ISBLANK(A35),"",ROUND(M35*'Correction factor'!$H$7,0)) ->  | U35: =IF(ISBLANK(A35),"",ROUND(M35*'Correction factor'!$I$7,0)) -> 
B36: =IF(ISBLANK(A36),"",LOOKUP(A36,list_installations,'B.1.c. Installations'!$B$5:$B$505)) ->  | C36: =IF(ISBLANK(A36),"",LOOKUP(A36,list_installations,'B.1.c. Installations'!$C$5:$C$505)) ->  | D36: =IF(ISBLANK(A36),"",LOOKUP(A36,list_installations,'B.1.c. Installations'!$D$5:$D$505)) ->  | E36: =IF(ISBLANK(A36),"",LOOKUP(A36,list_installations,'B.1.c. Installations'!$E$5:$E$505)) ->  | F36: =IF(ISBLANK(A36),"",((LOOKUP(A36,list_installations,'B.1.c. Installations'!$I$5:$I$505)+LOOKUP(A36,list_installations,'B.1.c. Installations'!$K$5:$K$505)+LOOKUP(A36,list_installations,'B.1.c. Installations'!$M$5:$M$505))/3)) ->  | G36: =IF(ISBLANK(A36),"",((LOOKUP(A36,list_installations,'B.1.c. Installations'!$O$5:$O$505)+LOOKUP(A36,list_installations,'B.1.c. Installations'!$Q$5:$Q$505)+LOOKUP(A36,list_installations,'B.1.c. Installations'!$S$5:$S$505))/3)) ->  | N36: =IF(ISBLANK(A36),"",ROUND(M36*'Correction factor'!$B$7,0)) ->  | O36: =IF(ISBLANK(A36),"",ROUND(M36*'Correction factor'!$C$7,0)) ->  | P36: =IF(ISBLANK(A36),"",ROUND(M36*'Correction factor'!$D$7,0)) ->  | Q36: =IF(ISBLANK(A36),"",ROUND(M36*'Correction factor'!$E$7,0)) ->  | R36: =IF(ISBLANK(A36),"",ROUND(M36*'Correction factor'!$F$7,0)) ->  | S36: =IF(ISBLANK(A36),"",ROUND(M36*'Correction factor'!$G$7,0)) ->  | T36: =IF(ISBLANK(A36),"",ROUND(M36*'Correction factor'!$H$7,0)) ->  | U36: =IF(ISBLANK(A36),"",ROUND(M36*'Correction factor'!$I$7,0)) -> 
B37: =IF(ISBLANK(A37),"",LOOKUP(A37,list_installations,'B.1.c. Installations'!$B$5:$B$505)) ->  | C37: =IF(ISBLANK(A37),"",LOOKUP(A37,list_installations,'B.1.c. Installations'!$C$5:$C$505)) ->  | D37: =IF(ISBLANK(A37),"",LOOKUP(A37,list_installations,'B.1.c. Installations'!$D$5:$D$505)) ->  | E37: =IF(ISBLANK(A37),"",LOOKUP(A37,list_installations,'B.1.c. Installations'!$E$5:$E$505)) ->  | F37: =IF(ISBLANK(A37),"",((LOOKUP(A37,list_installations,'B.1.c. Installations'!$I$5:$I$505)+LOOKUP(A37,list_installations,'B.1.c. Installations'!$K$5:$K$505)+LOOKUP(A37,list_installations,'B.1.c. Installations'!$M$5:$M$505))/3)) ->  | G37: =IF(ISBLANK(A37),"",((LOOKUP(A37,list_installations,'B.1.c. Installations'!$O$5:$O$505)+LOOKUP(A37,list_installations,'B.1.c. Installations'!$Q$5:$Q$505)+LOOKUP(A37,list_installations,'B.1.c. Installations'!$S$5:$S$505))/3)) ->  | N37: =IF(ISBLANK(A37),"",ROUND(M37*'Correction factor'!$B$7,0)) ->  | O37: =IF(ISBLANK(A37),"",ROUND(M37*'Correction factor'!$C$7,0)) ->  | P37: =IF(ISBLANK(A37),"",ROUND(M37*'Correction factor'!$D$7,0)) ->  | Q37: =IF(ISBLANK(A37),"",ROUND(M37*'Correction factor'!$E$7,0)) ->  | R37: =IF(ISBLANK(A37),"",ROUND(M37*'Correction factor'!$F$7,0)) ->  | S37: =IF(ISBLANK(A37),"",ROUND(M37*'Correction factor'!$G$7,0)) ->  | T37: =IF(ISBLANK(A37),"",ROUND(M37*'Correction factor'!$H$7,0)) ->  | U37: =IF(ISBLANK(A37),"",ROUND(M37*'Correction factor'!$I$7,0)) -> 
B38: =IF(ISBLANK(A38),"",LOOKUP(A38,list_installations,'B.1.c. Installations'!$B$5:$B$505)) ->  | C38: =IF(ISBLANK(A38),"",LOOKUP(A38,list_installations,'B.1.c. Installations'!$C$5:$C$505)) ->  | D38: =IF(ISBLANK(A38),"",LOOKUP(A38,list_installations,'B.1.c. Installations'!$D$5:$D$505)) ->  | E38: =IF(ISBLANK(A38),"",LOOKUP(A38,list_installations,'B.1.c. Installations'!$E$5:$E$505)) ->  | F38: =IF(ISBLANK(A38),"",((LOOKUP(A38,list_installations,'B.1.c. Installations'!$I$5:$I$505)+LOOKUP(A38,list_installations,'B.1.c. Installations'!$K$5:$K$505)+LOOKUP(A38,list_installations,'B.1.c. Installations'!$M$5:$M$505))/3)) ->  | G38: =IF(ISBLANK(A38),"",((LOOKUP(A38,list_installations,'B.1.c. Installations'!$O$5:$O$505)+LOOKUP(A38,list_installations,'B.1.c. Installations'!$Q$5:$Q$505)+LOOKUP(A38,list_installations,'B.1.c. Installations'!$S$5:$S$505))/3)) ->  | N38: =IF(ISBLANK(A38),"",ROUND(M38*'Correction factor'!$B$7,0)) ->  | O38: =IF(ISBLANK(A38),"",ROUND(M38*'Correction factor'!$C$7,0)) ->  | P38: =IF(ISBLANK(A38),"",ROUND(M38*'Correction factor'!$D$7,0)) ->  | Q38: =IF(ISBLANK(A38),"",ROUND(M38*'Correction factor'!$E$7,0)) ->  | R38: =IF(ISBLANK(A38),"",ROUND(M38*'Correction factor'!$F$7,0)) ->  | S38: =IF(ISBLANK(A38),"",ROUND(M38*'Correction factor'!$G$7,0)) ->  | T38: =IF(ISBLANK(A38),"",ROUND(M38*'Correction factor'!$H$7,0)) ->  | U38: =IF(ISBLANK(A38),"",ROUND(M38*'Correction factor'!$I$7,0)) -> 
B39: =IF(ISBLANK(A39),"",LOOKUP(A39,list_installations,'B.1.c. Installations'!$B$5:$B$505)) ->  | C39: =IF(ISBLANK(A39),"",LOOKUP(A39,list_installations,'B.1.c. Installations'!$C$5:$C$505)) ->  | D39: =IF(ISBLANK(A39),"",LOOKUP(A39,list_installations,'B.1.c. Installations'!$D$5:$D$505)) ->  | E39: =IF(ISBLANK(A39),"",LOOKUP(A39,list_installations,'B.1.c. Installations'!$E$5:$E$505)) ->  | F39: =IF(ISBLANK(A39),"",((LOOKUP(A39,list_installations,'B.1.c. Installations'!$I$5:$I$505)+LOOKUP(A39,list_installations,'B.1.c. Installations'!$K$5:$K$505)+LOOKUP(A39,list_installations,'B.1.c. Installations'!$M$5:$M$505))/3)) ->  | G39: =IF(ISBLANK(A39),"",((LOOKUP(A39,list_installations,'B.1.c. Installations'!$O$5:$O$505)+LOOKUP(A39,list_installations,'B.1.c. Installations'!$Q$5:$Q$505)+LOOKUP(A39,list_installations,'B.1.c. Installations'!$S$5:$S$505))/3)) ->  | N39: =IF(ISBLANK(A39),"",ROUND(M39*'Correction factor'!$B$7,0)) ->  | O39: =IF(ISBLANK(A39),"",ROUND(M39*'Correction factor'!$C$7,0)) ->  | P39: =IF(ISBLANK(A39),"",ROUND(M39*'Correction factor'!$D$7,0)) ->  | Q39: =IF(ISBLANK(A39),"",ROUND(M39*'Correction factor'!$E$7,0)) ->  | R39: =IF(ISBLANK(A39),"",ROUND(M39*'Correction factor'!$F$7,0)) ->  | S39: =IF(ISBLANK(A39),"",ROUND(M39*'Correction factor'!$G$7,0)) ->  | T39: =IF(ISBLANK(A39),"",ROUND(M39*'Correction factor'!$H$7,0)) ->  | U39: =IF(ISBLANK(A39),"",ROUND(M39*'Correction factor'!$I$7,0)) -> 
B40: =IF(ISBLANK(A40),"",LOOKUP(A40,list_installations,'B.1.c. Installations'!$B$5:$B$505)) ->  | C40: =IF(ISBLANK(A40),"",LOOKUP(A40,list_installations,'B.1.c. Installations'!$C$5:$C$505)) ->  | D40: =IF(ISBLANK(A40),"",LOOKUP(A40,list_installations,'B.1.c. Installations'!$D$5:$D$505)) ->  | E40: =IF(ISBLANK(A40),"",LOOKUP(A40,list_installations,'B.1.c. Installations'!$E$5:$E$505)) ->  | F40: =IF(ISBLANK(A40),"",((LOOKUP(A40,list_installations,'B.1.c. Installations'!$I$5:$I$505)+LOOKUP(A40,list_installations,'B.1.c. Installations'!$K$5:$K$505)+LOOKUP(A40,list_installations,'B.1.c. Installations'!$M$5:$M$505))/3)) ->  | G40: =IF(ISBLANK(A40),"",((LOOKUP(A40,list_installations,'B.1.c. Installations'!$O$5:$O$505)+LOOKUP(A40,list_installations,'B.1.c. Installations'!$Q$5:$Q$505)+LOOKUP(A40,list_installations,'B.1.c. Installations'!$S$5:$S$505))/3)) ->  | N40: =IF(ISBLANK(A40),"",ROUND(M40*'Correction factor'!$B$7,0)) ->  | O40: =IF(ISBLANK(A40),"",ROUND(M40*'Correction factor'!$C$7,0)) ->  | P40: =IF(ISBLANK(A40),"",ROUND(M40*'Correction factor'!$D$7,0)) ->  | Q40: =IF(ISBLANK(A40),"",ROUND(M40*'Correction factor'!$E$7,0)) ->  | R40: =IF(ISBLANK(A40),"",ROUND(M40*'Correction factor'!$F$7,0)) ->  | S40: =IF(ISBLANK(A40),"",ROUND(M40*'Correction factor'!$G$7,0)) ->  | T40: =IF(ISBLANK(A40),"",ROUND(M40*'Correction factor'!$H$7,0)) ->  | U40: =IF(ISBLANK(A40),"",ROUND(M40*'Correction factor'!$I$7,0)) -> 
B41: =IF(ISBLANK(A41),"",LOOKUP(A41,list_installations,'B.1.c. Installations'!$B$5:$B$505)) ->  | C41: =IF(ISBLANK(A41),"",LOOKUP(A41,list_installations,'B.1.c. Installations'!$C$5:$C$505)) ->  | D41: =IF(ISBLANK(A41),"",LOOKUP(A41,list_installations,'B.1.c. Installations'!$D$5:$D$505)) ->  | E41: =IF(ISBLANK(A41),"",LOOKUP(A41,list_installations,'B.1.c. Installations'!$E$5:$E$505)) ->  | F41: =IF(ISBLANK(A41),"",((LOOKUP(A41,list_installations,'B.1.c. Installations'!$I$5:$I$505)+LOOKUP(A41,list_installations,'B.1.c. Installations'!$K$5:$K$505)+LOOKUP(A41,list_installations,'B.1.c. Installations'!$M$5:$M$505))/3)) ->  | G41: =IF(ISBLANK(A41),"",((LOOKUP(A41,list_installations,'B.1.c. Installations'!$O$5:$O$505)+LOOKUP(A41,list_installations,'B.1.c. Installations'!$Q$5:$Q$505)+LOOKUP(A41,list_installations,'B.1.c. Installations'!$S$5:$S$505))/3)) ->  | N41: =IF(ISBLANK(A41),"",ROUND(M41*'Correction factor'!$B$7,0)) ->  | O41: =IF(ISBLANK(A41),"",ROUND(M41*'Correction factor'!$C$7,0)) ->  | P41: =IF(ISBLANK(A41),"",ROUND(M41*'Correction factor'!$D$7,0)) ->  | Q41: =IF(ISBLANK(A41),"",ROUND(M41*'Correction factor'!$E$7,0)) ->  | R41: =IF(ISBLANK(A41),"",ROUND(M41*'Correction factor'!$F$7,0)) ->  | S41: =IF(ISBLANK(A41),"",ROUND(M41*'Correction factor'!$G$7,0)) ->  | T41: =IF(ISBLANK(A41),"",ROUND(M41*'Correction factor'!$H$7,0)) ->  | U41: =IF(ISBLANK(A41),"",ROUND(M41*'Correction factor'!$I$7,0)) -> 
B42: =IF(ISBLANK(A42),"",LOOKUP(A42,list_installations,'B.1.c. Installations'!$B$5:$B$505)) ->  | C42: =IF(ISBLANK(A42),"",LOOKUP(A42,list_installations,'B.1.c. Installations'!$C$5:$C$505)) ->  | D42: =IF(ISBLANK(A42),"",LOOKUP(A42,list_installations,'B.1.c. Installations'!$D$5:$D$505)) ->  | E42: =IF(ISBLANK(A42),"",LOOKUP(A42,list_installations,'B.1.c. Installations'!$E$5:$E$505)) ->  | F42: =IF(ISBLANK(A42),"",((LOOKUP(A42,list_installations,'B.1.c. Installations'!$I$5:$I$505)+LOOKUP(A42,list_installations,'B.1.c. Installations'!$K$5:$K$505)+LOOKUP(A42,list_installations,'B.1.c. Installations'!$M$5:$M$505))/3)) ->  | G42: =IF(ISBLANK(A42),"",((LOOKUP(A42,list_installations,'B.1.c. Installations'!$O$5:$O$505)+LOOKUP(A42,list_installations,'B.1.c. Installations'!$Q$5:$Q$505)+LOOKUP(A42,list_installations,'B.1.c. Installations'!$S$5:$S$505))/3)) ->  | N42: =IF(ISBLANK(A42),"",ROUND(M42*'Correction factor'!$B$7,0)) ->  | O42: =IF(ISBLANK(A42),"",ROUND(M42*'Correction factor'!$C$7,0)) ->  | P42: =IF(ISBLANK(A42),"",ROUND(M42*'Correction factor'!$D$7,0)) ->  | Q42: =IF(ISBLANK(A42),"",ROUND(M42*'Correction factor'!$E$7,0)) ->  | R42: =IF(ISBLANK(A42),"",ROUND(M42*'Correction factor'!$F$7,0)) ->  | S42: =IF(ISBLANK(A42),"",ROUND(M42*'Correction factor'!$G$7,0)) ->  | T42: =IF(ISBLANK(A42),"",ROUND(M42*'Correction factor'!$H$7,0)) ->  | U42: =IF(ISBLANK(A42),"",ROUND(M42*'Correction factor'!$I$7,0)) -> 
B43: =IF(ISBLANK(A43),"",LOOKUP(A43,list_installations,'B.1.c. Installations'!$B$5:$B$505)) ->  | C43: =IF(ISBLANK(A43),"",LOOKUP(A43,list_installations,'B.1.c. Installations'!$C$5:$C$505)) ->  | D43: =IF(ISBLANK(A43),"",LOOKUP(A43,list_installations,'B.1.c. Installations'!$D$5:$D$505)) ->  | E43: =IF(ISBLANK(A43),"",LOOKUP(A43,list_installations,'B.1.c. Installations'!$E$5:$E$505)) ->  | F43: =IF(ISBLANK(A43),"",((LOOKUP(A43,list_installations,'B.1.c. Installations'!$I$5:$I$505)+LOOKUP(A43,list_installations,'B.1.c. Installations'!$K$5:$K$505)+LOOKUP(A43,list_installations,'B.1.c. Installations'!$M$5:$M$505))/3)) ->  | G43: =IF(ISBLANK(A43),"",((LOOKUP(A43,list_installations,'B.1.c. Installations'!$O$5:$O$505)+LOOKUP(A43,list_installations,'B.1.c. Installations'!$Q$5:$Q$505)+LOOKUP(A43,list_installations,'B.1.c. Installations'!$S$5:$S$505))/3)) ->  | N43: =IF(ISBLANK(A43),"",ROUND(M43*'Correction factor'!$B$7,0)) ->  | O43: =IF(ISBLANK(A43),"",ROUND(M43*'Correction factor'!$C$7,0)) ->  | P43: =IF(ISBLANK(A43),"",ROUND(M43*'Correction factor'!$D$7,0)) ->  | Q43: =IF(ISBLANK(A43),"",ROUND(M43*'Correction factor'!$E$7,0)) ->  | R43: =IF(ISBLANK(A43),"",ROUND(M43*'Correction factor'!$F$7,0)) ->  | S43: =IF(ISBLANK(A43),"",ROUND(M43*'Correction factor'!$G$7,0)) ->  | T43: =IF(ISBLANK(A43),"",ROUND(M43*'Correction factor'!$H$7,0)) ->  | U43: =IF(ISBLANK(A43),"",ROUND(M43*'Correction factor'!$I$7,0)) -> 
B44: =IF(ISBLANK(A44),"",LOOKUP(A44,list_installations,'B.1.c. Installations'!$B$5:$B$505)) ->  | C44: =IF(ISBLANK(A44),"",LOOKUP(A44,list_installations,'B.1.c. Installations'!$C$5:$C$505)) ->  | D44: =IF(ISBLANK(A44),"",LOOKUP(A44,list_installations,'B.1.c. Installations'!$D$5:$D$505)) ->  | E44: =IF(ISBLANK(A44),"",LOOKUP(A44,list_installations,'B.1.c. Installations'!$E$5:$E$505)) ->  | F44: =IF(ISBLANK(A44),"",((LOOKUP(A44,list_installations,'B.1.c. Installations'!$I$5:$I$505)+LOOKUP(A44,list_installations,'B.1.c. Installations'!$K$5:$K$505)+LOOKUP(A44,list_installations,'B.1.c. Installations'!$M$5:$M$505))/3)) ->  | G44: =IF(ISBLANK(A44),"",((LOOKUP(A44,list_installations,'B.1.c. Installations'!$O$5:$O$505)+LOOKUP(A44,list_installations,'B.1.c. Installations'!$Q$5:$Q$505)+LOOKUP(A44,list_installations,'B.1.c. Installations'!$S$5:$S$505))/3)) ->  | N44: =IF(ISBLANK(A44),"",ROUND(M44*'Correction factor'!$B$7,0)) ->  | O44: =IF(ISBLANK(A44),"",ROUND(M44*'Correction factor'!$C$7,0)) ->  | P44: =IF(ISBLANK(A44),"",ROUND(M44*'Correction factor'!$D$7,0)) ->  | Q44: =IF(ISBLANK(A44),"",ROUND(M44*'Correction factor'!$E$7,0)) ->  | R44: =IF(ISBLANK(A44),"",ROUND(M44*'Correction factor'!$F$7,0)) ->  | S44: =IF(ISBLANK(A44),"",ROUND(M44*'Correction factor'!$G$7,0)) ->  | T44: =IF(ISBLANK(A44),"",ROUND(M44*'Correction factor'!$H$7,0)) ->  | U44: =IF(ISBLANK(A44),"",ROUND(M44*'Correction factor'!$I$7,0)) -> 
B45: =IF(ISBLANK(A45),"",LOOKUP(A45,list_installations,'B.1.c. Installations'!$B$5:$B$505)) ->  | C45: =IF(ISBLANK(A45),"",LOOKUP(A45,list_installations,'B.1.c. Installations'!$C$5:$C$505)) ->  | D45: =IF(ISBLANK(A45),"",LOOKUP(A45,list_installations,'B.1.c. Installations'!$D$5:$D$505)) ->  | E45: =IF(ISBLANK(A45),"",LOOKUP(A45,list_installations,'B.1.c. Installations'!$E$5:$E$505)) ->  | F45: =IF(ISBLANK(A45),"",((LOOKUP(A45,list_installations,'B.1.c. Installations'!$I$5:$I$505)+LOOKUP(A45,list_installations,'B.1.c. Installations'!$K$5:$K$505)+LOOKUP(A45,list_installations,'B.1.c. Installations'!$M$5:$M$505))/3)) ->  | G45: =IF(ISBLANK(A45),"",((LOOKUP(A45,list_installations,'B.1.c. Installations'!$O$5:$O$505)+LOOKUP(A45,list_installations,'B.1.c. Installations'!$Q$5:$Q$505)+LOOKUP(A45,list_installations,'B.1.c. Installations'!$S$5:$S$505))/3)) ->  | N45: =IF(ISBLANK(A45),"",ROUND(M45*'Correction factor'!$B$7,0)) ->  | O45: =IF(ISBLANK(A45),"",ROUND(M45*'Correction factor'!$C$7,0)) ->  | P45: =IF(ISBLANK(A45),"",ROUND(M45*'Correction factor'!$D$7,0)) ->  | Q45: =IF(ISBLANK(A45),"",ROUND(M45*'Correction factor'!$E$7,0)) ->  | R45: =IF(ISBLANK(A45),"",ROUND(M45*'Correction factor'!$F$7,0)) ->  | S45: =IF(ISBLANK(A45),"",ROUND(M45*'Correction factor'!$G$7,0)) ->  | T45: =IF(ISBLANK(A45),"",ROUND(M45*'Correction factor'!$H$7,0)) ->  | U45: =IF(ISBLANK(A45),"",ROUND(M45*'Correction factor'!$I$7,0)) -> 
B46: =IF(ISBLANK(A46),"",LOOKUP(A46,list_installations,'B.1.c. Installations'!$B$5:$B$505)) ->  | C46: =IF(ISBLANK(A46),"",LOOKUP(A46,list_installations,'B.1.c. Installations'!$C$5:$C$505)) ->  | D46: =IF(ISBLANK(A46),"",LOOKUP(A46,list_installations,'B.1.c. Installations'!$D$5:$D$505)) ->  | E46: =IF(ISBLANK(A46),"",LOOKUP(A46,list_installations,'B.1.c. Installations'!$E$5:$E$505)) ->  | F46: =IF(ISBLANK(A46),"",((LOOKUP(A46,list_installations,'B.1.c. Installations'!$I$5:$I$505)+LOOKUP(A46,list_installations,'B.1.c. Installations'!$K$5:$K$505)+LOOKUP(A46,list_installations,'B.1.c. Installations'!$M$5:$M$505))/3)) ->  | G46: =IF(ISBLANK(A46),"",((LOOKUP(A46,list_installations,'B.1.c. Installations'!$O$5:$O$505)+LOOKUP(A46,list_installations,'B.1.c. Installations'!$Q$5:$Q$505)+LOOKUP(A46,list_installations,'B.1.c. Installations'!$S$5:$S$505))/3)) ->  | N46: =IF(ISBLANK(A46),"",ROUND(M46*'Correction factor'!$B$7,0)) ->  | O46: =IF(ISBLANK(A46),"",ROUND(M46*'Correction factor'!$C$7,0)) ->  | P46: =IF(ISBLANK(A46),"",ROUND(M46*'Correction factor'!$D$7,0)) ->  | Q46: =IF(ISBLANK(A46),"",ROUND(M46*'Correction factor'!$E$7,0)) ->  | R46: =IF(ISBLANK(A46),"",ROUND(M46*'Correction factor'!$F$7,0)) ->  | S46: =IF(ISBLANK(A46),"",ROUND(M46*'Correction factor'!$G$7,0)) ->  | T46: =IF(ISBLANK(A46),"",ROUND(M46*'Correction factor'!$H$7,0)) ->  | U46: =IF(ISBLANK(A46),"",ROUND(M46*'Correction factor'!$I$7,0)) -> 
B47: =IF(ISBLANK(A47),"",LOOKUP(A47,list_installations,'B.1.c. Installations'!$B$5:$B$505)) ->  | C47: =IF(ISBLANK(A47),"",LOOKUP(A47,list_installations,'B.1.c. Installations'!$C$5:$C$505)) ->  | D47: =IF(ISBLANK(A47),"",LOOKUP(A47,list_installations,'B.1.c. Installations'!$D$5:$D$505)) ->  | E47: =IF(ISBLANK(A47),"",LOOKUP(A47,list_installations,'B.1.c. Installations'!$E$5:$E$505)) ->  | F47: =IF(ISBLANK(A47),"",((LOOKUP(A47,list_installations,'B.1.c. Installations'!$I$5:$I$505)+LOOKUP(A47,list_installations,'B.1.c. Installations'!$K$5:$K$505)+LOOKUP(A47,list_installations,'B.1.c. Installations'!$M$5:$M$505))/3)) ->  | G47: =IF(ISBLANK(A47),"",((LOOKUP(A47,list_installations,'B.1.c. Installations'!$O$5:$O$505)+LOOKUP(A47,list_installations,'B.1.c. Installations'!$Q$5:$Q$505)+LOOKUP(A47,list_installations,'B.1.c. Installations'!$S$5:$S$505))/3)) ->  | N47: =IF(ISBLANK(A47),"",ROUND(M47*'Correction factor'!$B$7,0)) ->  | O47: =IF(ISBLANK(A47),"",ROUND(M47*'Correction factor'!$C$7,0)) ->  | P47: =IF(ISBLANK(A47),"",ROUND(M47*'Correction factor'!$D$7,0)) ->  | Q47: =IF(ISBLANK(A47),"",ROUND(M47*'Correction factor'!$E$7,0)) ->  | R47: =IF(ISBLANK(A47),"",ROUND(M47*'Correction factor'!$F$7,0)) ->  | S47: =IF(ISBLANK(A47),"",ROUND(M47*'Correction factor'!$G$7,0)) ->  | T47: =IF(ISBLANK(A47),"",ROUND(M47*'Correction factor'!$H$7,0)) ->  | U47: =IF(ISBLANK(A47),"",ROUND(M47*'Correction factor'!$I$7,0)) -> 
B48: =IF(ISBLANK(A48),"",LOOKUP(A48,list_installations,'B.1.c. Installations'!$B$5:$B$505)) ->  | C48: =IF(ISBLANK(A48),"",LOOKUP(A48,list_installations,'B.1.c. Installations'!$C$5:$C$505)) ->  | D48: =IF(ISBLANK(A48),"",LOOKUP(A48,list_installations,'B.1.c. Installations'!$D$5:$D$505)) ->  | E48: =IF(ISBLANK(A48),"",LOOKUP(A48,list_installations,'B.1.c. Installations'!$E$5:$E$505)) ->  | F48: =IF(ISBLANK(A48),"",((LOOKUP(A48,list_installations,'B.1.c. Installations'!$I$5:$I$505)+LOOKUP(A48,list_installations,'B.1.c. Installations'!$K$5:$K$505)+LOOKUP(A48,list_installations,'B.1.c. Installations'!$M$5:$M$505))/3)) ->  | G48: =IF(ISBLANK(A48),"",((LOOKUP(A48,list_installations,'B.1.c. Installations'!$O$5:$O$505)+LOOKUP(A48,list_installations,'B.1.c. Installations'!$Q$5:$Q$505)+LOOKUP(A48,list_installations,'B.1.c. Installations'!$S$5:$S$505))/3)) ->  | N48: =IF(ISBLANK(A48),"",ROUND(M48*'Correction factor'!$B$7,0)) ->  | O48: =IF(ISBLANK(A48),"",ROUND(M48*'Correction factor'!$C$7,0)) ->  | P48: =IF(ISBLANK(A48),"",ROUND(M48*'Correction factor'!$D$7,0)) ->  | Q48: =IF(ISBLANK(A48),"",ROUND(M48*'Correction factor'!$E$7,0)) ->  | R48: =IF(ISBLANK(A48),"",ROUND(M48*'Correction factor'!$F$7,0)) ->  | S48: =IF(ISBLANK(A48),"",ROUND(M48*'Correction factor'!$G$7,0)) ->  | T48: =IF(ISBLANK(A48),"",ROUND(M48*'Correction factor'!$H$7,0)) ->  | U48: =IF(ISBLANK(A48),"",ROUND(M48*'Correction factor'!$I$7,0)) -> 
B49: =IF(ISBLANK(A49),"",LOOKUP(A49,list_installations,'B.1.c. Installations'!$B$5:$B$505)) ->  | C49: =IF(ISBLANK(A49),"",LOOKUP(A49,list_installations,'B.1.c. Installations'!$C$5:$C$505)) ->  | D49: =IF(ISBLANK(A49),"",LOOKUP(A49,list_installations,'B.1.c. Installations'!$D$5:$D$505)) ->  | E49: =IF(ISBLANK(A49),"",LOOKUP(A49,list_installations,'B.1.c. Installations'!$E$5:$E$505)) ->  | F49: =IF(ISBLANK(A49),"",((LOOKUP(A49,list_installations,'B.1.c. Installations'!$I$5:$I$505)+LOOKUP(A49,list_installations,'B.1.c. Installations'!$K$5:$K$505)+LOOKUP(A49,list_installations,'B.1.c. Installations'!$M$5:$M$505))/3)) ->  | G49: =IF(ISBLANK(A49),"",((LOOKUP(A49,list_installations,'B.1.c. Installations'!$O$5:$O$505)+LOOKUP(A49,list_installations,'B.1.c. Installations'!$Q$5:$Q$505)+LOOKUP(A49,list_installations,'B.1.c. Installations'!$S$5:$S$505))/3)) ->  | N49: =IF(ISBLANK(A49),"",ROUND(M49*'Correction factor'!$B$7,0)) ->  | O49: =IF(ISBLANK(A49),"",ROUND(M49*'Correction factor'!$C$7,0)) ->  | P49: =IF(ISBLANK(A49),"",ROUND(M49*'Correction factor'!$D$7,0)) ->  | Q49: =IF(ISBLANK(A49),"",ROUND(M49*'Correction factor'!$E$7,0)) ->  | R49: =IF(ISBLANK(A49),"",ROUND(M49*'Correction factor'!$F$7,0)) ->  | S49: =IF(ISBLANK(A49),"",ROUND(M49*'Correction factor'!$G$7,0)) ->  | T49: =IF(ISBLANK(A49),"",ROUND(M49*'Correction factor'!$H$7,0)) ->  | U49: =IF(ISBLANK(A49),"",ROUND(M49*'Correction factor'!$I$7,0)) -> 
B50: =IF(ISBLANK(A50),"",LOOKUP(A50,list_installations,'B.1.c. Installations'!$B$5:$B$505)) ->  | C50: =IF(ISBLANK(A50),"",LOOKUP(A50,list_installations,'B.1.c. Installations'!$C$5:$C$505)) ->  | D50: =IF(ISBLANK(A50),"",LOOKUP(A50,list_installations,'B.1.c. Installations'!$D$5:$D$505)) ->  | E50: =IF(ISBLANK(A50),"",LOOKUP(A50,list_installations,'B.1.c. Installations'!$E$5:$E$505)) ->  | F50: =IF(ISBLANK(A50),"",((LOOKUP(A50,list_installations,'B.1.c. Installations'!$I$5:$I$505)+LOOKUP(A50,list_installations,'B.1.c. Installations'!$K$5:$K$505)+LOOKUP(A50,list_installations,'B.1.c. Installations'!$M$5:$M$505))/3)) ->  | G50: =IF(ISBLANK(A50),"",((LOOKUP(A50,list_installations,'B.1.c. Installations'!$O$5:$O$505)+LOOKUP(A50,list_installations,'B.1.c. Installations'!$Q$5:$Q$505)+LOOKUP(A50,list_installations,'B.1.c. Installations'!$S$5:$S$505))/3)) ->  | N50: =IF(ISBLANK(A50),"",ROUND(M50*'Correction factor'!$B$7,0)) ->  | O50: =IF(ISBLANK(A50),"",ROUND(M50*'Correction factor'!$C$7,0)) ->  | P50: =IF(ISBLANK(A50),"",ROUND(M50*'Correction factor'!$D$7,0)) ->  | Q50: =IF(ISBLANK(A50),"",ROUND(M50*'Correction factor'!$E$7,0)) ->  | R50: =IF(ISBLANK(A50),"",ROUND(M50*'Correction factor'!$F$7,0)) ->  | S50: =IF(ISBLANK(A50),"",ROUND(M50*'Correction factor'!$G$7,0)) ->  | T50: =IF(ISBLANK(A50),"",ROUND(M50*'Correction factor'!$H$7,0)) ->  | U50: =IF(ISBLANK(A50),"",ROUND(M50*'Correction factor'!$I$7,0)) -> 
B51: =IF(ISBLANK(A51),"",LOOKUP(A51,list_installations,'B.1.c. Installations'!$B$5:$B$505)) ->  | C51: =IF(ISBLANK(A51),"",LOOKUP(A51,list_installations,'B.1.c. Installations'!$C$5:$C$505)) ->  | D51: =IF(ISBLANK(A51),"",LOOKUP(A51,list_installations,'B.1.c. Installations'!$D$5:$D$505)) ->  | E51: =IF(ISBLANK(A51),"",LOOKUP(A51,list_installations,'B.1.c. Installations'!$E$5:$E$505)) ->  | F51: =IF(ISBLANK(A51),"",((LOOKUP(A51,list_installations,'B.1.c. Installations'!$I$5:$I$505)+LOOKUP(A51,list_installations,'B.1.c. Installations'!$K$5:$K$505)+LOOKUP(A51,list_installations,'B.1.c. Installations'!$M$5:$M$505))/3)) ->  | G51: =IF(ISBLANK(A51),"",((LOOKUP(A51,list_installations,'B.1.c. Installations'!$O$5:$O$505)+LOOKUP(A51,list_installations,'B.1.c. Installations'!$Q$5:$Q$505)+LOOKUP(A51,list_installations,'B.1.c. Installations'!$S$5:$S$505))/3)) ->  | N51: =IF(ISBLANK(A51),"",ROUND(M51*'Correction factor'!$B$7,0)) ->  | O51: =IF(ISBLANK(A51),"",ROUND(M51*'Correction factor'!$C$7,0)) ->  | P51: =IF(ISBLANK(A51),"",ROUND(M51*'Correction factor'!$D$7,0)) ->  | Q51: =IF(ISBLANK(A51),"",ROUND(M51*'Correction factor'!$E$7,0)) ->  | R51: =IF(ISBLANK(A51),"",ROUND(M51*'Correction factor'!$F$7,0)) ->  | S51: =IF(ISBLANK(A51),"",ROUND(M51*'Correction factor'!$G$7,0)) ->  | T51: =IF(ISBLANK(A51),"",ROUND(M51*'Correction factor'!$H$7,0)) ->  | U51: =IF(ISBLANK(A51),"",ROUND(M51*'Correction factor'!$I$7,0)) -> 
B52: =IF(ISBLANK(A52),"",LOOKUP(A52,list_installations,'B.1.c. Installations'!$B$5:$B$505)) ->  | C52: =IF(ISBLANK(A52),"",LOOKUP(A52,list_installations,'B.1.c. Installations'!$C$5:$C$505)) ->  | D52: =IF(ISBLANK(A52),"",LOOKUP(A52,list_installations,'B.1.c. Installations'!$D$5:$D$505)) ->  | E52: =IF(ISBLANK(A52),"",LOOKUP(A52,list_installations,'B.1.c. Installations'!$E$5:$E$505)) ->  | F52: =IF(ISBLANK(A52),"",((LOOKUP(A52,list_installations,'B.1.c. Installations'!$I$5:$I$505)+LOOKUP(A52,list_installations,'B.1.c. Installations'!$K$5:$K$505)+LOOKUP(A52,list_installations,'B.1.c. Installations'!$M$5:$M$505))/3)) ->  | G52: =IF(ISBLANK(A52),"",((LOOKUP(A52,list_installations,'B.1.c. Installations'!$O$5:$O$505)+LOOKUP(A52,list_installations,'B.1.c. Installations'!$Q$5:$Q$505)+LOOKUP(A52,list_installations,'B.1.c. Installations'!$S$5:$S$505))/3)) ->  | N52: =IF(ISBLANK(A52),"",ROUND(M52*'Correction factor'!$B$7,0)) ->  | O52: =IF(ISBLANK(A52),"",ROUND(M52*'Correction factor'!$C$7,0)) ->  | P52: =IF(ISBLANK(A52),"",ROUND(M52*'Correction factor'!$D$7,0)) ->  | Q52: =IF(ISBLANK(A52),"",ROUND(M52*'Correction factor'!$E$7,0)) ->  | R52: =IF(ISBLANK(A52),"",ROUND(M52*'Correction factor'!$F$7,0)) ->  | S52: =IF(ISBLANK(A52),"",ROUND(M52*'Correction factor'!$G$7,0)) ->  | T52: =IF(ISBLANK(A52),"",ROUND(M52*'Correction factor'!$H$7,0)) ->  | U52: =IF(ISBLANK(A52),"",ROUND(M52*'Correction factor'!$I$7,0)) -> 
B53: =IF(ISBLANK(A53),"",LOOKUP(A53,list_installations,'B.1.c. Installations'!$B$5:$B$505)) ->  | C53: =IF(ISBLANK(A53),"",LOOKUP(A53,list_installations,'B.1.c. Installations'!$C$5:$C$505)) ->  | D53: =IF(ISBLANK(A53),"",LOOKUP(A53,list_installations,'B.1.c. Installations'!$D$5:$D$505)) ->  | E53: =IF(ISBLANK(A53),"",LOOKUP(A53,list_installations,'B.1.c. Installations'!$E$5:$E$505)) ->  | F53: =IF(ISBLANK(A53),"",((LOOKUP(A53,list_installations,'B.1.c. Installations'!$I$5:$I$505)+LOOKUP(A53,list_installations,'B.1.c. Installations'!$K$5:$K$505)+LOOKUP(A53,list_installations,'B.1.c. Installations'!$M$5:$M$505))/3)) ->  | G53: =IF(ISBLANK(A53),"",((LOOKUP(A53,list_installations,'B.1.c. Installations'!$O$5:$O$505)+LOOKUP(A53,list_installations,'B.1.c. Installations'!$Q$5:$Q$505)+LOOKUP(A53,list_installations,'B.1.c. Installations'!$S$5:$S$505))/3)) ->  | N53: =IF(ISBLANK(A53),"",ROUND(M53*'Correction factor'!$B$7,0)) ->  | O53: =IF(ISBLANK(A53),"",ROUND(M53*'Correction factor'!$C$7,0)) ->  | P53: =IF(ISBLANK(A53),"",ROUND(M53*'Correction factor'!$D$7,0)) ->  | Q53: =IF(ISBLANK(A53),"",ROUND(M53*'Correction factor'!$E$7,0)) ->  | R53: =IF(ISBLANK(A53),"",ROUND(M53*'Correction factor'!$F$7,0)) ->  | S53: =IF(ISBLANK(A53),"",ROUND(M53*'Correction factor'!$G$7,0)) ->  | T53: =IF(ISBLANK(A53),"",ROUND(M53*'Correction factor'!$H$7,0)) ->  | U53: =IF(ISBLANK(A53),"",ROUND(M53*'Correction factor'!$I$7,0)) -> 
B54: =IF(ISBLANK(A54),"",LOOKUP(A54,list_installations,'B.1.c. Installations'!$B$5:$B$505)) ->  | C54: =IF(ISBLANK(A54),"",LOOKUP(A54,list_installations,'B.1.c. Installations'!$C$5:$C$505)) ->  | D54: =IF(ISBLANK(A54),"",LOOKUP(A54,list_installations,'B.1.c. Installations'!$D$5:$D$505)) ->  | E54: =IF(ISBLANK(A54),"",LOOKUP(A54,list_installations,'B.1.c. Installations'!$E$5:$E$505)) ->  | F54: =IF(ISBLANK(A54),"",((LOOKUP(A54,list_installations,'B.1.c. Installations'!$I$5:$I$505)+LOOKUP(A54,list_installations,'B.1.c. Installations'!$K$5:$K$505)+LOOKUP(A54,list_installations,'B.1.c. Installations'!$M$5:$M$505))/3)) ->  | G54: =IF(ISBLANK(A54),"",((LOOKUP(A54,list_installations,'B.1.c. Installations'!$O$5:$O$505)+LOOKUP(A54,list_installations,'B.1.c. Installations'!$Q$5:$Q$505)+LOOKUP(A54,list_installations,'B.1.c. Installations'!$S$5:$S$505))/3)) ->  | N54: =IF(ISBLANK(A54),"",ROUND(M54*'Correction factor'!$B$7,0)) ->  | O54: =IF(ISBLANK(A54),"",ROUND(M54*'Correction factor'!$C$7,0)) ->  | P54: =IF(ISBLANK(A54),"",ROUND(M54*'Correction factor'!$D$7,0)) ->  | Q54: =IF(ISBLANK(A54),"",ROUND(M54*'Correction factor'!$E$7,0)) ->  | R54: =IF(ISBLANK(A54),"",ROUND(M54*'Correction factor'!$F$7,0)) ->  | S54: =IF(ISBLANK(A54),"",ROUND(M54*'Correction factor'!$G$7,0)) ->  | T54: =IF(ISBLANK(A54),"",ROUND(M54*'Correction factor'!$H$7,0)) ->  | U54: =IF(ISBLANK(A54),"",ROUND(M54*'Correction factor'!$I$7,0)) -> 
B55: =IF(ISBLANK(A55),"",LOOKUP(A55,list_installations,'B.1.c. Installations'!$B$5:$B$505)) ->  | C55: =IF(ISBLANK(A55),"",LOOKUP(A55,list_installations,'B.1.c. Installations'!$C$5:$C$505)) ->  | D55: =IF(ISBLANK(A55),"",LOOKUP(A55,list_installations,'B.1.c. Installations'!$D$5:$D$505)) ->  | E55: =IF(ISBLANK(A55),"",LOOKUP(A55,list_installations,'B.1.c. Installations'!$E$5:$E$505)) ->  | F55: =IF(ISBLANK(A55),"",((LOOKUP(A55,list_installations,'B.1.c. Installations'!$I$5:$I$505)+LOOKUP(A55,list_installations,'B.1.c. Installations'!$K$5:$K$505)+LOOKUP(A55,list_installations,'B.1.c. Installations'!$M$5:$M$505))/3)) ->  | G55: =IF(ISBLANK(A55),"",((LOOKUP(A55,list_installations,'B.1.c. Installations'!$O$5:$O$505)+LOOKUP(A55,list_installations,'B.1.c. Installations'!$Q$5:$Q$505)+LOOKUP(A55,list_installations,'B.1.c. Installations'!$S$5:$S$505))/3)) ->  | N55: =IF(ISBLANK(A55),"",ROUND(M55*'Correction factor'!$B$7,0)) ->  | O55: =IF(ISBLANK(A55),"",ROUND(M55*'Correction factor'!$C$7,0)) ->  | P55: =IF(ISBLANK(A55),"",ROUND(M55*'Correction factor'!$D$7,0)) ->  | Q55: =IF(ISBLANK(A55),"",ROUND(M55*'Correction factor'!$E$7,0)) ->  | R55: =IF(ISBLANK(A55),"",ROUND(M55*'Correction factor'!$F$7,0)) ->  | S55: =IF(ISBLANK(A55),"",ROUND(M55*'Correction factor'!$G$7,0)) ->  | T55: =IF(ISBLANK(A55),"",ROUND(M55*'Correction factor'!$H$7,0)) ->  | U55: =IF(ISBLANK(A55),"",ROUND(M55*'Correction factor'!$I$7,0)) -> 
B56: =IF(ISBLANK(A56),"",LOOKUP(A56,list_installations,'B.1.c. Installations'!$B$5:$B$505)) ->  | C56: =IF(ISBLANK(A56),"",LOOKUP(A56,list_installations,'B.1.c. Installations'!$C$5:$C$505)) ->  | D56: =IF(ISBLANK(A56),"",LOOKUP(A56,list_installations,'B.1.c. Installations'!$D$5:$D$505)) ->  | E56: =IF(ISBLANK(A56),"",LOOKUP(A56,list_installations,'B.1.c. Installations'!$E$5:$E$505)) ->  | F56: =IF(ISBLANK(A56),"",((LOOKUP(A56,list_installations,'B.1.c. Installations'!$I$5:$I$505)+LOOKUP(A56,list_installations,'B.1.c. Installations'!$K$5:$K$505)+LOOKUP(A56,list_installations,'B.1.c. Installations'!$M$5:$M$505))/3)) ->  | G56: =IF(ISBLANK(A56),"",((LOOKUP(A56,list_installations,'B.1.c. Installations'!$O$5:$O$505)+LOOKUP(A56,list_installations,'B.1.c. Installations'!$Q$5:$Q$505)+LOOKUP(A56,list_installations,'B.1.c. Installations'!$S$5:$S$505))/3)) ->  | N56: =IF(ISBLANK(A56),"",ROUND(M56*'Correction factor'!$B$7,0)) ->  | O56: =IF(ISBLANK(A56),"",ROUND(M56*'Correction factor'!$C$7,0)) ->  | P56: =IF(ISBLANK(A56),"",ROUND(M56*'Correction factor'!$D$7,0)) ->  | Q56: =IF(ISBLANK(A56),"",ROUND(M56*'Correction factor'!$E$7,0)) ->  | R56: =IF(ISBLANK(A56),"",ROUND(M56*'Correction factor'!$F$7,0)) ->  | S56: =IF(ISBLANK(A56),"",ROUND(M56*'Correction factor'!$G$7,0)) ->  | T56: =IF(ISBLANK(A56),"",ROUND(M56*'Correction factor'!$H$7,0)) ->  | U56: =IF(ISBLANK(A56),"",ROUND(M56*'Correction factor'!$I$7,0)) -> 
B57: =IF(ISBLANK(A57),"",LOOKUP(A57,list_installations,'B.1.c. Installations'!$B$5:$B$505)) ->  | C57: =IF(ISBLANK(A57),"",LOOKUP(A57,list_installations,'B.1.c. Installations'!$C$5:$C$505)) ->  | D57: =IF(ISBLANK(A57),"",LOOKUP(A57,list_installations,'B.1.c. Installations'!$D$5:$D$505)) ->  | E57: =IF(ISBLANK(A57),"",LOOKUP(A57,list_installations,'B.1.c. Installations'!$E$5:$E$505)) ->  | F57: =IF(ISBLANK(A57),"",((LOOKUP(A57,list_installations,'B.1.c. Installations'!$I$5:$I$505)+LOOKUP(A57,list_installations,'B.1.c. Installations'!$K$5:$K$505)+LOOKUP(A57,list_installations,'B.1.c. Installations'!$M$5:$M$505))/3)) ->  | G57: =IF(ISBLANK(A57),"",((LOOKUP(A57,list_installations,'B.1.c. Installations'!$O$5:$O$505)+LOOKUP(A57,list_installations,'B.1.c. Installations'!$Q$5:$Q$505)+LOOKUP(A57,list_installations,'B.1.c. Installations'!$S$5:$S$505))/3)) ->  | N57: =IF(ISBLANK(A57),"",ROUND(M57*'Correction factor'!$B$7,0)) ->  | O57: =IF(ISBLANK(A57),"",ROUND(M57*'Correction factor'!$C$7,0)) ->  | P57: =IF(ISBLANK(A57),"",ROUND(M57*'Correction factor'!$D$7,0)) ->  | Q57: =IF(ISBLANK(A57),"",ROUND(M57*'Correction factor'!$E$7,0)) ->  | R57: =IF(ISBLANK(A57),"",ROUND(M57*'Correction factor'!$F$7,0)) ->  | S57: =IF(ISBLANK(A57),"",ROUND(M57*'Correction factor'!$G$7,0)) ->  | T57: =IF(ISBLANK(A57),"",ROUND(M57*'Correction factor'!$H$7,0)) ->  | U57: =IF(ISBLANK(A57),"",ROUND(M57*'Correction factor'!$I$7,0)) -> 
B58: =IF(ISBLANK(A58),"",LOOKUP(A58,list_installations,'B.1.c. Installations'!$B$5:$B$505)) ->  | C58: =IF(ISBLANK(A58),"",LOOKUP(A58,list_installations,'B.1.c. Installations'!$C$5:$C$505)) ->  | D58: =IF(ISBLANK(A58),"",LOOKUP(A58,list_installations,'B.1.c. Installations'!$D$5:$D$505)) ->  | E58: =IF(ISBLANK(A58),"",LOOKUP(A58,list_installations,'B.1.c. Installations'!$E$5:$E$505)) ->  | F58: =IF(ISBLANK(A58),"",((LOOKUP(A58,list_installations,'B.1.c. Installations'!$I$5:$I$505)+LOOKUP(A58,list_installations,'B.1.c. Installations'!$K$5:$K$505)+LOOKUP(A58,list_installations,'B.1.c. Installations'!$M$5:$M$505))/3)) ->  | G58: =IF(ISBLANK(A58),"",((LOOKUP(A58,list_installations,'B.1.c. Installations'!$O$5:$O$505)+LOOKUP(A58,list_installations,'B.1.c. Installations'!$Q$5:$Q$505)+LOOKUP(A58,list_installations,'B.1.c. Installations'!$S$5:$S$505))/3)) ->  | N58: =IF(ISBLANK(A58),"",ROUND(M58*'Correction factor'!$B$7,0)) ->  | O58: =IF(ISBLANK(A58),"",ROUND(M58*'Correction factor'!$C$7,0)) ->  | P58: =IF(ISBLANK(A58),"",ROUND(M58*'Correction factor'!$D$7,0)) ->  | Q58: =IF(ISBLANK(A58),"",ROUND(M58*'Correction factor'!$E$7,0)) ->  | R58: =IF(ISBLANK(A58),"",ROUND(M58*'Correction factor'!$F$7,0)) ->  | S58: =IF(ISBLANK(A58),"",ROUND(M58*'Correction factor'!$G$7,0)) ->  | T58: =IF(ISBLANK(A58),"",ROUND(M58*'Correction factor'!$H$7,0)) ->  | U58: =IF(ISBLANK(A58),"",ROUND(M58*'Correction factor'!$I$7,0)) -> 
B59: =IF(ISBLANK(A59),"",LOOKUP(A59,list_installations,'B.1.c. Installations'!$B$5:$B$505)) ->  | C59: =IF(ISBLANK(A59),"",LOOKUP(A59,list_installations,'B.1.c. Installations'!$C$5:$C$505)) ->  | D59: =IF(ISBLANK(A59),"",LOOKUP(A59,list_installations,'B.1.c. Installations'!$D$5:$D$505)) ->  | E59: =IF(ISBLANK(A59),"",LOOKUP(A59,list_installations,'B.1.c. Installations'!$E$5:$E$505)) ->  | F59: =IF(ISBLANK(A59),"",((LOOKUP(A59,list_installations,'B.1.c. Installations'!$I$5:$I$505)+LOOKUP(A59,list_installations,'B.1.c. Installations'!$K$5:$K$505)+LOOKUP(A59,list_installations,'B.1.c. Installations'!$M$5:$M$505))/3)) ->  | G59: =IF(ISBLANK(A59),"",((LOOKUP(A59,list_installations,'B.1.c. Installations'!$O$5:$O$505)+LOOKUP(A59,list_installations,'B.1.c. Installations'!$Q$5:$Q$505)+LOOKUP(A59,list_installations,'B.1.c. Installations'!$S$5:$S$505))/3)) ->  | N59: =IF(ISBLANK(A59),"",ROUND(M59*'Correction factor'!$B$7,0)) ->  | O59: =IF(ISBLANK(A59),"",ROUND(M59*'Correction factor'!$C$7,0)) ->  | P59: =IF(ISBLANK(A59),"",ROUND(M59*'Correction factor'!$D$7,0)) ->  | Q59: =IF(ISBLANK(A59),"",ROUND(M59*'Correction factor'!$E$7,0)) ->  | R59: =IF(ISBLANK(A59),"",ROUND(M59*'Correction factor'!$F$7,0)) ->  | S59: =IF(ISBLANK(A59),"",ROUND(M59*'Correction factor'!$G$7,0)) ->  | T59: =IF(ISBLANK(A59),"",ROUND(M59*'Correction factor'!$H$7,0)) ->  | U59: =IF(ISBLANK(A59),"",ROUND(M59*'Correction factor'!$I$7,0)) -> 
B60: =IF(ISBLANK(A60),"",LOOKUP(A60,list_installations,'B.1.c. Installations'!$B$5:$B$505)) ->  | C60: =IF(ISBLANK(A60),"",LOOKUP(A60,list_installations,'B.1.c. Installations'!$C$5:$C$505)) ->  | D60: =IF(ISBLANK(A60),"",LOOKUP(A60,list_installations,'B.1.c. Installations'!$D$5:$D$505)) ->  | E60: =IF(ISBLANK(A60),"",LOOKUP(A60,list_installations,'B.1.c. Installations'!$E$5:$E$505)) ->  | F60: =IF(ISBLANK(A60),"",((LOOKUP(A60,list_installations,'B.1.c. Installations'!$I$5:$I$505)+LOOKUP(A60,list_installations,'B.1.c. Installations'!$K$5:$K$505)+LOOKUP(A60,list_installations,'B.1.c. Installations'!$M$5:$M$505))/3)) ->  | G60: =IF(ISBLANK(A60),"",((LOOKUP(A60,list_installations,'B.1.c. Installations'!$O$5:$O$505)+LOOKUP(A60,list_installations,'B.1.c. Installations'!$Q$5:$Q$505)+LOOKUP(A60,list_installations,'B.1.c. Installations'!$S$5:$S$505))/3)) ->  | N60: =IF(ISBLANK(A60),"",ROUND(M60*'Correction factor'!$B$7,0)) ->  | O60: =IF(ISBLANK(A60),"",ROUND(M60*'Correction factor'!$C$7,0)) ->  | P60: =IF(ISBLANK(A60),"",ROUND(M60*'Correction factor'!$D$7,0)) ->  | Q60: =IF(ISBLANK(A60),"",ROUND(M60*'Correction factor'!$E$7,0)) ->  | R60: =IF(ISBLANK(A60),"",ROUND(M60*'Correction factor'!$F$7,0)) ->  | S60: =IF(ISBLANK(A60),"",ROUND(M60*'Correction factor'!$G$7,0)) ->  | T60: =IF(ISBLANK(A60),"",ROUND(M60*'Correction factor'!$H$7,0)) ->  | U60: =IF(ISBLANK(A60),"",ROUND(M60*'Correction factor'!$I$7,0)) -> 
B61: =IF(ISBLANK(A61),"",LOOKUP(A61,list_installations,'B.1.c. Installations'!$B$5:$B$505)) ->  | C61: =IF(ISBLANK(A61),"",LOOKUP(A61,list_installations,'B.1.c. Installations'!$C$5:$C$505)) ->  | D61: =IF(ISBLANK(A61),"",LOOKUP(A61,list_installations,'B.1.c. Installations'!$D$5:$D$505)) ->  | E61: =IF(ISBLANK(A61),"",LOOKUP(A61,list_installations,'B.1.c. Installations'!$E$5:$E$505)) ->  | F61: =IF(ISBLANK(A61),"",((LOOKUP(A61,list_installations,'B.1.c. Installations'!$I$5:$I$505)+LOOKUP(A61,list_installations,'B.1.c. Installations'!$K$5:$K$505)+LOOKUP(A61,list_installations,'B.1.c. Installations'!$M$5:$M$505))/3)) ->  | G61: =IF(ISBLANK(A61),"",((LOOKUP(A61,list_installations,'B.1.c. Installations'!$O$5:$O$505)+LOOKUP(A61,list_installations,'B.1.c. Installations'!$Q$5:$Q$505)+LOOKUP(A61,list_installations,'B.1.c. Installations'!$S$5:$S$505))/3)) ->  | N61: =IF(ISBLANK(A61),"",ROUND(M61*'Correction factor'!$B$7,0)) ->  | O61: =IF(ISBLANK(A61),"",ROUND(M61*'Correction factor'!$C$7,0)) ->  | P61: =IF(ISBLANK(A61),"",ROUND(M61*'Correction factor'!$D$7,0)) ->  | Q61: =IF(ISBLANK(A61),"",ROUND(M61*'Correction factor'!$E$7,0)) ->  | R61: =IF(ISBLANK(A61),"",ROUND(M61*'Correction factor'!$F$7,0)) ->  | S61: =IF(ISBLANK(A61),"",ROUND(M61*'Correction factor'!$G$7,0)) ->  | T61: =IF(ISBLANK(A61),"",ROUND(M61*'Correction factor'!$H$7,0)) ->  | U61: =IF(ISBLANK(A61),"",ROUND(M61*'Correction factor'!$I$7,0)) -> 
B62: =IF(ISBLANK(A62),"",LOOKUP(A62,list_installations,'B.1.c. Installations'!$B$5:$B$505)) ->  | C62: =IF(ISBLANK(A62),"",LOOKUP(A62,list_installations,'B.1.c. Installations'!$C$5:$C$505)) ->  | D62: =IF(ISBLANK(A62),"",LOOKUP(A62,list_installations,'B.1.c. Installations'!$D$5:$D$505)) ->  | E62: =IF(ISBLANK(A62),"",LOOKUP(A62,list_installations,'B.1.c. Installations'!$E$5:$E$505)) ->  | F62: =IF(ISBLANK(A62),"",((LOOKUP(A62,list_installations,'B.1.c. Installations'!$I$5:$I$505)+LOOKUP(A62,list_installations,'B.1.c. Installations'!$K$5:$K$505)+LOOKUP(A62,list_installations,'B.1.c. Installations'!$M$5:$M$505))/3)) ->  | G62: =IF(ISBLANK(A62),"",((LOOKUP(A62,list_installations,'B.1.c. Installations'!$O$5:$O$505)+LOOKUP(A62,list_installations,'B.1.c. Installations'!$Q$5:$Q$505)+LOOKUP(A62,list_installations,'B.1.c. Installations'!$S$5:$S$505))/3)) ->  | N62: =IF(ISBLANK(A62),"",ROUND(M62*'Correction factor'!$B$7,0)) ->  | O62: =IF(ISBLANK(A62),"",ROUND(M62*'Correction factor'!$C$7,0)) ->  | P62: =IF(ISBLANK(A62),"",ROUND(M62*'Correction factor'!$D$7,0)) ->  | Q62: =IF(ISBLANK(A62),"",ROUND(M62*'Correction factor'!$E$7,0)) ->  | R62: =IF(ISBLANK(A62),"",ROUND(M62*'Correction factor'!$F$7,0)) ->  | S62: =IF(ISBLANK(A62),"",ROUND(M62*'Correction factor'!$G$7,0)) ->  | T62: =IF(ISBLANK(A62),"",ROUND(M62*'Correction factor'!$H$7,0)) ->  | U62: =IF(ISBLANK(A62),"",ROUND(M62*'Correction factor'!$I$7,0)) -> 
B63: =IF(ISBLANK(A63),"",LOOKUP(A63,list_installations,'B.1.c. Installations'!$B$5:$B$505)) ->  | C63: =IF(ISBLANK(A63),"",LOOKUP(A63,list_installations,'B.1.c. Installations'!$C$5:$C$505)) ->  | D63: =IF(ISBLANK(A63),"",LOOKUP(A63,list_installations,'B.1.c. Installations'!$D$5:$D$505)) ->  | E63: =IF(ISBLANK(A63),"",LOOKUP(A63,list_installations,'B.1.c. Installations'!$E$5:$E$505)) ->  | F63: =IF(ISBLANK(A63),"",((LOOKUP(A63,list_installations,'B.1.c. Installations'!$I$5:$I$505)+LOOKUP(A63,list_installations,'B.1.c. Installations'!$K$5:$K$505)+LOOKUP(A63,list_installations,'B.1.c. Installations'!$M$5:$M$505))/3)) ->  | G63: =IF(ISBLANK(A63),"",((LOOKUP(A63,list_installations,'B.1.c. Installations'!$O$5:$O$505)+LOOKUP(A63,list_installations,'B.1.c. Installations'!$Q$5:$Q$505)+LOOKUP(A63,list_installations,'B.1.c. Installations'!$S$5:$S$505))/3)) ->  | N63: =IF(ISBLANK(A63),"",ROUND(M63*'Correction factor'!$B$7,0)) ->  | O63: =IF(ISBLANK(A63),"",ROUND(M63*'Correction factor'!$C$7,0)) ->  | P63: =IF(ISBLANK(A63),"",ROUND(M63*'Correction factor'!$D$7,0)) ->  | Q63: =IF(ISBLANK(A63),"",ROUND(M63*'Correction factor'!$E$7,0)) ->  | R63: =IF(ISBLANK(A63),"",ROUND(M63*'Correction factor'!$F$7,0)) ->  | S63: =IF(ISBLANK(A63),"",ROUND(M63*'Correction factor'!$G$7,0)) ->  | T63: =IF(ISBLANK(A63),"",ROUND(M63*'Correction factor'!$H$7,0)) ->  | U63: =IF(ISBLANK(A63),"",ROUND(M63*'Correction factor'!$I$7,0)) -> 
B64: =IF(ISBLANK(A64),"",LOOKUP(A64,list_installations,'B.1.c. Installations'!$B$5:$B$505)) ->  | C64: =IF(ISBLANK(A64),"",LOOKUP(A64,list_installations,'B.1.c. Installations'!$C$5:$C$505)) ->  | D64: =IF(ISBLANK(A64),"",LOOKUP(A64,list_installations,'B.1.c. Installations'!$D$5:$D$505)) ->  | E64: =IF(ISBLANK(A64),"",LOOKUP(A64,list_installations,'B.1.c. Installations'!$E$5:$E$505)) ->  | F64: =IF(ISBLANK(A64),"",((LOOKUP(A64,list_installations,'B.1.c. Installations'!$I$5:$I$505)+LOOKUP(A64,list_installations,'B.1.c. Installations'!$K$5:$K$505)+LOOKUP(A64,list_installations,'B.1.c. Installations'!$M$5:$M$505))/3)) ->  | G64: =IF(ISBLANK(A64),"",((LOOKUP(A64,list_installations,'B.1.c. Installations'!$O$5:$O$505)+LOOKUP(A64,list_installations,'B.1.c. Installations'!$Q$5:$Q$505)+LOOKUP(A64,list_installations,'B.1.c. Installations'!$S$5:$S$505))/3)) ->  | N64: =IF(ISBLANK(A64),"",ROUND(M64*'Correction factor'!$B$7,0)) ->  | O64: =IF(ISBLANK(A64),"",ROUND(M64*'Correction factor'!$C$7,0)) ->  | P64: =IF(ISBLANK(A64),"",ROUND(M64*'Correction factor'!$D$7,0)) ->  | Q64: =IF(ISBLANK(A64),"",ROUND(M64*'Correction factor'!$E$7,0)) ->  | R64: =IF(ISBLANK(A64),"",ROUND(M64*'Correction factor'!$F$7,0)) ->  | S64: =IF(ISBLANK(A64),"",ROUND(M64*'Correction factor'!$G$7,0)) ->  | T64: =IF(ISBLANK(A64),"",ROUND(M64*'Correction factor'!$H$7,0)) ->  | U64: =IF(ISBLANK(A64),"",ROUND(M64*'Correction factor'!$I$7,0)) -> 
B65: =IF(ISBLANK(A65),"",LOOKUP(A65,list_installations,'B.1.c. Installations'!$B$5:$B$505)) ->  | C65: =IF(ISBLANK(A65),"",LOOKUP(A65,list_installations,'B.1.c. Installations'!$C$5:$C$505)) ->  | D65: =IF(ISBLANK(A65),"",LOOKUP(A65,list_installations,'B.1.c. Installations'!$D$5:$D$505)) ->  | E65: =IF(ISBLANK(A65),"",LOOKUP(A65,list_installations,'B.1.c. Installations'!$E$5:$E$505)) ->  | F65: =IF(ISBLANK(A65),"",((LOOKUP(A65,list_installations,'B.1.c. Installations'!$I$5:$I$505)+LOOKUP(A65,list_installations,'B.1.c. Installations'!$K$5:$K$505)+LOOKUP(A65,list_installations,'B.1.c. Installations'!$M$5:$M$505))/3)) ->  | G65: =IF(ISBLANK(A65),"",((LOOKUP(A65,list_installations,'B.1.c. Installations'!$O$5:$O$505)+LOOKUP(A65,list_installations,'B.1.c. Installations'!$Q$5:$Q$505)+LOOKUP(A65,list_installations,'B.1.c. Installations'!$S$5:$S$505))/3)) ->  | N65: =IF(ISBLANK(A65),"",ROUND(M65*'Correction factor'!$B$7,0)) ->  | O65: =IF(ISBLANK(A65),"",ROUND(M65*'Correction factor'!$C$7,0)) ->  | P65: =IF(ISBLANK(A65),"",ROUND(M65*'Correction factor'!$D$7,0)) ->  | Q65: =IF(ISBLANK(A65),"",ROUND(M65*'Correction factor'!$E$7,0)) ->  | R65: =IF(ISBLANK(A65),"",ROUND(M65*'Correction factor'!$F$7,0)) ->  | S65: =IF(ISBLANK(A65),"",ROUND(M65*'Correction factor'!$G$7,0)) ->  | T65: =IF(ISBLANK(A65),"",ROUND(M65*'Correction factor'!$H$7,0)) ->  | U65: =IF(ISBLANK(A65),"",ROUND(M65*'Correction factor'!$I$7,0)) -> 
B66: =IF(ISBLANK(A66),"",LOOKUP(A66,list_installations,'B.1.c. Installations'!$B$5:$B$505)) ->  | C66: =IF(ISBLANK(A66),"",LOOKUP(A66,list_installations,'B.1.c. Installations'!$C$5:$C$505)) ->  | D66: =IF(ISBLANK(A66),"",LOOKUP(A66,list_installations,'B.1.c. Installations'!$D$5:$D$505)) ->  | E66: =IF(ISBLANK(A66),"",LOOKUP(A66,list_installations,'B.1.c. Installations'!$E$5:$E$505)) ->  | F66: =IF(ISBLANK(A66),"",((LOOKUP(A66,list_installations,'B.1.c. Installations'!$I$5:$I$505)+LOOKUP(A66,list_installations,'B.1.c. Installations'!$K$5:$K$505)+LOOKUP(A66,list_installations,'B.1.c. Installations'!$M$5:$M$505))/3)) ->  | G66: =IF(ISBLANK(A66),"",((LOOKUP(A66,list_installations,'B.1.c. Installations'!$O$5:$O$505)+LOOKUP(A66,list_installations,'B.1.c. Installations'!$Q$5:$Q$505)+LOOKUP(A66,list_installations,'B.1.c. Installations'!$S$5:$S$505))/3)) ->  | N66: =IF(ISBLANK(A66),"",ROUND(M66*'Correction factor'!$B$7,0)) ->  | O66: =IF(ISBLANK(A66),"",ROUND(M66*'Correction factor'!$C$7,0)) ->  | P66: =IF(ISBLANK(A66),"",ROUND(M66*'Correction factor'!$D$7,0)) ->  | Q66: =IF(ISBLANK(A66),"",ROUND(M66*'Correction factor'!$E$7,0)) ->  | R66: =IF(ISBLANK(A66),"",ROUND(M66*'Correction factor'!$F$7,0)) ->  | S66: =IF(ISBLANK(A66),"",ROUND(M66*'Correction factor'!$G$7,0)) ->  | T66: =IF(ISBLANK(A66),"",ROUND(M66*'Correction factor'!$H$7,0)) ->  | U66: =IF(ISBLANK(A66),"",ROUND(M66*'Correction factor'!$I$7,0)) -> 
B67: =IF(ISBLANK(A67),"",LOOKUP(A67,list_installations,'B.1.c. Installations'!$B$5:$B$505)) ->  | C67: =IF(ISBLANK(A67),"",LOOKUP(A67,list_installations,'B.1.c. Installations'!$C$5:$C$505)) ->  | D67: =IF(ISBLANK(A67),"",LOOKUP(A67,list_installations,'B.1.c. Installations'!$D$5:$D$505)) ->  | E67: =IF(ISBLANK(A67),"",LOOKUP(A67,list_installations,'B.1.c. Installations'!$E$5:$E$505)) ->  | F67: =IF(ISBLANK(A67),"",((LOOKUP(A67,list_installations,'B.1.c. Installations'!$I$5:$I$505)+LOOKUP(A67,list_installations,'B.1.c. Installations'!$K$5:$K$505)+LOOKUP(A67,list_installations,'B.1.c. Installations'!$M$5:$M$505))/3)) ->  | G67: =IF(ISBLANK(A67),"",((LOOKUP(A67,list_installations,'B.1.c. Installations'!$O$5:$O$505)+LOOKUP(A67,list_installations,'B.1.c. Installations'!$Q$5:$Q$505)+LOOKUP(A67,list_installations,'B.1.c. Installations'!$S$5:$S$505))/3)) ->  | N67: =IF(ISBLANK(A67),"",ROUND(M67*'Correction factor'!$B$7,0)) ->  | O67: =IF(ISBLANK(A67),"",ROUND(M67*'Correction factor'!$C$7,0)) ->  | P67: =IF(ISBLANK(A67),"",ROUND(M67*'Correction factor'!$D$7,0)) ->  | Q67: =IF(ISBLANK(A67),"",ROUND(M67*'Correction factor'!$E$7,0)) ->  | R67: =IF(ISBLANK(A67),"",ROUND(M67*'Correction factor'!$F$7,0)) ->  | S67: =IF(ISBLANK(A67),"",ROUND(M67*'Correction factor'!$G$7,0)) ->  | T67: =IF(ISBLANK(A67),"",ROUND(M67*'Correction factor'!$H$7,0)) ->  | U67: =IF(ISBLANK(A67),"",ROUND(M67*'Correction factor'!$I$7,0)) -> 
B68: =IF(ISBLANK(A68),"",LOOKUP(A68,list_installations,'B.1.c. Installations'!$B$5:$B$505)) ->  | C68: =IF(ISBLANK(A68),"",LOOKUP(A68,list_installations,'B.1.c. Installations'!$C$5:$C$505)) ->  | D68: =IF(ISBLANK(A68),"",LOOKUP(A68,list_installations,'B.1.c. Installations'!$D$5:$D$505)) ->  | E68: =IF(ISBLANK(A68),"",LOOKUP(A68,list_installations,'B.1.c. Installations'!$E$5:$E$505)) ->  | F68: =IF(ISBLANK(A68),"",((LOOKUP(A68,list_installations,'B.1.c. Installations'!$I$5:$I$505)+LOOKUP(A68,list_installations,'B.1.c. Installations'!$K$5:$K$505)+LOOKUP(A68,list_installations,'B.1.c. Installations'!$M$5:$M$505))/3)) ->  | G68: =IF(ISBLANK(A68),"",((LOOKUP(A68,list_installations,'B.1.c. Installations'!$O$5:$O$505)+LOOKUP(A68,list_installations,'B.1.c. Installations'!$Q$5:$Q$505)+LOOKUP(A68,list_installations,'B.1.c. Installations'!$S$5:$S$505))/3)) ->  | N68: =IF(ISBLANK(A68),"",ROUND(M68*'Correction factor'!$B$7,0)) ->  | O68: =IF(ISBLANK(A68),"",ROUND(M68*'Correction factor'!$C$7,0)) ->  | P68: =IF(ISBLANK(A68),"",ROUND(M68*'Correction factor'!$D$7,0)) ->  | Q68: =IF(ISBLANK(A68),"",ROUND(M68*'Correction factor'!$E$7,0)) ->  | R68: =IF(ISBLANK(A68),"",ROUND(M68*'Correction factor'!$F$7,0)) ->  | S68: =IF(ISBLANK(A68),"",ROUND(M68*'Correction factor'!$G$7,0)) ->  | T68: =IF(ISBLANK(A68),"",ROUND(M68*'Correction factor'!$H$7,0)) ->  | U68: =IF(ISBLANK(A68),"",ROUND(M68*'Correction factor'!$I$7,0)) -> 
B69: =IF(ISBLANK(A69),"",LOOKUP(A69,list_installations,'B.1.c. Installations'!$B$5:$B$505)) ->  | C69: =IF(ISBLANK(A69),"",LOOKUP(A69,list_installations,'B.1.c. Installations'!$C$5:$C$505)) ->  | D69: =IF(ISBLANK(A69),"",LOOKUP(A69,list_installations,'B.1.c. Installations'!$D$5:$D$505)) ->  | E69: =IF(ISBLANK(A69),"",LOOKUP(A69,list_installations,'B.1.c. Installations'!$E$5:$E$505)) ->  | F69: =IF(ISBLANK(A69),"",((LOOKUP(A69,list_installations,'B.1.c. Installations'!$I$5:$I$505)+LOOKUP(A69,list_installations,'B.1.c. Installations'!$K$5:$K$505)+LOOKUP(A69,list_installations,'B.1.c. Installations'!$M$5:$M$505))/3)) ->  | G69: =IF(ISBLANK(A69),"",((LOOKUP(A69,list_installations,'B.1.c. Installations'!$O$5:$O$505)+LOOKUP(A69,list_installations,'B.1.c. Installations'!$Q$5:$Q$505)+LOOKUP(A69,list_installations,'B.1.c. Installations'!$S$5:$S$505))/3)) ->  | N69: =IF(ISBLANK(A69),"",ROUND(M69*'Correction factor'!$B$7,0)) ->  | O69: =IF(ISBLANK(A69),"",ROUND(M69*'Correction factor'!$C$7,0)) ->  | P69: =IF(ISBLANK(A69),"",ROUND(M69*'Correction factor'!$D$7,0)) ->  | Q69: =IF(ISBLANK(A69),"",ROUND(M69*'Correction factor'!$E$7,0)) ->  | R69: =IF(ISBLANK(A69),"",ROUND(M69*'Correction factor'!$F$7,0)) ->  | S69: =IF(ISBLANK(A69),"",ROUND(M69*'Correction factor'!$G$7,0)) ->  | T69: =IF(ISBLANK(A69),"",ROUND(M69*'Correction factor'!$H$7,0)) ->  | U69: =IF(ISBLANK(A69),"",ROUND(M69*'Correction factor'!$I$7,0)) -> 
B70: =IF(ISBLANK(A70),"",LOOKUP(A70,list_installations,'B.1.c. Installations'!$B$5:$B$505)) ->  | C70: =IF(ISBLANK(A70),"",LOOKUP(A70,list_installations,'B.1.c. Installations'!$C$5:$C$505)) ->  | D70: =IF(ISBLANK(A70),"",LOOKUP(A70,list_installations,'B.1.c. Installations'!$D$5:$D$505)) ->  | E70: =IF(ISBLANK(A70),"",LOOKUP(A70,list_installations,'B.1.c. Installations'!$E$5:$E$505)) ->  | F70: =IF(ISBLANK(A70),"",((LOOKUP(A70,list_installations,'B.1.c. Installations'!$I$5:$I$505)+LOOKUP(A70,list_installations,'B.1.c. Installations'!$K$5:$K$505)+LOOKUP(A70,list_installations,'B.1.c. Installations'!$M$5:$M$505))/3)) ->  | G70: =IF(ISBLANK(A70),"",((LOOKUP(A70,list_installations,'B.1.c. Installations'!$O$5:$O$505)+LOOKUP(A70,list_installations,'B.1.c. Installations'!$Q$5:$Q$505)+LOOKUP(A70,list_installations,'B.1.c. Installations'!$S$5:$S$505))/3)) ->  | N70: =IF(ISBLANK(A70),"",ROUND(M70*'Correction factor'!$B$7,0)) ->  | O70: =IF(ISBLANK(A70),"",ROUND(M70*'Correction factor'!$C$7,0)) ->  | P70: =IF(ISBLANK(A70),"",ROUND(M70*'Correction factor'!$D$7,0)) ->  | Q70: =IF(ISBLANK(A70),"",ROUND(M70*'Correction factor'!$E$7,0)) ->  | R70: =IF(ISBLANK(A70),"",ROUND(M70*'Correction factor'!$F$7,0)) ->  | S70: =IF(ISBLANK(A70),"",ROUND(M70*'Correction factor'!$G$7,0)) ->  | T70: =IF(ISBLANK(A70),"",ROUND(M70*'Correction factor'!$H$7,0)) ->  | U70: =IF(ISBLANK(A70),"",ROUND(M70*'Correction factor'!$I$7,0)) -> 
B71: =IF(ISBLANK(A71),"",LOOKUP(A71,list_installations,'B.1.c. Installations'!$B$5:$B$505)) ->  | C71: =IF(ISBLANK(A71),"",LOOKUP(A71,list_installations,'B.1.c. Installations'!$C$5:$C$505)) ->  | D71: =IF(ISBLANK(A71),"",LOOKUP(A71,list_installations,'B.1.c. Installations'!$D$5:$D$505)) ->  | E71: =IF(ISBLANK(A71),"",LOOKUP(A71,list_installations,'B.1.c. Installations'!$E$5:$E$505)) ->  | F71: =IF(ISBLANK(A71),"",((LOOKUP(A71,list_installations,'B.1.c. Installations'!$I$5:$I$505)+LOOKUP(A71,list_installations,'B.1.c. Installations'!$K$5:$K$505)+LOOKUP(A71,list_installations,'B.1.c. Installations'!$M$5:$M$505))/3)) ->  | G71: =IF(ISBLANK(A71),"",((LOOKUP(A71,list_installations,'B.1.c. Installations'!$O$5:$O$505)+LOOKUP(A71,list_installations,'B.1.c. Installations'!$Q$5:$Q$505)+LOOKUP(A71,list_installations,'B.1.c. Installations'!$S$5:$S$505))/3)) ->  | H71: =IF(ISBLANK(A71),"",G71/F71) ->  | I71: =IF(ISBLANK(A71),"",F71-G71) ->  | J71: =IF(ISBLANK(A71),"",I71/F71) ->  | K71: =IF(ISBLANK(A71),"",J71-$J$5) ->  | L71: =IF(ISBLANK(A71),"",F71+(F71*K71)) ->  | M71: =IF(ISBLANK(A71),"",L71*$H$5) ->  | N71: =IF(ISBLANK(A71),"",ROUND(M71*'Correction factor'!$B$7,0)) ->  | O71: =IF(ISBLANK(A71),"",ROUND(M71*'Correction factor'!$C$7,0)) ->  | P71: =IF(ISBLANK(A71),"",ROUND(M71*'Correction factor'!$D$7,0)) ->  | Q71: =IF(ISBLANK(A71),"",ROUND(M71*'Correction factor'!$E$7,0)) ->  | R71: =IF(ISBLANK(A71),"",ROUND(M71*'Correction factor'!$F$7,0)) ->  | S71: =IF(ISBLANK(A71),"",ROUND(M71*'Correction factor'!$G$7,0)) ->  | T71: =IF(ISBLANK(A71),"",ROUND(M71*'Correction factor'!$H$7,0)) ->  | U71: =IF(ISBLANK(A71),"",ROUND(M71*'Correction factor'!$I$7,0)) -> 
B72: =IF(ISBLANK(A72),"",LOOKUP(A72,list_installations,'B.1.c. Installations'!$B$5:$B$505)) ->  | C72: =IF(ISBLANK(A72),"",LOOKUP(A72,list_installations,'B.1.c. Installations'!$C$5:$C$505)) ->  | D72: =IF(ISBLANK(A72),"",LOOKUP(A72,list_installations,'B.1.c. Installations'!$D$5:$D$505)) ->  | E72: =IF(ISBLANK(A72),"",LOOKUP(A72,list_installations,'B.1.c. Installations'!$E$5:$E$505)) ->  | F72: =IF(ISBLANK(A72),"",((LOOKUP(A72,list_installations,'B.1.c. Installations'!$I$5:$I$505)+LOOKUP(A72,list_installations,'B.1.c. Installations'!$K$5:$K$505)+LOOKUP(A72,list_installations,'B.1.c. Installations'!$M$5:$M$505))/3)) ->  | G72: =IF(ISBLANK(A72),"",((LOOKUP(A72,list_installations,'B.1.c. Installations'!$O$5:$O$505)+LOOKUP(A72,list_installations,'B.1.c. Installations'!$Q$5:$Q$505)+LOOKUP(A72,list_installations,'B.1.c. Installations'!$S$5:$S$505))/3)) ->  | N72: =IF(ISBLANK(A72),"",ROUND(M72*'Correction factor'!$B$7,0)) ->  | O72: =IF(ISBLANK(A72),"",ROUND(M72*'Correction factor'!$C$7,0)) ->  | P72: =IF(ISBLANK(A72),"",ROUND(M72*'Correction factor'!$D$7,0)) ->  | Q72: =IF(ISBLANK(A72),"",ROUND(M72*'Correction factor'!$E$7,0)) ->  | R72: =IF(ISBLANK(A72),"",ROUND(M72*'Correction factor'!$F$7,0)) ->  | S72: =IF(ISBLANK(A72),"",ROUND(M72*'Correction factor'!$G$7,0)) ->  | T72: =IF(ISBLANK(A72),"",ROUND(M72*'Correction factor'!$H$7,0)) ->  | U72: =IF(ISBLANK(A72),"",ROUND(M72*'Correction factor'!$I$7,0)) -> 
B73: =IF(ISBLANK(A73),"",LOOKUP(A73,list_installations,'B.1.c. Installations'!$B$5:$B$505)) ->  | C73: =IF(ISBLANK(A73),"",LOOKUP(A73,list_installations,'B.1.c. Installations'!$C$5:$C$505)) ->  | D73: =IF(ISBLANK(A73),"",LOOKUP(A73,list_installations,'B.1.c. Installations'!$D$5:$D$505)) ->  | E73: =IF(ISBLANK(A73),"",LOOKUP(A73,list_installations,'B.1.c. Installations'!$E$5:$E$505)) ->  | F73: =IF(ISBLANK(A73),"",((LOOKUP(A73,list_installations,'B.1.c. Installations'!$I$5:$I$505)+LOOKUP(A73,list_installations,'B.1.c. Installations'!$K$5:$K$505)+LOOKUP(A73,list_installations,'B.1.c. Installations'!$M$5:$M$505))/3)) ->  | G73: =IF(ISBLANK(A73),"",((LOOKUP(A73,list_installations,'B.1.c. Installations'!$O$5:$O$505)+LOOKUP(A73,list_installations,'B.1.c. Installations'!$Q$5:$Q$505)+LOOKUP(A73,list_installations,'B.1.c. Installations'!$S$5:$S$505))/3)) ->  | N73: =IF(ISBLANK(A73),"",ROUND(M73*'Correction factor'!$B$7,0)) ->  | O73: =IF(ISBLANK(A73),"",ROUND(M73*'Correction factor'!$C$7,0)) ->  | P73: =IF(ISBLANK(A73),"",ROUND(M73*'Correction factor'!$D$7,0)) ->  | Q73: =IF(ISBLANK(A73),"",ROUND(M73*'Correction factor'!$E$7,0)) ->  | R73: =IF(ISBLANK(A73),"",ROUND(M73*'Correction factor'!$F$7,0)) ->  | S73: =IF(ISBLANK(A73),"",ROUND(M73*'Correction factor'!$G$7,0)) ->  | T73: =IF(ISBLANK(A73),"",ROUND(M73*'Correction factor'!$H$7,0)) ->  | U73: =IF(ISBLANK(A73),"",ROUND(M73*'Correction factor'!$I$7,0)) -> 
B74: =IF(ISBLANK(A74),"",LOOKUP(A74,list_installations,'B.1.c. Installations'!$B$5:$B$505)) ->  | C74: =IF(ISBLANK(A74),"",LOOKUP(A74,list_installations,'B.1.c. Installations'!$C$5:$C$505)) ->  | D74: =IF(ISBLANK(A74),"",LOOKUP(A74,list_installations,'B.1.c. Installations'!$D$5:$D$505)) ->  | E74: =IF(ISBLANK(A74),"",LOOKUP(A74,list_installations,'B.1.c. Installations'!$E$5:$E$505)) ->  | F74: =IF(ISBLANK(A74),"",((LOOKUP(A74,list_installations,'B.1.c. Installations'!$I$5:$I$505)+LOOKUP(A74,list_installations,'B.1.c. Installations'!$K$5:$K$505)+LOOKUP(A74,list_installations,'B.1.c. Installations'!$M$5:$M$505))/3)) ->  | G74: =IF(ISBLANK(A74),"",((LOOKUP(A74,list_installations,'B.1.c. Installations'!$O$5:$O$505)+LOOKUP(A74,list_installations,'B.1.c. Installations'!$Q$5:$Q$505)+LOOKUP(A74,list_installations,'B.1.c. Installations'!$S$5:$S$505))/3)) ->  | N74: =IF(ISBLANK(A74),"",ROUND(M74*'Correction factor'!$B$7,0)) ->  | O74: =IF(ISBLANK(A74),"",ROUND(M74*'Correction factor'!$C$7,0)) ->  | P74: =IF(ISBLANK(A74),"",ROUND(M74*'Correction factor'!$D$7,0)) ->  | Q74: =IF(ISBLANK(A74),"",ROUND(M74*'Correction factor'!$E$7,0)) ->  | R74: =IF(ISBLANK(A74),"",ROUND(M74*'Correction factor'!$F$7,0)) ->  | S74: =IF(ISBLANK(A74),"",ROUND(M74*'Correction factor'!$G$7,0)) ->  | T74: =IF(ISBLANK(A74),"",ROUND(M74*'Correction factor'!$H$7,0)) ->  | U74: =IF(ISBLANK(A74),"",ROUND(M74*'Correction factor'!$I$7,0)) -> 
B75: =IF(ISBLANK(A75),"",LOOKUP(A75,list_installations,'B.1.c. Installations'!$B$5:$B$505)) ->  | C75: =IF(ISBLANK(A75),"",LOOKUP(A75,list_installations,'B.1.c. Installations'!$C$5:$C$505)) ->  | D75: =IF(ISBLANK(A75),"",LOOKUP(A75,list_installations,'B.1.c. Installations'!$D$5:$D$505)) ->  | E75: =IF(ISBLANK(A75),"",LOOKUP(A75,list_installations,'B.1.c. Installations'!$E$5:$E$505)) ->  | F75: =IF(ISBLANK(A75),"",((LOOKUP(A75,list_installations,'B.1.c. Installations'!$I$5:$I$505)+LOOKUP(A75,list_installations,'B.1.c. Installations'!$K$5:$K$505)+LOOKUP(A75,list_installations,'B.1.c. Installations'!$M$5:$M$505))/3)) ->  | G75: =IF(ISBLANK(A75),"",((LOOKUP(A75,list_installations,'B.1.c. Installations'!$O$5:$O$505)+LOOKUP(A75,list_installations,'B.1.c. Installations'!$Q$5:$Q$505)+LOOKUP(A75,list_installations,'B.1.c. Installations'!$S$5:$S$505))/3)) ->  | N75: =IF(ISBLANK(A75),"",ROUND(M75*'Correction factor'!$B$7,0)) ->  | O75: =IF(ISBLANK(A75),"",ROUND(M75*'Correction factor'!$C$7,0)) ->  | P75: =IF(ISBLANK(A75),"",ROUND(M75*'Correction factor'!$D$7,0)) ->  | Q75: =IF(ISBLANK(A75),"",ROUND(M75*'Correction factor'!$E$7,0)) ->  | R75: =IF(ISBLANK(A75),"",ROUND(M75*'Correction factor'!$F$7,0)) ->  | S75: =IF(ISBLANK(A75),"",ROUND(M75*'Correction factor'!$G$7,0)) ->  | T75: =IF(ISBLANK(A75),"",ROUND(M75*'Correction factor'!$H$7,0)) ->  | U75: =IF(ISBLANK(A75),"",ROUND(M75*'Correction factor'!$I$7,0)) -> 
B76: =IF(ISBLANK(A76),"",LOOKUP(A76,list_installations,'B.1.c. Installations'!$B$5:$B$505)) ->  | C76: =IF(ISBLANK(A76),"",LOOKUP(A76,list_installations,'B.1.c. Installations'!$C$5:$C$505)) ->  | D76: =IF(ISBLANK(A76),"",LOOKUP(A76,list_installations,'B.1.c. Installations'!$D$5:$D$505)) ->  | E76: =IF(ISBLANK(A76),"",LOOKUP(A76,list_installations,'B.1.c. Installations'!$E$5:$E$505)) ->  | F76: =IF(ISBLANK(A76),"",((LOOKUP(A76,list_installations,'B.1.c. Installations'!$I$5:$I$505)+LOOKUP(A76,list_installations,'B.1.c. Installations'!$K$5:$K$505)+LOOKUP(A76,list_installations,'B.1.c. Installations'!$M$5:$M$505))/3)) ->  | G76: =IF(ISBLANK(A76),"",((LOOKUP(A76,list_installations,'B.1.c. Installations'!$O$5:$O$505)+LOOKUP(A76,list_installations,'B.1.c. Installations'!$Q$5:$Q$505)+LOOKUP(A76,list_installations,'B.1.c. Installations'!$S$5:$S$505))/3)) ->  | N76: =IF(ISBLANK(A76),"",ROUND(M76*'Correction factor'!$B$7,0)) ->  | O76: =IF(ISBLANK(A76),"",ROUND(M76*'Correction factor'!$C$7,0)) ->  | P76: =IF(ISBLANK(A76),"",ROUND(M76*'Correction factor'!$D$7,0)) ->  | Q76: =IF(ISBLANK(A76),"",ROUND(M76*'Correction factor'!$E$7,0)) ->  | R76: =IF(ISBLANK(A76),"",ROUND(M76*'Correction factor'!$F$7,0)) ->  | S76: =IF(ISBLANK(A76),"",ROUND(M76*'Correction factor'!$G$7,0)) ->  | T76: =IF(ISBLANK(A76),"",ROUND(M76*'Correction factor'!$H$7,0)) ->  | U76: =IF(ISBLANK(A76),"",ROUND(M76*'Correction factor'!$I$7,0)) -> 
B77: =IF(ISBLANK(A77),"",LOOKUP(A77,list_installations,'B.1.c. Installations'!$B$5:$B$505)) ->  | C77: =IF(ISBLANK(A77),"",LOOKUP(A77,list_installations,'B.1.c. Installations'!$C$5:$C$505)) ->  | D77: =IF(ISBLANK(A77),"",LOOKUP(A77,list_installations,'B.1.c. Installations'!$D$5:$D$505)) ->  | E77: =IF(ISBLANK(A77),"",LOOKUP(A77,list_installations,'B.1.c. Installations'!$E$5:$E$505)) ->  | F77: =IF(ISBLANK(A77),"",((LOOKUP(A77,list_installations,'B.1.c. Installations'!$I$5:$I$505)+LOOKUP(A77,list_installations,'B.1.c. Installations'!$K$5:$K$505)+LOOKUP(A77,list_installations,'B.1.c. Installations'!$M$5:$M$505))/3)) ->  | G77: =IF(ISBLANK(A77),"",((LOOKUP(A77,list_installations,'B.1.c. Installations'!$O$5:$O$505)+LOOKUP(A77,list_installations,'B.1.c. Installations'!$Q$5:$Q$505)+LOOKUP(A77,list_installations,'B.1.c. Installations'!$S$5:$S$505))/3)) ->  | N77: =IF(ISBLANK(A77),"",ROUND(M77*'Correction factor'!$B$7,0)) ->  | O77: =IF(ISBLANK(A77),"",ROUND(M77*'Correction factor'!$C$7,0)) ->  | P77: =IF(ISBLANK(A77),"",ROUND(M77*'Correction factor'!$D$7,0)) ->  | Q77: =IF(ISBLANK(A77),"",ROUND(M77*'Correction factor'!$E$7,0)) ->  | R77: =IF(ISBLANK(A77),"",ROUND(M77*'Correction factor'!$F$7,0)) ->  | S77: =IF(ISBLANK(A77),"",ROUND(M77*'Correction factor'!$G$7,0)) ->  | T77: =IF(ISBLANK(A77),"",ROUND(M77*'Correction factor'!$H$7,0)) ->  | U77: =IF(ISBLANK(A77),"",ROUND(M77*'Correction factor'!$I$7,0)) -> 
B78: =IF(ISBLANK(A78),"",LOOKUP(A78,list_installations,'B.1.c. Installations'!$B$5:$B$505)) ->  | C78: =IF(ISBLANK(A78),"",LOOKUP(A78,list_installations,'B.1.c. Installations'!$C$5:$C$505)) ->  | D78: =IF(ISBLANK(A78),"",LOOKUP(A78,list_installations,'B.1.c. Installations'!$D$5:$D$505)) ->  | E78: =IF(ISBLANK(A78),"",LOOKUP(A78,list_installations,'B.1.c. Installations'!$E$5:$E$505)) ->  | F78: =IF(ISBLANK(A78),"",((LOOKUP(A78,list_installations,'B.1.c. Installations'!$I$5:$I$505)+LOOKUP(A78,list_installations,'B.1.c. Installations'!$K$5:$K$505)+LOOKUP(A78,list_installations,'B.1.c. Installations'!$M$5:$M$505))/3)) ->  | G78: =IF(ISBLANK(A78),"",((LOOKUP(A78,list_installations,'B.1.c. Installations'!$O$5:$O$505)+LOOKUP(A78,list_installations,'B.1.c. Installations'!$Q$5:$Q$505)+LOOKUP(A78,list_installations,'B.1.c. Installations'!$S$5:$S$505))/3)) ->  | N78: =IF(ISBLANK(A78),"",ROUND(M78*'Correction factor'!$B$7,0)) ->  | O78: =IF(ISBLANK(A78),"",ROUND(M78*'Correction factor'!$C$7,0)) ->  | P78: =IF(ISBLANK(A78),"",ROUND(M78*'Correction factor'!$D$7,0)) ->  | Q78: =IF(ISBLANK(A78),"",ROUND(M78*'Correction factor'!$E$7,0)) ->  | R78: =IF(ISBLANK(A78),"",ROUND(M78*'Correction factor'!$F$7,0)) ->  | S78: =IF(ISBLANK(A78),"",ROUND(M78*'Correction factor'!$G$7,0)) ->  | T78: =IF(ISBLANK(A78),"",ROUND(M78*'Correction factor'!$H$7,0)) ->  | U78: =IF(ISBLANK(A78),"",ROUND(M78*'Correction factor'!$I$7,0)) -> 
B79: =IF(ISBLANK(A79),"",LOOKUP(A79,list_installations,'B.1.c. Installations'!$B$5:$B$505)) ->  | C79: =IF(ISBLANK(A79),"",LOOKUP(A79,list_installations,'B.1.c. Installations'!$C$5:$C$505)) ->  | D79: =IF(ISBLANK(A79),"",LOOKUP(A79,list_installations,'B.1.c. Installations'!$D$5:$D$505)) ->  | E79: =IF(ISBLANK(A79),"",LOOKUP(A79,list_installations,'B.1.c. Installations'!$E$5:$E$505)) ->  | F79: =IF(ISBLANK(A79),"",((LOOKUP(A79,list_installations,'B.1.c. Installations'!$I$5:$I$505)+LOOKUP(A79,list_installations,'B.1.c. Installations'!$K$5:$K$505)+LOOKUP(A79,list_installations,'B.1.c. Installations'!$M$5:$M$505))/3)) ->  | G79: =IF(ISBLANK(A79),"",((LOOKUP(A79,list_installations,'B.1.c. Installations'!$O$5:$O$505)+LOOKUP(A79,list_installations,'B.1.c. Installations'!$Q$5:$Q$505)+LOOKUP(A79,list_installations,'B.1.c. Installations'!$S$5:$S$505))/3)) ->  | N79: =IF(ISBLANK(A79),"",ROUND(M79*'Correction factor'!$B$7,0)) ->  | O79: =IF(ISBLANK(A79),"",ROUND(M79*'Correction factor'!$C$7,0)) ->  | P79: =IF(ISBLANK(A79),"",ROUND(M79*'Correction factor'!$D$7,0)) ->  | Q79: =IF(ISBLANK(A79),"",ROUND(M79*'Correction factor'!$E$7,0)) ->  | R79: =IF(ISBLANK(A79),"",ROUND(M79*'Correction factor'!$F$7,0)) ->  | S79: =IF(ISBLANK(A79),"",ROUND(M79*'Correction factor'!$G$7,0)) ->  | T79: =IF(ISBLANK(A79),"",ROUND(M79*'Correction factor'!$H$7,0)) ->  | U79: =IF(ISBLANK(A79),"",ROUND(M79*'Correction factor'!$I$7,0)) -> 
B80: =IF(ISBLANK(A80),"",LOOKUP(A80,list_installations,'B.1.c. Installations'!$B$5:$B$505)) ->  | C80: =IF(ISBLANK(A80),"",LOOKUP(A80,list_installations,'B.1.c. Installations'!$C$5:$C$505)) ->  | D80: =IF(ISBLANK(A80),"",LOOKUP(A80,list_installations,'B.1.c. Installations'!$D$5:$D$505)) ->  | E80: =IF(ISBLANK(A80),"",LOOKUP(A80,list_installations,'B.1.c. Installations'!$E$5:$E$505)) ->  | F80: =IF(ISBLANK(A80),"",((LOOKUP(A80,list_installations,'B.1.c. Installations'!$I$5:$I$505)+LOOKUP(A80,list_installations,'B.1.c. Installations'!$K$5:$K$505)+LOOKUP(A80,list_installations,'B.1.c. Installations'!$M$5:$M$505))/3)) ->  | G80: =IF(ISBLANK(A80),"",((LOOKUP(A80,list_installations,'B.1.c. Installations'!$O$5:$O$505)+LOOKUP(A80,list_installations,'B.1.c. Installations'!$Q$5:$Q$505)+LOOKUP(A80,list_installations,'B.1.c. Installations'!$S$5:$S$505))/3)) ->  | N80: =IF(ISBLANK(A80),"",ROUND(M80*'Correction factor'!$B$7,0)) ->  | O80: =IF(ISBLANK(A80),"",ROUND(M80*'Correction factor'!$C$7,0)) ->  | P80: =IF(ISBLANK(A80),"",ROUND(M80*'Correction factor'!$D$7,0)) ->  | Q80: =IF(ISBLANK(A80),"",ROUND(M80*'Correction factor'!$E$7,0)) ->  | R80: =IF(ISBLANK(A80),"",ROUND(M80*'Correction factor'!$F$7,0)) ->  | S80: =IF(ISBLANK(A80),"",ROUND(M80*'Correction factor'!$G$7,0)) ->  | T80: =IF(ISBLANK(A80),"",ROUND(M80*'Correction factor'!$H$7,0)) ->  | U80: =IF(ISBLANK(A80),"",ROUND(M80*'Correction factor'!$I$7,0)) -> 
B81: =IF(ISBLANK(A81),"",LOOKUP(A81,list_installations,'B.1.c. Installations'!$B$5:$B$505)) ->  | C81: =IF(ISBLANK(A81),"",LOOKUP(A81,list_installations,'B.1.c. Installations'!$C$5:$C$505)) ->  | D81: =IF(ISBLANK(A81),"",LOOKUP(A81,list_installations,'B.1.c. Installations'!$D$5:$D$505)) ->  | E81: =IF(ISBLANK(A81),"",LOOKUP(A81,list_installations,'B.1.c. Installations'!$E$5:$E$505)) ->  | F81: =IF(ISBLANK(A81),"",((LOOKUP(A81,list_installations,'B.1.c. Installations'!$I$5:$I$505)+LOOKUP(A81,list_installations,'B.1.c. Installations'!$K$5:$K$505)+LOOKUP(A81,list_installations,'B.1.c. Installations'!$M$5:$M$505))/3)) ->  | G81: =IF(ISBLANK(A81),"",((LOOKUP(A81,list_installations,'B.1.c. Installations'!$O$5:$O$505)+LOOKUP(A81,list_installations,'B.1.c. Installations'!$Q$5:$Q$505)+LOOKUP(A81,list_installations,'B.1.c. Installations'!$S$5:$S$505))/3)) ->  | N81: =IF(ISBLANK(A81),"",ROUND(M81*'Correction factor'!$B$7,0)) ->  | O81: =IF(ISBLANK(A81),"",ROUND(M81*'Correction factor'!$C$7,0)) ->  | P81: =IF(ISBLANK(A81),"",ROUND(M81*'Correction factor'!$D$7,0)) ->  | Q81: =IF(ISBLANK(A81),"",ROUND(M81*'Correction factor'!$E$7,0)) ->  | R81: =IF(ISBLANK(A81),"",ROUND(M81*'Correction factor'!$F$7,0)) ->  | S81: =IF(ISBLANK(A81),"",ROUND(M81*'Correction factor'!$G$7,0)) ->  | T81: =IF(ISBLANK(A81),"",ROUND(M81*'Correction factor'!$H$7,0)) ->  | U81: =IF(ISBLANK(A81),"",ROUND(M81*'Correction factor'!$I$7,0)) -> 
B82: =IF(ISBLANK(A82),"",LOOKUP(A82,list_installations,'B.1.c. Installations'!$B$5:$B$505)) ->  | C82: =IF(ISBLANK(A82),"",LOOKUP(A82,list_installations,'B.1.c. Installations'!$C$5:$C$505)) ->  | D82: =IF(ISBLANK(A82),"",LOOKUP(A82,list_installations,'B.1.c. Installations'!$D$5:$D$505)) ->  | E82: =IF(ISBLANK(A82),"",LOOKUP(A82,list_installations,'B.1.c. Installations'!$E$5:$E$505)) ->  | F82: =IF(ISBLANK(A82),"",((LOOKUP(A82,list_installations,'B.1.c. Installations'!$I$5:$I$505)+LOOKUP(A82,list_installations,'B.1.c. Installations'!$K$5:$K$505)+LOOKUP(A82,list_installations,'B.1.c. Installations'!$M$5:$M$505))/3)) ->  | G82: =IF(ISBLANK(A82),"",((LOOKUP(A82,list_installations,'B.1.c. Installations'!$O$5:$O$505)+LOOKUP(A82,list_installations,'B.1.c. Installations'!$Q$5:$Q$505)+LOOKUP(A82,list_installations,'B.1.c. Installations'!$S$5:$S$505))/3)) ->  | N82: =IF(ISBLANK(A82),"",ROUND(M82*'Correction factor'!$B$7,0)) ->  | O82: =IF(ISBLANK(A82),"",ROUND(M82*'Correction factor'!$C$7,0)) ->  | P82: =IF(ISBLANK(A82),"",ROUND(M82*'Correction factor'!$D$7,0)) ->  | Q82: =IF(ISBLANK(A82),"",ROUND(M82*'Correction factor'!$E$7,0)) ->  | R82: =IF(ISBLANK(A82),"",ROUND(M82*'Correction factor'!$F$7,0)) ->  | S82: =IF(ISBLANK(A82),"",ROUND(M82*'Correction factor'!$G$7,0)) ->  | T82: =IF(ISBLANK(A82),"",ROUND(M82*'Correction factor'!$H$7,0)) ->  | U82: =IF(ISBLANK(A82),"",ROUND(M82*'Correction factor'!$I$7,0)) -> 
B83: =IF(ISBLANK(A83),"",LOOKUP(A83,list_installations,'B.1.c. Installations'!$B$5:$B$505)) ->  | C83: =IF(ISBLANK(A83),"",LOOKUP(A83,list_installations,'B.1.c. Installations'!$C$5:$C$505)) ->  | D83: =IF(ISBLANK(A83),"",LOOKUP(A83,list_installations,'B.1.c. Installations'!$D$5:$D$505)) ->  | E83: =IF(ISBLANK(A83),"",LOOKUP(A83,list_installations,'B.1.c. Installations'!$E$5:$E$505)) ->  | F83: =IF(ISBLANK(A83),"",((LOOKUP(A83,list_installations,'B.1.c. Installations'!$I$5:$I$505)+LOOKUP(A83,list_installations,'B.1.c. Installations'!$K$5:$K$505)+LOOKUP(A83,list_installations,'B.1.c. Installations'!$M$5:$M$505))/3)) ->  | G83: =IF(ISBLANK(A83),"",((LOOKUP(A83,list_installations,'B.1.c. Installations'!$O$5:$O$505)+LOOKUP(A83,list_installations,'B.1.c. Installations'!$Q$5:$Q$505)+LOOKUP(A83,list_installations,'B.1.c. Installations'!$S$5:$S$505))/3)) ->  | N83: =IF(ISBLANK(A83),"",ROUND(M83*'Correction factor'!$B$7,0)) ->  | O83: =IF(ISBLANK(A83),"",ROUND(M83*'Correction factor'!$C$7,0)) ->  | P83: =IF(ISBLANK(A83),"",ROUND(M83*'Correction factor'!$D$7,0)) ->  | Q83: =IF(ISBLANK(A83),"",ROUND(M83*'Correction factor'!$E$7,0)) ->  | R83: =IF(ISBLANK(A83),"",ROUND(M83*'Correction factor'!$F$7,0)) ->  | S83: =IF(ISBLANK(A83),"",ROUND(M83*'Correction factor'!$G$7,0)) ->  | T83: =IF(ISBLANK(A83),"",ROUND(M83*'Correction factor'!$H$7,0)) ->  | U83: =IF(ISBLANK(A83),"",ROUND(M83*'Correction factor'!$I$7,0)) -> 
B84: =IF(ISBLANK(A84),"",LOOKUP(A84,list_installations,'B.1.c. Installations'!$B$5:$B$505)) ->  | C84: =IF(ISBLANK(A84),"",LOOKUP(A84,list_installations,'B.1.c. Installations'!$C$5:$C$505)) ->  | D84: =IF(ISBLANK(A84),"",LOOKUP(A84,list_installations,'B.1.c. Installations'!$D$5:$D$505)) ->  | E84: =IF(ISBLANK(A84),"",LOOKUP(A84,list_installations,'B.1.c. Installations'!$E$5:$E$505)) ->  | F84: =IF(ISBLANK(A84),"",((LOOKUP(A84,list_installations,'B.1.c. Installations'!$I$5:$I$505)+LOOKUP(A84,list_installations,'B.1.c. Installations'!$K$5:$K$505)+LOOKUP(A84,list_installations,'B.1.c. Installations'!$M$5:$M$505))/3)) ->  | G84: =IF(ISBLANK(A84),"",((LOOKUP(A84,list_installations,'B.1.c. Installations'!$O$5:$O$505)+LOOKUP(A84,list_installations,'B.1.c. Installations'!$Q$5:$Q$505)+LOOKUP(A84,list_installations,'B.1.c. Installations'!$S$5:$S$505))/3)) ->  | N84: =IF(ISBLANK(A84),"",ROUND(M84*'Correction factor'!$B$7,0)) ->  | O84: =IF(ISBLANK(A84),"",ROUND(M84*'Correction factor'!$C$7,0)) ->  | P84: =IF(ISBLANK(A84),"",ROUND(M84*'Correction factor'!$D$7,0)) ->  | Q84: =IF(ISBLANK(A84),"",ROUND(M84*'Correction factor'!$E$7,0)) ->  | R84: =IF(ISBLANK(A84),"",ROUND(M84*'Correction factor'!$F$7,0)) ->  | S84: =IF(ISBLANK(A84),"",ROUND(M84*'Correction factor'!$G$7,0)) ->  | T84: =IF(ISBLANK(A84),"",ROUND(M84*'Correction factor'!$H$7,0)) ->  | U84: =IF(ISBLANK(A84),"",ROUND(M84*'Correction factor'!$I$7,0)) -> 
B85: =IF(ISBLANK(A85),"",LOOKUP(A85,list_installations,'B.1.c. Installations'!$B$5:$B$505)) ->  | C85: =IF(ISBLANK(A85),"",LOOKUP(A85,list_installations,'B.1.c. Installations'!$C$5:$C$505)) ->  | D85: =IF(ISBLANK(A85),"",LOOKUP(A85,list_installations,'B.1.c. Installations'!$D$5:$D$505)) ->  | E85: =IF(ISBLANK(A85),"",LOOKUP(A85,list_installations,'B.1.c. Installations'!$E$5:$E$505)) ->  | F85: =IF(ISBLANK(A85),"",((LOOKUP(A85,list_installations,'B.1.c. Installations'!$I$5:$I$505)+LOOKUP(A85,list_installations,'B.1.c. Installations'!$K$5:$K$505)+LOOKUP(A85,list_installations,'B.1.c. Installations'!$M$5:$M$505))/3)) ->  | G85: =IF(ISBLANK(A85),"",((LOOKUP(A85,list_installations,'B.1.c. Installations'!$O$5:$O$505)+LOOKUP(A85,list_installations,'B.1.c. Installations'!$Q$5:$Q$505)+LOOKUP(A85,list_installations,'B.1.c. Installations'!$S$5:$S$505))/3)) ->  | N85: =IF(ISBLANK(A85),"",ROUND(M85*'Correction factor'!$B$7,0)) ->  | O85: =IF(ISBLANK(A85),"",ROUND(M85*'Correction factor'!$C$7,0)) ->  | P85: =IF(ISBLANK(A85),"",ROUND(M85*'Correction factor'!$D$7,0)) ->  | Q85: =IF(ISBLANK(A85),"",ROUND(M85*'Correction factor'!$E$7,0)) ->  | R85: =IF(ISBLANK(A85),"",ROUND(M85*'Correction factor'!$F$7,0)) ->  | S85: =IF(ISBLANK(A85),"",ROUND(M85*'Correction factor'!$G$7,0)) ->  | T85: =IF(ISBLANK(A85),"",ROUND(M85*'Correction factor'!$H$7,0)) ->  | U85: =IF(ISBLANK(A85),"",ROUND(M85*'Correction factor'!$I$7,0)) -> 
B86: =IF(ISBLANK(A86),"",LOOKUP(A86,list_installations,'B.1.c. Installations'!$B$5:$B$505)) ->  | C86: =IF(ISBLANK(A86),"",LOOKUP(A86,list_installations,'B.1.c. Installations'!$C$5:$C$505)) ->  | D86: =IF(ISBLANK(A86),"",LOOKUP(A86,list_installations,'B.1.c. Installations'!$D$5:$D$505)) ->  | E86: =IF(ISBLANK(A86),"",LOOKUP(A86,list_installations,'B.1.c. Installations'!$E$5:$E$505)) ->  | F86: =IF(ISBLANK(A86),"",((LOOKUP(A86,list_installations,'B.1.c. Installations'!$I$5:$I$505)+LOOKUP(A86,list_installations,'B.1.c. Installations'!$K$5:$K$505)+LOOKUP(A86,list_installations,'B.1.c. Installations'!$M$5:$M$505))/3)) ->  | G86: =IF(ISBLANK(A86),"",((LOOKUP(A86,list_installations,'B.1.c. Installations'!$O$5:$O$505)+LOOKUP(A86,list_installations,'B.1.c. Installations'!$Q$5:$Q$505)+LOOKUP(A86,list_installations,'B.1.c. Installations'!$S$5:$S$505))/3)) ->  | N86: =IF(ISBLANK(A86),"",ROUND(M86*'Correction factor'!$B$7,0)) ->  | O86: =IF(ISBLANK(A86),"",ROUND(M86*'Correction factor'!$C$7,0)) ->  | P86: =IF(ISBLANK(A86),"",ROUND(M86*'Correction factor'!$D$7,0)) ->  | Q86: =IF(ISBLANK(A86),"",ROUND(M86*'Correction factor'!$E$7,0)) ->  | R86: =IF(ISBLANK(A86),"",ROUND(M86*'Correction factor'!$F$7,0)) ->  | S86: =IF(ISBLANK(A86),"",ROUND(M86*'Correction factor'!$G$7,0)) ->  | T86: =IF(ISBLANK(A86),"",ROUND(M86*'Correction factor'!$H$7,0)) ->  | U86: =IF(ISBLANK(A86),"",ROUND(M86*'Correction factor'!$I$7,0)) -> 
B87: =IF(ISBLANK(A87),"",LOOKUP(A87,list_installations,'B.1.c. Installations'!$B$5:$B$505)) ->  | C87: =IF(ISBLANK(A87),"",LOOKUP(A87,list_installations,'B.1.c. Installations'!$C$5:$C$505)) ->  | D87: =IF(ISBLANK(A87),"",LOOKUP(A87,list_installations,'B.1.c. Installations'!$D$5:$D$505)) ->  | E87: =IF(ISBLANK(A87),"",LOOKUP(A87,list_installations,'B.1.c. Installations'!$E$5:$E$505)) ->  | F87: =IF(ISBLANK(A87),"",((LOOKUP(A87,list_installations,'B.1.c. Installations'!$I$5:$I$505)+LOOKUP(A87,list_installations,'B.1.c. Installations'!$K$5:$K$505)+LOOKUP(A87,list_installations,'B.1.c. Installations'!$M$5:$M$505))/3)) ->  | G87: =IF(ISBLANK(A87),"",((LOOKUP(A87,list_installations,'B.1.c. Installations'!$O$5:$O$505)+LOOKUP(A87,list_installations,'B.1.c. Installations'!$Q$5:$Q$505)+LOOKUP(A87,list_installations,'B.1.c. Installations'!$S$5:$S$505))/3)) ->  | N87: =IF(ISBLANK(A87),"",ROUND(M87*'Correction factor'!$B$7,0)) ->  | O87: =IF(ISBLANK(A87),"",ROUND(M87*'Correction factor'!$C$7,0)) ->  | P87: =IF(ISBLANK(A87),"",ROUND(M87*'Correction factor'!$D$7,0)) ->  | Q87: =IF(ISBLANK(A87),"",ROUND(M87*'Correction factor'!$E$7,0)) ->  | R87: =IF(ISBLANK(A87),"",ROUND(M87*'Correction factor'!$F$7,0)) ->  | S87: =IF(ISBLANK(A87),"",ROUND(M87*'Correction factor'!$G$7,0)) ->  | T87: =IF(ISBLANK(A87),"",ROUND(M87*'Correction factor'!$H$7,0)) ->  | U87: =IF(ISBLANK(A87),"",ROUND(M87*'Correction factor'!$I$7,0)) -> 
B88: =IF(ISBLANK(A88),"",LOOKUP(A88,list_installations,'B.1.c. Installations'!$B$5:$B$505)) ->  | C88: =IF(ISBLANK(A88),"",LOOKUP(A88,list_installations,'B.1.c. Installations'!$C$5:$C$505)) ->  | D88: =IF(ISBLANK(A88),"",LOOKUP(A88,list_installations,'B.1.c. Installations'!$D$5:$D$505)) ->  | E88: =IF(ISBLANK(A88),"",LOOKUP(A88,list_installations,'B.1.c. Installations'!$E$5:$E$505)) ->  | F88: =IF(ISBLANK(A88),"",((LOOKUP(A88,list_installations,'B.1.c. Installations'!$I$5:$I$505)+LOOKUP(A88,list_installations,'B.1.c. Installations'!$K$5:$K$505)+LOOKUP(A88,list_installations,'B.1.c. Installations'!$M$5:$M$505))/3)) ->  | G88: =IF(ISBLANK(A88),"",((LOOKUP(A88,list_installations,'B.1.c. Installations'!$O$5:$O$505)+LOOKUP(A88,list_installations,'B.1.c. Installations'!$Q$5:$Q$505)+LOOKUP(A88,list_installations,'B.1.c. Installations'!$S$5:$S$505))/3)) ->  | N88: =IF(ISBLANK(A88),"",ROUND(M88*'Correction factor'!$B$7,0)) ->  | O88: =IF(ISBLANK(A88),"",ROUND(M88*'Correction factor'!$C$7,0)) ->  | P88: =IF(ISBLANK(A88),"",ROUND(M88*'Correction factor'!$D$7,0)) ->  | Q88: =IF(ISBLANK(A88),"",ROUND(M88*'Correction factor'!$E$7,0)) ->  | R88: =IF(ISBLANK(A88),"",ROUND(M88*'Correction factor'!$F$7,0)) ->  | S88: =IF(ISBLANK(A88),"",ROUND(M88*'Correction factor'!$G$7,0)) ->  | T88: =IF(ISBLANK(A88),"",ROUND(M88*'Correction factor'!$H$7,0)) ->  | U88: =IF(ISBLANK(A88),"",ROUND(M88*'Correction factor'!$I$7,0)) -> 
B89: =IF(ISBLANK(A89),"",LOOKUP(A89,list_installations,'B.1.c. Installations'!$B$5:$B$505)) ->  | C89: =IF(ISBLANK(A89),"",LOOKUP(A89,list_installations,'B.1.c. Installations'!$C$5:$C$505)) ->  | D89: =IF(ISBLANK(A89),"",LOOKUP(A89,list_installations,'B.1.c. Installations'!$D$5:$D$505)) ->  | E89: =IF(ISBLANK(A89),"",LOOKUP(A89,list_installations,'B.1.c. Installations'!$E$5:$E$505)) ->  | F89: =IF(ISBLANK(A89),"",((LOOKUP(A89,list_installations,'B.1.c. Installations'!$I$5:$I$505)+LOOKUP(A89,list_installations,'B.1.c. Installations'!$K$5:$K$505)+LOOKUP(A89,list_installations,'B.1.c. Installations'!$M$5:$M$505))/3)) ->  | G89: =IF(ISBLANK(A89),"",((LOOKUP(A89,list_installations,'B.1.c. Installations'!$O$5:$O$505)+LOOKUP(A89,list_installations,'B.1.c. Installations'!$Q$5:$Q$505)+LOOKUP(A89,list_installations,'B.1.c. Installations'!$S$5:$S$505))/3)) ->  | N89: =IF(ISBLANK(A89),"",ROUND(M89*'Correction factor'!$B$7,0)) ->  | O89: =IF(ISBLANK(A89),"",ROUND(M89*'Correction factor'!$C$7,0)) ->  | P89: =IF(ISBLANK(A89),"",ROUND(M89*'Correction factor'!$D$7,0)) ->  | Q89: =IF(ISBLANK(A89),"",ROUND(M89*'Correction factor'!$E$7,0)) ->  | R89: =IF(ISBLANK(A89),"",ROUND(M89*'Correction factor'!$F$7,0)) ->  | S89: =IF(ISBLANK(A89),"",ROUND(M89*'Correction factor'!$G$7,0)) ->  | T89: =IF(ISBLANK(A89),"",ROUND(M89*'Correction factor'!$H$7,0)) ->  | U89: =IF(ISBLANK(A89),"",ROUND(M89*'Correction factor'!$I$7,0)) -> 
B90: =IF(ISBLANK(A90),"",LOOKUP(A90,list_installations,'B.1.c. Installations'!$B$5:$B$505)) ->  | C90: =IF(ISBLANK(A90),"",LOOKUP(A90,list_installations,'B.1.c. Installations'!$C$5:$C$505)) ->  | D90: =IF(ISBLANK(A90),"",LOOKUP(A90,list_installations,'B.1.c. Installations'!$D$5:$D$505)) ->  | E90: =IF(ISBLANK(A90),"",LOOKUP(A90,list_installations,'B.1.c. Installations'!$E$5:$E$505)) ->  | F90: =IF(ISBLANK(A90),"",((LOOKUP(A90,list_installations,'B.1.c. Installations'!$I$5:$I$505)+LOOKUP(A90,list_installations,'B.1.c. Installations'!$K$5:$K$505)+LOOKUP(A90,list_installations,'B.1.c. Installations'!$M$5:$M$505))/3)) ->  | G90: =IF(ISBLANK(A90),"",((LOOKUP(A90,list_installations,'B.1.c. Installations'!$O$5:$O$505)+LOOKUP(A90,list_installations,'B.1.c. Installations'!$Q$5:$Q$505)+LOOKUP(A90,list_installations,'B.1.c. Installations'!$S$5:$S$505))/3)) ->  | N90: =IF(ISBLANK(A90),"",ROUND(M90*'Correction factor'!$B$7,0)) ->  | O90: =IF(ISBLANK(A90),"",ROUND(M90*'Correction factor'!$C$7,0)) ->  | P90: =IF(ISBLANK(A90),"",ROUND(M90*'Correction factor'!$D$7,0)) ->  | Q90: =IF(ISBLANK(A90),"",ROUND(M90*'Correction factor'!$E$7,0)) ->  | R90: =IF(ISBLANK(A90),"",ROUND(M90*'Correction factor'!$F$7,0)) ->  | S90: =IF(ISBLANK(A90),"",ROUND(M90*'Correction factor'!$G$7,0)) ->  | T90: =IF(ISBLANK(A90),"",ROUND(M90*'Correction factor'!$H$7,0)) ->  | U90: =IF(ISBLANK(A90),"",ROUND(M90*'Correction factor'!$I$7,0)) -> 
B91: =IF(ISBLANK(A91),"",LOOKUP(A91,list_installations,'B.1.c. Installations'!$B$5:$B$505)) ->  | C91: =IF(ISBLANK(A91),"",LOOKUP(A91,list_installations,'B.1.c. Installations'!$C$5:$C$505)) ->  | D91: =IF(ISBLANK(A91),"",LOOKUP(A91,list_installations,'B.1.c. Installations'!$D$5:$D$505)) ->  | E91: =IF(ISBLANK(A91),"",LOOKUP(A91,list_installations,'B.1.c. Installations'!$E$5:$E$505)) ->  | F91: =IF(ISBLANK(A91),"",((LOOKUP(A91,list_installations,'B.1.c. Installations'!$I$5:$I$505)+LOOKUP(A91,list_installations,'B.1.c. Installations'!$K$5:$K$505)+LOOKUP(A91,list_installations,'B.1.c. Installations'!$M$5:$M$505))/3)) ->  | G91: =IF(ISBLANK(A91),"",((LOOKUP(A91,list_installations,'B.1.c. Installations'!$O$5:$O$505)+LOOKUP(A91,list_installations,'B.1.c. Installations'!$Q$5:$Q$505)+LOOKUP(A91,list_installations,'B.1.c. Installations'!$S$5:$S$505))/3)) ->  | N91: =IF(ISBLANK(A91),"",ROUND(M91*'Correction factor'!$B$7,0)) ->  | O91: =IF(ISBLANK(A91),"",ROUND(M91*'Correction factor'!$C$7,0)) ->  | P91: =IF(ISBLANK(A91),"",ROUND(M91*'Correction factor'!$D$7,0)) ->  | Q91: =IF(ISBLANK(A91),"",ROUND(M91*'Correction factor'!$E$7,0)) ->  | R91: =IF(ISBLANK(A91),"",ROUND(M91*'Correction factor'!$F$7,0)) ->  | S91: =IF(ISBLANK(A91),"",ROUND(M91*'Correction factor'!$G$7,0)) ->  | T91: =IF(ISBLANK(A91),"",ROUND(M91*'Correction factor'!$H$7,0)) ->  | U91: =IF(ISBLANK(A91),"",ROUND(M91*'Correction factor'!$I$7,0)) -> 
B92: =IF(ISBLANK(A92),"",LOOKUP(A92,list_installations,'B.1.c. Installations'!$B$5:$B$505)) ->  | C92: =IF(ISBLANK(A92),"",LOOKUP(A92,list_installations,'B.1.c. Installations'!$C$5:$C$505)) ->  | D92: =IF(ISBLANK(A92),"",LOOKUP(A92,list_installations,'B.1.c. Installations'!$D$5:$D$505)) ->  | E92: =IF(ISBLANK(A92),"",LOOKUP(A92,list_installations,'B.1.c. Installations'!$E$5:$E$505)) ->  | F92: =IF(ISBLANK(A92),"",((LOOKUP(A92,list_installations,'B.1.c. Installations'!$I$5:$I$505)+LOOKUP(A92,list_installations,'B.1.c. Installations'!$K$5:$K$505)+LOOKUP(A92,list_installations,'B.1.c. Installations'!$M$5:$M$505))/3)) ->  | G92: =IF(ISBLANK(A92),"",((LOOKUP(A92,list_installations,'B.1.c. Installations'!$O$5:$O$505)+LOOKUP(A92,list_installations,'B.1.c. Installations'!$Q$5:$Q$505)+LOOKUP(A92,list_installations,'B.1.c. Installations'!$S$5:$S$505))/3)) ->  | N92: =IF(ISBLANK(A92),"",ROUND(M92*'Correction factor'!$B$7,0)) ->  | O92: =IF(ISBLANK(A92),"",ROUND(M92*'Correction factor'!$C$7,0)) ->  | P92: =IF(ISBLANK(A92),"",ROUND(M92*'Correction factor'!$D$7,0)) ->  | Q92: =IF(ISBLANK(A92),"",ROUND(M92*'Correction factor'!$E$7,0)) ->  | R92: =IF(ISBLANK(A92),"",ROUND(M92*'Correction factor'!$F$7,0)) ->  | S92: =IF(ISBLANK(A92),"",ROUND(M92*'Correction factor'!$G$7,0)) ->  | T92: =IF(ISBLANK(A92),"",ROUND(M92*'Correction factor'!$H$7,0)) ->  | U92: =IF(ISBLANK(A92),"",ROUND(M92*'Correction factor'!$I$7,0)) -> 
B93: =IF(ISBLANK(A93),"",LOOKUP(A93,list_installations,'B.1.c. Installations'!$B$5:$B$505)) ->  | C93: =IF(ISBLANK(A93),"",LOOKUP(A93,list_installations,'B.1.c. Installations'!$C$5:$C$505)) ->  | D93: =IF(ISBLANK(A93),"",LOOKUP(A93,list_installations,'B.1.c. Installations'!$D$5:$D$505)) ->  | E93: =IF(ISBLANK(A93),"",LOOKUP(A93,list_installations,'B.1.c. Installations'!$E$5:$E$505)) ->  | F93: =IF(ISBLANK(A93),"",((LOOKUP(A93,list_installations,'B.1.c. Installations'!$I$5:$I$505)+LOOKUP(A93,list_installations,'B.1.c. Installations'!$K$5:$K$505)+LOOKUP(A93,list_installations,'B.1.c. Installations'!$M$5:$M$505))/3)) ->  | G93: =IF(ISBLANK(A93),"",((LOOKUP(A93,list_installations,'B.1.c. Installations'!$O$5:$O$505)+LOOKUP(A93,list_installations,'B.1.c. Installations'!$Q$5:$Q$505)+LOOKUP(A93,list_installations,'B.1.c. Installations'!$S$5:$S$505))/3)) ->  | N93: =IF(ISBLANK(A93),"",ROUND(M93*'Correction factor'!$B$7,0)) ->  | O93: =IF(ISBLANK(A93),"",ROUND(M93*'Correction factor'!$C$7,0)) ->  | P93: =IF(ISBLANK(A93),"",ROUND(M93*'Correction factor'!$D$7,0)) ->  | Q93: =IF(ISBLANK(A93),"",ROUND(M93*'Correction factor'!$E$7,0)) ->  | R93: =IF(ISBLANK(A93),"",ROUND(M93*'Correction factor'!$F$7,0)) ->  | S93: =IF(ISBLANK(A93),"",ROUND(M93*'Correction factor'!$G$7,0)) ->  | T93: =IF(ISBLANK(A93),"",ROUND(M93*'Correction factor'!$H$7,0)) ->  | U93: =IF(ISBLANK(A93),"",ROUND(M93*'Correction factor'!$I$7,0)) -> 
B94: =IF(ISBLANK(A94),"",LOOKUP(A94,list_installations,'B.1.c. Installations'!$B$5:$B$505)) ->  | C94: =IF(ISBLANK(A94),"",LOOKUP(A94,list_installations,'B.1.c. Installations'!$C$5:$C$505)) ->  | D94: =IF(ISBLANK(A94),"",LOOKUP(A94,list_installations,'B.1.c. Installations'!$D$5:$D$505)) ->  | E94: =IF(ISBLANK(A94),"",LOOKUP(A94,list_installations,'B.1.c. Installations'!$E$5:$E$505)) ->  | F94: =IF(ISBLANK(A94),"",((LOOKUP(A94,list_installations,'B.1.c. Installations'!$I$5:$I$505)+LOOKUP(A94,list_installations,'B.1.c. Installations'!$K$5:$K$505)+LOOKUP(A94,list_installations,'B.1.c. Installations'!$M$5:$M$505))/3)) ->  | G94: =IF(ISBLANK(A94),"",((LOOKUP(A94,list_installations,'B.1.c. Installations'!$O$5:$O$505)+LOOKUP(A94,list_installations,'B.1.c. Installations'!$Q$5:$Q$505)+LOOKUP(A94,list_installations,'B.1.c. Installations'!$S$5:$S$505))/3)) ->  | N94: =IF(ISBLANK(A94),"",ROUND(M94*'Correction factor'!$B$7,0)) ->  | O94: =IF(ISBLANK(A94),"",ROUND(M94*'Correction factor'!$C$7,0)) ->  | P94: =IF(ISBLANK(A94),"",ROUND(M94*'Correction factor'!$D$7,0)) ->  | Q94: =IF(ISBLANK(A94),"",ROUND(M94*'Correction factor'!$E$7,0)) ->  | R94: =IF(ISBLANK(A94),"",ROUND(M94*'Correction factor'!$F$7,0)) ->  | S94: =IF(ISBLANK(A94),"",ROUND(M94*'Correction factor'!$G$7,0)) ->  | T94: =IF(ISBLANK(A94),"",ROUND(M94*'Correction factor'!$H$7,0)) ->  | U94: =IF(ISBLANK(A94),"",ROUND(M94*'Correction factor'!$I$7,0)) -> 
B95: =IF(ISBLANK(A95),"",LOOKUP(A95,list_installations,'B.1.c. Installations'!$B$5:$B$505)) ->  | C95: =IF(ISBLANK(A95),"",LOOKUP(A95,list_installations,'B.1.c. Installations'!$C$5:$C$505)) ->  | D95: =IF(ISBLANK(A95),"",LOOKUP(A95,list_installations,'B.1.c. Installations'!$D$5:$D$505)) ->  | E95: =IF(ISBLANK(A95),"",LOOKUP(A95,list_installations,'B.1.c. Installations'!$E$5:$E$505)) ->  | F95: =IF(ISBLANK(A95),"",((LOOKUP(A95,list_installations,'B.1.c. Installations'!$I$5:$I$505)+LOOKUP(A95,list_installations,'B.1.c. Installations'!$K$5:$K$505)+LOOKUP(A95,list_installations,'B.1.c. Installations'!$M$5:$M$505))/3)) ->  | G95: =IF(ISBLANK(A95),"",((LOOKUP(A95,list_installations,'B.1.c. Installations'!$O$5:$O$505)+LOOKUP(A95,list_installations,'B.1.c. Installations'!$Q$5:$Q$505)+LOOKUP(A95,list_installations,'B.1.c. Installations'!$S$5:$S$505))/3)) ->  | N95: =IF(ISBLANK(A95),"",ROUND(M95*'Correction factor'!$B$7,0)) ->  | O95: =IF(ISBLANK(A95),"",ROUND(M95*'Correction factor'!$C$7,0)) ->  | P95: =IF(ISBLANK(A95),"",ROUND(M95*'Correction factor'!$D$7,0)) ->  | Q95: =IF(ISBLANK(A95),"",ROUND(M95*'Correction factor'!$E$7,0)) ->  | R95: =IF(ISBLANK(A95),"",ROUND(M95*'Correction factor'!$F$7,0)) ->  | S95: =IF(ISBLANK(A95),"",ROUND(M95*'Correction factor'!$G$7,0)) ->  | T95: =IF(ISBLANK(A95),"",ROUND(M95*'Correction factor'!$H$7,0)) ->  | U95: =IF(ISBLANK(A95),"",ROUND(M95*'Correction factor'!$I$7,0)) -> 
B96: =IF(ISBLANK(A96),"",LOOKUP(A96,list_installations,'B.1.c. Installations'!$B$5:$B$505)) ->  | C96: =IF(ISBLANK(A96),"",LOOKUP(A96,list_installations,'B.1.c. Installations'!$C$5:$C$505)) ->  | D96: =IF(ISBLANK(A96),"",LOOKUP(A96,list_installations,'B.1.c. Installations'!$D$5:$D$505)) ->  | E96: =IF(ISBLANK(A96),"",LOOKUP(A96,list_installations,'B.1.c. Installations'!$E$5:$E$505)) ->  | F96: =IF(ISBLANK(A96),"",((LOOKUP(A96,list_installations,'B.1.c. Installations'!$I$5:$I$505)+LOOKUP(A96,list_installations,'B.1.c. Installations'!$K$5:$K$505)+LOOKUP(A96,list_installations,'B.1.c. Installations'!$M$5:$M$505))/3)) ->  | G96: =IF(ISBLANK(A96),"",((LOOKUP(A96,list_installations,'B.1.c. Installations'!$O$5:$O$505)+LOOKUP(A96,list_installations,'B.1.c. Installations'!$Q$5:$Q$505)+LOOKUP(A96,list_installations,'B.1.c. Installations'!$S$5:$S$505))/3)) ->  | N96: =IF(ISBLANK(A96),"",ROUND(M96*'Correction factor'!$B$7,0)) ->  | O96: =IF(ISBLANK(A96),"",ROUND(M96*'Correction factor'!$C$7,0)) ->  | P96: =IF(ISBLANK(A96),"",ROUND(M96*'Correction factor'!$D$7,0)) ->  | Q96: =IF(ISBLANK(A96),"",ROUND(M96*'Correction factor'!$E$7,0)) ->  | R96: =IF(ISBLANK(A96),"",ROUND(M96*'Correction factor'!$F$7,0)) ->  | S96: =IF(ISBLANK(A96),"",ROUND(M96*'Correction factor'!$G$7,0)) ->  | T96: =IF(ISBLANK(A96),"",ROUND(M96*'Correction factor'!$H$7,0)) ->  | U96: =IF(ISBLANK(A96),"",ROUND(M96*'Correction factor'!$I$7,0)) -> 
B97: =IF(ISBLANK(A97),"",LOOKUP(A97,list_installations,'B.1.c. Installations'!$B$5:$B$505)) ->  | C97: =IF(ISBLANK(A97),"",LOOKUP(A97,list_installations,'B.1.c. Installations'!$C$5:$C$505)) ->  | D97: =IF(ISBLANK(A97),"",LOOKUP(A97,list_installations,'B.1.c. Installations'!$D$5:$D$505)) ->  | E97: =IF(ISBLANK(A97),"",LOOKUP(A97,list_installations,'B.1.c. Installations'!$E$5:$E$505)) ->  | F97: =IF(ISBLANK(A97),"",((LOOKUP(A97,list_installations,'B.1.c. Installations'!$I$5:$I$505)+LOOKUP(A97,list_installations,'B.1.c. Installations'!$K$5:$K$505)+LOOKUP(A97,list_installations,'B.1.c. Installations'!$M$5:$M$505))/3)) ->  | G97: =IF(ISBLANK(A97),"",((LOOKUP(A97,list_installations,'B.1.c. Installations'!$O$5:$O$505)+LOOKUP(A97,list_installations,'B.1.c. Installations'!$Q$5:$Q$505)+LOOKUP(A97,list_installations,'B.1.c. Installations'!$S$5:$S$505))/3)) ->  | N97: =IF(ISBLANK(A97),"",ROUND(M97*'Correction factor'!$B$7,0)) ->  | O97: =IF(ISBLANK(A97),"",ROUND(M97*'Correction factor'!$C$7,0)) ->  | P97: =IF(ISBLANK(A97),"",ROUND(M97*'Correction factor'!$D$7,0)) ->  | Q97: =IF(ISBLANK(A97),"",ROUND(M97*'Correction factor'!$E$7,0)) ->  | R97: =IF(ISBLANK(A97),"",ROUND(M97*'Correction factor'!$F$7,0)) ->  | S97: =IF(ISBLANK(A97),"",ROUND(M97*'Correction factor'!$G$7,0)) ->  | T97: =IF(ISBLANK(A97),"",ROUND(M97*'Correction factor'!$H$7,0)) ->  | U97: =IF(ISBLANK(A97),"",ROUND(M97*'Correction factor'!$I$7,0)) -> 
B98: =IF(ISBLANK(A98),"",LOOKUP(A98,list_installations,'B.1.c. Installations'!$B$5:$B$505)) ->  | C98: =IF(ISBLANK(A98),"",LOOKUP(A98,list_installations,'B.1.c. Installations'!$C$5:$C$505)) ->  | D98: =IF(ISBLANK(A98),"",LOOKUP(A98,list_installations,'B.1.c. Installations'!$D$5:$D$505)) ->  | E98: =IF(ISBLANK(A98),"",LOOKUP(A98,list_installations,'B.1.c. Installations'!$E$5:$E$505)) ->  | F98: =IF(ISBLANK(A98),"",((LOOKUP(A98,list_installations,'B.1.c. Installations'!$I$5:$I$505)+LOOKUP(A98,list_installations,'B.1.c. Installations'!$K$5:$K$505)+LOOKUP(A98,list_installations,'B.1.c. Installations'!$M$5:$M$505))/3)) ->  | G98: =IF(ISBLANK(A98),"",((LOOKUP(A98,list_installations,'B.1.c. Installations'!$O$5:$O$505)+LOOKUP(A98,list_installations,'B.1.c. Installations'!$Q$5:$Q$505)+LOOKUP(A98,list_installations,'B.1.c. Installations'!$S$5:$S$505))/3)) ->  | N98: =IF(ISBLANK(A98),"",ROUND(M98*'Correction factor'!$B$7,0)) ->  | O98: =IF(ISBLANK(A98),"",ROUND(M98*'Correction factor'!$C$7,0)) ->  | P98: =IF(ISBLANK(A98),"",ROUND(M98*'Correction factor'!$D$7,0)) ->  | Q98: =IF(ISBLANK(A98),"",ROUND(M98*'Correction factor'!$E$7,0)) ->  | R98: =IF(ISBLANK(A98),"",ROUND(M98*'Correction factor'!$F$7,0)) ->  | S98: =IF(ISBLANK(A98),"",ROUND(M98*'Correction factor'!$G$7,0)) ->  | T98: =IF(ISBLANK(A98),"",ROUND(M98*'Correction factor'!$H$7,0)) ->  | U98: =IF(ISBLANK(A98),"",ROUND(M98*'Correction factor'!$I$7,0)) -> 
B99: =IF(ISBLANK(A99),"",LOOKUP(A99,list_installations,'B.1.c. Installations'!$B$5:$B$505)) ->  | C99: =IF(ISBLANK(A99),"",LOOKUP(A99,list_installations,'B.1.c. Installations'!$C$5:$C$505)) ->  | D99: =IF(ISBLANK(A99),"",LOOKUP(A99,list_installations,'B.1.c. Installations'!$D$5:$D$505)) ->  | E99: =IF(ISBLANK(A99),"",LOOKUP(A99,list_installations,'B.1.c. Installations'!$E$5:$E$505)) ->  | F99: =IF(ISBLANK(A99),"",((LOOKUP(A99,list_installations,'B.1.c. Installations'!$I$5:$I$505)+LOOKUP(A99,list_installations,'B.1.c. Installations'!$K$5:$K$505)+LOOKUP(A99,list_installations,'B.1.c. Installations'!$M$5:$M$505))/3)) ->  | G99: =IF(ISBLANK(A99),"",((LOOKUP(A99,list_installations,'B.1.c. Installations'!$O$5:$O$505)+LOOKUP(A99,list_installations,'B.1.c. Installations'!$Q$5:$Q$505)+LOOKUP(A99,list_installations,'B.1.c. Installations'!$S$5:$S$505))/3)) ->  | N99: =IF(ISBLANK(A99),"",ROUND(M99*'Correction factor'!$B$7,0)) ->  | O99: =IF(ISBLANK(A99),"",ROUND(M99*'Correction factor'!$C$7,0)) ->  | P99: =IF(ISBLANK(A99),"",ROUND(M99*'Correction factor'!$D$7,0)) ->  | Q99: =IF(ISBLANK(A99),"",ROUND(M99*'Correction factor'!$E$7,0)) ->  | R99: =IF(ISBLANK(A99),"",ROUND(M99*'Correction factor'!$F$7,0)) ->  | S99: =IF(ISBLANK(A99),"",ROUND(M99*'Correction factor'!$G$7,0)) ->  | T99: =IF(ISBLANK(A99),"",ROUND(M99*'Correction factor'!$H$7,0)) ->  | U99: =IF(ISBLANK(A99),"",ROUND(M99*'Correction factor'!$I$7,0)) -> 
B100: =IF(ISBLANK(A100),"",LOOKUP(A100,list_installations,'B.1.c. Installations'!$B$5:$B$505)) ->  | C100: =IF(ISBLANK(A100),"",LOOKUP(A100,list_installations,'B.1.c. Installations'!$C$5:$C$505)) ->  | D100: =IF(ISBLANK(A100),"",LOOKUP(A100,list_installations,'B.1.c. Installations'!$D$5:$D$505)) ->  | E100: =IF(ISBLANK(A100),"",LOOKUP(A100,list_installations,'B.1.c. Installations'!$E$5:$E$505)) ->  | F100: =IF(ISBLANK(A100),"",((LOOKUP(A100,list_installations,'B.1.c. Installations'!$I$5:$I$505)+LOOKUP(A100,list_installations,'B.1.c. Installations'!$K$5:$K$505)+LOOKUP(A100,list_installations,'B.1.c. Installations'!$M$5:$M$505))/3)) ->  | G100: =IF(ISBLANK(A100),"",((LOOKUP(A100,list_installations,'B.1.c. Installations'!$O$5:$O$505)+LOOKUP(A100,list_installations,'B.1.c. Installations'!$Q$5:$Q$505)+LOOKUP(A100,list_installations,'B.1.c. Installations'!$S$5:$S$505))/3)) ->  | N100: =IF(ISBLANK(A100),"",ROUND(M100*'Correction factor'!$B$7,0)) ->  | O100: =IF(ISBLANK(A100),"",ROUND(M100*'Correction factor'!$C$7,0)) ->  | P100: =IF(ISBLANK(A100),"",ROUND(M100*'Correction factor'!$D$7,0)) ->  | Q100: =IF(ISBLANK(A100),"",ROUND(M100*'Correction factor'!$E$7,0)) ->  | R100: =IF(ISBLANK(A100),"",ROUND(M100*'Correction factor'!$F$7,0)) ->  | S100: =IF(ISBLANK(A100),"",ROUND(M100*'Correction factor'!$G$7,0)) ->  | T100: =IF(ISBLANK(A100),"",ROUND(M100*'Correction factor'!$H$7,0)) ->  | U100: =IF(ISBLANK(A100),"",ROUND(M100*'Correction factor'!$I$7,0)) -> 
B101: =IF(ISBLANK(A101),"",LOOKUP(A101,list_installations,'B.1.c. Installations'!$B$5:$B$505)) ->  | C101: =IF(ISBLANK(A101),"",LOOKUP(A101,list_installations,'B.1.c. Installations'!$C$5:$C$505)) ->  | D101: =IF(ISBLANK(A101),"",LOOKUP(A101,list_installations,'B.1.c. Installations'!$D$5:$D$505)) ->  | E101: =IF(ISBLANK(A101),"",LOOKUP(A101,list_installations,'B.1.c. Installations'!$E$5:$E$505)) ->  | F101: =IF(ISBLANK(A101),"",((LOOKUP(A101,list_installations,'B.1.c. Installations'!$I$5:$I$505)+LOOKUP(A101,list_installations,'B.1.c. Installations'!$K$5:$K$505)+LOOKUP(A101,list_installations,'B.1.c. Installations'!$M$5:$M$505))/3)) ->  | G101: =IF(ISBLANK(A101),"",((LOOKUP(A101,list_installations,'B.1.c. Installations'!$O$5:$O$505)+LOOKUP(A101,list_installations,'B.1.c. Installations'!$Q$5:$Q$505)+LOOKUP(A101,list_installations,'B.1.c. Installations'!$S$5:$S$505))/3)) ->  | N101: =IF(ISBLANK(A101),"",ROUND(M101*'Correction factor'!$B$7,0)) ->  | O101: =IF(ISBLANK(A101),"",ROUND(M101*'Correction factor'!$C$7,0)) ->  | P101: =IF(ISBLANK(A101),"",ROUND(M101*'Correction factor'!$D$7,0)) ->  | Q101: =IF(ISBLANK(A101),"",ROUND(M101*'Correction factor'!$E$7,0)) ->  | R101: =IF(ISBLANK(A101),"",ROUND(M101*'Correction factor'!$F$7,0)) ->  | S101: =IF(ISBLANK(A101),"",ROUND(M101*'Correction factor'!$G$7,0)) ->  | T101: =IF(ISBLANK(A101),"",ROUND(M101*'Correction factor'!$H$7,0)) ->  | U101: =IF(ISBLANK(A101),"",ROUND(M101*'Correction factor'!$I$7,0)) -> 
B102: =IF(ISBLANK(A102),"",LOOKUP(A102,list_installations,'B.1.c. Installations'!$B$5:$B$505)) ->  | C102: =IF(ISBLANK(A102),"",LOOKUP(A102,list_installations,'B.1.c. Installations'!$C$5:$C$505)) ->  | D102: =IF(ISBLANK(A102),"",LOOKUP(A102,list_installations,'B.1.c. Installations'!$D$5:$D$505)) ->  | E102: =IF(ISBLANK(A102),"",LOOKUP(A102,list_installations,'B.1.c. Installations'!$E$5:$E$505)) ->  | F102: =IF(ISBLANK(A102),"",((LOOKUP(A102,list_installations,'B.1.c. Installations'!$I$5:$I$505)+LOOKUP(A102,list_installations,'B.1.c. Installations'!$K$5:$K$505)+LOOKUP(A102,list_installations,'B.1.c. Installations'!$M$5:$M$505))/3)) ->  | G102: =IF(ISBLANK(A102),"",((LOOKUP(A102,list_installations,'B.1.c. Installations'!$O$5:$O$505)+LOOKUP(A102,list_installations,'B.1.c. Installations'!$Q$5:$Q$505)+LOOKUP(A102,list_installations,'B.1.c. Installations'!$S$5:$S$505))/3)) ->  | N102: =IF(ISBLANK(A102),"",ROUND(M102*'Correction factor'!$B$7,0)) ->  | O102: =IF(ISBLANK(A102),"",ROUND(M102*'Correction factor'!$C$7,0)) ->  | P102: =IF(ISBLANK(A102),"",ROUND(M102*'Correction factor'!$D$7,0)) ->  | Q102: =IF(ISBLANK(A102),"",ROUND(M102*'Correction factor'!$E$7,0)) ->  | R102: =IF(ISBLANK(A102),"",ROUND(M102*'Correction factor'!$F$7,0)) ->  | S102: =IF(ISBLANK(A102),"",ROUND(M102*'Correction factor'!$G$7,0)) ->  | T102: =IF(ISBLANK(A102),"",ROUND(M102*'Correction factor'!$H$7,0)) ->  | U102: =IF(ISBLANK(A102),"",ROUND(M102*'Correction factor'!$I$7,0)) -> 
B103: =IF(ISBLANK(A103),"",LOOKUP(A103,list_installations,'B.1.c. Installations'!$B$5:$B$505)) ->  | C103: =IF(ISBLANK(A103),"",LOOKUP(A103,list_installations,'B.1.c. Installations'!$C$5:$C$505)) ->  | D103: =IF(ISBLANK(A103),"",LOOKUP(A103,list_installations,'B.1.c. Installations'!$D$5:$D$505)) ->  | E103: =IF(ISBLANK(A103),"",LOOKUP(A103,list_installations,'B.1.c. Installations'!$E$5:$E$505)) ->  | F103: =IF(ISBLANK(A103),"",((LOOKUP(A103,list_installations,'B.1.c. Installations'!$I$5:$I$505)+LOOKUP(A103,list_installations,'B.1.c. Installations'!$K$5:$K$505)+LOOKUP(A103,list_installations,'B.1.c. Installations'!$M$5:$M$505))/3)) ->  | G103: =IF(ISBLANK(A103),"",((LOOKUP(A103,list_installations,'B.1.c. Installations'!$O$5:$O$505)+LOOKUP(A103,list_installations,'B.1.c. Installations'!$Q$5:$Q$505)+LOOKUP(A103,list_installations,'B.1.c. Installations'!$S$5:$S$505))/3)) ->  | N103: =IF(ISBLANK(A103),"",ROUND(M103*'Correction factor'!$B$7,0)) ->  | O103: =IF(ISBLANK(A103),"",ROUND(M103*'Correction factor'!$C$7,0)) ->  | P103: =IF(ISBLANK(A103),"",ROUND(M103*'Correction factor'!$D$7,0)) ->  | Q103: =IF(ISBLANK(A103),"",ROUND(M103*'Correction factor'!$E$7,0)) ->  | R103: =IF(ISBLANK(A103),"",ROUND(M103*'Correction factor'!$F$7,0)) ->  | S103: =IF(ISBLANK(A103),"",ROUND(M103*'Correction factor'!$G$7,0)) ->  | T103: =IF(ISBLANK(A103),"",ROUND(M103*'Correction factor'!$H$7,0)) ->  | U103: =IF(ISBLANK(A103),"",ROUND(M103*'Correction factor'!$I$7,0)) -> 
B104: =IF(ISBLANK(A104),"",LOOKUP(A104,list_installations,'B.1.c. Installations'!$B$5:$B$505)) ->  | C104: =IF(ISBLANK(A104),"",LOOKUP(A104,list_installations,'B.1.c. Installations'!$C$5:$C$505)) ->  | D104: =IF(ISBLANK(A104),"",LOOKUP(A104,list_installations,'B.1.c. Installations'!$D$5:$D$505)) ->  | E104: =IF(ISBLANK(A104),"",LOOKUP(A104,list_installations,'B.1.c. Installations'!$E$5:$E$505)) ->  | F104: =IF(ISBLANK(A104),"",((LOOKUP(A104,list_installations,'B.1.c. Installations'!$I$5:$I$505)+LOOKUP(A104,list_installations,'B.1.c. Installations'!$K$5:$K$505)+LOOKUP(A104,list_installations,'B.1.c. Installations'!$M$5:$M$505))/3)) ->  | G104: =IF(ISBLANK(A104),"",((LOOKUP(A104,list_installations,'B.1.c. Installations'!$O$5:$O$505)+LOOKUP(A104,list_installations,'B.1.c. Installations'!$Q$5:$Q$505)+LOOKUP(A104,list_installations,'B.1.c. Installations'!$S$5:$S$505))/3)) ->  | N104: =IF(ISBLANK(A104),"",ROUND(M104*'Correction factor'!$B$7,0)) ->  | O104: =IF(ISBLANK(A104),"",ROUND(M104*'Correction factor'!$C$7,0)) ->  | P104: =IF(ISBLANK(A104),"",ROUND(M104*'Correction factor'!$D$7,0)) ->  | Q104: =IF(ISBLANK(A104),"",ROUND(M104*'Correction factor'!$E$7,0)) ->  | R104: =IF(ISBLANK(A104),"",ROUND(M104*'Correction factor'!$F$7,0)) ->  | S104: =IF(ISBLANK(A104),"",ROUND(M104*'Correction factor'!$G$7,0)) ->  | T104: =IF(ISBLANK(A104),"",ROUND(M104*'Correction factor'!$H$7,0)) ->  | U104: =IF(ISBLANK(A104),"",ROUND(M104*'Correction factor'!$I$7,0)) -> 
B105: =IF(ISBLANK(A105),"",LOOKUP(A105,list_installations,'B.1.c. Installations'!$B$5:$B$505)) ->  | C105: =IF(ISBLANK(A105),"",LOOKUP(A105,list_installations,'B.1.c. Installations'!$C$5:$C$505)) ->  | D105: =IF(ISBLANK(A105),"",LOOKUP(A105,list_installations,'B.1.c. Installations'!$D$5:$D$505)) ->  | E105: =IF(ISBLANK(A105),"",LOOKUP(A105,list_installations,'B.1.c. Installations'!$E$5:$E$505)) ->  | F105: =IF(ISBLANK(A105),"",((LOOKUP(A105,list_installations,'B.1.c. Installations'!$I$5:$I$505)+LOOKUP(A105,list_installations,'B.1.c. Installations'!$K$5:$K$505)+LOOKUP(A105,list_installations,'B.1.c. Installations'!$M$5:$M$505))/3)) ->  | G105: =IF(ISBLANK(A105),"",((LOOKUP(A105,list_installations,'B.1.c. Installations'!$O$5:$O$505)+LOOKUP(A105,list_installations,'B.1.c. Installations'!$Q$5:$Q$505)+LOOKUP(A105,list_installations,'B.1.c. Installations'!$S$5:$S$505))/3)) ->  | N105: =IF(ISBLANK(A105),"",ROUND(M105*'Correction factor'!$B$7,0)) ->  | O105: =IF(ISBLANK(A105),"",ROUND(M105*'Correction factor'!$C$7,0)) ->  | P105: =IF(ISBLANK(A105),"",ROUND(M105*'Correction factor'!$D$7,0)) ->  | Q105: =IF(ISBLANK(A105),"",ROUND(M105*'Correction factor'!$E$7,0)) ->  | R105: =IF(ISBLANK(A105),"",ROUND(M105*'Correction factor'!$F$7,0)) ->  | S105: =IF(ISBLANK(A105),"",ROUND(M105*'Correction factor'!$G$7,0)) ->  | T105: =IF(ISBLANK(A105),"",ROUND(M105*'Correction factor'!$H$7,0)) ->  | U105: =IF(ISBLANK(A105),"",ROUND(M105*'Correction factor'!$I$7,0)) -> 
B106: =IF(ISBLANK(A106),"",LOOKUP(A106,list_installations,'B.1.c. Installations'!$B$5:$B$505)) ->  | C106: =IF(ISBLANK(A106),"",LOOKUP(A106,list_installations,'B.1.c. Installations'!$C$5:$C$505)) ->  | D106: =IF(ISBLANK(A106),"",LOOKUP(A106,list_installations,'B.1.c. Installations'!$D$5:$D$505)) ->  | E106: =IF(ISBLANK(A106),"",LOOKUP(A106,list_installations,'B.1.c. Installations'!$E$5:$E$505)) ->  | F106: =IF(ISBLANK(A106),"",((LOOKUP(A106,list_installations,'B.1.c. Installations'!$I$5:$I$505)+LOOKUP(A106,list_installations,'B.1.c. Installations'!$K$5:$K$505)+LOOKUP(A106,list_installations,'B.1.c. Installations'!$M$5:$M$505))/3)) ->  | G106: =IF(ISBLANK(A106),"",((LOOKUP(A106,list_installations,'B.1.c. Installations'!$O$5:$O$505)+LOOKUP(A106,list_installations,'B.1.c. Installations'!$Q$5:$Q$505)+LOOKUP(A106,list_installations,'B.1.c. Installations'!$S$5:$S$505))/3)) ->  | N106: =IF(ISBLANK(A106),"",ROUND(M106*'Correction factor'!$B$7,0)) ->  | O106: =IF(ISBLANK(A106),"",ROUND(M106*'Correction factor'!$C$7,0)) ->  | P106: =IF(ISBLANK(A106),"",ROUND(M106*'Correction factor'!$D$7,0)) ->  | Q106: =IF(ISBLANK(A106),"",ROUND(M106*'Correction factor'!$E$7,0)) ->  | R106: =IF(ISBLANK(A106),"",ROUND(M106*'Correction factor'!$F$7,0)) ->  | S106: =IF(ISBLANK(A106),"",ROUND(M106*'Correction factor'!$G$7,0)) ->  | T106: =IF(ISBLANK(A106),"",ROUND(M106*'Correction factor'!$H$7,0)) ->  | U106: =IF(ISBLANK(A106),"",ROUND(M106*'Correction factor'!$I$7,0)) -> 
B107: =IF(ISBLANK(A107),"",LOOKUP(A107,list_installations,'B.1.c. Installations'!$B$5:$B$505)) ->  | C107: =IF(ISBLANK(A107),"",LOOKUP(A107,list_installations,'B.1.c. Installations'!$C$5:$C$505)) ->  | D107: =IF(ISBLANK(A107),"",LOOKUP(A107,list_installations,'B.1.c. Installations'!$D$5:$D$505)) ->  | E107: =IF(ISBLANK(A107),"",LOOKUP(A107,list_installations,'B.1.c. Installations'!$E$5:$E$505)) ->  | F107: =IF(ISBLANK(A107),"",((LOOKUP(A107,list_installations,'B.1.c. Installations'!$I$5:$I$505)+LOOKUP(A107,list_installations,'B.1.c. Installations'!$K$5:$K$505)+LOOKUP(A107,list_installations,'B.1.c. Installations'!$M$5:$M$505))/3)) ->  | G107: =IF(ISBLANK(A107),"",((LOOKUP(A107,list_installations,'B.1.c. Installations'!$O$5:$O$505)+LOOKUP(A107,list_installations,'B.1.c. Installations'!$Q$5:$Q$505)+LOOKUP(A107,list_installations,'B.1.c. Installations'!$S$5:$S$505))/3)) ->  | N107: =IF(ISBLANK(A107),"",ROUND(M107*'Correction factor'!$B$7,0)) ->  | O107: =IF(ISBLANK(A107),"",ROUND(M107*'Correction factor'!$C$7,0)) ->  | P107: =IF(ISBLANK(A107),"",ROUND(M107*'Correction factor'!$D$7,0)) ->  | Q107: =IF(ISBLANK(A107),"",ROUND(M107*'Correction factor'!$E$7,0)) ->  | R107: =IF(ISBLANK(A107),"",ROUND(M107*'Correction factor'!$F$7,0)) ->  | S107: =IF(ISBLANK(A107),"",ROUND(M107*'Correction factor'!$G$7,0)) ->  | T107: =IF(ISBLANK(A107),"",ROUND(M107*'Correction factor'!$H$7,0)) ->  | U107: =IF(ISBLANK(A107),"",ROUND(M107*'Correction factor'!$I$7,0)) -> 
B108: =IF(ISBLANK(A108),"",LOOKUP(A108,list_installations,'B.1.c. Installations'!$B$5:$B$505)) ->  | C108: =IF(ISBLANK(A108),"",LOOKUP(A108,list_installations,'B.1.c. Installations'!$C$5:$C$505)) ->  | D108: =IF(ISBLANK(A108),"",LOOKUP(A108,list_installations,'B.1.c. Installations'!$D$5:$D$505)) ->  | E108: =IF(ISBLANK(A108),"",LOOKUP(A108,list_installations,'B.1.c. Installations'!$E$5:$E$505)) ->  | F108: =IF(ISBLANK(A108),"",((LOOKUP(A108,list_installations,'B.1.c. Installations'!$I$5:$I$505)+LOOKUP(A108,list_installations,'B.1.c. Installations'!$K$5:$K$505)+LOOKUP(A108,list_installations,'B.1.c. Installations'!$M$5:$M$505))/3)) ->  | G108: =IF(ISBLANK(A108),"",((LOOKUP(A108,list_installations,'B.1.c. Installations'!$O$5:$O$505)+LOOKUP(A108,list_installations,'B.1.c. Installations'!$Q$5:$Q$505)+LOOKUP(A108,list_installations,'B.1.c. Installations'!$S$5:$S$505))/3)) ->  | N108: =IF(ISBLANK(A108),"",ROUND(M108*'Correction factor'!$B$7,0)) ->  | O108: =IF(ISBLANK(A108),"",ROUND(M108*'Correction factor'!$C$7,0)) ->  | P108: =IF(ISBLANK(A108),"",ROUND(M108*'Correction factor'!$D$7,0)) ->  | Q108: =IF(ISBLANK(A108),"",ROUND(M108*'Correction factor'!$E$7,0)) ->  | R108: =IF(ISBLANK(A108),"",ROUND(M108*'Correction factor'!$F$7,0)) ->  | S108: =IF(ISBLANK(A108),"",ROUND(M108*'Correction factor'!$G$7,0)) ->  | T108: =IF(ISBLANK(A108),"",ROUND(M108*'Correction factor'!$H$7,0)) ->  | U108: =IF(ISBLANK(A108),"",ROUND(M108*'Correction factor'!$I$7,0)) -> 
B109: =IF(ISBLANK(A109),"",LOOKUP(A109,list_installations,'B.1.c. Installations'!$B$5:$B$505)) ->  | C109: =IF(ISBLANK(A109),"",LOOKUP(A109,list_installations,'B.1.c. Installations'!$C$5:$C$505)) ->  | D109: =IF(ISBLANK(A109),"",LOOKUP(A109,list_installations,'B.1.c. Installations'!$D$5:$D$505)) ->  | E109: =IF(ISBLANK(A109),"",LOOKUP(A109,list_installations,'B.1.c. Installations'!$E$5:$E$505)) ->  | F109: =IF(ISBLANK(A109),"",((LOOKUP(A109,list_installations,'B.1.c. Installations'!$I$5:$I$505)+LOOKUP(A109,list_installations,'B.1.c. Installations'!$K$5:$K$505)+LOOKUP(A109,list_installations,'B.1.c. Installations'!$M$5:$M$505))/3)) ->  | G109: =IF(ISBLANK(A109),"",((LOOKUP(A109,list_installations,'B.1.c. Installations'!$O$5:$O$505)+LOOKUP(A109,list_installations,'B.1.c. Installations'!$Q$5:$Q$505)+LOOKUP(A109,list_installations,'B.1.c. Installations'!$S$5:$S$505))/3)) ->  | N109: =IF(ISBLANK(A109),"",ROUND(M109*'Correction factor'!$B$7,0)) ->  | O109: =IF(ISBLANK(A109),"",ROUND(M109*'Correction factor'!$C$7,0)) ->  | P109: =IF(ISBLANK(A109),"",ROUND(M109*'Correction factor'!$D$7,0)) ->  | Q109: =IF(ISBLANK(A109),"",ROUND(M109*'Correction factor'!$E$7,0)) ->  | R109: =IF(ISBLANK(A109),"",ROUND(M109*'Correction factor'!$F$7,0)) ->  | S109: =IF(ISBLANK(A109),"",ROUND(M109*'Correction factor'!$G$7,0)) ->  | T109: =IF(ISBLANK(A109),"",ROUND(M109*'Correction factor'!$H$7,0)) ->  | U109: =IF(ISBLANK(A109),"",ROUND(M109*'Correction factor'!$I$7,0)) -> 
B110: =IF(ISBLANK(A110),"",LOOKUP(A110,list_installations,'B.1.c. Installations'!$B$5:$B$505)) ->  | C110: =IF(ISBLANK(A110),"",LOOKUP(A110,list_installations,'B.1.c. Installations'!$C$5:$C$505)) ->  | D110: =IF(ISBLANK(A110),"",LOOKUP(A110,list_installations,'B.1.c. Installations'!$D$5:$D$505)) ->  | E110: =IF(ISBLANK(A110),"",LOOKUP(A110,list_installations,'B.1.c. Installations'!$E$5:$E$505)) ->  | F110: =IF(ISBLANK(A110),"",((LOOKUP(A110,list_installations,'B.1.c. Installations'!$I$5:$I$505)+LOOKUP(A110,list_installations,'B.1.c. Installations'!$K$5:$K$505)+LOOKUP(A110,list_installations,'B.1.c. Installations'!$M$5:$M$505))/3)) ->  | G110: =IF(ISBLANK(A110),"",((LOOKUP(A110,list_installations,'B.1.c. Installations'!$O$5:$O$505)+LOOKUP(A110,list_installations,'B.1.c. Installations'!$Q$5:$Q$505)+LOOKUP(A110,list_installations,'B.1.c. Installations'!$S$5:$S$505))/3)) ->  | N110: =IF(ISBLANK(A110),"",ROUND(M110*'Correction factor'!$B$7,0)) ->  | O110: =IF(ISBLANK(A110),"",ROUND(M110*'Correction factor'!$C$7,0)) ->  | P110: =IF(ISBLANK(A110),"",ROUND(M110*'Correction factor'!$D$7,0)) ->  | Q110: =IF(ISBLANK(A110),"",ROUND(M110*'Correction factor'!$E$7,0)) ->  | R110: =IF(ISBLANK(A110),"",ROUND(M110*'Correction factor'!$F$7,0)) ->  | S110: =IF(ISBLANK(A110),"",ROUND(M110*'Correction factor'!$G$7,0)) ->  | T110: =IF(ISBLANK(A110),"",ROUND(M110*'Correction factor'!$H$7,0)) ->  | U110: =IF(ISBLANK(A110),"",ROUND(M110*'Correction factor'!$I$7,0)) -> 
B111: =IF(ISBLANK(A111),"",LOOKUP(A111,list_installations,'B.1.c. Installations'!$B$5:$B$505)) ->  | C111: =IF(ISBLANK(A111),"",LOOKUP(A111,list_installations,'B.1.c. Installations'!$C$5:$C$505)) ->  | D111: =IF(ISBLANK(A111),"",LOOKUP(A111,list_installations,'B.1.c. Installations'!$D$5:$D$505)) ->  | E111: =IF(ISBLANK(A111),"",LOOKUP(A111,list_installations,'B.1.c. Installations'!$E$5:$E$505)) ->  | F111: =IF(ISBLANK(A111),"",((LOOKUP(A111,list_installations,'B.1.c. Installations'!$I$5:$I$505)+LOOKUP(A111,list_installations,'B.1.c. Installations'!$K$5:$K$505)+LOOKUP(A111,list_installations,'B.1.c. Installations'!$M$5:$M$505))/3)) ->  | G111: =IF(ISBLANK(A111),"",((LOOKUP(A111,list_installations,'B.1.c. Installations'!$O$5:$O$505)+LOOKUP(A111,list_installations,'B.1.c. Installations'!$Q$5:$Q$505)+LOOKUP(A111,list_installations,'B.1.c. Installations'!$S$5:$S$505))/3)) ->  | N111: =IF(ISBLANK(A111),"",ROUND(M111*'Correction factor'!$B$7,0)) ->  | O111: =IF(ISBLANK(A111),"",ROUND(M111*'Correction factor'!$C$7,0)) ->  | P111: =IF(ISBLANK(A111),"",ROUND(M111*'Correction factor'!$D$7,0)) ->  | Q111: =IF(ISBLANK(A111),"",ROUND(M111*'Correction factor'!$E$7,0)) ->  | R111: =IF(ISBLANK(A111),"",ROUND(M111*'Correction factor'!$F$7,0)) ->  | S111: =IF(ISBLANK(A111),"",ROUND(M111*'Correction factor'!$G$7,0)) ->  | T111: =IF(ISBLANK(A111),"",ROUND(M111*'Correction factor'!$H$7,0)) ->  | U111: =IF(ISBLANK(A111),"",ROUND(M111*'Correction factor'!$I$7,0)) -> 
B112: =IF(ISBLANK(A112),"",LOOKUP(A112,list_installations,'B.1.c. Installations'!$B$5:$B$505)) ->  | C112: =IF(ISBLANK(A112),"",LOOKUP(A112,list_installations,'B.1.c. Installations'!$C$5:$C$505)) ->  | D112: =IF(ISBLANK(A112),"",LOOKUP(A112,list_installations,'B.1.c. Installations'!$D$5:$D$505)) ->  | E112: =IF(ISBLANK(A112),"",LOOKUP(A112,list_installations,'B.1.c. Installations'!$E$5:$E$505)) ->  | F112: =IF(ISBLANK(A112),"",((LOOKUP(A112,list_installations,'B.1.c. Installations'!$I$5:$I$505)+LOOKUP(A112,list_installations,'B.1.c. Installations'!$K$5:$K$505)+LOOKUP(A112,list_installations,'B.1.c. Installations'!$M$5:$M$505))/3)) ->  | G112: =IF(ISBLANK(A112),"",((LOOKUP(A112,list_installations,'B.1.c. Installations'!$O$5:$O$505)+LOOKUP(A112,list_installations,'B.1.c. Installations'!$Q$5:$Q$505)+LOOKUP(A112,list_installations,'B.1.c. Installations'!$S$5:$S$505))/3)) ->  | N112: =IF(ISBLANK(A112),"",ROUND(M112*'Correction factor'!$B$7,0)) ->  | O112: =IF(ISBLANK(A112),"",ROUND(M112*'Correction factor'!$C$7,0)) ->  | P112: =IF(ISBLANK(A112),"",ROUND(M112*'Correction factor'!$D$7,0)) ->  | Q112: =IF(ISBLANK(A112),"",ROUND(M112*'Correction factor'!$E$7,0)) ->  | R112: =IF(ISBLANK(A112),"",ROUND(M112*'Correction factor'!$F$7,0)) ->  | S112: =IF(ISBLANK(A112),"",ROUND(M112*'Correction factor'!$G$7,0)) ->  | T112: =IF(ISBLANK(A112),"",ROUND(M112*'Correction factor'!$H$7,0)) ->  | U112: =IF(ISBLANK(A112),"",ROUND(M112*'Correction factor'!$I$7,0)) -> 
B113: =IF(ISBLANK(A113),"",LOOKUP(A113,list_installations,'B.1.c. Installations'!$B$5:$B$505)) ->  | C113: =IF(ISBLANK(A113),"",LOOKUP(A113,list_installations,'B.1.c. Installations'!$C$5:$C$505)) ->  | D113: =IF(ISBLANK(A113),"",LOOKUP(A113,list_installations,'B.1.c. Installations'!$D$5:$D$505)) ->  | E113: =IF(ISBLANK(A113),"",LOOKUP(A113,list_installations,'B.1.c. Installations'!$E$5:$E$505)) ->  | F113: =IF(ISBLANK(A113),"",((LOOKUP(A113,list_installations,'B.1.c. Installations'!$I$5:$I$505)+LOOKUP(A113,list_installations,'B.1.c. Installations'!$K$5:$K$505)+LOOKUP(A113,list_installations,'B.1.c. Installations'!$M$5:$M$505))/3)) ->  | G113: =IF(ISBLANK(A113),"",((LOOKUP(A113,list_installations,'B.1.c. Installations'!$O$5:$O$505)+LOOKUP(A113,list_installations,'B.1.c. Installations'!$Q$5:$Q$505)+LOOKUP(A113,list_installations,'B.1.c. Installations'!$S$5:$S$505))/3)) ->  | N113: =IF(ISBLANK(A113),"",ROUND(M113*'Correction factor'!$B$7,0)) ->  | O113: =IF(ISBLANK(A113),"",ROUND(M113*'Correction factor'!$C$7,0)) ->  | P113: =IF(ISBLANK(A113),"",ROUND(M113*'Correction factor'!$D$7,0)) ->  | Q113: =IF(ISBLANK(A113),"",ROUND(M113*'Correction factor'!$E$7,0)) ->  | R113: =IF(ISBLANK(A113),"",ROUND(M113*'Correction factor'!$F$7,0)) ->  | S113: =IF(ISBLANK(A113),"",ROUND(M113*'Correction factor'!$G$7,0)) ->  | T113: =IF(ISBLANK(A113),"",ROUND(M113*'Correction factor'!$H$7,0)) ->  | U113: =IF(ISBLANK(A113),"",ROUND(M113*'Correction factor'!$I$7,0)) -> 
B114: =IF(ISBLANK(A114),"",LOOKUP(A114,list_installations,'B.1.c. Installations'!$B$5:$B$505)) ->  | C114: =IF(ISBLANK(A114),"",LOOKUP(A114,list_installations,'B.1.c. Installations'!$C$5:$C$505)) ->  | D114: =IF(ISBLANK(A114),"",LOOKUP(A114,list_installations,'B.1.c. Installations'!$D$5:$D$505)) ->  | E114: =IF(ISBLANK(A114),"",LOOKUP(A114,list_installations,'B.1.c. Installations'!$E$5:$E$505)) ->  | F114: =IF(ISBLANK(A114),"",((LOOKUP(A114,list_installations,'B.1.c. Installations'!$I$5:$I$505)+LOOKUP(A114,list_installations,'B.1.c. Installations'!$K$5:$K$505)+LOOKUP(A114,list_installations,'B.1.c. Installations'!$M$5:$M$505))/3)) ->  | G114: =IF(ISBLANK(A114),"",((LOOKUP(A114,list_installations,'B.1.c. Installations'!$O$5:$O$505)+LOOKUP(A114,list_installations,'B.1.c. Installations'!$Q$5:$Q$505)+LOOKUP(A114,list_installations,'B.1.c. Installations'!$S$5:$S$505))/3)) ->  | N114: =IF(ISBLANK(A114),"",ROUND(M114*'Correction factor'!$B$7,0)) ->  | O114: =IF(ISBLANK(A114),"",ROUND(M114*'Correction factor'!$C$7,0)) ->  | P114: =IF(ISBLANK(A114),"",ROUND(M114*'Correction factor'!$D$7,0)) ->  | Q114: =IF(ISBLANK(A114),"",ROUND(M114*'Correction factor'!$E$7,0)) ->  | R114: =IF(ISBLANK(A114),"",ROUND(M114*'Correction factor'!$F$7,0)) ->  | S114: =IF(ISBLANK(A114),"",ROUND(M114*'Correction factor'!$G$7,0)) ->  | T114: =IF(ISBLANK(A114),"",ROUND(M114*'Correction factor'!$H$7,0)) ->  | U114: =IF(ISBLANK(A114),"",ROUND(M114*'Correction factor'!$I$7,0)) -> 
B115: =IF(ISBLANK(A115),"",LOOKUP(A115,list_installations,'B.1.c. Installations'!$B$5:$B$505)) ->  | C115: =IF(ISBLANK(A115),"",LOOKUP(A115,list_installations,'B.1.c. Installations'!$C$5:$C$505)) ->  | D115: =IF(ISBLANK(A115),"",LOOKUP(A115,list_installations,'B.1.c. Installations'!$D$5:$D$505)) ->  | E115: =IF(ISBLANK(A115),"",LOOKUP(A115,list_installations,'B.1.c. Installations'!$E$5:$E$505)) ->  | F115: =IF(ISBLANK(A115),"",((LOOKUP(A115,list_installations,'B.1.c. Installations'!$I$5:$I$505)+LOOKUP(A115,list_installations,'B.1.c. Installations'!$K$5:$K$505)+LOOKUP(A115,list_installations,'B.1.c. Installations'!$M$5:$M$505))/3)) ->  | G115: =IF(ISBLANK(A115),"",((LOOKUP(A115,list_installations,'B.1.c. Installations'!$O$5:$O$505)+LOOKUP(A115,list_installations,'B.1.c. Installations'!$Q$5:$Q$505)+LOOKUP(A115,list_installations,'B.1.c. Installations'!$S$5:$S$505))/3)) ->  | N115: =IF(ISBLANK(A115),"",ROUND(M115*'Correction factor'!$B$7,0)) ->  | O115: =IF(ISBLANK(A115),"",ROUND(M115*'Correction factor'!$C$7,0)) ->  | P115: =IF(ISBLANK(A115),"",ROUND(M115*'Correction factor'!$D$7,0)) ->  | Q115: =IF(ISBLANK(A115),"",ROUND(M115*'Correction factor'!$E$7,0)) ->  | R115: =IF(ISBLANK(A115),"",ROUND(M115*'Correction factor'!$F$7,0)) ->  | S115: =IF(ISBLANK(A115),"",ROUND(M115*'Correction factor'!$G$7,0)) ->  | T115: =IF(ISBLANK(A115),"",ROUND(M115*'Correction factor'!$H$7,0)) ->  | U115: =IF(ISBLANK(A115),"",ROUND(M115*'Correction factor'!$I$7,0)) -> 
B116: =IF(ISBLANK(A116),"",LOOKUP(A116,list_installations,'B.1.c. Installations'!$B$5:$B$505)) ->  | C116: =IF(ISBLANK(A116),"",LOOKUP(A116,list_installations,'B.1.c. Installations'!$C$5:$C$505)) ->  | D116: =IF(ISBLANK(A116),"",LOOKUP(A116,list_installations,'B.1.c. Installations'!$D$5:$D$505)) ->  | E116: =IF(ISBLANK(A116),"",LOOKUP(A116,list_installations,'B.1.c. Installations'!$E$5:$E$505)) ->  | F116: =IF(ISBLANK(A116),"",((LOOKUP(A116,list_installations,'B.1.c. Installations'!$I$5:$I$505)+LOOKUP(A116,list_installations,'B.1.c. Installations'!$K$5:$K$505)+LOOKUP(A116,list_installations,'B.1.c. Installations'!$M$5:$M$505))/3)) ->  | G116: =IF(ISBLANK(A116),"",((LOOKUP(A116,list_installations,'B.1.c. Installations'!$O$5:$O$505)+LOOKUP(A116,list_installations,'B.1.c. Installations'!$Q$5:$Q$505)+LOOKUP(A116,list_installations,'B.1.c. Installations'!$S$5:$S$505))/3)) ->  | N116: =IF(ISBLANK(A116),"",ROUND(M116*'Correction factor'!$B$7,0)) ->  | O116: =IF(ISBLANK(A116),"",ROUND(M116*'Correction factor'!$C$7,0)) ->  | P116: =IF(ISBLANK(A116),"",ROUND(M116*'Correction factor'!$D$7,0)) ->  | Q116: =IF(ISBLANK(A116),"",ROUND(M116*'Correction factor'!$E$7,0)) ->  | R116: =IF(ISBLANK(A116),"",ROUND(M116*'Correction factor'!$F$7,0)) ->  | S116: =IF(ISBLANK(A116),"",ROUND(M116*'Correction factor'!$G$7,0)) ->  | T116: =IF(ISBLANK(A116),"",ROUND(M116*'Correction factor'!$H$7,0)) ->  | U116: =IF(ISBLANK(A116),"",ROUND(M116*'Correction factor'!$I$7,0)) -> 
B117: =IF(ISBLANK(A117),"",LOOKUP(A117,list_installations,'B.1.c. Installations'!$B$5:$B$505)) ->  | C117: =IF(ISBLANK(A117),"",LOOKUP(A117,list_installations,'B.1.c. Installations'!$C$5:$C$505)) ->  | D117: =IF(ISBLANK(A117),"",LOOKUP(A117,list_installations,'B.1.c. Installations'!$D$5:$D$505)) ->  | E117: =IF(ISBLANK(A117),"",LOOKUP(A117,list_installations,'B.1.c. Installations'!$E$5:$E$505)) ->  | F117: =IF(ISBLANK(A117),"",((LOOKUP(A117,list_installations,'B.1.c. Installations'!$I$5:$I$505)+LOOKUP(A117,list_installations,'B.1.c. Installations'!$K$5:$K$505)+LOOKUP(A117,list_installations,'B.1.c. Installations'!$M$5:$M$505))/3)) ->  | G117: =IF(ISBLANK(A117),"",((LOOKUP(A117,list_installations,'B.1.c. Installations'!$O$5:$O$505)+LOOKUP(A117,list_installations,'B.1.c. Installations'!$Q$5:$Q$505)+LOOKUP(A117,list_installations,'B.1.c. Installations'!$S$5:$S$505))/3)) ->  | N117: =IF(ISBLANK(A117),"",ROUND(M117*'Correction factor'!$B$7,0)) ->  | O117: =IF(ISBLANK(A117),"",ROUND(M117*'Correction factor'!$C$7,0)) ->  | P117: =IF(ISBLANK(A117),"",ROUND(M117*'Correction factor'!$D$7,0)) ->  | Q117: =IF(ISBLANK(A117),"",ROUND(M117*'Correction factor'!$E$7,0)) ->  | R117: =IF(ISBLANK(A117),"",ROUND(M117*'Correction factor'!$F$7,0)) ->  | S117: =IF(ISBLANK(A117),"",ROUND(M117*'Correction factor'!$G$7,0)) ->  | T117: =IF(ISBLANK(A117),"",ROUND(M117*'Correction factor'!$H$7,0)) ->  | U117: =IF(ISBLANK(A117),"",ROUND(M117*'Correction factor'!$I$7,0)) -> 
B118: =IF(ISBLANK(A118),"",LOOKUP(A118,list_installations,'B.1.c. Installations'!$B$5:$B$505)) ->  | C118: =IF(ISBLANK(A118),"",LOOKUP(A118,list_installations,'B.1.c. Installations'!$C$5:$C$505)) ->  | D118: =IF(ISBLANK(A118),"",LOOKUP(A118,list_installations,'B.1.c. Installations'!$D$5:$D$505)) ->  | E118: =IF(ISBLANK(A118),"",LOOKUP(A118,list_installations,'B.1.c. Installations'!$E$5:$E$505)) ->  | F118: =IF(ISBLANK(A118),"",((LOOKUP(A118,list_installations,'B.1.c. Installations'!$I$5:$I$505)+LOOKUP(A118,list_installations,'B.1.c. Installations'!$K$5:$K$505)+LOOKUP(A118,list_installations,'B.1.c. Installations'!$M$5:$M$505))/3)) ->  | G118: =IF(ISBLANK(A118),"",((LOOKUP(A118,list_installations,'B.1.c. Installations'!$O$5:$O$505)+LOOKUP(A118,list_installations,'B.1.c. Installations'!$Q$5:$Q$505)+LOOKUP(A118,list_installations,'B.1.c. Installations'!$S$5:$S$505))/3)) ->  | N118: =IF(ISBLANK(A118),"",ROUND(M118*'Correction factor'!$B$7,0)) ->  | O118: =IF(ISBLANK(A118),"",ROUND(M118*'Correction factor'!$C$7,0)) ->  | P118: =IF(ISBLANK(A118),"",ROUND(M118*'Correction factor'!$D$7,0)) ->  | Q118: =IF(ISBLANK(A118),"",ROUND(M118*'Correction factor'!$E$7,0)) ->  | R118: =IF(ISBLANK(A118),"",ROUND(M118*'Correction factor'!$F$7,0)) ->  | S118: =IF(ISBLANK(A118),"",ROUND(M118*'Correction factor'!$G$7,0)) ->  | T118: =IF(ISBLANK(A118),"",ROUND(M118*'Correction factor'!$H$7,0)) ->  | U118: =IF(ISBLANK(A118),"",ROUND(M118*'Correction factor'!$I$7,0)) -> 
B119: =IF(ISBLANK(A119),"",LOOKUP(A119,list_installations,'B.1.c. Installations'!$B$5:$B$505)) ->  | C119: =IF(ISBLANK(A119),"",LOOKUP(A119,list_installations,'B.1.c. Installations'!$C$5:$C$505)) ->  | D119: =IF(ISBLANK(A119),"",LOOKUP(A119,list_installations,'B.1.c. Installations'!$D$5:$D$505)) ->  | E119: =IF(ISBLANK(A119),"",LOOKUP(A119,list_installations,'B.1.c. Installations'!$E$5:$E$505)) ->  | F119: =IF(ISBLANK(A119),"",((LOOKUP(A119,list_installations,'B.1.c. Installations'!$I$5:$I$505)+LOOKUP(A119,list_installations,'B.1.c. Installations'!$K$5:$K$505)+LOOKUP(A119,list_installations,'B.1.c. Installations'!$M$5:$M$505))/3)) ->  | G119: =IF(ISBLANK(A119),"",((LOOKUP(A119,list_installations,'B.1.c. Installations'!$O$5:$O$505)+LOOKUP(A119,list_installations,'B.1.c. Installations'!$Q$5:$Q$505)+LOOKUP(A119,list_installations,'B.1.c. Installations'!$S$5:$S$505))/3)) ->  | N119: =IF(ISBLANK(A119),"",ROUND(M119*'Correction factor'!$B$7,0)) ->  | O119: =IF(ISBLANK(A119),"",ROUND(M119*'Correction factor'!$C$7,0)) ->  | P119: =IF(ISBLANK(A119),"",ROUND(M119*'Correction factor'!$D$7,0)) ->  | Q119: =IF(ISBLANK(A119),"",ROUND(M119*'Correction factor'!$E$7,0)) ->  | R119: =IF(ISBLANK(A119),"",ROUND(M119*'Correction factor'!$F$7,0)) ->  | S119: =IF(ISBLANK(A119),"",ROUND(M119*'Correction factor'!$G$7,0)) ->  | T119: =IF(ISBLANK(A119),"",ROUND(M119*'Correction factor'!$H$7,0)) ->  | U119: =IF(ISBLANK(A119),"",ROUND(M119*'Correction factor'!$I$7,0)) -> 
B120: =IF(ISBLANK(A120),"",LOOKUP(A120,list_installations,'B.1.c. Installations'!$B$5:$B$505)) ->  | C120: =IF(ISBLANK(A120),"",LOOKUP(A120,list_installations,'B.1.c. Installations'!$C$5:$C$505)) ->  | D120: =IF(ISBLANK(A120),"",LOOKUP(A120,list_installations,'B.1.c. Installations'!$D$5:$D$505)) ->  | E120: =IF(ISBLANK(A120),"",LOOKUP(A120,list_installations,'B.1.c. Installations'!$E$5:$E$505)) ->  | F120: =IF(ISBLANK(A120),"",((LOOKUP(A120,list_installations,'B.1.c. Installations'!$I$5:$I$505)+LOOKUP(A120,list_installations,'B.1.c. Installations'!$K$5:$K$505)+LOOKUP(A120,list_installations,'B.1.c. Installations'!$M$5:$M$505))/3)) ->  | G120: =IF(ISBLANK(A120),"",((LOOKUP(A120,list_installations,'B.1.c. Installations'!$O$5:$O$505)+LOOKUP(A120,list_installations,'B.1.c. Installations'!$Q$5:$Q$505)+LOOKUP(A120,list_installations,'B.1.c. Installations'!$S$5:$S$505))/3)) ->  | N120: =IF(ISBLANK(A120),"",ROUND(M120*'Correction factor'!$B$7,0)) ->  | O120: =IF(ISBLANK(A120),"",ROUND(M120*'Correction factor'!$C$7,0)) ->  | P120: =IF(ISBLANK(A120),"",ROUND(M120*'Correction factor'!$D$7,0)) ->  | Q120: =IF(ISBLANK(A120),"",ROUND(M120*'Correction factor'!$E$7,0)) ->  | R120: =IF(ISBLANK(A120),"",ROUND(M120*'Correction factor'!$F$7,0)) ->  | S120: =IF(ISBLANK(A120),"",ROUND(M120*'Correction factor'!$G$7,0)) ->  | T120: =IF(ISBLANK(A120),"",ROUND(M120*'Correction factor'!$H$7,0)) ->  | U120: =IF(ISBLANK(A120),"",ROUND(M120*'Correction factor'!$I$7,0)) -> 
B121: =IF(ISBLANK(A121),"",LOOKUP(A121,list_installations,'B.1.c. Installations'!$B$5:$B$505)) ->  | C121: =IF(ISBLANK(A121),"",LOOKUP(A121,list_installations,'B.1.c. Installations'!$C$5:$C$505)) ->  | D121: =IF(ISBLANK(A121),"",LOOKUP(A121,list_installations,'B.1.c. Installations'!$D$5:$D$505)) ->  | E121: =IF(ISBLANK(A121),"",LOOKUP(A121,list_installations,'B.1.c. Installations'!$E$5:$E$505)) ->  | F121: =IF(ISBLANK(A121),"",((LOOKUP(A121,list_installations,'B.1.c. Installations'!$I$5:$I$505)+LOOKUP(A121,list_installations,'B.1.c. Installations'!$K$5:$K$505)+LOOKUP(A121,list_installations,'B.1.c. Installations'!$M$5:$M$505))/3)) ->  | G121: =IF(ISBLANK(A121),"",((LOOKUP(A121,list_installations,'B.1.c. Installations'!$O$5:$O$505)+LOOKUP(A121,list_installations,'B.1.c. Installations'!$Q$5:$Q$505)+LOOKUP(A121,list_installations,'B.1.c. Installations'!$S$5:$S$505))/3)) ->  | N121: =IF(ISBLANK(A121),"",ROUND(M121*'Correction factor'!$B$7,0)) ->  | O121: =IF(ISBLANK(A121),"",ROUND(M121*'Correction factor'!$C$7,0)) ->  | P121: =IF(ISBLANK(A121),"",ROUND(M121*'Correction factor'!$D$7,0)) ->  | Q121: =IF(ISBLANK(A121),"",ROUND(M121*'Correction factor'!$E$7,0)) ->  | R121: =IF(ISBLANK(A121),"",ROUND(M121*'Correction factor'!$F$7,0)) ->  | S121: =IF(ISBLANK(A121),"",ROUND(M121*'Correction factor'!$G$7,0)) ->  | T121: =IF(ISBLANK(A121),"",ROUND(M121*'Correction factor'!$H$7,0)) ->  | U121: =IF(ISBLANK(A121),"",ROUND(M121*'Correction factor'!$I$7,0)) -> 
B122: =IF(ISBLANK(A122),"",LOOKUP(A122,list_installations,'B.1.c. Installations'!$B$5:$B$505)) ->  | C122: =IF(ISBLANK(A122),"",LOOKUP(A122,list_installations,'B.1.c. Installations'!$C$5:$C$505)) ->  | D122: =IF(ISBLANK(A122),"",LOOKUP(A122,list_installations,'B.1.c. Installations'!$D$5:$D$505)) ->  | E122: =IF(ISBLANK(A122),"",LOOKUP(A122,list_installations,'B.1.c. Installations'!$E$5:$E$505)) ->  | F122: =IF(ISBLANK(A122),"",((LOOKUP(A122,list_installations,'B.1.c. Installations'!$I$5:$I$505)+LOOKUP(A122,list_installations,'B.1.c. Installations'!$K$5:$K$505)+LOOKUP(A122,list_installations,'B.1.c. Installations'!$M$5:$M$505))/3)) ->  | G122: =IF(ISBLANK(A122),"",((LOOKUP(A122,list_installations,'B.1.c. Installations'!$O$5:$O$505)+LOOKUP(A122,list_installations,'B.1.c. Installations'!$Q$5:$Q$505)+LOOKUP(A122,list_installations,'B.1.c. Installations'!$S$5:$S$505))/3)) ->  | N122: =IF(ISBLANK(A122),"",ROUND(M122*'Correction factor'!$B$7,0)) ->  | O122: =IF(ISBLANK(A122),"",ROUND(M122*'Correction factor'!$C$7,0)) ->  | P122: =IF(ISBLANK(A122),"",ROUND(M122*'Correction factor'!$D$7,0)) ->  | Q122: =IF(ISBLANK(A122),"",ROUND(M122*'Correction factor'!$E$7,0)) ->  | R122: =IF(ISBLANK(A122),"",ROUND(M122*'Correction factor'!$F$7,0)) ->  | S122: =IF(ISBLANK(A122),"",ROUND(M122*'Correction factor'!$G$7,0)) ->  | T122: =IF(ISBLANK(A122),"",ROUND(M122*'Correction factor'!$H$7,0)) ->  | U122: =IF(ISBLANK(A122),"",ROUND(M122*'Correction factor'!$I$7,0)) -> 
B123: =IF(ISBLANK(A123),"",LOOKUP(A123,list_installations,'B.1.c. Installations'!$B$5:$B$505)) ->  | C123: =IF(ISBLANK(A123),"",LOOKUP(A123,list_installations,'B.1.c. Installations'!$C$5:$C$505)) ->  | D123: =IF(ISBLANK(A123),"",LOOKUP(A123,list_installations,'B.1.c. Installations'!$D$5:$D$505)) ->  | E123: =IF(ISBLANK(A123),"",LOOKUP(A123,list_installations,'B.1.c. Installations'!$E$5:$E$505)) ->  | F123: =IF(ISBLANK(A123),"",((LOOKUP(A123,list_installations,'B.1.c. Installations'!$I$5:$I$505)+LOOKUP(A123,list_installations,'B.1.c. Installations'!$K$5:$K$505)+LOOKUP(A123,list_installations,'B.1.c. Installations'!$M$5:$M$505))/3)) ->  | G123: =IF(ISBLANK(A123),"",((LOOKUP(A123,list_installations,'B.1.c. Installations'!$O$5:$O$505)+LOOKUP(A123,list_installations,'B.1.c. Installations'!$Q$5:$Q$505)+LOOKUP(A123,list_installations,'B.1.c. Installations'!$S$5:$S$505))/3)) ->  | N123: =IF(ISBLANK(A123),"",ROUND(M123*'Correction factor'!$B$7,0)) ->  | O123: =IF(ISBLANK(A123),"",ROUND(M123*'Correction factor'!$C$7,0)) ->  | P123: =IF(ISBLANK(A123),"",ROUND(M123*'Correction factor'!$D$7,0)) ->  | Q123: =IF(ISBLANK(A123),"",ROUND(M123*'Correction factor'!$E$7,0)) ->  | R123: =IF(ISBLANK(A123),"",ROUND(M123*'Correction factor'!$F$7,0)) ->  | S123: =IF(ISBLANK(A123),"",ROUND(M123*'Correction factor'!$G$7,0)) ->  | T123: =IF(ISBLANK(A123),"",ROUND(M123*'Correction factor'!$H$7,0)) ->  | U123: =IF(ISBLANK(A123),"",ROUND(M123*'Correction factor'!$I$7,0)) -> 
B124: =IF(ISBLANK(A124),"",LOOKUP(A124,list_installations,'B.1.c. Installations'!$B$5:$B$505)) ->  | C124: =IF(ISBLANK(A124),"",LOOKUP(A124,list_installations,'B.1.c. Installations'!$C$5:$C$505)) ->  | D124: =IF(ISBLANK(A124),"",LOOKUP(A124,list_installations,'B.1.c. Installations'!$D$5:$D$505)) ->  | E124: =IF(ISBLANK(A124),"",LOOKUP(A124,list_installations,'B.1.c. Installations'!$E$5:$E$505)) ->  | F124: =IF(ISBLANK(A124),"",((LOOKUP(A124,list_installations,'B.1.c. Installations'!$I$5:$I$505)+LOOKUP(A124,list_installations,'B.1.c. Installations'!$K$5:$K$505)+LOOKUP(A124,list_installations,'B.1.c. Installations'!$M$5:$M$505))/3)) ->  | G124: =IF(ISBLANK(A124),"",((LOOKUP(A124,list_installations,'B.1.c. Installations'!$O$5:$O$505)+LOOKUP(A124,list_installations,'B.1.c. Installations'!$Q$5:$Q$505)+LOOKUP(A124,list_installations,'B.1.c. Installations'!$S$5:$S$505))/3)) ->  | N124: =IF(ISBLANK(A124),"",ROUND(M124*'Correction factor'!$B$7,0)) ->  | O124: =IF(ISBLANK(A124),"",ROUND(M124*'Correction factor'!$C$7,0)) ->  | P124: =IF(ISBLANK(A124),"",ROUND(M124*'Correction factor'!$D$7,0)) ->  | Q124: =IF(ISBLANK(A124),"",ROUND(M124*'Correction factor'!$E$7,0)) ->  | R124: =IF(ISBLANK(A124),"",ROUND(M124*'Correction factor'!$F$7,0)) ->  | S124: =IF(ISBLANK(A124),"",ROUND(M124*'Correction factor'!$G$7,0)) ->  | T124: =IF(ISBLANK(A124),"",ROUND(M124*'Correction factor'!$H$7,0)) ->  | U124: =IF(ISBLANK(A124),"",ROUND(M124*'Correction factor'!$I$7,0)) -> 
B125: =IF(ISBLANK(A125),"",LOOKUP(A125,list_installations,'B.1.c. Installations'!$B$5:$B$505)) ->  | C125: =IF(ISBLANK(A125),"",LOOKUP(A125,list_installations,'B.1.c. Installations'!$C$5:$C$505)) ->  | D125: =IF(ISBLANK(A125),"",LOOKUP(A125,list_installations,'B.1.c. Installations'!$D$5:$D$505)) ->  | E125: =IF(ISBLANK(A125),"",LOOKUP(A125,list_installations,'B.1.c. Installations'!$E$5:$E$505)) ->  | F125: =IF(ISBLANK(A125),"",((LOOKUP(A125,list_installations,'B.1.c. Installations'!$I$5:$I$505)+LOOKUP(A125,list_installations,'B.1.c. Installations'!$K$5:$K$505)+LOOKUP(A125,list_installations,'B.1.c. Installations'!$M$5:$M$505))/3)) ->  | G125: =IF(ISBLANK(A125),"",((LOOKUP(A125,list_installations,'B.1.c. Installations'!$O$5:$O$505)+LOOKUP(A125,list_installations,'B.1.c. Installations'!$Q$5:$Q$505)+LOOKUP(A125,list_installations,'B.1.c. Installations'!$S$5:$S$505))/3)) ->  | N125: =IF(ISBLANK(A125),"",ROUND(M125*'Correction factor'!$B$7,0)) ->  | O125: =IF(ISBLANK(A125),"",ROUND(M125*'Correction factor'!$C$7,0)) ->  | P125: =IF(ISBLANK(A125),"",ROUND(M125*'Correction factor'!$D$7,0)) ->  | Q125: =IF(ISBLANK(A125),"",ROUND(M125*'Correction factor'!$E$7,0)) ->  | R125: =IF(ISBLANK(A125),"",ROUND(M125*'Correction factor'!$F$7,0)) ->  | S125: =IF(ISBLANK(A125),"",ROUND(M125*'Correction factor'!$G$7,0)) ->  | T125: =IF(ISBLANK(A125),"",ROUND(M125*'Correction factor'!$H$7,0)) ->  | U125: =IF(ISBLANK(A125),"",ROUND(M125*'Correction factor'!$I$7,0)) -> 
B126: =IF(ISBLANK(A126),"",LOOKUP(A126,list_installations,'B.1.c. Installations'!$B$5:$B$505)) ->  | C126: =IF(ISBLANK(A126),"",LOOKUP(A126,list_installations,'B.1.c. Installations'!$C$5:$C$505)) ->  | D126: =IF(ISBLANK(A126),"",LOOKUP(A126,list_installations,'B.1.c. Installations'!$D$5:$D$505)) ->  | E126: =IF(ISBLANK(A126),"",LOOKUP(A126,list_installations,'B.1.c. Installations'!$E$5:$E$505)) ->  | F126: =IF(ISBLANK(A126),"",((LOOKUP(A126,list_installations,'B.1.c. Installations'!$I$5:$I$505)+LOOKUP(A126,list_installations,'B.1.c. Installations'!$K$5:$K$505)+LOOKUP(A126,list_installations,'B.1.c. Installations'!$M$5:$M$505))/3)) ->  | G126: =IF(ISBLANK(A126),"",((LOOKUP(A126,list_installations,'B.1.c. Installations'!$O$5:$O$505)+LOOKUP(A126,list_installations,'B.1.c. Installations'!$Q$5:$Q$505)+LOOKUP(A126,list_installations,'B.1.c. Installations'!$S$5:$S$505))/3)) ->  | N126: =IF(ISBLANK(A126),"",ROUND(M126*'Correction factor'!$B$7,0)) ->  | O126: =IF(ISBLANK(A126),"",ROUND(M126*'Correction factor'!$C$7,0)) ->  | P126: =IF(ISBLANK(A126),"",ROUND(M126*'Correction factor'!$D$7,0)) ->  | Q126: =IF(ISBLANK(A126),"",ROUND(M126*'Correction factor'!$E$7,0)) ->  | R126: =IF(ISBLANK(A126),"",ROUND(M126*'Correction factor'!$F$7,0)) ->  | S126: =IF(ISBLANK(A126),"",ROUND(M126*'Correction factor'!$G$7,0)) ->  | T126: =IF(ISBLANK(A126),"",ROUND(M126*'Correction factor'!$H$7,0)) ->  | U126: =IF(ISBLANK(A126),"",ROUND(M126*'Correction factor'!$I$7,0)) -> 
B127: =IF(ISBLANK(A127),"",LOOKUP(A127,list_installations,'B.1.c. Installations'!$B$5:$B$505)) ->  | C127: =IF(ISBLANK(A127),"",LOOKUP(A127,list_installations,'B.1.c. Installations'!$C$5:$C$505)) ->  | D127: =IF(ISBLANK(A127),"",LOOKUP(A127,list_installations,'B.1.c. Installations'!$D$5:$D$505)) ->  | E127: =IF(ISBLANK(A127),"",LOOKUP(A127,list_installations,'B.1.c. Installations'!$E$5:$E$505)) ->  | F127: =IF(ISBLANK(A127),"",((LOOKUP(A127,list_installations,'B.1.c. Installations'!$I$5:$I$505)+LOOKUP(A127,list_installations,'B.1.c. Installations'!$K$5:$K$505)+LOOKUP(A127,list_installations,'B.1.c. Installations'!$M$5:$M$505))/3)) ->  | G127: =IF(ISBLANK(A127),"",((LOOKUP(A127,list_installations,'B.1.c. Installations'!$O$5:$O$505)+LOOKUP(A127,list_installations,'B.1.c. Installations'!$Q$5:$Q$505)+LOOKUP(A127,list_installations,'B.1.c. Installations'!$S$5:$S$505))/3)) ->  | N127: =IF(ISBLANK(A127),"",ROUND(M127*'Correction factor'!$B$7,0)) ->  | O127: =IF(ISBLANK(A127),"",ROUND(M127*'Correction factor'!$C$7,0)) ->  | P127: =IF(ISBLANK(A127),"",ROUND(M127*'Correction factor'!$D$7,0)) ->  | Q127: =IF(ISBLANK(A127),"",ROUND(M127*'Correction factor'!$E$7,0)) ->  | R127: =IF(ISBLANK(A127),"",ROUND(M127*'Correction factor'!$F$7,0)) ->  | S127: =IF(ISBLANK(A127),"",ROUND(M127*'Correction factor'!$G$7,0)) ->  | T127: =IF(ISBLANK(A127),"",ROUND(M127*'Correction factor'!$H$7,0)) ->  | U127: =IF(ISBLANK(A127),"",ROUND(M127*'Correction factor'!$I$7,0)) -> 
B128: =IF(ISBLANK(A128),"",LOOKUP(A128,list_installations,'B.1.c. Installations'!$B$5:$B$505)) ->  | C128: =IF(ISBLANK(A128),"",LOOKUP(A128,list_installations,'B.1.c. Installations'!$C$5:$C$505)) ->  | D128: =IF(ISBLANK(A128),"",LOOKUP(A128,list_installations,'B.1.c. Installations'!$D$5:$D$505)) ->  | E128: =IF(ISBLANK(A128),"",LOOKUP(A128,list_installations,'B.1.c. Installations'!$E$5:$E$505)) ->  | F128: =IF(ISBLANK(A128),"",((LOOKUP(A128,list_installations,'B.1.c. Installations'!$I$5:$I$505)+LOOKUP(A128,list_installations,'B.1.c. Installations'!$K$5:$K$505)+LOOKUP(A128,list_installations,'B.1.c. Installations'!$M$5:$M$505))/3)) ->  | G128: =IF(ISBLANK(A128),"",((LOOKUP(A128,list_installations,'B.1.c. Installations'!$O$5:$O$505)+LOOKUP(A128,list_installations,'B.1.c. Installations'!$Q$5:$Q$505)+LOOKUP(A128,list_installations,'B.1.c. Installations'!$S$5:$S$505))/3)) ->  | N128: =IF(ISBLANK(A128),"",ROUND(M128*'Correction factor'!$B$7,0)) ->  | O128: =IF(ISBLANK(A128),"",ROUND(M128*'Correction factor'!$C$7,0)) ->  | P128: =IF(ISBLANK(A128),"",ROUND(M128*'Correction factor'!$D$7,0)) ->  | Q128: =IF(ISBLANK(A128),"",ROUND(M128*'Correction factor'!$E$7,0)) ->  | R128: =IF(ISBLANK(A128),"",ROUND(M128*'Correction factor'!$F$7,0)) ->  | S128: =IF(ISBLANK(A128),"",ROUND(M128*'Correction factor'!$G$7,0)) ->  | T128: =IF(ISBLANK(A128),"",ROUND(M128*'Correction factor'!$H$7,0)) ->  | U128: =IF(ISBLANK(A128),"",ROUND(M128*'Correction factor'!$I$7,0)) -> 
B129: =IF(ISBLANK(A129),"",LOOKUP(A129,list_installations,'B.1.c. Installations'!$B$5:$B$505)) ->  | C129: =IF(ISBLANK(A129),"",LOOKUP(A129,list_installations,'B.1.c. Installations'!$C$5:$C$505)) ->  | D129: =IF(ISBLANK(A129),"",LOOKUP(A129,list_installations,'B.1.c. Installations'!$D$5:$D$505)) ->  | E129: =IF(ISBLANK(A129),"",LOOKUP(A129,list_installations,'B.1.c. Installations'!$E$5:$E$505)) ->  | F129: =IF(ISBLANK(A129),"",((LOOKUP(A129,list_installations,'B.1.c. Installations'!$I$5:$I$505)+LOOKUP(A129,list_installations,'B.1.c. Installations'!$K$5:$K$505)+LOOKUP(A129,list_installations,'B.1.c. Installations'!$M$5:$M$505))/3)) ->  | G129: =IF(ISBLANK(A129),"",((LOOKUP(A129,list_installations,'B.1.c. Installations'!$O$5:$O$505)+LOOKUP(A129,list_installations,'B.1.c. Installations'!$Q$5:$Q$505)+LOOKUP(A129,list_installations,'B.1.c. Installations'!$S$5:$S$505))/3)) ->  | N129: =IF(ISBLANK(A129),"",ROUND(M129*'Correction factor'!$B$7,0)) ->  | O129: =IF(ISBLANK(A129),"",ROUND(M129*'Correction factor'!$C$7,0)) ->  | P129: =IF(ISBLANK(A129),"",ROUND(M129*'Correction factor'!$D$7,0)) ->  | Q129: =IF(ISBLANK(A129),"",ROUND(M129*'Correction factor'!$E$7,0)) ->  | R129: =IF(ISBLANK(A129),"",ROUND(M129*'Correction factor'!$F$7,0)) ->  | S129: =IF(ISBLANK(A129),"",ROUND(M129*'Correction factor'!$G$7,0)) ->  | T129: =IF(ISBLANK(A129),"",ROUND(M129*'Correction factor'!$H$7,0)) ->  | U129: =IF(ISBLANK(A129),"",ROUND(M129*'Correction factor'!$I$7,0)) -> 
B130: =IF(ISBLANK(A130),"",LOOKUP(A130,list_installations,'B.1.c. Installations'!$B$5:$B$505)) ->  | C130: =IF(ISBLANK(A130),"",LOOKUP(A130,list_installations,'B.1.c. Installations'!$C$5:$C$505)) ->  | D130: =IF(ISBLANK(A130),"",LOOKUP(A130,list_installations,'B.1.c. Installations'!$D$5:$D$505)) ->  | E130: =IF(ISBLANK(A130),"",LOOKUP(A130,list_installations,'B.1.c. Installations'!$E$5:$E$505)) ->  | F130: =IF(ISBLANK(A130),"",((LOOKUP(A130,list_installations,'B.1.c. Installations'!$I$5:$I$505)+LOOKUP(A130,list_installations,'B.1.c. Installations'!$K$5:$K$505)+LOOKUP(A130,list_installations,'B.1.c. Installations'!$M$5:$M$505))/3)) ->  | G130: =IF(ISBLANK(A130),"",((LOOKUP(A130,list_installations,'B.1.c. Installations'!$O$5:$O$505)+LOOKUP(A130,list_installations,'B.1.c. Installations'!$Q$5:$Q$505)+LOOKUP(A130,list_installations,'B.1.c. Installations'!$S$5:$S$505))/3)) ->  | N130: =IF(ISBLANK(A130),"",ROUND(M130*'Correction factor'!$B$7,0)) ->  | O130: =IF(ISBLANK(A130),"",ROUND(M130*'Correction factor'!$C$7,0)) ->  | P130: =IF(ISBLANK(A130),"",ROUND(M130*'Correction factor'!$D$7,0)) ->  | Q130: =IF(ISBLANK(A130),"",ROUND(M130*'Correction factor'!$E$7,0)) ->  | R130: =IF(ISBLANK(A130),"",ROUND(M130*'Correction factor'!$F$7,0)) ->  | S130: =IF(ISBLANK(A130),"",ROUND(M130*'Correction factor'!$G$7,0)) ->  | T130: =IF(ISBLANK(A130),"",ROUND(M130*'Correction factor'!$H$7,0)) ->  | U130: =IF(ISBLANK(A130),"",ROUND(M130*'Correction factor'!$I$7,0)) -> 
B131: =IF(ISBLANK(A131),"",LOOKUP(A131,list_installations,'B.1.c. Installations'!$B$5:$B$505)) ->  | C131: =IF(ISBLANK(A131),"",LOOKUP(A131,list_installations,'B.1.c. Installations'!$C$5:$C$505)) ->  | D131: =IF(ISBLANK(A131),"",LOOKUP(A131,list_installations,'B.1.c. Installations'!$D$5:$D$505)) ->  | E131: =IF(ISBLANK(A131),"",LOOKUP(A131,list_installations,'B.1.c. Installations'!$E$5:$E$505)) ->  | F131: =IF(ISBLANK(A131),"",((LOOKUP(A131,list_installations,'B.1.c. Installations'!$I$5:$I$505)+LOOKUP(A131,list_installations,'B.1.c. Installations'!$K$5:$K$505)+LOOKUP(A131,list_installations,'B.1.c. Installations'!$M$5:$M$505))/3)) ->  | G131: =IF(ISBLANK(A131),"",((LOOKUP(A131,list_installations,'B.1.c. Installations'!$O$5:$O$505)+LOOKUP(A131,list_installations,'B.1.c. Installations'!$Q$5:$Q$505)+LOOKUP(A131,list_installations,'B.1.c. Installations'!$S$5:$S$505))/3)) ->  | N131: =IF(ISBLANK(A131),"",ROUND(M131*'Correction factor'!$B$7,0)) ->  | O131: =IF(ISBLANK(A131),"",ROUND(M131*'Correction factor'!$C$7,0)) ->  | P131: =IF(ISBLANK(A131),"",ROUND(M131*'Correction factor'!$D$7,0)) ->  | Q131: =IF(ISBLANK(A131),"",ROUND(M131*'Correction factor'!$E$7,0)) ->  | R131: =IF(ISBLANK(A131),"",ROUND(M131*'Correction factor'!$F$7,0)) ->  | S131: =IF(ISBLANK(A131),"",ROUND(M131*'Correction factor'!$G$7,0)) ->  | T131: =IF(ISBLANK(A131),"",ROUND(M131*'Correction factor'!$H$7,0)) ->  | U131: =IF(ISBLANK(A131),"",ROUND(M131*'Correction factor'!$I$7,0)) -> 
B132: =IF(ISBLANK(A132),"",LOOKUP(A132,list_installations,'B.1.c. Installations'!$B$5:$B$505)) ->  | C132: =IF(ISBLANK(A132),"",LOOKUP(A132,list_installations,'B.1.c. Installations'!$C$5:$C$505)) ->  | D132: =IF(ISBLANK(A132),"",LOOKUP(A132,list_installations,'B.1.c. Installations'!$D$5:$D$505)) ->  | E132: =IF(ISBLANK(A132),"",LOOKUP(A132,list_installations,'B.1.c. Installations'!$E$5:$E$505)) ->  | F132: =IF(ISBLANK(A132),"",((LOOKUP(A132,list_installations,'B.1.c. Installations'!$I$5:$I$505)+LOOKUP(A132,list_installations,'B.1.c. Installations'!$K$5:$K$505)+LOOKUP(A132,list_installations,'B.1.c. Installations'!$M$5:$M$505))/3)) ->  | G132: =IF(ISBLANK(A132),"",((LOOKUP(A132,list_installations,'B.1.c. Installations'!$O$5:$O$505)+LOOKUP(A132,list_installations,'B.1.c. Installations'!$Q$5:$Q$505)+LOOKUP(A132,list_installations,'B.1.c. Installations'!$S$5:$S$505))/3)) ->  | N132: =IF(ISBLANK(A132),"",ROUND(M132*'Correction factor'!$B$7,0)) ->  | O132: =IF(ISBLANK(A132),"",ROUND(M132*'Correction factor'!$C$7,0)) ->  | P132: =IF(ISBLANK(A132),"",ROUND(M132*'Correction factor'!$D$7,0)) ->  | Q132: =IF(ISBLANK(A132),"",ROUND(M132*'Correction factor'!$E$7,0)) ->  | R132: =IF(ISBLANK(A132),"",ROUND(M132*'Correction factor'!$F$7,0)) ->  | S132: =IF(ISBLANK(A132),"",ROUND(M132*'Correction factor'!$G$7,0)) ->  | T132: =IF(ISBLANK(A132),"",ROUND(M132*'Correction factor'!$H$7,0)) ->  | U132: =IF(ISBLANK(A132),"",ROUND(M132*'Correction factor'!$I$7,0)) -> 
B133: =IF(ISBLANK(A133),"",LOOKUP(A133,list_installations,'B.1.c. Installations'!$B$5:$B$505)) ->  | C133: =IF(ISBLANK(A133),"",LOOKUP(A133,list_installations,'B.1.c. Installations'!$C$5:$C$505)) ->  | D133: =IF(ISBLANK(A133),"",LOOKUP(A133,list_installations,'B.1.c. Installations'!$D$5:$D$505)) ->  | E133: =IF(ISBLANK(A133),"",LOOKUP(A133,list_installations,'B.1.c. Installations'!$E$5:$E$505)) ->  | F133: =IF(ISBLANK(A133),"",((LOOKUP(A133,list_installations,'B.1.c. Installations'!$I$5:$I$505)+LOOKUP(A133,list_installations,'B.1.c. Installations'!$K$5:$K$505)+LOOKUP(A133,list_installations,'B.1.c. Installations'!$M$5:$M$505))/3)) ->  | G133: =IF(ISBLANK(A133),"",((LOOKUP(A133,list_installations,'B.1.c. Installations'!$O$5:$O$505)+LOOKUP(A133,list_installations,'B.1.c. Installations'!$Q$5:$Q$505)+LOOKUP(A133,list_installations,'B.1.c. Installations'!$S$5:$S$505))/3)) ->  | N133: =IF(ISBLANK(A133),"",ROUND(M133*'Correction factor'!$B$7,0)) ->  | O133: =IF(ISBLANK(A133),"",ROUND(M133*'Correction factor'!$C$7,0)) ->  | P133: =IF(ISBLANK(A133),"",ROUND(M133*'Correction factor'!$D$7,0)) ->  | Q133: =IF(ISBLANK(A133),"",ROUND(M133*'Correction factor'!$E$7,0)) ->  | R133: =IF(ISBLANK(A133),"",ROUND(M133*'Correction factor'!$F$7,0)) ->  | S133: =IF(ISBLANK(A133),"",ROUND(M133*'Correction factor'!$G$7,0)) ->  | T133: =IF(ISBLANK(A133),"",ROUND(M133*'Correction factor'!$H$7,0)) ->  | U133: =IF(ISBLANK(A133),"",ROUND(M133*'Correction factor'!$I$7,0)) -> 
B134: =IF(ISBLANK(A134),"",LOOKUP(A134,list_installations,'B.1.c. Installations'!$B$5:$B$505)) ->  | C134: =IF(ISBLANK(A134),"",LOOKUP(A134,list_installations,'B.1.c. Installations'!$C$5:$C$505)) ->  | D134: =IF(ISBLANK(A134),"",LOOKUP(A134,list_installations,'B.1.c. Installations'!$D$5:$D$505)) ->  | E134: =IF(ISBLANK(A134),"",LOOKUP(A134,list_installations,'B.1.c. Installations'!$E$5:$E$505)) ->  | F134: =IF(ISBLANK(A134),"",((LOOKUP(A134,list_installations,'B.1.c. Installations'!$I$5:$I$505)+LOOKUP(A134,list_installations,'B.1.c. Installations'!$K$5:$K$505)+LOOKUP(A134,list_installations,'B.1.c. Installations'!$M$5:$M$505))/3)) ->  | G134: =IF(ISBLANK(A134),"",((LOOKUP(A134,list_installations,'B.1.c. Installations'!$O$5:$O$505)+LOOKUP(A134,list_installations,'B.1.c. Installations'!$Q$5:$Q$505)+LOOKUP(A134,list_installations,'B.1.c. Installations'!$S$5:$S$505))/3)) ->  | N134: =IF(ISBLANK(A134),"",ROUND(M134*'Correction factor'!$B$7,0)) ->  | O134: =IF(ISBLANK(A134),"",ROUND(M134*'Correction factor'!$C$7,0)) ->  | P134: =IF(ISBLANK(A134),"",ROUND(M134*'Correction factor'!$D$7,0)) ->  | Q134: =IF(ISBLANK(A134),"",ROUND(M134*'Correction factor'!$E$7,0)) ->  | R134: =IF(ISBLANK(A134),"",ROUND(M134*'Correction factor'!$F$7,0)) ->  | S134: =IF(ISBLANK(A134),"",ROUND(M134*'Correction factor'!$G$7,0)) ->  | T134: =IF(ISBLANK(A134),"",ROUND(M134*'Correction factor'!$H$7,0)) ->  | U134: =IF(ISBLANK(A134),"",ROUND(M134*'Correction factor'!$I$7,0)) -> 
B135: =IF(ISBLANK(A135),"",LOOKUP(A135,list_installations,'B.1.c. Installations'!$B$5:$B$505)) ->  | C135: =IF(ISBLANK(A135),"",LOOKUP(A135,list_installations,'B.1.c. Installations'!$C$5:$C$505)) ->  | D135: =IF(ISBLANK(A135),"",LOOKUP(A135,list_installations,'B.1.c. Installations'!$D$5:$D$505)) ->  | E135: =IF(ISBLANK(A135),"",LOOKUP(A135,list_installations,'B.1.c. Installations'!$E$5:$E$505)) ->  | F135: =IF(ISBLANK(A135),"",((LOOKUP(A135,list_installations,'B.1.c. Installations'!$I$5:$I$505)+LOOKUP(A135,list_installations,'B.1.c. Installations'!$K$5:$K$505)+LOOKUP(A135,list_installations,'B.1.c. Installations'!$M$5:$M$505))/3)) ->  | G135: =IF(ISBLANK(A135),"",((LOOKUP(A135,list_installations,'B.1.c. Installations'!$O$5:$O$505)+LOOKUP(A135,list_installations,'B.1.c. Installations'!$Q$5:$Q$505)+LOOKUP(A135,list_installations,'B.1.c. Installations'!$S$5:$S$505))/3)) ->  | H135: =IF(ISBLANK(A135),"",G135/F135) ->  | I135: =IF(ISBLANK(A135),"",F135-G135) ->  | J135: =IF(ISBLANK(A135),"",I135/F135) ->  | K135: =IF(ISBLANK(A135),"",J135-$J$5) ->  | L135: =IF(ISBLANK(A135),"",F135+(F135*K135)) ->  | M135: =IF(ISBLANK(A135),"",L135*$H$5) ->  | N135: =IF(ISBLANK(A135),"",ROUND(M135*'Correction factor'!$B$7,0)) ->  | O135: =IF(ISBLANK(A135),"",ROUND(M135*'Correction factor'!$C$7,0)) ->  | P135: =IF(ISBLANK(A135),"",ROUND(M135*'Correction factor'!$D$7,0)) ->  | Q135: =IF(ISBLANK(A135),"",ROUND(M135*'Correction factor'!$E$7,0)) ->  | R135: =IF(ISBLANK(A135),"",ROUND(M135*'Correction factor'!$F$7,0)) ->  | S135: =IF(ISBLANK(A135),"",ROUND(M135*'Correction factor'!$G$7,0)) ->  | T135: =IF(ISBLANK(A135),"",ROUND(M135*'Correction factor'!$H$7,0)) ->  | U135: =IF(ISBLANK(A135),"",ROUND(M135*'Correction factor'!$I$7,0)) -> 
B136: =IF(ISBLANK(A136),"",LOOKUP(A136,list_installations,'B.1.c. Installations'!$B$5:$B$505)) ->  | C136: =IF(ISBLANK(A136),"",LOOKUP(A136,list_installations,'B.1.c. Installations'!$C$5:$C$505)) ->  | D136: =IF(ISBLANK(A136),"",LOOKUP(A136,list_installations,'B.1.c. Installations'!$D$5:$D$505)) ->  | E136: =IF(ISBLANK(A136),"",LOOKUP(A136,list_installations,'B.1.c. Installations'!$E$5:$E$505)) ->  | F136: =IF(ISBLANK(A136),"",((LOOKUP(A136,list_installations,'B.1.c. Installations'!$I$5:$I$505)+LOOKUP(A136,list_installations,'B.1.c. Installations'!$K$5:$K$505)+LOOKUP(A136,list_installations,'B.1.c. Installations'!$M$5:$M$505))/3)) ->  | G136: =IF(ISBLANK(A136),"",((LOOKUP(A136,list_installations,'B.1.c. Installations'!$O$5:$O$505)+LOOKUP(A136,list_installations,'B.1.c. Installations'!$Q$5:$Q$505)+LOOKUP(A136,list_installations,'B.1.c. Installations'!$S$5:$S$505))/3)) ->  | N136: =IF(ISBLANK(A136),"",ROUND(M136*'Correction factor'!$B$7,0)) ->  | O136: =IF(ISBLANK(A136),"",ROUND(M136*'Correction factor'!$C$7,0)) ->  | P136: =IF(ISBLANK(A136),"",ROUND(M136*'Correction factor'!$D$7,0)) ->  | Q136: =IF(ISBLANK(A136),"",ROUND(M136*'Correction factor'!$E$7,0)) ->  | R136: =IF(ISBLANK(A136),"",ROUND(M136*'Correction factor'!$F$7,0)) ->  | S136: =IF(ISBLANK(A136),"",ROUND(M136*'Correction factor'!$G$7,0)) ->  | T136: =IF(ISBLANK(A136),"",ROUND(M136*'Correction factor'!$H$7,0)) ->  | U136: =IF(ISBLANK(A136),"",ROUND(M136*'Correction factor'!$I$7,0)) -> 
B137: =IF(ISBLANK(A137),"",LOOKUP(A137,list_installations,'B.1.c. Installations'!$B$5:$B$505)) ->  | C137: =IF(ISBLANK(A137),"",LOOKUP(A137,list_installations,'B.1.c. Installations'!$C$5:$C$505)) ->  | D137: =IF(ISBLANK(A137),"",LOOKUP(A137,list_installations,'B.1.c. Installations'!$D$5:$D$505)) ->  | E137: =IF(ISBLANK(A137),"",LOOKUP(A137,list_installations,'B.1.c. Installations'!$E$5:$E$505)) ->  | F137: =IF(ISBLANK(A137),"",((LOOKUP(A137,list_installations,'B.1.c. Installations'!$I$5:$I$505)+LOOKUP(A137,list_installations,'B.1.c. Installations'!$K$5:$K$505)+LOOKUP(A137,list_installations,'B.1.c. Installations'!$M$5:$M$505))/3)) ->  | G137: =IF(ISBLANK(A137),"",((LOOKUP(A137,list_installations,'B.1.c. Installations'!$O$5:$O$505)+LOOKUP(A137,list_installations,'B.1.c. Installations'!$Q$5:$Q$505)+LOOKUP(A137,list_installations,'B.1.c. Installations'!$S$5:$S$505))/3)) ->  | N137: =IF(ISBLANK(A137),"",ROUND(M137*'Correction factor'!$B$7,0)) ->  | O137: =IF(ISBLANK(A137),"",ROUND(M137*'Correction factor'!$C$7,0)) ->  | P137: =IF(ISBLANK(A137),"",ROUND(M137*'Correction factor'!$D$7,0)) ->  | Q137: =IF(ISBLANK(A137),"",ROUND(M137*'Correction factor'!$E$7,0)) ->  | R137: =IF(ISBLANK(A137),"",ROUND(M137*'Correction factor'!$F$7,0)) ->  | S137: =IF(ISBLANK(A137),"",ROUND(M137*'Correction factor'!$G$7,0)) ->  | T137: =IF(ISBLANK(A137),"",ROUND(M137*'Correction factor'!$H$7,0)) ->  | U137: =IF(ISBLANK(A137),"",ROUND(M137*'Correction factor'!$I$7,0)) -> 
B138: =IF(ISBLANK(A138),"",LOOKUP(A138,list_installations,'B.1.c. Installations'!$B$5:$B$505)) ->  | C138: =IF(ISBLANK(A138),"",LOOKUP(A138,list_installations,'B.1.c. Installations'!$C$5:$C$505)) ->  | D138: =IF(ISBLANK(A138),"",LOOKUP(A138,list_installations,'B.1.c. Installations'!$D$5:$D$505)) ->  | E138: =IF(ISBLANK(A138),"",LOOKUP(A138,list_installations,'B.1.c. Installations'!$E$5:$E$505)) ->  | F138: =IF(ISBLANK(A138),"",((LOOKUP(A138,list_installations,'B.1.c. Installations'!$I$5:$I$505)+LOOKUP(A138,list_installations,'B.1.c. Installations'!$K$5:$K$505)+LOOKUP(A138,list_installations,'B.1.c. Installations'!$M$5:$M$505))/3)) ->  | G138: =IF(ISBLANK(A138),"",((LOOKUP(A138,list_installations,'B.1.c. Installations'!$O$5:$O$505)+LOOKUP(A138,list_installations,'B.1.c. Installations'!$Q$5:$Q$505)+LOOKUP(A138,list_installations,'B.1.c. Installations'!$S$5:$S$505))/3)) ->  | N138: =IF(ISBLANK(A138),"",ROUND(M138*'Correction factor'!$B$7,0)) ->  | O138: =IF(ISBLANK(A138),"",ROUND(M138*'Correction factor'!$C$7,0)) ->  | P138: =IF(ISBLANK(A138),"",ROUND(M138*'Correction factor'!$D$7,0)) ->  | Q138: =IF(ISBLANK(A138),"",ROUND(M138*'Correction factor'!$E$7,0)) ->  | R138: =IF(ISBLANK(A138),"",ROUND(M138*'Correction factor'!$F$7,0)) ->  | S138: =IF(ISBLANK(A138),"",ROUND(M138*'Correction factor'!$G$7,0)) ->  | T138: =IF(ISBLANK(A138),"",ROUND(M138*'Correction factor'!$H$7,0)) ->  | U138: =IF(ISBLANK(A138),"",ROUND(M138*'Correction factor'!$I$7,0)) -> 
B139: =IF(ISBLANK(A139),"",LOOKUP(A139,list_installations,'B.1.c. Installations'!$B$5:$B$505)) ->  | C139: =IF(ISBLANK(A139),"",LOOKUP(A139,list_installations,'B.1.c. Installations'!$C$5:$C$505)) ->  | D139: =IF(ISBLANK(A139),"",LOOKUP(A139,list_installations,'B.1.c. Installations'!$D$5:$D$505)) ->  | E139: =IF(ISBLANK(A139),"",LOOKUP(A139,list_installations,'B.1.c. Installations'!$E$5:$E$505)) ->  | F139: =IF(ISBLANK(A139),"",((LOOKUP(A139,list_installations,'B.1.c. Installations'!$I$5:$I$505)+LOOKUP(A139,list_installations,'B.1.c. Installations'!$K$5:$K$505)+LOOKUP(A139,list_installations,'B.1.c. Installations'!$M$5:$M$505))/3)) ->  | G139: =IF(ISBLANK(A139),"",((LOOKUP(A139,list_installations,'B.1.c. Installations'!$O$5:$O$505)+LOOKUP(A139,list_installations,'B.1.c. Installations'!$Q$5:$Q$505)+LOOKUP(A139,list_installations,'B.1.c. Installations'!$S$5:$S$505))/3)) ->  | N139: =IF(ISBLANK(A139),"",ROUND(M139*'Correction factor'!$B$7,0)) ->  | O139: =IF(ISBLANK(A139),"",ROUND(M139*'Correction factor'!$C$7,0)) ->  | P139: =IF(ISBLANK(A139),"",ROUND(M139*'Correction factor'!$D$7,0)) ->  | Q139: =IF(ISBLANK(A139),"",ROUND(M139*'Correction factor'!$E$7,0)) ->  | R139: =IF(ISBLANK(A139),"",ROUND(M139*'Correction factor'!$F$7,0)) ->  | S139: =IF(ISBLANK(A139),"",ROUND(M139*'Correction factor'!$G$7,0)) ->  | T139: =IF(ISBLANK(A139),"",ROUND(M139*'Correction factor'!$H$7,0)) ->  | U139: =IF(ISBLANK(A139),"",ROUND(M139*'Correction factor'!$I$7,0)) -> 
B140: =IF(ISBLANK(A140),"",LOOKUP(A140,list_installations,'B.1.c. Installations'!$B$5:$B$505)) ->  | C140: =IF(ISBLANK(A140),"",LOOKUP(A140,list_installations,'B.1.c. Installations'!$C$5:$C$505)) ->  | D140: =IF(ISBLANK(A140),"",LOOKUP(A140,list_installations,'B.1.c. Installations'!$D$5:$D$505)) ->  | E140: =IF(ISBLANK(A140),"",LOOKUP(A140,list_installations,'B.1.c. Installations'!$E$5:$E$505)) ->  | F140: =IF(ISBLANK(A140),"",((LOOKUP(A140,list_installations,'B.1.c. Installations'!$I$5:$I$505)+LOOKUP(A140,list_installations,'B.1.c. Installations'!$K$5:$K$505)+LOOKUP(A140,list_installations,'B.1.c. Installations'!$M$5:$M$505))/3)) ->  | G140: =IF(ISBLANK(A140),"",((LOOKUP(A140,list_installations,'B.1.c. Installations'!$O$5:$O$505)+LOOKUP(A140,list_installations,'B.1.c. Installations'!$Q$5:$Q$505)+LOOKUP(A140,list_installations,'B.1.c. Installations'!$S$5:$S$505))/3)) ->  | N140: =IF(ISBLANK(A140),"",ROUND(M140*'Correction factor'!$B$7,0)) ->  | O140: =IF(ISBLANK(A140),"",ROUND(M140*'Correction factor'!$C$7,0)) ->  | P140: =IF(ISBLANK(A140),"",ROUND(M140*'Correction factor'!$D$7,0)) ->  | Q140: =IF(ISBLANK(A140),"",ROUND(M140*'Correction factor'!$E$7,0)) ->  | R140: =IF(ISBLANK(A140),"",ROUND(M140*'Correction factor'!$F$7,0)) ->  | S140: =IF(ISBLANK(A140),"",ROUND(M140*'Correction factor'!$G$7,0)) ->  | T140: =IF(ISBLANK(A140),"",ROUND(M140*'Correction factor'!$H$7,0)) ->  | U140: =IF(ISBLANK(A140),"",ROUND(M140*'Correction factor'!$I$7,0)) -> 
B141: =IF(ISBLANK(A141),"",LOOKUP(A141,list_installations,'B.1.c. Installations'!$B$5:$B$505)) ->  | C141: =IF(ISBLANK(A141),"",LOOKUP(A141,list_installations,'B.1.c. Installations'!$C$5:$C$505)) ->  | D141: =IF(ISBLANK(A141),"",LOOKUP(A141,list_installations,'B.1.c. Installations'!$D$5:$D$505)) ->  | E141: =IF(ISBLANK(A141),"",LOOKUP(A141,list_installations,'B.1.c. Installations'!$E$5:$E$505)) ->  | F141: =IF(ISBLANK(A141),"",((LOOKUP(A141,list_installations,'B.1.c. Installations'!$I$5:$I$505)+LOOKUP(A141,list_installations,'B.1.c. Installations'!$K$5:$K$505)+LOOKUP(A141,list_installations,'B.1.c. Installations'!$M$5:$M$505))/3)) ->  | G141: =IF(ISBLANK(A141),"",((LOOKUP(A141,list_installations,'B.1.c. Installations'!$O$5:$O$505)+LOOKUP(A141,list_installations,'B.1.c. Installations'!$Q$5:$Q$505)+LOOKUP(A141,list_installations,'B.1.c. Installations'!$S$5:$S$505))/3)) ->  | N141: =IF(ISBLANK(A141),"",ROUND(M141*'Correction factor'!$B$7,0)) ->  | O141: =IF(ISBLANK(A141),"",ROUND(M141*'Correction factor'!$C$7,0)) ->  | P141: =IF(ISBLANK(A141),"",ROUND(M141*'Correction factor'!$D$7,0)) ->  | Q141: =IF(ISBLANK(A141),"",ROUND(M141*'Correction factor'!$E$7,0)) ->  | R141: =IF(ISBLANK(A141),"",ROUND(M141*'Correction factor'!$F$7,0)) ->  | S141: =IF(ISBLANK(A141),"",ROUND(M141*'Correction factor'!$G$7,0)) ->  | T141: =IF(ISBLANK(A141),"",ROUND(M141*'Correction factor'!$H$7,0)) ->  | U141: =IF(ISBLANK(A141),"",ROUND(M141*'Correction factor'!$I$7,0)) -> 
B142: =IF(ISBLANK(A142),"",LOOKUP(A142,list_installations,'B.1.c. Installations'!$B$5:$B$505)) ->  | C142: =IF(ISBLANK(A142),"",LOOKUP(A142,list_installations,'B.1.c. Installations'!$C$5:$C$505)) ->  | D142: =IF(ISBLANK(A142),"",LOOKUP(A142,list_installations,'B.1.c. Installations'!$D$5:$D$505)) ->  | E142: =IF(ISBLANK(A142),"",LOOKUP(A142,list_installations,'B.1.c. Installations'!$E$5:$E$505)) ->  | F142: =IF(ISBLANK(A142),"",((LOOKUP(A142,list_installations,'B.1.c. Installations'!$I$5:$I$505)+LOOKUP(A142,list_installations,'B.1.c. Installations'!$K$5:$K$505)+LOOKUP(A142,list_installations,'B.1.c. Installations'!$M$5:$M$505))/3)) ->  | G142: =IF(ISBLANK(A142),"",((LOOKUP(A142,list_installations,'B.1.c. Installations'!$O$5:$O$505)+LOOKUP(A142,list_installations,'B.1.c. Installations'!$Q$5:$Q$505)+LOOKUP(A142,list_installations,'B.1.c. Installations'!$S$5:$S$505))/3)) ->  | N142: =IF(ISBLANK(A142),"",ROUND(M142*'Correction factor'!$B$7,0)) ->  | O142: =IF(ISBLANK(A142),"",ROUND(M142*'Correction factor'!$C$7,0)) ->  | P142: =IF(ISBLANK(A142),"",ROUND(M142*'Correction factor'!$D$7,0)) ->  | Q142: =IF(ISBLANK(A142),"",ROUND(M142*'Correction factor'!$E$7,0)) ->  | R142: =IF(ISBLANK(A142),"",ROUND(M142*'Correction factor'!$F$7,0)) ->  | S142: =IF(ISBLANK(A142),"",ROUND(M142*'Correction factor'!$G$7,0)) ->  | T142: =IF(ISBLANK(A142),"",ROUND(M142*'Correction factor'!$H$7,0)) ->  | U142: =IF(ISBLANK(A142),"",ROUND(M142*'Correction factor'!$I$7,0)) -> 
B143: =IF(ISBLANK(A143),"",LOOKUP(A143,list_installations,'B.1.c. Installations'!$B$5:$B$505)) ->  | C143: =IF(ISBLANK(A143),"",LOOKUP(A143,list_installations,'B.1.c. Installations'!$C$5:$C$505)) ->  | D143: =IF(ISBLANK(A143),"",LOOKUP(A143,list_installations,'B.1.c. Installations'!$D$5:$D$505)) ->  | E143: =IF(ISBLANK(A143),"",LOOKUP(A143,list_installations,'B.1.c. Installations'!$E$5:$E$505)) ->  | F143: =IF(ISBLANK(A143),"",((LOOKUP(A143,list_installations,'B.1.c. Installations'!$I$5:$I$505)+LOOKUP(A143,list_installations,'B.1.c. Installations'!$K$5:$K$505)+LOOKUP(A143,list_installations,'B.1.c. Installations'!$M$5:$M$505))/3)) ->  | G143: =IF(ISBLANK(A143),"",((LOOKUP(A143,list_installations,'B.1.c. Installations'!$O$5:$O$505)+LOOKUP(A143,list_installations,'B.1.c. Installations'!$Q$5:$Q$505)+LOOKUP(A143,list_installations,'B.1.c. Installations'!$S$5:$S$505))/3)) ->  | N143: =IF(ISBLANK(A143),"",ROUND(M143*'Correction factor'!$B$7,0)) ->  | O143: =IF(ISBLANK(A143),"",ROUND(M143*'Correction factor'!$C$7,0)) ->  | P143: =IF(ISBLANK(A143),"",ROUND(M143*'Correction factor'!$D$7,0)) ->  | Q143: =IF(ISBLANK(A143),"",ROUND(M143*'Correction factor'!$E$7,0)) ->  | R143: =IF(ISBLANK(A143),"",ROUND(M143*'Correction factor'!$F$7,0)) ->  | S143: =IF(ISBLANK(A143),"",ROUND(M143*'Correction factor'!$G$7,0)) ->  | T143: =IF(ISBLANK(A143),"",ROUND(M143*'Correction factor'!$H$7,0)) ->  | U143: =IF(ISBLANK(A143),"",ROUND(M143*'Correction factor'!$I$7,0)) -> 
B144: =IF(ISBLANK(A144),"",LOOKUP(A144,list_installations,'B.1.c. Installations'!$B$5:$B$505)) ->  | C144: =IF(ISBLANK(A144),"",LOOKUP(A144,list_installations,'B.1.c. Installations'!$C$5:$C$505)) ->  | D144: =IF(ISBLANK(A144),"",LOOKUP(A144,list_installations,'B.1.c. Installations'!$D$5:$D$505)) ->  | E144: =IF(ISBLANK(A144),"",LOOKUP(A144,list_installations,'B.1.c. Installations'!$E$5:$E$505)) ->  | F144: =IF(ISBLANK(A144),"",((LOOKUP(A144,list_installations,'B.1.c. Installations'!$I$5:$I$505)+LOOKUP(A144,list_installations,'B.1.c. Installations'!$K$5:$K$505)+LOOKUP(A144,list_installations,'B.1.c. Installations'!$M$5:$M$505))/3)) ->  | G144: =IF(ISBLANK(A144),"",((LOOKUP(A144,list_installations,'B.1.c. Installations'!$O$5:$O$505)+LOOKUP(A144,list_installations,'B.1.c. Installations'!$Q$5:$Q$505)+LOOKUP(A144,list_installations,'B.1.c. Installations'!$S$5:$S$505))/3)) ->  | N144: =IF(ISBLANK(A144),"",ROUND(M144*'Correction factor'!$B$7,0)) ->  | O144: =IF(ISBLANK(A144),"",ROUND(M144*'Correction factor'!$C$7,0)) ->  | P144: =IF(ISBLANK(A144),"",ROUND(M144*'Correction factor'!$D$7,0)) ->  | Q144: =IF(ISBLANK(A144),"",ROUND(M144*'Correction factor'!$E$7,0)) ->  | R144: =IF(ISBLANK(A144),"",ROUND(M144*'Correction factor'!$F$7,0)) ->  | S144: =IF(ISBLANK(A144),"",ROUND(M144*'Correction factor'!$G$7,0)) ->  | T144: =IF(ISBLANK(A144),"",ROUND(M144*'Correction factor'!$H$7,0)) ->  | U144: =IF(ISBLANK(A144),"",ROUND(M144*'Correction factor'!$I$7,0)) -> 
B145: =IF(ISBLANK(A145),"",LOOKUP(A145,list_installations,'B.1.c. Installations'!$B$5:$B$505)) ->  | C145: =IF(ISBLANK(A145),"",LOOKUP(A145,list_installations,'B.1.c. Installations'!$C$5:$C$505)) ->  | D145: =IF(ISBLANK(A145),"",LOOKUP(A145,list_installations,'B.1.c. Installations'!$D$5:$D$505)) ->  | E145: =IF(ISBLANK(A145),"",LOOKUP(A145,list_installations,'B.1.c. Installations'!$E$5:$E$505)) ->  | F145: =IF(ISBLANK(A145),"",((LOOKUP(A145,list_installations,'B.1.c. Installations'!$I$5:$I$505)+LOOKUP(A145,list_installations,'B.1.c. Installations'!$K$5:$K$505)+LOOKUP(A145,list_installations,'B.1.c. Installations'!$M$5:$M$505))/3)) ->  | G145: =IF(ISBLANK(A145),"",((LOOKUP(A145,list_installations,'B.1.c. Installations'!$O$5:$O$505)+LOOKUP(A145,list_installations,'B.1.c. Installations'!$Q$5:$Q$505)+LOOKUP(A145,list_installations,'B.1.c. Installations'!$S$5:$S$505))/3)) ->  | N145: =IF(ISBLANK(A145),"",ROUND(M145*'Correction factor'!$B$7,0)) ->  | O145: =IF(ISBLANK(A145),"",ROUND(M145*'Correction factor'!$C$7,0)) ->  | P145: =IF(ISBLANK(A145),"",ROUND(M145*'Correction factor'!$D$7,0)) ->  | Q145: =IF(ISBLANK(A145),"",ROUND(M145*'Correction factor'!$E$7,0)) ->  | R145: =IF(ISBLANK(A145),"",ROUND(M145*'Correction factor'!$F$7,0)) ->  | S145: =IF(ISBLANK(A145),"",ROUND(M145*'Correction factor'!$G$7,0)) ->  | T145: =IF(ISBLANK(A145),"",ROUND(M145*'Correction factor'!$H$7,0)) ->  | U145: =IF(ISBLANK(A145),"",ROUND(M145*'Correction factor'!$I$7,0)) -> 
B146: =IF(ISBLANK(A146),"",LOOKUP(A146,list_installations,'B.1.c. Installations'!$B$5:$B$505)) ->  | C146: =IF(ISBLANK(A146),"",LOOKUP(A146,list_installations,'B.1.c. Installations'!$C$5:$C$505)) ->  | D146: =IF(ISBLANK(A146),"",LOOKUP(A146,list_installations,'B.1.c. Installations'!$D$5:$D$505)) ->  | E146: =IF(ISBLANK(A146),"",LOOKUP(A146,list_installations,'B.1.c. Installations'!$E$5:$E$505)) ->  | F146: =IF(ISBLANK(A146),"",((LOOKUP(A146,list_installations,'B.1.c. Installations'!$I$5:$I$505)+LOOKUP(A146,list_installations,'B.1.c. Installations'!$K$5:$K$505)+LOOKUP(A146,list_installations,'B.1.c. Installations'!$M$5:$M$505))/3)) ->  | G146: =IF(ISBLANK(A146),"",((LOOKUP(A146,list_installations,'B.1.c. Installations'!$O$5:$O$505)+LOOKUP(A146,list_installations,'B.1.c. Installations'!$Q$5:$Q$505)+LOOKUP(A146,list_installations,'B.1.c. Installations'!$S$5:$S$505))/3)) ->  | N146: =IF(ISBLANK(A146),"",ROUND(M146*'Correction factor'!$B$7,0)) ->  | O146: =IF(ISBLANK(A146),"",ROUND(M146*'Correction factor'!$C$7,0)) ->  | P146: =IF(ISBLANK(A146),"",ROUND(M146*'Correction factor'!$D$7,0)) ->  | Q146: =IF(ISBLANK(A146),"",ROUND(M146*'Correction factor'!$E$7,0)) ->  | R146: =IF(ISBLANK(A146),"",ROUND(M146*'Correction factor'!$F$7,0)) ->  | S146: =IF(ISBLANK(A146),"",ROUND(M146*'Correction factor'!$G$7,0)) ->  | T146: =IF(ISBLANK(A146),"",ROUND(M146*'Correction factor'!$H$7,0)) ->  | U146: =IF(ISBLANK(A146),"",ROUND(M146*'Correction factor'!$I$7,0)) -> 
B147: =IF(ISBLANK(A147),"",LOOKUP(A147,list_installations,'B.1.c. Installations'!$B$5:$B$505)) ->  | C147: =IF(ISBLANK(A147),"",LOOKUP(A147,list_installations,'B.1.c. Installations'!$C$5:$C$505)) ->  | D147: =IF(ISBLANK(A147),"",LOOKUP(A147,list_installations,'B.1.c. Installations'!$D$5:$D$505)) ->  | E147: =IF(ISBLANK(A147),"",LOOKUP(A147,list_installations,'B.1.c. Installations'!$E$5:$E$505)) ->  | F147: =IF(ISBLANK(A147),"",((LOOKUP(A147,list_installations,'B.1.c. Installations'!$I$5:$I$505)+LOOKUP(A147,list_installations,'B.1.c. Installations'!$K$5:$K$505)+LOOKUP(A147,list_installations,'B.1.c. Installations'!$M$5:$M$505))/3)) ->  | G147: =IF(ISBLANK(A147),"",((LOOKUP(A147,list_installations,'B.1.c. Installations'!$O$5:$O$505)+LOOKUP(A147,list_installations,'B.1.c. Installations'!$Q$5:$Q$505)+LOOKUP(A147,list_installations,'B.1.c. Installations'!$S$5:$S$505))/3)) ->  | N147: =IF(ISBLANK(A147),"",ROUND(M147*'Correction factor'!$B$7,0)) ->  | O147: =IF(ISBLANK(A147),"",ROUND(M147*'Correction factor'!$C$7,0)) ->  | P147: =IF(ISBLANK(A147),"",ROUND(M147*'Correction factor'!$D$7,0)) ->  | Q147: =IF(ISBLANK(A147),"",ROUND(M147*'Correction factor'!$E$7,0)) ->  | R147: =IF(ISBLANK(A147),"",ROUND(M147*'Correction factor'!$F$7,0)) ->  | S147: =IF(ISBLANK(A147),"",ROUND(M147*'Correction factor'!$G$7,0)) ->  | T147: =IF(ISBLANK(A147),"",ROUND(M147*'Correction factor'!$H$7,0)) ->  | U147: =IF(ISBLANK(A147),"",ROUND(M147*'Correction factor'!$I$7,0)) -> 
B148: =IF(ISBLANK(A148),"",LOOKUP(A148,list_installations,'B.1.c. Installations'!$B$5:$B$505)) ->  | C148: =IF(ISBLANK(A148),"",LOOKUP(A148,list_installations,'B.1.c. Installations'!$C$5:$C$505)) ->  | D148: =IF(ISBLANK(A148),"",LOOKUP(A148,list_installations,'B.1.c. Installations'!$D$5:$D$505)) ->  | E148: =IF(ISBLANK(A148),"",LOOKUP(A148,list_installations,'B.1.c. Installations'!$E$5:$E$505)) ->  | F148: =IF(ISBLANK(A148),"",((LOOKUP(A148,list_installations,'B.1.c. Installations'!$I$5:$I$505)+LOOKUP(A148,list_installations,'B.1.c. Installations'!$K$5:$K$505)+LOOKUP(A148,list_installations,'B.1.c. Installations'!$M$5:$M$505))/3)) ->  | G148: =IF(ISBLANK(A148),"",((LOOKUP(A148,list_installations,'B.1.c. Installations'!$O$5:$O$505)+LOOKUP(A148,list_installations,'B.1.c. Installations'!$Q$5:$Q$505)+LOOKUP(A148,list_installations,'B.1.c. Installations'!$S$5:$S$505))/3)) ->  | N148: =IF(ISBLANK(A148),"",ROUND(M148*'Correction factor'!$B$7,0)) ->  | O148: =IF(ISBLANK(A148),"",ROUND(M148*'Correction factor'!$C$7,0)) ->  | P148: =IF(ISBLANK(A148),"",ROUND(M148*'Correction factor'!$D$7,0)) ->  | Q148: =IF(ISBLANK(A148),"",ROUND(M148*'Correction factor'!$E$7,0)) ->  | R148: =IF(ISBLANK(A148),"",ROUND(M148*'Correction factor'!$F$7,0)) ->  | S148: =IF(ISBLANK(A148),"",ROUND(M148*'Correction factor'!$G$7,0)) ->  | T148: =IF(ISBLANK(A148),"",ROUND(M148*'Correction factor'!$H$7,0)) ->  | U148: =IF(ISBLANK(A148),"",ROUND(M148*'Correction factor'!$I$7,0)) -> 
B149: =IF(ISBLANK(A149),"",LOOKUP(A149,list_installations,'B.1.c. Installations'!$B$5:$B$505)) ->  | C149: =IF(ISBLANK(A149),"",LOOKUP(A149,list_installations,'B.1.c. Installations'!$C$5:$C$505)) ->  | D149: =IF(ISBLANK(A149),"",LOOKUP(A149,list_installations,'B.1.c. Installations'!$D$5:$D$505)) ->  | E149: =IF(ISBLANK(A149),"",LOOKUP(A149,list_installations,'B.1.c. Installations'!$E$5:$E$505)) ->  | F149: =IF(ISBLANK(A149),"",((LOOKUP(A149,list_installations,'B.1.c. Installations'!$I$5:$I$505)+LOOKUP(A149,list_installations,'B.1.c. Installations'!$K$5:$K$505)+LOOKUP(A149,list_installations,'B.1.c. Installations'!$M$5:$M$505))/3)) ->  | G149: =IF(ISBLANK(A149),"",((LOOKUP(A149,list_installations,'B.1.c. Installations'!$O$5:$O$505)+LOOKUP(A149,list_installations,'B.1.c. Installations'!$Q$5:$Q$505)+LOOKUP(A149,list_installations,'B.1.c. Installations'!$S$5:$S$505))/3)) ->  | N149: =IF(ISBLANK(A149),"",ROUND(M149*'Correction factor'!$B$7,0)) ->  | O149: =IF(ISBLANK(A149),"",ROUND(M149*'Correction factor'!$C$7,0)) ->  | P149: =IF(ISBLANK(A149),"",ROUND(M149*'Correction factor'!$D$7,0)) ->  | Q149: =IF(ISBLANK(A149),"",ROUND(M149*'Correction factor'!$E$7,0)) ->  | R149: =IF(ISBLANK(A149),"",ROUND(M149*'Correction factor'!$F$7,0)) ->  | S149: =IF(ISBLANK(A149),"",ROUND(M149*'Correction factor'!$G$7,0)) ->  | T149: =IF(ISBLANK(A149),"",ROUND(M149*'Correction factor'!$H$7,0)) ->  | U149: =IF(ISBLANK(A149),"",ROUND(M149*'Correction factor'!$I$7,0)) -> 
B150: =IF(ISBLANK(A150),"",LOOKUP(A150,list_installations,'B.1.c. Installations'!$B$5:$B$505)) ->  | C150: =IF(ISBLANK(A150),"",LOOKUP(A150,list_installations,'B.1.c. Installations'!$C$5:$C$505)) ->  | D150: =IF(ISBLANK(A150),"",LOOKUP(A150,list_installations,'B.1.c. Installations'!$D$5:$D$505)) ->  | E150: =IF(ISBLANK(A150),"",LOOKUP(A150,list_installations,'B.1.c. Installations'!$E$5:$E$505)) ->  | F150: =IF(ISBLANK(A150),"",((LOOKUP(A150,list_installations,'B.1.c. Installations'!$I$5:$I$505)+LOOKUP(A150,list_installations,'B.1.c. Installations'!$K$5:$K$505)+LOOKUP(A150,list_installations,'B.1.c. Installations'!$M$5:$M$505))/3)) ->  | G150: =IF(ISBLANK(A150),"",((LOOKUP(A150,list_installations,'B.1.c. Installations'!$O$5:$O$505)+LOOKUP(A150,list_installations,'B.1.c. Installations'!$Q$5:$Q$505)+LOOKUP(A150,list_installations,'B.1.c. Installations'!$S$5:$S$505))/3)) ->  | N150: =IF(ISBLANK(A150),"",ROUND(M150*'Correction factor'!$B$7,0)) ->  | O150: =IF(ISBLANK(A150),"",ROUND(M150*'Correction factor'!$C$7,0)) ->  | P150: =IF(ISBLANK(A150),"",ROUND(M150*'Correction factor'!$D$7,0)) ->  | Q150: =IF(ISBLANK(A150),"",ROUND(M150*'Correction factor'!$E$7,0)) ->  | R150: =IF(ISBLANK(A150),"",ROUND(M150*'Correction factor'!$F$7,0)) ->  | S150: =IF(ISBLANK(A150),"",ROUND(M150*'Correction factor'!$G$7,0)) ->  | T150: =IF(ISBLANK(A150),"",ROUND(M150*'Correction factor'!$H$7,0)) ->  | U150: =IF(ISBLANK(A150),"",ROUND(M150*'Correction factor'!$I$7,0)) -> 
B151: =IF(ISBLANK(A151),"",LOOKUP(A151,list_installations,'B.1.c. Installations'!$B$5:$B$505)) ->  | C151: =IF(ISBLANK(A151),"",LOOKUP(A151,list_installations,'B.1.c. Installations'!$C$5:$C$505)) ->  | D151: =IF(ISBLANK(A151),"",LOOKUP(A151,list_installations,'B.1.c. Installations'!$D$5:$D$505)) ->  | E151: =IF(ISBLANK(A151),"",LOOKUP(A151,list_installations,'B.1.c. Installations'!$E$5:$E$505)) ->  | F151: =IF(ISBLANK(A151),"",((LOOKUP(A151,list_installations,'B.1.c. Installations'!$I$5:$I$505)+LOOKUP(A151,list_installations,'B.1.c. Installations'!$K$5:$K$505)+LOOKUP(A151,list_installations,'B.1.c. Installations'!$M$5:$M$505))/3)) ->  | G151: =IF(ISBLANK(A151),"",((LOOKUP(A151,list_installations,'B.1.c. Installations'!$O$5:$O$505)+LOOKUP(A151,list_installations,'B.1.c. Installations'!$Q$5:$Q$505)+LOOKUP(A151,list_installations,'B.1.c. Installations'!$S$5:$S$505))/3)) ->  | N151: =IF(ISBLANK(A151),"",ROUND(M151*'Correction factor'!$B$7,0)) ->  | O151: =IF(ISBLANK(A151),"",ROUND(M151*'Correction factor'!$C$7,0)) ->  | P151: =IF(ISBLANK(A151),"",ROUND(M151*'Correction factor'!$D$7,0)) ->  | Q151: =IF(ISBLANK(A151),"",ROUND(M151*'Correction factor'!$E$7,0)) ->  | R151: =IF(ISBLANK(A151),"",ROUND(M151*'Correction factor'!$F$7,0)) ->  | S151: =IF(ISBLANK(A151),"",ROUND(M151*'Correction factor'!$G$7,0)) ->  | T151: =IF(ISBLANK(A151),"",ROUND(M151*'Correction factor'!$H$7,0)) ->  | U151: =IF(ISBLANK(A151),"",ROUND(M151*'Correction factor'!$I$7,0)) -> 
B152: =IF(ISBLANK(A152),"",LOOKUP(A152,list_installations,'B.1.c. Installations'!$B$5:$B$505)) ->  | C152: =IF(ISBLANK(A152),"",LOOKUP(A152,list_installations,'B.1.c. Installations'!$C$5:$C$505)) ->  | D152: =IF(ISBLANK(A152),"",LOOKUP(A152,list_installations,'B.1.c. Installations'!$D$5:$D$505)) ->  | E152: =IF(ISBLANK(A152),"",LOOKUP(A152,list_installations,'B.1.c. Installations'!$E$5:$E$505)) ->  | F152: =IF(ISBLANK(A152),"",((LOOKUP(A152,list_installations,'B.1.c. Installations'!$I$5:$I$505)+LOOKUP(A152,list_installations,'B.1.c. Installations'!$K$5:$K$505)+LOOKUP(A152,list_installations,'B.1.c. Installations'!$M$5:$M$505))/3)) ->  | G152: =IF(ISBLANK(A152),"",((LOOKUP(A152,list_installations,'B.1.c. Installations'!$O$5:$O$505)+LOOKUP(A152,list_installations,'B.1.c. Installations'!$Q$5:$Q$505)+LOOKUP(A152,list_installations,'B.1.c. Installations'!$S$5:$S$505))/3)) ->  | N152: =IF(ISBLANK(A152),"",ROUND(M152*'Correction factor'!$B$7,0)) ->  | O152: =IF(ISBLANK(A152),"",ROUND(M152*'Correction factor'!$C$7,0)) ->  | P152: =IF(ISBLANK(A152),"",ROUND(M152*'Correction factor'!$D$7,0)) ->  | Q152: =IF(ISBLANK(A152),"",ROUND(M152*'Correction factor'!$E$7,0)) ->  | R152: =IF(ISBLANK(A152),"",ROUND(M152*'Correction factor'!$F$7,0)) ->  | S152: =IF(ISBLANK(A152),"",ROUND(M152*'Correction factor'!$G$7,0)) ->  | T152: =IF(ISBLANK(A152),"",ROUND(M152*'Correction factor'!$H$7,0)) ->  | U152: =IF(ISBLANK(A152),"",ROUND(M152*'Correction factor'!$I$7,0)) -> 
B153: =IF(ISBLANK(A153),"",LOOKUP(A153,list_installations,'B.1.c. Installations'!$B$5:$B$505)) ->  | C153: =IF(ISBLANK(A153),"",LOOKUP(A153,list_installations,'B.1.c. Installations'!$C$5:$C$505)) ->  | D153: =IF(ISBLANK(A153),"",LOOKUP(A153,list_installations,'B.1.c. Installations'!$D$5:$D$505)) ->  | E153: =IF(ISBLANK(A153),"",LOOKUP(A153,list_installations,'B.1.c. Installations'!$E$5:$E$505)) ->  | F153: =IF(ISBLANK(A153),"",((LOOKUP(A153,list_installations,'B.1.c. Installations'!$I$5:$I$505)+LOOKUP(A153,list_installations,'B.1.c. Installations'!$K$5:$K$505)+LOOKUP(A153,list_installations,'B.1.c. Installations'!$M$5:$M$505))/3)) ->  | G153: =IF(ISBLANK(A153),"",((LOOKUP(A153,list_installations,'B.1.c. Installations'!$O$5:$O$505)+LOOKUP(A153,list_installations,'B.1.c. Installations'!$Q$5:$Q$505)+LOOKUP(A153,list_installations,'B.1.c. Installations'!$S$5:$S$505))/3)) ->  | N153: =IF(ISBLANK(A153),"",ROUND(M153*'Correction factor'!$B$7,0)) ->  | O153: =IF(ISBLANK(A153),"",ROUND(M153*'Correction factor'!$C$7,0)) ->  | P153: =IF(ISBLANK(A153),"",ROUND(M153*'Correction factor'!$D$7,0)) ->  | Q153: =IF(ISBLANK(A153),"",ROUND(M153*'Correction factor'!$E$7,0)) ->  | R153: =IF(ISBLANK(A153),"",ROUND(M153*'Correction factor'!$F$7,0)) ->  | S153: =IF(ISBLANK(A153),"",ROUND(M153*'Correction factor'!$G$7,0)) ->  | T153: =IF(ISBLANK(A153),"",ROUND(M153*'Correction factor'!$H$7,0)) ->  | U153: =IF(ISBLANK(A153),"",ROUND(M153*'Correction factor'!$I$7,0)) -> 
B154: =IF(ISBLANK(A154),"",LOOKUP(A154,list_installations,'B.1.c. Installations'!$B$5:$B$505)) ->  | C154: =IF(ISBLANK(A154),"",LOOKUP(A154,list_installations,'B.1.c. Installations'!$C$5:$C$505)) ->  | D154: =IF(ISBLANK(A154),"",LOOKUP(A154,list_installations,'B.1.c. Installations'!$D$5:$D$505)) ->  | E154: =IF(ISBLANK(A154),"",LOOKUP(A154,list_installations,'B.1.c. Installations'!$E$5:$E$505)) ->  | F154: =IF(ISBLANK(A154),"",((LOOKUP(A154,list_installations,'B.1.c. Installations'!$I$5:$I$505)+LOOKUP(A154,list_installations,'B.1.c. Installations'!$K$5:$K$505)+LOOKUP(A154,list_installations,'B.1.c. Installations'!$M$5:$M$505))/3)) ->  | G154: =IF(ISBLANK(A154),"",((LOOKUP(A154,list_installations,'B.1.c. Installations'!$O$5:$O$505)+LOOKUP(A154,list_installations,'B.1.c. Installations'!$Q$5:$Q$505)+LOOKUP(A154,list_installations,'B.1.c. Installations'!$S$5:$S$505))/3)) ->  | N154: =IF(ISBLANK(A154),"",ROUND(M154*'Correction factor'!$B$7,0)) ->  | O154: =IF(ISBLANK(A154),"",ROUND(M154*'Correction factor'!$C$7,0)) ->  | P154: =IF(ISBLANK(A154),"",ROUND(M154*'Correction factor'!$D$7,0)) ->  | Q154: =IF(ISBLANK(A154),"",ROUND(M154*'Correction factor'!$E$7,0)) ->  | R154: =IF(ISBLANK(A154),"",ROUND(M154*'Correction factor'!$F$7,0)) ->  | S154: =IF(ISBLANK(A154),"",ROUND(M154*'Correction factor'!$G$7,0)) ->  | T154: =IF(ISBLANK(A154),"",ROUND(M154*'Correction factor'!$H$7,0)) ->  | U154: =IF(ISBLANK(A154),"",ROUND(M154*'Correction factor'!$I$7,0)) -> 
B155: =IF(ISBLANK(A155),"",LOOKUP(A155,list_installations,'B.1.c. Installations'!$B$5:$B$505)) ->  | C155: =IF(ISBLANK(A155),"",LOOKUP(A155,list_installations,'B.1.c. Installations'!$C$5:$C$505)) ->  | D155: =IF(ISBLANK(A155),"",LOOKUP(A155,list_installations,'B.1.c. Installations'!$D$5:$D$505)) ->  | E155: =IF(ISBLANK(A155),"",LOOKUP(A155,list_installations,'B.1.c. Installations'!$E$5:$E$505)) ->  | F155: =IF(ISBLANK(A155),"",((LOOKUP(A155,list_installations,'B.1.c. Installations'!$I$5:$I$505)+LOOKUP(A155,list_installations,'B.1.c. Installations'!$K$5:$K$505)+LOOKUP(A155,list_installations,'B.1.c. Installations'!$M$5:$M$505))/3)) ->  | G155: =IF(ISBLANK(A155),"",((LOOKUP(A155,list_installations,'B.1.c. Installations'!$O$5:$O$505)+LOOKUP(A155,list_installations,'B.1.c. Installations'!$Q$5:$Q$505)+LOOKUP(A155,list_installations,'B.1.c. Installations'!$S$5:$S$505))/3)) ->  | N155: =IF(ISBLANK(A155),"",ROUND(M155*'Correction factor'!$B$7,0)) ->  | O155: =IF(ISBLANK(A155),"",ROUND(M155*'Correction factor'!$C$7,0)) ->  | P155: =IF(ISBLANK(A155),"",ROUND(M155*'Correction factor'!$D$7,0)) ->  | Q155: =IF(ISBLANK(A155),"",ROUND(M155*'Correction factor'!$E$7,0)) ->  | R155: =IF(ISBLANK(A155),"",ROUND(M155*'Correction factor'!$F$7,0)) ->  | S155: =IF(ISBLANK(A155),"",ROUND(M155*'Correction factor'!$G$7,0)) ->  | T155: =IF(ISBLANK(A155),"",ROUND(M155*'Correction factor'!$H$7,0)) ->  | U155: =IF(ISBLANK(A155),"",ROUND(M155*'Correction factor'!$I$7,0)) -> 
B156: =IF(ISBLANK(A156),"",LOOKUP(A156,list_installations,'B.1.c. Installations'!$B$5:$B$505)) ->  | C156: =IF(ISBLANK(A156),"",LOOKUP(A156,list_installations,'B.1.c. Installations'!$C$5:$C$505)) ->  | D156: =IF(ISBLANK(A156),"",LOOKUP(A156,list_installations,'B.1.c. Installations'!$D$5:$D$505)) ->  | E156: =IF(ISBLANK(A156),"",LOOKUP(A156,list_installations,'B.1.c. Installations'!$E$5:$E$505)) ->  | F156: =IF(ISBLANK(A156),"",((LOOKUP(A156,list_installations,'B.1.c. Installations'!$I$5:$I$505)+LOOKUP(A156,list_installations,'B.1.c. Installations'!$K$5:$K$505)+LOOKUP(A156,list_installations,'B.1.c. Installations'!$M$5:$M$505))/3)) ->  | G156: =IF(ISBLANK(A156),"",((LOOKUP(A156,list_installations,'B.1.c. Installations'!$O$5:$O$505)+LOOKUP(A156,list_installations,'B.1.c. Installations'!$Q$5:$Q$505)+LOOKUP(A156,list_installations,'B.1.c. Installations'!$S$5:$S$505))/3)) ->  | N156: =IF(ISBLANK(A156),"",ROUND(M156*'Correction factor'!$B$7,0)) ->  | O156: =IF(ISBLANK(A156),"",ROUND(M156*'Correction factor'!$C$7,0)) ->  | P156: =IF(ISBLANK(A156),"",ROUND(M156*'Correction factor'!$D$7,0)) ->  | Q156: =IF(ISBLANK(A156),"",ROUND(M156*'Correction factor'!$E$7,0)) ->  | R156: =IF(ISBLANK(A156),"",ROUND(M156*'Correction factor'!$F$7,0)) ->  | S156: =IF(ISBLANK(A156),"",ROUND(M156*'Correction factor'!$G$7,0)) ->  | T156: =IF(ISBLANK(A156),"",ROUND(M156*'Correction factor'!$H$7,0)) ->  | U156: =IF(ISBLANK(A156),"",ROUND(M156*'Correction factor'!$I$7,0)) -> 
B157: =IF(ISBLANK(A157),"",LOOKUP(A157,list_installations,'B.1.c. Installations'!$B$5:$B$505)) ->  | C157: =IF(ISBLANK(A157),"",LOOKUP(A157,list_installations,'B.1.c. Installations'!$C$5:$C$505)) ->  | D157: =IF(ISBLANK(A157),"",LOOKUP(A157,list_installations,'B.1.c. Installations'!$D$5:$D$505)) ->  | E157: =IF(ISBLANK(A157),"",LOOKUP(A157,list_installations,'B.1.c. Installations'!$E$5:$E$505)) ->  | F157: =IF(ISBLANK(A157),"",((LOOKUP(A157,list_installations,'B.1.c. Installations'!$I$5:$I$505)+LOOKUP(A157,list_installations,'B.1.c. Installations'!$K$5:$K$505)+LOOKUP(A157,list_installations,'B.1.c. Installations'!$M$5:$M$505))/3)) ->  | G157: =IF(ISBLANK(A157),"",((LOOKUP(A157,list_installations,'B.1.c. Installations'!$O$5:$O$505)+LOOKUP(A157,list_installations,'B.1.c. Installations'!$Q$5:$Q$505)+LOOKUP(A157,list_installations,'B.1.c. Installations'!$S$5:$S$505))/3)) ->  | N157: =IF(ISBLANK(A157),"",ROUND(M157*'Correction factor'!$B$7,0)) ->  | O157: =IF(ISBLANK(A157),"",ROUND(M157*'Correction factor'!$C$7,0)) ->  | P157: =IF(ISBLANK(A157),"",ROUND(M157*'Correction factor'!$D$7,0)) ->  | Q157: =IF(ISBLANK(A157),"",ROUND(M157*'Correction factor'!$E$7,0)) ->  | R157: =IF(ISBLANK(A157),"",ROUND(M157*'Correction factor'!$F$7,0)) ->  | S157: =IF(ISBLANK(A157),"",ROUND(M157*'Correction factor'!$G$7,0)) ->  | T157: =IF(ISBLANK(A157),"",ROUND(M157*'Correction factor'!$H$7,0)) ->  | U157: =IF(ISBLANK(A157),"",ROUND(M157*'Correction factor'!$I$7,0)) -> 
B158: =IF(ISBLANK(A158),"",LOOKUP(A158,list_installations,'B.1.c. Installations'!$B$5:$B$505)) ->  | C158: =IF(ISBLANK(A158),"",LOOKUP(A158,list_installations,'B.1.c. Installations'!$C$5:$C$505)) ->  | D158: =IF(ISBLANK(A158),"",LOOKUP(A158,list_installations,'B.1.c. Installations'!$D$5:$D$505)) ->  | E158: =IF(ISBLANK(A158),"",LOOKUP(A158,list_installations,'B.1.c. Installations'!$E$5:$E$505)) ->  | F158: =IF(ISBLANK(A158),"",((LOOKUP(A158,list_installations,'B.1.c. Installations'!$I$5:$I$505)+LOOKUP(A158,list_installations,'B.1.c. Installations'!$K$5:$K$505)+LOOKUP(A158,list_installations,'B.1.c. Installations'!$M$5:$M$505))/3)) ->  | G158: =IF(ISBLANK(A158),"",((LOOKUP(A158,list_installations,'B.1.c. Installations'!$O$5:$O$505)+LOOKUP(A158,list_installations,'B.1.c. Installations'!$Q$5:$Q$505)+LOOKUP(A158,list_installations,'B.1.c. Installations'!$S$5:$S$505))/3)) ->  | N158: =IF(ISBLANK(A158),"",ROUND(M158*'Correction factor'!$B$7,0)) ->  | O158: =IF(ISBLANK(A158),"",ROUND(M158*'Correction factor'!$C$7,0)) ->  | P158: =IF(ISBLANK(A158),"",ROUND(M158*'Correction factor'!$D$7,0)) ->  | Q158: =IF(ISBLANK(A158),"",ROUND(M158*'Correction factor'!$E$7,0)) ->  | R158: =IF(ISBLANK(A158),"",ROUND(M158*'Correction factor'!$F$7,0)) ->  | S158: =IF(ISBLANK(A158),"",ROUND(M158*'Correction factor'!$G$7,0)) ->  | T158: =IF(ISBLANK(A158),"",ROUND(M158*'Correction factor'!$H$7,0)) ->  | U158: =IF(ISBLANK(A158),"",ROUND(M158*'Correction factor'!$I$7,0)) -> 
B159: =IF(ISBLANK(A159),"",LOOKUP(A159,list_installations,'B.1.c. Installations'!$B$5:$B$505)) ->  | C159: =IF(ISBLANK(A159),"",LOOKUP(A159,list_installations,'B.1.c. Installations'!$C$5:$C$505)) ->  | D159: =IF(ISBLANK(A159),"",LOOKUP(A159,list_installations,'B.1.c. Installations'!$D$5:$D$505)) ->  | E159: =IF(ISBLANK(A159),"",LOOKUP(A159,list_installations,'B.1.c. Installations'!$E$5:$E$505)) ->  | F159: =IF(ISBLANK(A159),"",((LOOKUP(A159,list_installations,'B.1.c. Installations'!$I$5:$I$505)+LOOKUP(A159,list_installations,'B.1.c. Installations'!$K$5:$K$505)+LOOKUP(A159,list_installations,'B.1.c. Installations'!$M$5:$M$505))/3)) ->  | G159: =IF(ISBLANK(A159),"",((LOOKUP(A159,list_installations,'B.1.c. Installations'!$O$5:$O$505)+LOOKUP(A159,list_installations,'B.1.c. Installations'!$Q$5:$Q$505)+LOOKUP(A159,list_installations,'B.1.c. Installations'!$S$5:$S$505))/3)) ->  | N159: =IF(ISBLANK(A159),"",ROUND(M159*'Correction factor'!$B$7,0)) ->  | O159: =IF(ISBLANK(A159),"",ROUND(M159*'Correction factor'!$C$7,0)) ->  | P159: =IF(ISBLANK(A159),"",ROUND(M159*'Correction factor'!$D$7,0)) ->  | Q159: =IF(ISBLANK(A159),"",ROUND(M159*'Correction factor'!$E$7,0)) ->  | R159: =IF(ISBLANK(A159),"",ROUND(M159*'Correction factor'!$F$7,0)) ->  | S159: =IF(ISBLANK(A159),"",ROUND(M159*'Correction factor'!$G$7,0)) ->  | T159: =IF(ISBLANK(A159),"",ROUND(M159*'Correction factor'!$H$7,0)) ->  | U159: =IF(ISBLANK(A159),"",ROUND(M159*'Correction factor'!$I$7,0)) -> 
B160: =IF(ISBLANK(A160),"",LOOKUP(A160,list_installations,'B.1.c. Installations'!$B$5:$B$505)) ->  | C160: =IF(ISBLANK(A160),"",LOOKUP(A160,list_installations,'B.1.c. Installations'!$C$5:$C$505)) ->  | D160: =IF(ISBLANK(A160),"",LOOKUP(A160,list_installations,'B.1.c. Installations'!$D$5:$D$505)) ->  | E160: =IF(ISBLANK(A160),"",LOOKUP(A160,list_installations,'B.1.c. Installations'!$E$5:$E$505)) ->  | F160: =IF(ISBLANK(A160),"",((LOOKUP(A160,list_installations,'B.1.c. Installations'!$I$5:$I$505)+LOOKUP(A160,list_installations,'B.1.c. Installations'!$K$5:$K$505)+LOOKUP(A160,list_installations,'B.1.c. Installations'!$M$5:$M$505))/3)) ->  | G160: =IF(ISBLANK(A160),"",((LOOKUP(A160,list_installations,'B.1.c. Installations'!$O$5:$O$505)+LOOKUP(A160,list_installations,'B.1.c. Installations'!$Q$5:$Q$505)+LOOKUP(A160,list_installations,'B.1.c. Installations'!$S$5:$S$505))/3)) ->  | N160: =IF(ISBLANK(A160),"",ROUND(M160*'Correction factor'!$B$7,0)) ->  | O160: =IF(ISBLANK(A160),"",ROUND(M160*'Correction factor'!$C$7,0)) ->  | P160: =IF(ISBLANK(A160),"",ROUND(M160*'Correction factor'!$D$7,0)) ->  | Q160: =IF(ISBLANK(A160),"",ROUND(M160*'Correction factor'!$E$7,0)) ->  | R160: =IF(ISBLANK(A160),"",ROUND(M160*'Correction factor'!$F$7,0)) ->  | S160: =IF(ISBLANK(A160),"",ROUND(M160*'Correction factor'!$G$7,0)) ->  | T160: =IF(ISBLANK(A160),"",ROUND(M160*'Correction factor'!$H$7,0)) ->  | U160: =IF(ISBLANK(A160),"",ROUND(M160*'Correction factor'!$I$7,0)) -> 
B161: =IF(ISBLANK(A161),"",LOOKUP(A161,list_installations,'B.1.c. Installations'!$B$5:$B$505)) ->  | C161: =IF(ISBLANK(A161),"",LOOKUP(A161,list_installations,'B.1.c. Installations'!$C$5:$C$505)) ->  | D161: =IF(ISBLANK(A161),"",LOOKUP(A161,list_installations,'B.1.c. Installations'!$D$5:$D$505)) ->  | E161: =IF(ISBLANK(A161),"",LOOKUP(A161,list_installations,'B.1.c. Installations'!$E$5:$E$505)) ->  | F161: =IF(ISBLANK(A161),"",((LOOKUP(A161,list_installations,'B.1.c. Installations'!$I$5:$I$505)+LOOKUP(A161,list_installations,'B.1.c. Installations'!$K$5:$K$505)+LOOKUP(A161,list_installations,'B.1.c. Installations'!$M$5:$M$505))/3)) ->  | G161: =IF(ISBLANK(A161),"",((LOOKUP(A161,list_installations,'B.1.c. Installations'!$O$5:$O$505)+LOOKUP(A161,list_installations,'B.1.c. Installations'!$Q$5:$Q$505)+LOOKUP(A161,list_installations,'B.1.c. Installations'!$S$5:$S$505))/3)) ->  | N161: =IF(ISBLANK(A161),"",ROUND(M161*'Correction factor'!$B$7,0)) ->  | O161: =IF(ISBLANK(A161),"",ROUND(M161*'Correction factor'!$C$7,0)) ->  | P161: =IF(ISBLANK(A161),"",ROUND(M161*'Correction factor'!$D$7,0)) ->  | Q161: =IF(ISBLANK(A161),"",ROUND(M161*'Correction factor'!$E$7,0)) ->  | R161: =IF(ISBLANK(A161),"",ROUND(M161*'Correction factor'!$F$7,0)) ->  | S161: =IF(ISBLANK(A161),"",ROUND(M161*'Correction factor'!$G$7,0)) ->  | T161: =IF(ISBLANK(A161),"",ROUND(M161*'Correction factor'!$H$7,0)) ->  | U161: =IF(ISBLANK(A161),"",ROUND(M161*'Correction factor'!$I$7,0)) -> 
B162: =IF(ISBLANK(A162),"",LOOKUP(A162,list_installations,'B.1.c. Installations'!$B$5:$B$505)) ->  | C162: =IF(ISBLANK(A162),"",LOOKUP(A162,list_installations,'B.1.c. Installations'!$C$5:$C$505)) ->  | D162: =IF(ISBLANK(A162),"",LOOKUP(A162,list_installations,'B.1.c. Installations'!$D$5:$D$505)) ->  | E162: =IF(ISBLANK(A162),"",LOOKUP(A162,list_installations,'B.1.c. Installations'!$E$5:$E$505)) ->  | F162: =IF(ISBLANK(A162),"",((LOOKUP(A162,list_installations,'B.1.c. Installations'!$I$5:$I$505)+LOOKUP(A162,list_installations,'B.1.c. Installations'!$K$5:$K$505)+LOOKUP(A162,list_installations,'B.1.c. Installations'!$M$5:$M$505))/3)) ->  | G162: =IF(ISBLANK(A162),"",((LOOKUP(A162,list_installations,'B.1.c. Installations'!$O$5:$O$505)+LOOKUP(A162,list_installations,'B.1.c. Installations'!$Q$5:$Q$505)+LOOKUP(A162,list_installations,'B.1.c. Installations'!$S$5:$S$505))/3)) ->  | N162: =IF(ISBLANK(A162),"",ROUND(M162*'Correction factor'!$B$7,0)) ->  | O162: =IF(ISBLANK(A162),"",ROUND(M162*'Correction factor'!$C$7,0)) ->  | P162: =IF(ISBLANK(A162),"",ROUND(M162*'Correction factor'!$D$7,0)) ->  | Q162: =IF(ISBLANK(A162),"",ROUND(M162*'Correction factor'!$E$7,0)) ->  | R162: =IF(ISBLANK(A162),"",ROUND(M162*'Correction factor'!$F$7,0)) ->  | S162: =IF(ISBLANK(A162),"",ROUND(M162*'Correction factor'!$G$7,0)) ->  | T162: =IF(ISBLANK(A162),"",ROUND(M162*'Correction factor'!$H$7,0)) ->  | U162: =IF(ISBLANK(A162),"",ROUND(M162*'Correction factor'!$I$7,0)) -> 
B163: =IF(ISBLANK(A163),"",LOOKUP(A163,list_installations,'B.1.c. Installations'!$B$5:$B$505)) ->  | C163: =IF(ISBLANK(A163),"",LOOKUP(A163,list_installations,'B.1.c. Installations'!$C$5:$C$505)) ->  | D163: =IF(ISBLANK(A163),"",LOOKUP(A163,list_installations,'B.1.c. Installations'!$D$5:$D$505)) ->  | E163: =IF(ISBLANK(A163),"",LOOKUP(A163,list_installations,'B.1.c. Installations'!$E$5:$E$505)) ->  | F163: =IF(ISBLANK(A163),"",((LOOKUP(A163,list_installations,'B.1.c. Installations'!$I$5:$I$505)+LOOKUP(A163,list_installations,'B.1.c. Installations'!$K$5:$K$505)+LOOKUP(A163,list_installations,'B.1.c. Installations'!$M$5:$M$505))/3)) ->  | G163: =IF(ISBLANK(A163),"",((LOOKUP(A163,list_installations,'B.1.c. Installations'!$O$5:$O$505)+LOOKUP(A163,list_installations,'B.1.c. Installations'!$Q$5:$Q$505)+LOOKUP(A163,list_installations,'B.1.c. Installations'!$S$5:$S$505))/3)) ->  | N163: =IF(ISBLANK(A163),"",ROUND(M163*'Correction factor'!$B$7,0)) ->  | O163: =IF(ISBLANK(A163),"",ROUND(M163*'Correction factor'!$C$7,0)) ->  | P163: =IF(ISBLANK(A163),"",ROUND(M163*'Correction factor'!$D$7,0)) ->  | Q163: =IF(ISBLANK(A163),"",ROUND(M163*'Correction factor'!$E$7,0)) ->  | R163: =IF(ISBLANK(A163),"",ROUND(M163*'Correction factor'!$F$7,0)) ->  | S163: =IF(ISBLANK(A163),"",ROUND(M163*'Correction factor'!$G$7,0)) ->  | T163: =IF(ISBLANK(A163),"",ROUND(M163*'Correction factor'!$H$7,0)) ->  | U163: =IF(ISBLANK(A163),"",ROUND(M163*'Correction factor'!$I$7,0)) -> 
B164: =IF(ISBLANK(A164),"",LOOKUP(A164,list_installations,'B.1.c. Installations'!$B$5:$B$505)) ->  | C164: =IF(ISBLANK(A164),"",LOOKUP(A164,list_installations,'B.1.c. Installations'!$C$5:$C$505)) ->  | D164: =IF(ISBLANK(A164),"",LOOKUP(A164,list_installations,'B.1.c. Installations'!$D$5:$D$505)) ->  | E164: =IF(ISBLANK(A164),"",LOOKUP(A164,list_installations,'B.1.c. Installations'!$E$5:$E$505)) ->  | F164: =IF(ISBLANK(A164),"",((LOOKUP(A164,list_installations,'B.1.c. Installations'!$I$5:$I$505)+LOOKUP(A164,list_installations,'B.1.c. Installations'!$K$5:$K$505)+LOOKUP(A164,list_installations,'B.1.c. Installations'!$M$5:$M$505))/3)) ->  | G164: =IF(ISBLANK(A164),"",((LOOKUP(A164,list_installations,'B.1.c. Installations'!$O$5:$O$505)+LOOKUP(A164,list_installations,'B.1.c. Installations'!$Q$5:$Q$505)+LOOKUP(A164,list_installations,'B.1.c. Installations'!$S$5:$S$505))/3)) ->  | N164: =IF(ISBLANK(A164),"",ROUND(M164*'Correction factor'!$B$7,0)) ->  | O164: =IF(ISBLANK(A164),"",ROUND(M164*'Correction factor'!$C$7,0)) ->  | P164: =IF(ISBLANK(A164),"",ROUND(M164*'Correction factor'!$D$7,0)) ->  | Q164: =IF(ISBLANK(A164),"",ROUND(M164*'Correction factor'!$E$7,0)) ->  | R164: =IF(ISBLANK(A164),"",ROUND(M164*'Correction factor'!$F$7,0)) ->  | S164: =IF(ISBLANK(A164),"",ROUND(M164*'Correction factor'!$G$7,0)) ->  | T164: =IF(ISBLANK(A164),"",ROUND(M164*'Correction factor'!$H$7,0)) ->  | U164: =IF(ISBLANK(A164),"",ROUND(M164*'Correction factor'!$I$7,0)) -> 
B165: =IF(ISBLANK(A165),"",LOOKUP(A165,list_installations,'B.1.c. Installations'!$B$5:$B$505)) ->  | C165: =IF(ISBLANK(A165),"",LOOKUP(A165,list_installations,'B.1.c. Installations'!$C$5:$C$505)) ->  | D165: =IF(ISBLANK(A165),"",LOOKUP(A165,list_installations,'B.1.c. Installations'!$D$5:$D$505)) ->  | E165: =IF(ISBLANK(A165),"",LOOKUP(A165,list_installations,'B.1.c. Installations'!$E$5:$E$505)) ->  | F165: =IF(ISBLANK(A165),"",((LOOKUP(A165,list_installations,'B.1.c. Installations'!$I$5:$I$505)+LOOKUP(A165,list_installations,'B.1.c. Installations'!$K$5:$K$505)+LOOKUP(A165,list_installations,'B.1.c. Installations'!$M$5:$M$505))/3)) ->  | G165: =IF(ISBLANK(A165),"",((LOOKUP(A165,list_installations,'B.1.c. Installations'!$O$5:$O$505)+LOOKUP(A165,list_installations,'B.1.c. Installations'!$Q$5:$Q$505)+LOOKUP(A165,list_installations,'B.1.c. Installations'!$S$5:$S$505))/3)) ->  | N165: =IF(ISBLANK(A165),"",ROUND(M165*'Correction factor'!$B$7,0)) ->  | O165: =IF(ISBLANK(A165),"",ROUND(M165*'Correction factor'!$C$7,0)) ->  | P165: =IF(ISBLANK(A165),"",ROUND(M165*'Correction factor'!$D$7,0)) ->  | Q165: =IF(ISBLANK(A165),"",ROUND(M165*'Correction factor'!$E$7,0)) ->  | R165: =IF(ISBLANK(A165),"",ROUND(M165*'Correction factor'!$F$7,0)) ->  | S165: =IF(ISBLANK(A165),"",ROUND(M165*'Correction factor'!$G$7,0)) ->  | T165: =IF(ISBLANK(A165),"",ROUND(M165*'Correction factor'!$H$7,0)) ->  | U165: =IF(ISBLANK(A165),"",ROUND(M165*'Correction factor'!$I$7,0)) -> 
B166: =IF(ISBLANK(A166),"",LOOKUP(A166,list_installations,'B.1.c. Installations'!$B$5:$B$505)) ->  | C166: =IF(ISBLANK(A166),"",LOOKUP(A166,list_installations,'B.1.c. Installations'!$C$5:$C$505)) ->  | D166: =IF(ISBLANK(A166),"",LOOKUP(A166,list_installations,'B.1.c. Installations'!$D$5:$D$505)) ->  | E166: =IF(ISBLANK(A166),"",LOOKUP(A166,list_installations,'B.1.c. Installations'!$E$5:$E$505)) ->  | F166: =IF(ISBLANK(A166),"",((LOOKUP(A166,list_installations,'B.1.c. Installations'!$I$5:$I$505)+LOOKUP(A166,list_installations,'B.1.c. Installations'!$K$5:$K$505)+LOOKUP(A166,list_installations,'B.1.c. Installations'!$M$5:$M$505))/3)) ->  | G166: =IF(ISBLANK(A166),"",((LOOKUP(A166,list_installations,'B.1.c. Installations'!$O$5:$O$505)+LOOKUP(A166,list_installations,'B.1.c. Installations'!$Q$5:$Q$505)+LOOKUP(A166,list_installations,'B.1.c. Installations'!$S$5:$S$505))/3)) ->  | N166: =IF(ISBLANK(A166),"",ROUND(M166*'Correction factor'!$B$7,0)) ->  | O166: =IF(ISBLANK(A166),"",ROUND(M166*'Correction factor'!$C$7,0)) ->  | P166: =IF(ISBLANK(A166),"",ROUND(M166*'Correction factor'!$D$7,0)) ->  | Q166: =IF(ISBLANK(A166),"",ROUND(M166*'Correction factor'!$E$7,0)) ->  | R166: =IF(ISBLANK(A166),"",ROUND(M166*'Correction factor'!$F$7,0)) ->  | S166: =IF(ISBLANK(A166),"",ROUND(M166*'Correction factor'!$G$7,0)) ->  | T166: =IF(ISBLANK(A166),"",ROUND(M166*'Correction factor'!$H$7,0)) ->  | U166: =IF(ISBLANK(A166),"",ROUND(M166*'Correction factor'!$I$7,0)) -> 
B167: =IF(ISBLANK(A167),"",LOOKUP(A167,list_installations,'B.1.c. Installations'!$B$5:$B$505)) ->  | C167: =IF(ISBLANK(A167),"",LOOKUP(A167,list_installations,'B.1.c. Installations'!$C$5:$C$505)) ->  | D167: =IF(ISBLANK(A167),"",LOOKUP(A167,list_installations,'B.1.c. Installations'!$D$5:$D$505)) ->  | E167: =IF(ISBLANK(A167),"",LOOKUP(A167,list_installations,'B.1.c. Installations'!$E$5:$E$505)) ->  | F167: =IF(ISBLANK(A167),"",((LOOKUP(A167,list_installations,'B.1.c. Installations'!$I$5:$I$505)+LOOKUP(A167,list_installations,'B.1.c. Installations'!$K$5:$K$505)+LOOKUP(A167,list_installations,'B.1.c. Installations'!$M$5:$M$505))/3)) ->  | G167: =IF(ISBLANK(A167),"",((LOOKUP(A167,list_installations,'B.1.c. Installations'!$O$5:$O$505)+LOOKUP(A167,list_installations,'B.1.c. Installations'!$Q$5:$Q$505)+LOOKUP(A167,list_installations,'B.1.c. Installations'!$S$5:$S$505))/3)) ->  | N167: =IF(ISBLANK(A167),"",ROUND(M167*'Correction factor'!$B$7,0)) ->  | O167: =IF(ISBLANK(A167),"",ROUND(M167*'Correction factor'!$C$7,0)) ->  | P167: =IF(ISBLANK(A167),"",ROUND(M167*'Correction factor'!$D$7,0)) ->  | Q167: =IF(ISBLANK(A167),"",ROUND(M167*'Correction factor'!$E$7,0)) ->  | R167: =IF(ISBLANK(A167),"",ROUND(M167*'Correction factor'!$F$7,0)) ->  | S167: =IF(ISBLANK(A167),"",ROUND(M167*'Correction factor'!$G$7,0)) ->  | T167: =IF(ISBLANK(A167),"",ROUND(M167*'Correction factor'!$H$7,0)) ->  | U167: =IF(ISBLANK(A167),"",ROUND(M167*'Correction factor'!$I$7,0)) -> 
B168: =IF(ISBLANK(A168),"",LOOKUP(A168,list_installations,'B.1.c. Installations'!$B$5:$B$505)) ->  | C168: =IF(ISBLANK(A168),"",LOOKUP(A168,list_installations,'B.1.c. Installations'!$C$5:$C$505)) ->  | D168: =IF(ISBLANK(A168),"",LOOKUP(A168,list_installations,'B.1.c. Installations'!$D$5:$D$505)) ->  | E168: =IF(ISBLANK(A168),"",LOOKUP(A168,list_installations,'B.1.c. Installations'!$E$5:$E$505)) ->  | F168: =IF(ISBLANK(A168),"",((LOOKUP(A168,list_installations,'B.1.c. Installations'!$I$5:$I$505)+LOOKUP(A168,list_installations,'B.1.c. Installations'!$K$5:$K$505)+LOOKUP(A168,list_installations,'B.1.c. Installations'!$M$5:$M$505))/3)) ->  | G168: =IF(ISBLANK(A168),"",((LOOKUP(A168,list_installations,'B.1.c. Installations'!$O$5:$O$505)+LOOKUP(A168,list_installations,'B.1.c. Installations'!$Q$5:$Q$505)+LOOKUP(A168,list_installations,'B.1.c. Installations'!$S$5:$S$505))/3)) ->  | N168: =IF(ISBLANK(A168),"",ROUND(M168*'Correction factor'!$B$7,0)) ->  | O168: =IF(ISBLANK(A168),"",ROUND(M168*'Correction factor'!$C$7,0)) ->  | P168: =IF(ISBLANK(A168),"",ROUND(M168*'Correction factor'!$D$7,0)) ->  | Q168: =IF(ISBLANK(A168),"",ROUND(M168*'Correction factor'!$E$7,0)) ->  | R168: =IF(ISBLANK(A168),"",ROUND(M168*'Correction factor'!$F$7,0)) ->  | S168: =IF(ISBLANK(A168),"",ROUND(M168*'Correction factor'!$G$7,0)) ->  | T168: =IF(ISBLANK(A168),"",ROUND(M168*'Correction factor'!$H$7,0)) ->  | U168: =IF(ISBLANK(A168),"",ROUND(M168*'Correction factor'!$I$7,0)) -> 
B169: =IF(ISBLANK(A169),"",LOOKUP(A169,list_installations,'B.1.c. Installations'!$B$5:$B$505)) ->  | C169: =IF(ISBLANK(A169),"",LOOKUP(A169,list_installations,'B.1.c. Installations'!$C$5:$C$505)) ->  | D169: =IF(ISBLANK(A169),"",LOOKUP(A169,list_installations,'B.1.c. Installations'!$D$5:$D$505)) ->  | E169: =IF(ISBLANK(A169),"",LOOKUP(A169,list_installations,'B.1.c. Installations'!$E$5:$E$505)) ->  | F169: =IF(ISBLANK(A169),"",((LOOKUP(A169,list_installations,'B.1.c. Installations'!$I$5:$I$505)+LOOKUP(A169,list_installations,'B.1.c. Installations'!$K$5:$K$505)+LOOKUP(A169,list_installations,'B.1.c. Installations'!$M$5:$M$505))/3)) ->  | G169: =IF(ISBLANK(A169),"",((LOOKUP(A169,list_installations,'B.1.c. Installations'!$O$5:$O$505)+LOOKUP(A169,list_installations,'B.1.c. Installations'!$Q$5:$Q$505)+LOOKUP(A169,list_installations,'B.1.c. Installations'!$S$5:$S$505))/3)) ->  | N169: =IF(ISBLANK(A169),"",ROUND(M169*'Correction factor'!$B$7,0)) ->  | O169: =IF(ISBLANK(A169),"",ROUND(M169*'Correction factor'!$C$7,0)) ->  | P169: =IF(ISBLANK(A169),"",ROUND(M169*'Correction factor'!$D$7,0)) ->  | Q169: =IF(ISBLANK(A169),"",ROUND(M169*'Correction factor'!$E$7,0)) ->  | R169: =IF(ISBLANK(A169),"",ROUND(M169*'Correction factor'!$F$7,0)) ->  | S169: =IF(ISBLANK(A169),"",ROUND(M169*'Correction factor'!$G$7,0)) ->  | T169: =IF(ISBLANK(A169),"",ROUND(M169*'Correction factor'!$H$7,0)) ->  | U169: =IF(ISBLANK(A169),"",ROUND(M169*'Correction factor'!$I$7,0)) -> 
B170: =IF(ISBLANK(A170),"",LOOKUP(A170,list_installations,'B.1.c. Installations'!$B$5:$B$505)) ->  | C170: =IF(ISBLANK(A170),"",LOOKUP(A170,list_installations,'B.1.c. Installations'!$C$5:$C$505)) ->  | D170: =IF(ISBLANK(A170),"",LOOKUP(A170,list_installations,'B.1.c. Installations'!$D$5:$D$505)) ->  | E170: =IF(ISBLANK(A170),"",LOOKUP(A170,list_installations,'B.1.c. Installations'!$E$5:$E$505)) ->  | F170: =IF(ISBLANK(A170),"",((LOOKUP(A170,list_installations,'B.1.c. Installations'!$I$5:$I$505)+LOOKUP(A170,list_installations,'B.1.c. Installations'!$K$5:$K$505)+LOOKUP(A170,list_installations,'B.1.c. Installations'!$M$5:$M$505))/3)) ->  | G170: =IF(ISBLANK(A170),"",((LOOKUP(A170,list_installations,'B.1.c. Installations'!$O$5:$O$505)+LOOKUP(A170,list_installations,'B.1.c. Installations'!$Q$5:$Q$505)+LOOKUP(A170,list_installations,'B.1.c. Installations'!$S$5:$S$505))/3)) ->  | N170: =IF(ISBLANK(A170),"",ROUND(M170*'Correction factor'!$B$7,0)) ->  | O170: =IF(ISBLANK(A170),"",ROUND(M170*'Correction factor'!$C$7,0)) ->  | P170: =IF(ISBLANK(A170),"",ROUND(M170*'Correction factor'!$D$7,0)) ->  | Q170: =IF(ISBLANK(A170),"",ROUND(M170*'Correction factor'!$E$7,0)) ->  | R170: =IF(ISBLANK(A170),"",ROUND(M170*'Correction factor'!$F$7,0)) ->  | S170: =IF(ISBLANK(A170),"",ROUND(M170*'Correction factor'!$G$7,0)) ->  | T170: =IF(ISBLANK(A170),"",ROUND(M170*'Correction factor'!$H$7,0)) ->  | U170: =IF(ISBLANK(A170),"",ROUND(M170*'Correction factor'!$I$7,0)) -> 
B171: =IF(ISBLANK(A171),"",LOOKUP(A171,list_installations,'B.1.c. Installations'!$B$5:$B$505)) ->  | C171: =IF(ISBLANK(A171),"",LOOKUP(A171,list_installations,'B.1.c. Installations'!$C$5:$C$505)) ->  | D171: =IF(ISBLANK(A171),"",LOOKUP(A171,list_installations,'B.1.c. Installations'!$D$5:$D$505)) ->  | E171: =IF(ISBLANK(A171),"",LOOKUP(A171,list_installations,'B.1.c. Installations'!$E$5:$E$505)) ->  | F171: =IF(ISBLANK(A171),"",((LOOKUP(A171,list_installations,'B.1.c. Installations'!$I$5:$I$505)+LOOKUP(A171,list_installations,'B.1.c. Installations'!$K$5:$K$505)+LOOKUP(A171,list_installations,'B.1.c. Installations'!$M$5:$M$505))/3)) ->  | G171: =IF(ISBLANK(A171),"",((LOOKUP(A171,list_installations,'B.1.c. Installations'!$O$5:$O$505)+LOOKUP(A171,list_installations,'B.1.c. Installations'!$Q$5:$Q$505)+LOOKUP(A171,list_installations,'B.1.c. Installations'!$S$5:$S$505))/3)) ->  | N171: =IF(ISBLANK(A171),"",ROUND(M171*'Correction factor'!$B$7,0)) ->  | O171: =IF(ISBLANK(A171),"",ROUND(M171*'Correction factor'!$C$7,0)) ->  | P171: =IF(ISBLANK(A171),"",ROUND(M171*'Correction factor'!$D$7,0)) ->  | Q171: =IF(ISBLANK(A171),"",ROUND(M171*'Correction factor'!$E$7,0)) ->  | R171: =IF(ISBLANK(A171),"",ROUND(M171*'Correction factor'!$F$7,0)) ->  | S171: =IF(ISBLANK(A171),"",ROUND(M171*'Correction factor'!$G$7,0)) ->  | T171: =IF(ISBLANK(A171),"",ROUND(M171*'Correction factor'!$H$7,0)) ->  | U171: =IF(ISBLANK(A171),"",ROUND(M171*'Correction factor'!$I$7,0)) -> 
B172: =IF(ISBLANK(A172),"",LOOKUP(A172,list_installations,'B.1.c. Installations'!$B$5:$B$505)) ->  | C172: =IF(ISBLANK(A172),"",LOOKUP(A172,list_installations,'B.1.c. Installations'!$C$5:$C$505)) ->  | D172: =IF(ISBLANK(A172),"",LOOKUP(A172,list_installations,'B.1.c. Installations'!$D$5:$D$505)) ->  | E172: =IF(ISBLANK(A172),"",LOOKUP(A172,list_installations,'B.1.c. Installations'!$E$5:$E$505)) ->  | F172: =IF(ISBLANK(A172),"",((LOOKUP(A172,list_installations,'B.1.c. Installations'!$I$5:$I$505)+LOOKUP(A172,list_installations,'B.1.c. Installations'!$K$5:$K$505)+LOOKUP(A172,list_installations,'B.1.c. Installations'!$M$5:$M$505))/3)) ->  | G172: =IF(ISBLANK(A172),"",((LOOKUP(A172,list_installations,'B.1.c. Installations'!$O$5:$O$505)+LOOKUP(A172,list_installations,'B.1.c. Installations'!$Q$5:$Q$505)+LOOKUP(A172,list_installations,'B.1.c. Installations'!$S$5:$S$505))/3)) ->  | N172: =IF(ISBLANK(A172),"",ROUND(M172*'Correction factor'!$B$7,0)) ->  | O172: =IF(ISBLANK(A172),"",ROUND(M172*'Correction factor'!$C$7,0)) ->  | P172: =IF(ISBLANK(A172),"",ROUND(M172*'Correction factor'!$D$7,0)) ->  | Q172: =IF(ISBLANK(A172),"",ROUND(M172*'Correction factor'!$E$7,0)) ->  | R172: =IF(ISBLANK(A172),"",ROUND(M172*'Correction factor'!$F$7,0)) ->  | S172: =IF(ISBLANK(A172),"",ROUND(M172*'Correction factor'!$G$7,0)) ->  | T172: =IF(ISBLANK(A172),"",ROUND(M172*'Correction factor'!$H$7,0)) ->  | U172: =IF(ISBLANK(A172),"",ROUND(M172*'Correction factor'!$I$7,0)) -> 
B173: =IF(ISBLANK(A173),"",LOOKUP(A173,list_installations,'B.1.c. Installations'!$B$5:$B$505)) ->  | C173: =IF(ISBLANK(A173),"",LOOKUP(A173,list_installations,'B.1.c. Installations'!$C$5:$C$505)) ->  | D173: =IF(ISBLANK(A173),"",LOOKUP(A173,list_installations,'B.1.c. Installations'!$D$5:$D$505)) ->  | E173: =IF(ISBLANK(A173),"",LOOKUP(A173,list_installations,'B.1.c. Installations'!$E$5:$E$505)) ->  | F173: =IF(ISBLANK(A173),"",((LOOKUP(A173,list_installations,'B.1.c. Installations'!$I$5:$I$505)+LOOKUP(A173,list_installations,'B.1.c. Installations'!$K$5:$K$505)+LOOKUP(A173,list_installations,'B.1.c. Installations'!$M$5:$M$505))/3)) ->  | G173: =IF(ISBLANK(A173),"",((LOOKUP(A173,list_installations,'B.1.c. Installations'!$O$5:$O$505)+LOOKUP(A173,list_installations,'B.1.c. Installations'!$Q$5:$Q$505)+LOOKUP(A173,list_installations,'B.1.c. Installations'!$S$5:$S$505))/3)) ->  | N173: =IF(ISBLANK(A173),"",ROUND(M173*'Correction factor'!$B$7,0)) ->  | O173: =IF(ISBLANK(A173),"",ROUND(M173*'Correction factor'!$C$7,0)) ->  | P173: =IF(ISBLANK(A173),"",ROUND(M173*'Correction factor'!$D$7,0)) ->  | Q173: =IF(ISBLANK(A173),"",ROUND(M173*'Correction factor'!$E$7,0)) ->  | R173: =IF(ISBLANK(A173),"",ROUND(M173*'Correction factor'!$F$7,0)) ->  | S173: =IF(ISBLANK(A173),"",ROUND(M173*'Correction factor'!$G$7,0)) ->  | T173: =IF(ISBLANK(A173),"",ROUND(M173*'Correction factor'!$H$7,0)) ->  | U173: =IF(ISBLANK(A173),"",ROUND(M173*'Correction factor'!$I$7,0)) -> 
B174: =IF(ISBLANK(A174),"",LOOKUP(A174,list_installations,'B.1.c. Installations'!$B$5:$B$505)) ->  | C174: =IF(ISBLANK(A174),"",LOOKUP(A174,list_installations,'B.1.c. Installations'!$C$5:$C$505)) ->  | D174: =IF(ISBLANK(A174),"",LOOKUP(A174,list_installations,'B.1.c. Installations'!$D$5:$D$505)) ->  | E174: =IF(ISBLANK(A174),"",LOOKUP(A174,list_installations,'B.1.c. Installations'!$E$5:$E$505)) ->  | F174: =IF(ISBLANK(A174),"",((LOOKUP(A174,list_installations,'B.1.c. Installations'!$I$5:$I$505)+LOOKUP(A174,list_installations,'B.1.c. Installations'!$K$5:$K$505)+LOOKUP(A174,list_installations,'B.1.c. Installations'!$M$5:$M$505))/3)) ->  | G174: =IF(ISBLANK(A174),"",((LOOKUP(A174,list_installations,'B.1.c. Installations'!$O$5:$O$505)+LOOKUP(A174,list_installations,'B.1.c. Installations'!$Q$5:$Q$505)+LOOKUP(A174,list_installations,'B.1.c. Installations'!$S$5:$S$505))/3)) ->  | N174: =IF(ISBLANK(A174),"",ROUND(M174*'Correction factor'!$B$7,0)) ->  | O174: =IF(ISBLANK(A174),"",ROUND(M174*'Correction factor'!$C$7,0)) ->  | P174: =IF(ISBLANK(A174),"",ROUND(M174*'Correction factor'!$D$7,0)) ->  | Q174: =IF(ISBLANK(A174),"",ROUND(M174*'Correction factor'!$E$7,0)) ->  | R174: =IF(ISBLANK(A174),"",ROUND(M174*'Correction factor'!$F$7,0)) ->  | S174: =IF(ISBLANK(A174),"",ROUND(M174*'Correction factor'!$G$7,0)) ->  | T174: =IF(ISBLANK(A174),"",ROUND(M174*'Correction factor'!$H$7,0)) ->  | U174: =IF(ISBLANK(A174),"",ROUND(M174*'Correction factor'!$I$7,0)) -> 
B175: =IF(ISBLANK(A175),"",LOOKUP(A175,list_installations,'B.1.c. Installations'!$B$5:$B$505)) ->  | C175: =IF(ISBLANK(A175),"",LOOKUP(A175,list_installations,'B.1.c. Installations'!$C$5:$C$505)) ->  | D175: =IF(ISBLANK(A175),"",LOOKUP(A175,list_installations,'B.1.c. Installations'!$D$5:$D$505)) ->  | E175: =IF(ISBLANK(A175),"",LOOKUP(A175,list_installations,'B.1.c. Installations'!$E$5:$E$505)) ->  | F175: =IF(ISBLANK(A175),"",((LOOKUP(A175,list_installations,'B.1.c. Installations'!$I$5:$I$505)+LOOKUP(A175,list_installations,'B.1.c. Installations'!$K$5:$K$505)+LOOKUP(A175,list_installations,'B.1.c. Installations'!$M$5:$M$505))/3)) ->  | G175: =IF(ISBLANK(A175),"",((LOOKUP(A175,list_installations,'B.1.c. Installations'!$O$5:$O$505)+LOOKUP(A175,list_installations,'B.1.c. Installations'!$Q$5:$Q$505)+LOOKUP(A175,list_installations,'B.1.c. Installations'!$S$5:$S$505))/3)) ->  | N175: =IF(ISBLANK(A175),"",ROUND(M175*'Correction factor'!$B$7,0)) ->  | O175: =IF(ISBLANK(A175),"",ROUND(M175*'Correction factor'!$C$7,0)) ->  | P175: =IF(ISBLANK(A175),"",ROUND(M175*'Correction factor'!$D$7,0)) ->  | Q175: =IF(ISBLANK(A175),"",ROUND(M175*'Correction factor'!$E$7,0)) ->  | R175: =IF(ISBLANK(A175),"",ROUND(M175*'Correction factor'!$F$7,0)) ->  | S175: =IF(ISBLANK(A175),"",ROUND(M175*'Correction factor'!$G$7,0)) ->  | T175: =IF(ISBLANK(A175),"",ROUND(M175*'Correction factor'!$H$7,0)) ->  | U175: =IF(ISBLANK(A175),"",ROUND(M175*'Correction factor'!$I$7,0)) -> 
B176: =IF(ISBLANK(A176),"",LOOKUP(A176,list_installations,'B.1.c. Installations'!$B$5:$B$505)) ->  | C176: =IF(ISBLANK(A176),"",LOOKUP(A176,list_installations,'B.1.c. Installations'!$C$5:$C$505)) ->  | D176: =IF(ISBLANK(A176),"",LOOKUP(A176,list_installations,'B.1.c. Installations'!$D$5:$D$505)) ->  | E176: =IF(ISBLANK(A176),"",LOOKUP(A176,list_installations,'B.1.c. Installations'!$E$5:$E$505)) ->  | F176: =IF(ISBLANK(A176),"",((LOOKUP(A176,list_installations,'B.1.c. Installations'!$I$5:$I$505)+LOOKUP(A176,list_installations,'B.1.c. Installations'!$K$5:$K$505)+LOOKUP(A176,list_installations,'B.1.c. Installations'!$M$5:$M$505))/3)) ->  | G176: =IF(ISBLANK(A176),"",((LOOKUP(A176,list_installations,'B.1.c. Installations'!$O$5:$O$505)+LOOKUP(A176,list_installations,'B.1.c. Installations'!$Q$5:$Q$505)+LOOKUP(A176,list_installations,'B.1.c. Installations'!$S$5:$S$505))/3)) ->  | N176: =IF(ISBLANK(A176),"",ROUND(M176*'Correction factor'!$B$7,0)) ->  | O176: =IF(ISBLANK(A176),"",ROUND(M176*'Correction factor'!$C$7,0)) ->  | P176: =IF(ISBLANK(A176),"",ROUND(M176*'Correction factor'!$D$7,0)) ->  | Q176: =IF(ISBLANK(A176),"",ROUND(M176*'Correction factor'!$E$7,0)) ->  | R176: =IF(ISBLANK(A176),"",ROUND(M176*'Correction factor'!$F$7,0)) ->  | S176: =IF(ISBLANK(A176),"",ROUND(M176*'Correction factor'!$G$7,0)) ->  | T176: =IF(ISBLANK(A176),"",ROUND(M176*'Correction factor'!$H$7,0)) ->  | U176: =IF(ISBLANK(A176),"",ROUND(M176*'Correction factor'!$I$7,0)) -> 
B177: =IF(ISBLANK(A177),"",LOOKUP(A177,list_installations,'B.1.c. Installations'!$B$5:$B$505)) ->  | C177: =IF(ISBLANK(A177),"",LOOKUP(A177,list_installations,'B.1.c. Installations'!$C$5:$C$505)) ->  | D177: =IF(ISBLANK(A177),"",LOOKUP(A177,list_installations,'B.1.c. Installations'!$D$5:$D$505)) ->  | E177: =IF(ISBLANK(A177),"",LOOKUP(A177,list_installations,'B.1.c. Installations'!$E$5:$E$505)) ->  | F177: =IF(ISBLANK(A177),"",((LOOKUP(A177,list_installations,'B.1.c. Installations'!$I$5:$I$505)+LOOKUP(A177,list_installations,'B.1.c. Installations'!$K$5:$K$505)+LOOKUP(A177,list_installations,'B.1.c. Installations'!$M$5:$M$505))/3)) ->  | G177: =IF(ISBLANK(A177),"",((LOOKUP(A177,list_installations,'B.1.c. Installations'!$O$5:$O$505)+LOOKUP(A177,list_installations,'B.1.c. Installations'!$Q$5:$Q$505)+LOOKUP(A177,list_installations,'B.1.c. Installations'!$S$5:$S$505))/3)) ->  | N177: =IF(ISBLANK(A177),"",ROUND(M177*'Correction factor'!$B$7,0)) ->  | O177: =IF(ISBLANK(A177),"",ROUND(M177*'Correction factor'!$C$7,0)) ->  | P177: =IF(ISBLANK(A177),"",ROUND(M177*'Correction factor'!$D$7,0)) ->  | Q177: =IF(ISBLANK(A177),"",ROUND(M177*'Correction factor'!$E$7,0)) ->  | R177: =IF(ISBLANK(A177),"",ROUND(M177*'Correction factor'!$F$7,0)) ->  | S177: =IF(ISBLANK(A177),"",ROUND(M177*'Correction factor'!$G$7,0)) ->  | T177: =IF(ISBLANK(A177),"",ROUND(M177*'Correction factor'!$H$7,0)) ->  | U177: =IF(ISBLANK(A177),"",ROUND(M177*'Correction factor'!$I$7,0)) -> 
B178: =IF(ISBLANK(A178),"",LOOKUP(A178,list_installations,'B.1.c. Installations'!$B$5:$B$505)) ->  | C178: =IF(ISBLANK(A178),"",LOOKUP(A178,list_installations,'B.1.c. Installations'!$C$5:$C$505)) ->  | D178: =IF(ISBLANK(A178),"",LOOKUP(A178,list_installations,'B.1.c. Installations'!$D$5:$D$505)) ->  | E178: =IF(ISBLANK(A178),"",LOOKUP(A178,list_installations,'B.1.c. Installations'!$E$5:$E$505)) ->  | F178: =IF(ISBLANK(A178),"",((LOOKUP(A178,list_installations,'B.1.c. Installations'!$I$5:$I$505)+LOOKUP(A178,list_installations,'B.1.c. Installations'!$K$5:$K$505)+LOOKUP(A178,list_installations,'B.1.c. Installations'!$M$5:$M$505))/3)) ->  | G178: =IF(ISBLANK(A178),"",((LOOKUP(A178,list_installations,'B.1.c. Installations'!$O$5:$O$505)+LOOKUP(A178,list_installations,'B.1.c. Installations'!$Q$5:$Q$505)+LOOKUP(A178,list_installations,'B.1.c. Installations'!$S$5:$S$505))/3)) ->  | N178: =IF(ISBLANK(A178),"",ROUND(M178*'Correction factor'!$B$7,0)) ->  | O178: =IF(ISBLANK(A178),"",ROUND(M178*'Correction factor'!$C$7,0)) ->  | P178: =IF(ISBLANK(A178),"",ROUND(M178*'Correction factor'!$D$7,0)) ->  | Q178: =IF(ISBLANK(A178),"",ROUND(M178*'Correction factor'!$E$7,0)) ->  | R178: =IF(ISBLANK(A178),"",ROUND(M178*'Correction factor'!$F$7,0)) ->  | S178: =IF(ISBLANK(A178),"",ROUND(M178*'Correction factor'!$G$7,0)) ->  | T178: =IF(ISBLANK(A178),"",ROUND(M178*'Correction factor'!$H$7,0)) ->  | U178: =IF(ISBLANK(A178),"",ROUND(M178*'Correction factor'!$I$7,0)) -> 
B179: =IF(ISBLANK(A179),"",LOOKUP(A179,list_installations,'B.1.c. Installations'!$B$5:$B$505)) ->  | C179: =IF(ISBLANK(A179),"",LOOKUP(A179,list_installations,'B.1.c. Installations'!$C$5:$C$505)) ->  | D179: =IF(ISBLANK(A179),"",LOOKUP(A179,list_installations,'B.1.c. Installations'!$D$5:$D$505)) ->  | E179: =IF(ISBLANK(A179),"",LOOKUP(A179,list_installations,'B.1.c. Installations'!$E$5:$E$505)) ->  | F179: =IF(ISBLANK(A179),"",((LOOKUP(A179,list_installations,'B.1.c. Installations'!$I$5:$I$505)+LOOKUP(A179,list_installations,'B.1.c. Installations'!$K$5:$K$505)+LOOKUP(A179,list_installations,'B.1.c. Installations'!$M$5:$M$505))/3)) ->  | G179: =IF(ISBLANK(A179),"",((LOOKUP(A179,list_installations,'B.1.c. Installations'!$O$5:$O$505)+LOOKUP(A179,list_installations,'B.1.c. Installations'!$Q$5:$Q$505)+LOOKUP(A179,list_installations,'B.1.c. Installations'!$S$5:$S$505))/3)) ->  | N179: =IF(ISBLANK(A179),"",ROUND(M179*'Correction factor'!$B$7,0)) ->  | O179: =IF(ISBLANK(A179),"",ROUND(M179*'Correction factor'!$C$7,0)) ->  | P179: =IF(ISBLANK(A179),"",ROUND(M179*'Correction factor'!$D$7,0)) ->  | Q179: =IF(ISBLANK(A179),"",ROUND(M179*'Correction factor'!$E$7,0)) ->  | R179: =IF(ISBLANK(A179),"",ROUND(M179*'Correction factor'!$F$7,0)) ->  | S179: =IF(ISBLANK(A179),"",ROUND(M179*'Correction factor'!$G$7,0)) ->  | T179: =IF(ISBLANK(A179),"",ROUND(M179*'Correction factor'!$H$7,0)) ->  | U179: =IF(ISBLANK(A179),"",ROUND(M179*'Correction factor'!$I$7,0)) -> 
B180: =IF(ISBLANK(A180),"",LOOKUP(A180,list_installations,'B.1.c. Installations'!$B$5:$B$505)) ->  | C180: =IF(ISBLANK(A180),"",LOOKUP(A180,list_installations,'B.1.c. Installations'!$C$5:$C$505)) ->  | D180: =IF(ISBLANK(A180),"",LOOKUP(A180,list_installations,'B.1.c. Installations'!$D$5:$D$505)) ->  | E180: =IF(ISBLANK(A180),"",LOOKUP(A180,list_installations,'B.1.c. Installations'!$E$5:$E$505)) ->  | F180: =IF(ISBLANK(A180),"",((LOOKUP(A180,list_installations,'B.1.c. Installations'!$I$5:$I$505)+LOOKUP(A180,list_installations,'B.1.c. Installations'!$K$5:$K$505)+LOOKUP(A180,list_installations,'B.1.c. Installations'!$M$5:$M$505))/3)) ->  | G180: =IF(ISBLANK(A180),"",((LOOKUP(A180,list_installations,'B.1.c. Installations'!$O$5:$O$505)+LOOKUP(A180,list_installations,'B.1.c. Installations'!$Q$5:$Q$505)+LOOKUP(A180,list_installations,'B.1.c. Installations'!$S$5:$S$505))/3)) ->  | N180: =IF(ISBLANK(A180),"",ROUND(M180*'Correction factor'!$B$7,0)) ->  | O180: =IF(ISBLANK(A180),"",ROUND(M180*'Correction factor'!$C$7,0)) ->  | P180: =IF(ISBLANK(A180),"",ROUND(M180*'Correction factor'!$D$7,0)) ->  | Q180: =IF(ISBLANK(A180),"",ROUND(M180*'Correction factor'!$E$7,0)) ->  | R180: =IF(ISBLANK(A180),"",ROUND(M180*'Correction factor'!$F$7,0)) ->  | S180: =IF(ISBLANK(A180),"",ROUND(M180*'Correction factor'!$G$7,0)) ->  | T180: =IF(ISBLANK(A180),"",ROUND(M180*'Correction factor'!$H$7,0)) ->  | U180: =IF(ISBLANK(A180),"",ROUND(M180*'Correction factor'!$I$7,0)) -> 
B181: =IF(ISBLANK(A181),"",LOOKUP(A181,list_installations,'B.1.c. Installations'!$B$5:$B$505)) ->  | C181: =IF(ISBLANK(A181),"",LOOKUP(A181,list_installations,'B.1.c. Installations'!$C$5:$C$505)) ->  | D181: =IF(ISBLANK(A181),"",LOOKUP(A181,list_installations,'B.1.c. Installations'!$D$5:$D$505)) ->  | E181: =IF(ISBLANK(A181),"",LOOKUP(A181,list_installations,'B.1.c. Installations'!$E$5:$E$505)) ->  | F181: =IF(ISBLANK(A181),"",((LOOKUP(A181,list_installations,'B.1.c. Installations'!$I$5:$I$505)+LOOKUP(A181,list_installations,'B.1.c. Installations'!$K$5:$K$505)+LOOKUP(A181,list_installations,'B.1.c. Installations'!$M$5:$M$505))/3)) ->  | G181: =IF(ISBLANK(A181),"",((LOOKUP(A181,list_installations,'B.1.c. Installations'!$O$5:$O$505)+LOOKUP(A181,list_installations,'B.1.c. Installations'!$Q$5:$Q$505)+LOOKUP(A181,list_installations,'B.1.c. Installations'!$S$5:$S$505))/3)) ->  | N181: =IF(ISBLANK(A181),"",ROUND(M181*'Correction factor'!$B$7,0)) ->  | O181: =IF(ISBLANK(A181),"",ROUND(M181*'Correction factor'!$C$7,0)) ->  | P181: =IF(ISBLANK(A181),"",ROUND(M181*'Correction factor'!$D$7,0)) ->  | Q181: =IF(ISBLANK(A181),"",ROUND(M181*'Correction factor'!$E$7,0)) ->  | R181: =IF(ISBLANK(A181),"",ROUND(M181*'Correction factor'!$F$7,0)) ->  | S181: =IF(ISBLANK(A181),"",ROUND(M181*'Correction factor'!$G$7,0)) ->  | T181: =IF(ISBLANK(A181),"",ROUND(M181*'Correction factor'!$H$7,0)) ->  | U181: =IF(ISBLANK(A181),"",ROUND(M181*'Correction factor'!$I$7,0)) -> 
B182: =IF(ISBLANK(A182),"",LOOKUP(A182,list_installations,'B.1.c. Installations'!$B$5:$B$505)) ->  | C182: =IF(ISBLANK(A182),"",LOOKUP(A182,list_installations,'B.1.c. Installations'!$C$5:$C$505)) ->  | D182: =IF(ISBLANK(A182),"",LOOKUP(A182,list_installations,'B.1.c. Installations'!$D$5:$D$505)) ->  | E182: =IF(ISBLANK(A182),"",LOOKUP(A182,list_installations,'B.1.c. Installations'!$E$5:$E$505)) ->  | F182: =IF(ISBLANK(A182),"",((LOOKUP(A182,list_installations,'B.1.c. Installations'!$I$5:$I$505)+LOOKUP(A182,list_installations,'B.1.c. Installations'!$K$5:$K$505)+LOOKUP(A182,list_installations,'B.1.c. Installations'!$M$5:$M$505))/3)) ->  | G182: =IF(ISBLANK(A182),"",((LOOKUP(A182,list_installations,'B.1.c. Installations'!$O$5:$O$505)+LOOKUP(A182,list_installations,'B.1.c. Installations'!$Q$5:$Q$505)+LOOKUP(A182,list_installations,'B.1.c. Installations'!$S$5:$S$505))/3)) ->  | N182: =IF(ISBLANK(A182),"",ROUND(M182*'Correction factor'!$B$7,0)) ->  | O182: =IF(ISBLANK(A182),"",ROUND(M182*'Correction factor'!$C$7,0)) ->  | P182: =IF(ISBLANK(A182),"",ROUND(M182*'Correction factor'!$D$7,0)) ->  | Q182: =IF(ISBLANK(A182),"",ROUND(M182*'Correction factor'!$E$7,0)) ->  | R182: =IF(ISBLANK(A182),"",ROUND(M182*'Correction factor'!$F$7,0)) ->  | S182: =IF(ISBLANK(A182),"",ROUND(M182*'Correction factor'!$G$7,0)) ->  | T182: =IF(ISBLANK(A182),"",ROUND(M182*'Correction factor'!$H$7,0)) ->  | U182: =IF(ISBLANK(A182),"",ROUND(M182*'Correction factor'!$I$7,0)) -> 
B183: =IF(ISBLANK(A183),"",LOOKUP(A183,list_installations,'B.1.c. Installations'!$B$5:$B$505)) ->  | C183: =IF(ISBLANK(A183),"",LOOKUP(A183,list_installations,'B.1.c. Installations'!$C$5:$C$505)) ->  | D183: =IF(ISBLANK(A183),"",LOOKUP(A183,list_installations,'B.1.c. Installations'!$D$5:$D$505)) ->  | E183: =IF(ISBLANK(A183),"",LOOKUP(A183,list_installations,'B.1.c. Installations'!$E$5:$E$505)) ->  | F183: =IF(ISBLANK(A183),"",((LOOKUP(A183,list_installations,'B.1.c. Installations'!$I$5:$I$505)+LOOKUP(A183,list_installations,'B.1.c. Installations'!$K$5:$K$505)+LOOKUP(A183,list_installations,'B.1.c. Installations'!$M$5:$M$505))/3)) ->  | G183: =IF(ISBLANK(A183),"",((LOOKUP(A183,list_installations,'B.1.c. Installations'!$O$5:$O$505)+LOOKUP(A183,list_installations,'B.1.c. Installations'!$Q$5:$Q$505)+LOOKUP(A183,list_installations,'B.1.c. Installations'!$S$5:$S$505))/3)) ->  | N183: =IF(ISBLANK(A183),"",ROUND(M183*'Correction factor'!$B$7,0)) ->  | O183: =IF(ISBLANK(A183),"",ROUND(M183*'Correction factor'!$C$7,0)) ->  | P183: =IF(ISBLANK(A183),"",ROUND(M183*'Correction factor'!$D$7,0)) ->  | Q183: =IF(ISBLANK(A183),"",ROUND(M183*'Correction factor'!$E$7,0)) ->  | R183: =IF(ISBLANK(A183),"",ROUND(M183*'Correction factor'!$F$7,0)) ->  | S183: =IF(ISBLANK(A183),"",ROUND(M183*'Correction factor'!$G$7,0)) ->  | T183: =IF(ISBLANK(A183),"",ROUND(M183*'Correction factor'!$H$7,0)) ->  | U183: =IF(ISBLANK(A183),"",ROUND(M183*'Correction factor'!$I$7,0)) -> 
B184: =IF(ISBLANK(A184),"",LOOKUP(A184,list_installations,'B.1.c. Installations'!$B$5:$B$505)) ->  | C184: =IF(ISBLANK(A184),"",LOOKUP(A184,list_installations,'B.1.c. Installations'!$C$5:$C$505)) ->  | D184: =IF(ISBLANK(A184),"",LOOKUP(A184,list_installations,'B.1.c. Installations'!$D$5:$D$505)) ->  | E184: =IF(ISBLANK(A184),"",LOOKUP(A184,list_installations,'B.1.c. Installations'!$E$5:$E$505)) ->  | F184: =IF(ISBLANK(A184),"",((LOOKUP(A184,list_installations,'B.1.c. Installations'!$I$5:$I$505)+LOOKUP(A184,list_installations,'B.1.c. Installations'!$K$5:$K$505)+LOOKUP(A184,list_installations,'B.1.c. Installations'!$M$5:$M$505))/3)) ->  | G184: =IF(ISBLANK(A184),"",((LOOKUP(A184,list_installations,'B.1.c. Installations'!$O$5:$O$505)+LOOKUP(A184,list_installations,'B.1.c. Installations'!$Q$5:$Q$505)+LOOKUP(A184,list_installations,'B.1.c. Installations'!$S$5:$S$505))/3)) ->  | N184: =IF(ISBLANK(A184),"",ROUND(M184*'Correction factor'!$B$7,0)) ->  | O184: =IF(ISBLANK(A184),"",ROUND(M184*'Correction factor'!$C$7,0)) ->  | P184: =IF(ISBLANK(A184),"",ROUND(M184*'Correction factor'!$D$7,0)) ->  | Q184: =IF(ISBLANK(A184),"",ROUND(M184*'Correction factor'!$E$7,0)) ->  | R184: =IF(ISBLANK(A184),"",ROUND(M184*'Correction factor'!$F$7,0)) ->  | S184: =IF(ISBLANK(A184),"",ROUND(M184*'Correction factor'!$G$7,0)) ->  | T184: =IF(ISBLANK(A184),"",ROUND(M184*'Correction factor'!$H$7,0)) ->  | U184: =IF(ISBLANK(A184),"",ROUND(M184*'Correction factor'!$I$7,0)) -> 
B185: =IF(ISBLANK(A185),"",LOOKUP(A185,list_installations,'B.1.c. Installations'!$B$5:$B$505)) ->  | C185: =IF(ISBLANK(A185),"",LOOKUP(A185,list_installations,'B.1.c. Installations'!$C$5:$C$505)) ->  | D185: =IF(ISBLANK(A185),"",LOOKUP(A185,list_installations,'B.1.c. Installations'!$D$5:$D$505)) ->  | E185: =IF(ISBLANK(A185),"",LOOKUP(A185,list_installations,'B.1.c. Installations'!$E$5:$E$505)) ->  | F185: =IF(ISBLANK(A185),"",((LOOKUP(A185,list_installations,'B.1.c. Installations'!$I$5:$I$505)+LOOKUP(A185,list_installations,'B.1.c. Installations'!$K$5:$K$505)+LOOKUP(A185,list_installations,'B.1.c. Installations'!$M$5:$M$505))/3)) ->  | G185: =IF(ISBLANK(A185),"",((LOOKUP(A185,list_installations,'B.1.c. Installations'!$O$5:$O$505)+LOOKUP(A185,list_installations,'B.1.c. Installations'!$Q$5:$Q$505)+LOOKUP(A185,list_installations,'B.1.c. Installations'!$S$5:$S$505))/3)) ->  | N185: =IF(ISBLANK(A185),"",ROUND(M185*'Correction factor'!$B$7,0)) ->  | O185: =IF(ISBLANK(A185),"",ROUND(M185*'Correction factor'!$C$7,0)) ->  | P185: =IF(ISBLANK(A185),"",ROUND(M185*'Correction factor'!$D$7,0)) ->  | Q185: =IF(ISBLANK(A185),"",ROUND(M185*'Correction factor'!$E$7,0)) ->  | R185: =IF(ISBLANK(A185),"",ROUND(M185*'Correction factor'!$F$7,0)) ->  | S185: =IF(ISBLANK(A185),"",ROUND(M185*'Correction factor'!$G$7,0)) ->  | T185: =IF(ISBLANK(A185),"",ROUND(M185*'Correction factor'!$H$7,0)) ->  | U185: =IF(ISBLANK(A185),"",ROUND(M185*'Correction factor'!$I$7,0)) -> 
B186: =IF(ISBLANK(A186),"",LOOKUP(A186,list_installations,'B.1.c. Installations'!$B$5:$B$505)) ->  | C186: =IF(ISBLANK(A186),"",LOOKUP(A186,list_installations,'B.1.c. Installations'!$C$5:$C$505)) ->  | D186: =IF(ISBLANK(A186),"",LOOKUP(A186,list_installations,'B.1.c. Installations'!$D$5:$D$505)) ->  | E186: =IF(ISBLANK(A186),"",LOOKUP(A186,list_installations,'B.1.c. Installations'!$E$5:$E$505)) ->  | F186: =IF(ISBLANK(A186),"",((LOOKUP(A186,list_installations,'B.1.c. Installations'!$I$5:$I$505)+LOOKUP(A186,list_installations,'B.1.c. Installations'!$K$5:$K$505)+LOOKUP(A186,list_installations,'B.1.c. Installations'!$M$5:$M$505))/3)) ->  | G186: =IF(ISBLANK(A186),"",((LOOKUP(A186,list_installations,'B.1.c. Installations'!$O$5:$O$505)+LOOKUP(A186,list_installations,'B.1.c. Installations'!$Q$5:$Q$505)+LOOKUP(A186,list_installations,'B.1.c. Installations'!$S$5:$S$505))/3)) ->  | N186: =IF(ISBLANK(A186),"",ROUND(M186*'Correction factor'!$B$7,0)) ->  | O186: =IF(ISBLANK(A186),"",ROUND(M186*'Correction factor'!$C$7,0)) ->  | P186: =IF(ISBLANK(A186),"",ROUND(M186*'Correction factor'!$D$7,0)) ->  | Q186: =IF(ISBLANK(A186),"",ROUND(M186*'Correction factor'!$E$7,0)) ->  | R186: =IF(ISBLANK(A186),"",ROUND(M186*'Correction factor'!$F$7,0)) ->  | S186: =IF(ISBLANK(A186),"",ROUND(M186*'Correction factor'!$G$7,0)) ->  | T186: =IF(ISBLANK(A186),"",ROUND(M186*'Correction factor'!$H$7,0)) ->  | U186: =IF(ISBLANK(A186),"",ROUND(M186*'Correction factor'!$I$7,0)) -> 
B187: =IF(ISBLANK(A187),"",LOOKUP(A187,list_installations,'B.1.c. Installations'!$B$5:$B$505)) ->  | C187: =IF(ISBLANK(A187),"",LOOKUP(A187,list_installations,'B.1.c. Installations'!$C$5:$C$505)) ->  | D187: =IF(ISBLANK(A187),"",LOOKUP(A187,list_installations,'B.1.c. Installations'!$D$5:$D$505)) ->  | E187: =IF(ISBLANK(A187),"",LOOKUP(A187,list_installations,'B.1.c. Installations'!$E$5:$E$505)) ->  | F187: =IF(ISBLANK(A187),"",((LOOKUP(A187,list_installations,'B.1.c. Installations'!$I$5:$I$505)+LOOKUP(A187,list_installations,'B.1.c. Installations'!$K$5:$K$505)+LOOKUP(A187,list_installations,'B.1.c. Installations'!$M$5:$M$505))/3)) ->  | G187: =IF(ISBLANK(A187),"",((LOOKUP(A187,list_installations,'B.1.c. Installations'!$O$5:$O$505)+LOOKUP(A187,list_installations,'B.1.c. Installations'!$Q$5:$Q$505)+LOOKUP(A187,list_installations,'B.1.c. Installations'!$S$5:$S$505))/3)) ->  | N187: =IF(ISBLANK(A187),"",ROUND(M187*'Correction factor'!$B$7,0)) ->  | O187: =IF(ISBLANK(A187),"",ROUND(M187*'Correction factor'!$C$7,0)) ->  | P187: =IF(ISBLANK(A187),"",ROUND(M187*'Correction factor'!$D$7,0)) ->  | Q187: =IF(ISBLANK(A187),"",ROUND(M187*'Correction factor'!$E$7,0)) ->  | R187: =IF(ISBLANK(A187),"",ROUND(M187*'Correction factor'!$F$7,0)) ->  | S187: =IF(ISBLANK(A187),"",ROUND(M187*'Correction factor'!$G$7,0)) ->  | T187: =IF(ISBLANK(A187),"",ROUND(M187*'Correction factor'!$H$7,0)) ->  | U187: =IF(ISBLANK(A187),"",ROUND(M187*'Correction factor'!$I$7,0)) -> 
B188: =IF(ISBLANK(A188),"",LOOKUP(A188,list_installations,'B.1.c. Installations'!$B$5:$B$505)) ->  | C188: =IF(ISBLANK(A188),"",LOOKUP(A188,list_installations,'B.1.c. Installations'!$C$5:$C$505)) ->  | D188: =IF(ISBLANK(A188),"",LOOKUP(A188,list_installations,'B.1.c. Installations'!$D$5:$D$505)) ->  | E188: =IF(ISBLANK(A188),"",LOOKUP(A188,list_installations,'B.1.c. Installations'!$E$5:$E$505)) ->  | F188: =IF(ISBLANK(A188),"",((LOOKUP(A188,list_installations,'B.1.c. Installations'!$I$5:$I$505)+LOOKUP(A188,list_installations,'B.1.c. Installations'!$K$5:$K$505)+LOOKUP(A188,list_installations,'B.1.c. Installations'!$M$5:$M$505))/3)) ->  | G188: =IF(ISBLANK(A188),"",((LOOKUP(A188,list_installations,'B.1.c. Installations'!$O$5:$O$505)+LOOKUP(A188,list_installations,'B.1.c. Installations'!$Q$5:$Q$505)+LOOKUP(A188,list_installations,'B.1.c. Installations'!$S$5:$S$505))/3)) ->  | N188: =IF(ISBLANK(A188),"",ROUND(M188*'Correction factor'!$B$7,0)) ->  | O188: =IF(ISBLANK(A188),"",ROUND(M188*'Correction factor'!$C$7,0)) ->  | P188: =IF(ISBLANK(A188),"",ROUND(M188*'Correction factor'!$D$7,0)) ->  | Q188: =IF(ISBLANK(A188),"",ROUND(M188*'Correction factor'!$E$7,0)) ->  | R188: =IF(ISBLANK(A188),"",ROUND(M188*'Correction factor'!$F$7,0)) ->  | S188: =IF(ISBLANK(A188),"",ROUND(M188*'Correction factor'!$G$7,0)) ->  | T188: =IF(ISBLANK(A188),"",ROUND(M188*'Correction factor'!$H$7,0)) ->  | U188: =IF(ISBLANK(A188),"",ROUND(M188*'Correction factor'!$I$7,0)) -> 
